Workbook

Sheet Information
A1: =Main!A1 -> ERA, DBNGP Tariff Model, Draft Decision, August 2020
A2: Information
A3: Prior to using this model
B4: The Excel VBA macro must be enabled prior to opening this model to allow the use of macro to perform computation.
A6: Annual update of Trailing Average DRP for Tariff Variation
B7: For each year prior to the variation year (of tariff variation) there will be an annual update of the Trailing Average Debt Risk Premium (DRP).
B8: Annual update of Trailing Average DRP is updated by entering the annual DRP at Input sheet Cells(AE11:AH11).
B9: The actual September CPI must also be updated at Input Sheet Row 21.
B10: After entering the annual updates, click on the [Calculate] button .
B11: The X-Factor (price change) and the revised tariffs at 31-December-2019 $ for the variation year will be computed.
B12: This model will also apply the tariff variation mechanism based on the document:
B13: "Final Decision on Proposed Revisions to the Access Arrangement for the Dampier to Bunbury Natural Gas Pipeline 2021-2025.pdf", August 2020
B14: The Reference Tariff will be presented in the Main sheet.
A16: Worksheets
B18: Worksheet | C18: Description
B19: Main | C19: Summary of outputs
B20: WACC | C20: Contains the relevant parameters related to computing the WACC
B21: Inputs | C21: Contains general inputs of assumptions, capital expenditures, redundant and disposed assets, operating expenditures, approved depreciations
B22: Load | C22: Contains inputs of pipeline distances and capacity and throughput gas volumes
B23: CoS_Tariff_Revenue | C23: Computations of total revenue building block (cost of service), inflationary gain, tariff, tariff revenue and Credit Foncier Check
B24: Tax_Core | C24: Contains calculation of tax, imputation credit and cost of raising equity
B25: Asset | C25: Contains regulatory and non-regulatory shippers' asset base. Includes opening capital base, capital expenditure account. Objective is to compute Opening Asset Base and Depreciation of regulatory assets. Computations are in Real 31-December-2019 $m
B26: Asset_NoReclass | C26: Contains asset without asset reclassification. Assets classes from 2005 to 2015 would be the same as the previous access arrangements.
B27: frPipeline | C27: Contains Pipeline assets for Capex of 2005 to 2015 being reallocated to new asset categories based on the Asset_Splits information
B28: frCompression | C28: Contains Compression assets for Capex of 2005 to 2015 being reallocated to new asset categories based on the Asset_Splits information
B29: frMetering | C29: Contains Metering assets for Capex of 2005 to 2015 being reallocated to new asset categories based on the Asset_Splits information
B30: frOther | C30: Contains Other Depreciable assets for Capex of 2005 to 2015 being reallocated to new asset categories based on the Asset_Splits information
B31: Asset_Splits | C31: This sheet provides information on the percentage of allocation from an existing asset class to the new asset classes. It is used to reallocate the capex and redundant & disposed assets. In cases where the closing value become less than zero after the reallocation, the split for the redundant asset is set to zero.
B32: Tax_Asset | C32: Contains regulatory and non-regulatory shippers' asset base. Includes initial capital base, capital expenditure account. Objective is to compute Tax Depreciation of regulatory assets. Computations are in nominal $m
B33: SolverSheet | C33: Contains inputs, target outputs and settings for Solver to compute the X-Factor and tariffs after the annual update of Trailing Average DRP and Cost Pass Through
B34: Tariff_Variation | C34: The forecast tariffs are recalculated to produce the Reference Tariffs based on the proxy CPI (actual September CPIs)

Sheet Main
A1: ERA, DBNGP Tariff Model, Draft Decision, August 2020
A2: Main Summary
A3: Ref | B3: =COLUMN() -> 2 | C3: =COLUMN() -> 3 | D3: =COLUMN() -> 4 | E3: =COLUMN() -> 5 | F3: =COLUMN() -> 6 | G3: =COLUMN() -> 7 | H3: =COLUMN() -> 8
A4: WACC
A5: =ROW() -> 5 | C5: Post-tax WACC | D5: =Inputs!AD6 -> 2021 | E5: =Inputs!AE6 -> 2022 | F5: =Inputs!AF6 -> 2023 | G5: =Inputs!AG6 -> 2024 | H5: =Inputs!AH6 -> 2025 | T5: Instruction for Annual Update of DRP:
A6: =ROW() -> 6 | C6: ="Real at "&Inputs!$E$32 -> Real at 31/12/2019 | D6: =WACC!T$37 -> 0.02709744299 | E6: =WACC!U$37 -> 0.02709744299 | F6: =WACC!V$37 -> 0.02709744299 | G6: =WACC!W$37 -> 0.02709744299 | H6: =WACC!X$37 -> 0.02709744299 | T6: (1) Excel VBA Macro must be enabled
A7: =ROW() -> 7 | C7: Nominal (Vanilla) | D7: =WACC!T$36 -> 0.040347 | E7: =WACC!U$36 -> 0.040347 | F7: =WACC!V$36 -> 0.040347 | G7: =WACC!W$36 -> 0.040347 | H7: =WACC!X$36 -> 0.040347
A8: =ROW() -> 8 | T8: (2) Update the current year Trailing Average DRP in the Input sheet
A9: Closing Regulated Asset Base | T9: (3) Click the "Calculate" button to recalculate the model
A10: =ROW() -> 10 | T10: Solver is used to calculate X-Factor (price change) and Cost of Raising Equity so that Delta=0
A11: =ROW() -> 11 | D11: December 2020 | E11: December 2025 | T11: ="(4) The output will be a new X-Faxtor to compute new tariffs starting 1 January of the following" -> (4) The output will be a new X-Faxtor to compute new tariffs starting 1 January of the following
A12: =ROW() -> 12 | D12: =Inputs!$E$32&" [m$]" -> 31/12/2019 [m$] | E12: =Inputs!$E$32&" [m$]" -> 31/12/2019 [m$] | T12: =" year in Real $ at "&Inputs!$E$32 -> year in Real $ at 31/12/2019
A13: =ROW() -> 13 | C13: Closing Asset Value of DBNGP including BEP Assets | D13: =Asset!$AC$33 -> 3327.388989 | E13: =Asset!$AH$33 -> 2900.229099
A14: =ROW() -> 14 | C14: Closing Asset Value of DBNGP Assets | D14: =Asset!$AC$47 -> 3308.3251 | E14: =Asset!$AH$47 -> 2883.151031 | V14: Recalculate for years: | W14: =Recalc_From_Year&" to 2025" -> 2021 to 2025
A15: =ROW() -> 15 | W15: ="X-Factor_"&Inputs!AD6 -> X-Factor_2021 | X15: ="X-Factor_"&Inputs!AE6 -> X-Factor_2022 | Y15: ="X-Factor_"&Inputs!AF6 -> X-Factor_2023 | Z15: ="X-Factor_"&Inputs!AG6 -> X-Factor_2024 | AA15: ="X-Factor_"&Inputs!AH6 -> X-Factor_2025
A16: Revenue Building Block | J16: Revenue Building Block | V16: X-Factor (price change) = | W16: =SolverSheet!I13 -> -0.2160551 | X16: =SolverSheet!J13 -> 0 | Y16: =SolverSheet!K13 -> 0 | Z16: =SolverSheet!L13 -> 0 | AA16: =SolverSheet!M13 -> 0
A17: =ROW() -> 17 | V17: Delta = | W17: =SolverSheet!F16 -> 9.999666872e-09
A18: =ROW() -> 18 | D18: ="Real " -> Real | E18: Nominal | F18: Real [%] | G18: Nominal [%] | K18: ="Real at "&Inputs!$E$32&" [m$]" -> Real at 31/12/2019 [m$] | L18: Nominal [m$] | T18: (5) The Reference Tariff will also be presented after the actual September CPI is updated
A19: =ROW() -> 19 | B19: ="PV of Total Revenue (CoS) [m$ "&Inputs!$E$32&"]" -> PV of Total Revenue (CoS) [m$ 31/12/2019] | J19: ="Total Revenue (CoS)" -> Total Revenue (CoS)
A20: =ROW() -> 20 | C20: Opex | D20: =SUM(CoS_Tariff_Revenue!$F$78:$F$79) -> 410.7858547 | E20: =SUM(CoS_Tariff_Revenue!$F$41:$F$42) -> 410.7858547 | F20: =D20/D$26 -> 0.3090369281 | G20: 0.3090369281 | J20: Opex | K20: =SUM(CoS_Tariff_Revenue!$AF$78:$AJ$79) -> 456.4424775 | L20: =SUM(CoS_Tariff_Revenue!$AF$41:$AJ$42) -> 480.3379544
A21: =ROW() -> 21 | C21: Depreciation | D21: =CoS_Tariff_Revenue!$F$80 -> 503.4408892 | E21: =CoS_Tariff_Revenue!$F$43 -> 503.4408892 | F21: 0.3787419261 | G21: 0.3787419261 | J21: Depreciation | K21: =SUM(CoS_Tariff_Revenue!$AF$80:$AJ$80) -> 559.0947627 | L21: =SUM(CoS_Tariff_Revenue!$AF$43:$AJ$43) -> 588.2227151 | T21: Notes on colour codes
A22: =ROW() -> 22 | C22: Inflationary Gains on RAB | E22: =CoS_Tariff_Revenue!$F$44 -> -181.0356006 | F22: 0 | G22: -0.1361942853 | J22: Inflationary Gains on RAB | L22: =SUM(CoS_Tariff_Revenue!$AF$44:$AJ$44) -> -211.4970891
A23: =ROW() -> 23 | C23: Return on Asset | D23: =CoS_Tariff_Revenue!$F$81 -> 385.1848164 | E23: =CoS_Tariff_Revenue!$F$45 -> 566.220417 | F23: 0.2897770968 | G23: 0.4259713821 | J23: Return on Asset | K23: =SUM(CoS_Tariff_Revenue!$AF$81:$AJ$81) -> 427.7349543 | L23: =SUM(CoS_Tariff_Revenue!$AF$45:$AJ$45) -> 661.494035 | T23: Number | U23: ===> | V23: Data entries
A24: =ROW() -> 24 | C24: Tax | D24: =CoS_Tariff_Revenue!$F$82 -> 59.66728914 | E24: =CoS_Tariff_Revenue!$F$46 -> 59.66728914 | F24: 0.04488809809 | G24: 0.04488809809 | J24: Tax | K24: =SUM(CoS_Tariff_Revenue!$AF$82:$AJ$82) -> 65.82546996 | L24: =SUM(CoS_Tariff_Revenue!$AF$46:$AJ$46) -> 69.03705704 | T24: Number | U24: ===> | V24: Number or texts that are linked to other sheet
A25: =ROW() -> 25 | C25: Imputation Credits | D25: =CoS_Tariff_Revenue!$F$83 -> -29.83364457 | E25: =CoS_Tariff_Revenue!$F$47 -> -29.83364457 | F25: -0.02244404905 | G25: -0.02244404905 | J25: Imputation Credits | K25: =SUM(CoS_Tariff_Revenue!$AF$83:$AJ$83) -> -32.91273498 | L25: =SUM(CoS_Tariff_Revenue!$AF$47:$AJ$47) -> -34.51852852 | T25: Number | U25: ===> | V25: Contains formula that is not consistent with the others in the same row
A26: =ROW() -> 26 | C26: Cost of Service | D26: =SUM(D20:D25) -> 1329.245205 | E26: =SUM(E20:E25) -> 1329.245205 | F26: 1 | G26: 1 | J26: Cost of Service | K26: =SUM(K20:K25) -> 1476.18493 | L26: =SUM(L20:L25) -> 1553.076144 | T26: -Number | U26: ===> | V26: Excel formatting for negative number
A27: =ROW() -> 27 | C27: less non-reference cost of service | D27: =CoS_Tariff_Revenue!F86 -> -39.87735615 | E27: =CoS_Tariff_Revenue!F50 -> -39.87735615 | J27: less non-reference cost of service | K27: =SUM(CoS_Tariff_Revenue!$AF$86:$AJ$86) -> -44.28554789 | L27: =SUM(CoS_Tariff_Revenue!$AF$50:$AJ$50) -> -46.59228432
A28: =ROW() -> 28 | C28: add back SUG | D28: =CoS_Tariff_Revenue!F87 -> 3.290856847 | E28: =CoS_Tariff_Revenue!F51 -> 3.290856847 | J28: add back SUG | K28: =SUM(CoS_Tariff_Revenue!$AF$87:$AJ$87) -> 3.661957937 | L28: =SUM(CoS_Tariff_Revenue!$AF$51:$AJ$51) -> 3.856367521
A29: =ROW() -> 29 | C29: Rebatable Revenue | D29: =CoS_Tariff_Revenue!F88 -> 0 | E29: =CoS_Tariff_Revenue!F52 -> 0 | J29: Rebatable Revenue | K29: =SUM(CoS_Tariff_Revenue!$AF$88:$AJ$88) -> 0 | L29: =SUM(CoS_Tariff_Revenue!$AF$52:$AJ$52) -> 0
A30: =ROW() -> 30 | C30: Total Unsmooth Revenue | D30: =SUM(D26:D29) -> 1292.658706 | E30: =SUM(E26:E29) -> 1292.658706 | J30: Total Unsmooth Revenue | K30: =SUM(K26:K29) -> 1435.56134 | L30: =SUM(L26:L29) -> 1510.340227
A31: =ROW() -> 31 | C31: Total Tariff Revenue | D31: =CoS_Tariff_Revenue!$F$90 -> 1292.658706 | E31: =CoS_Tariff_Revenue!$F$54 -> 1292.658706 | J31: Total Tariff Revenue | K31: =SUM(CoS_Tariff_Revenue!$AF$90:$AJ$90) -> 1437.684695 | L31: =SUM(CoS_Tariff_Revenue!$AF$54:$AJ$54) -> 1513.639092
A32: =ROW() -> 32 | C32: Check: | D32: =IF(ROUND(D30-D31,5)=0,"OK","Wrong") -> OK | E32: =IF(ROUND(E30-E31,5)=0,"OK","Wrong") -> OK | J32: Difference (Unsmooth Revenue-Tariff Revenue) | K32: =K26-K31 -> 38.50023433 | L32: =L26-L31 -> 39.43705191
A33: =ROW() -> 33
A34: =ROW() -> 34
A35: Check on Building Block
A36: =ROW() -> 36
A37: =ROW() -> 37 | B37: ="PV of Regulatory Revenue [m$ "&Inputs!$E$32&"]" -> PV of Regulatory Revenue [m$ 31/12/2019]
A38: =ROW() -> 38 | C38: Asset Opening Value | D38: =-CoS_Tariff_Revenue!$F$117 -> 3239.604004
A39: =ROW() -> 39 | C39: Asset Residual Value | D39: =-CoS_Tariff_Revenue!$F$119 -> -2470.372348
A40: =ROW() -> 40 | C40: Opex | D40: =-CoS_Tariff_Revenue!$F$113 -> 410.7858547
A41: =ROW() -> 41 | C41: Capex | D41: =-CoS_Tariff_Revenue!$F$118 -> 119.3940501
A42: =ROW() -> 42 | C42: Tax | D42: =-CoS_Tariff_Revenue!$F$114 -> 59.66728914
A43: =ROW() -> 43 | C43: Imputation Credits | D43: =-CoS_Tariff_Revenue!$F$115 -> -29.83364457
A44: =ROW() -> 44 | C44: Regulatory Revenue | D44: =SUM(D38:D43) -> 1329.245205
A45: =ROW() -> 45 | C45: Check: | D45: =IF(ROUND(D26-D44,8)=0,"OK","Wrong") -> OK
A46: =ROW() -> 46
A47: PV of Forecast Revenue | J47: Total of Forecast Revenue
A48: =ROW() -> 48 | K48: ="Real at "&Inputs!$E$32&" [m$]" -> Real at 31/12/2019 [m$] | L48: Nominal [m$]
A49: =ROW() -> 49 | B49: ="PV of Forecast Revenue [m$ "&Inputs!$E$32&"]" -> PV of Forecast Revenue [m$ 31/12/2019] | J49: Total of Forecast Revenue
A50: =ROW() -> 50 | C50: Capacity Reservation | D50: =CoS_Tariff_Revenue!$F210 -> 1201.72871 | J50: Capacity Reservation | K50: =SUM(CoS_Tariff_Revenue!$AF$210:$AJ$210) -> 1336.549738 | L50: =SUM(CoS_Tariff_Revenue!$AF$200:$AJ$200) -> 1407.159385
A51: =ROW() -> 51 | C51: Commodity | D51: =CoS_Tariff_Revenue!$F211 -> 90.92999579 | J51: Commodity | K51: =SUM(CoS_Tariff_Revenue!$AF$211:$AJ$211) -> 101.1349573 | L51: =SUM(CoS_Tariff_Revenue!$AF$201:$AJ$201) -> 106.4797075
A52: =ROW() -> 52 | C52: Regulated Revenue | D52: =CoS_Tariff_Revenue!$F212 -> 1292.658706 | J52: Regulated Revenue | K52: =SUM(CoS_Tariff_Revenue!$AF$212:$AJ$212) -> 1437.684695 | L52: =SUM(CoS_Tariff_Revenue!$AF$202:$AJ$202) -> 1513.639092
A53: =ROW() -> 53 | C53: Check: | D53: =IF(ROUND(D30-D52,5)=0,"OK","Wrong") -> OK
A54: =ROW() -> 54
A55: =ROW() -> 55
A56: Forecast Tariff | D56: =CoS_Tariff_Revenue!AF$6 -> 2021 | E56: =CoS_Tariff_Revenue!AG$6 -> 2022 | F56: =CoS_Tariff_Revenue!AH$6 -> 2023 | G56: =CoS_Tariff_Revenue!AI$6 -> 2024 | H56: =CoS_Tariff_Revenue!AJ$6 -> 2025
D57: Jan-Dec | E57: Jan-Dec | F57: Jan-Dec | G57: Jan-Dec | H57: Jan-Dec
A58: =ROW() -> 58 | B58: Full Haul T1 Service (T1 Service)
A59: =ROW() -> 59 | B59: ="Tariff [$/GJ/day "&Inputs!$E$32&"]" -> Tariff [$/GJ/day 31/12/2019]
A60: =ROW() -> 60 | C60: Capacity Reservation Tariff | D60: =CoS_Tariff_Revenue!AF$223 -> 0.9591099342 | E60: =CoS_Tariff_Revenue!AG$223 -> 0.9591099342 | F60: =CoS_Tariff_Revenue!AH$223 -> 0.9591099342 | G60: =CoS_Tariff_Revenue!AI$223 -> 0.9591099342 | H60: =CoS_Tariff_Revenue!AJ$223 -> 0.9591099342
A61: =ROW() -> 61 | C61: Commodity Tariff | D61: =CoS_Tariff_Revenue!AF$224 -> 0.0889374794 | E61: =CoS_Tariff_Revenue!AG$224 -> 0.0889374794 | F61: =CoS_Tariff_Revenue!AH$224 -> 0.0889374794 | G61: =CoS_Tariff_Revenue!AI$224 -> 0.0889374794 | H61: =CoS_Tariff_Revenue!AJ$224 -> 0.0889374794
A62: =ROW() -> 62 | C62: Total Tariff | D62: =CoS_Tariff_Revenue!AF$225 -> 1.048047414 | E62: =CoS_Tariff_Revenue!AG$225 -> 1.048047414 | F62: =CoS_Tariff_Revenue!AH$225 -> 1.048047414 | G62: =CoS_Tariff_Revenue!AI$225 -> 1.048047414 | H62: =CoS_Tariff_Revenue!AJ$225 -> 1.048047414
A63: =ROW() -> 63 | B63: Part Haul T1 Service (P1 Service)
A64: =ROW() -> 64 | B64: ="Tariff [$/GJ/day/km "&Inputs!$E$32&"]" -> Tariff [$/GJ/day/km 31/12/2019]
A65: =ROW() -> 65 | C65: Capacity Reservation Tariff | D65: =CoS_Tariff_Revenue!AF$233 -> 0.000685568216 | E65: =CoS_Tariff_Revenue!AG$233 -> 0.000685568216 | F65: =CoS_Tariff_Revenue!AH$233 -> 0.000685568216 | G65: =CoS_Tariff_Revenue!AI$233 -> 0.000685568216 | H65: =CoS_Tariff_Revenue!AJ$233 -> 0.000685568216
A66: =ROW() -> 66 | C66: Commodity Tariff | D66: =CoS_Tariff_Revenue!AF$234 -> 6.35721797e-05 | E66: =CoS_Tariff_Revenue!AG$234 -> 6.35721797e-05 | F66: =CoS_Tariff_Revenue!AH$234 -> 6.35721797e-05 | G66: =CoS_Tariff_Revenue!AI$234 -> 6.35721797e-05 | H66: =CoS_Tariff_Revenue!AJ$234 -> 6.35721797e-05
A67: =ROW() -> 67 | C67: Total Tariff | D67: =CoS_Tariff_Revenue!AF$235 -> 0.0007491403957 | E67: =CoS_Tariff_Revenue!AG$235 -> 0.0007491403957 | F67: =CoS_Tariff_Revenue!AH$235 -> 0.0007491403957 | G67: =CoS_Tariff_Revenue!AI$235 -> 0.0007491403957 | H67: =CoS_Tariff_Revenue!AJ$235 -> 0.0007491403957
A68: =ROW() -> 68 | B68: Back Haul T1 Service (B1 Service)
A69: =ROW() -> 69 | B69: ="Tariff [$/GJ/day/km "&Inputs!$E$32&"]" -> Tariff [$/GJ/day/km 31/12/2019]
A70: =ROW() -> 70 | C70: Capacity Reservation Tariff | D70: =CoS_Tariff_Revenue!AF$243 -> 0.000685568216 | E70: =CoS_Tariff_Revenue!AG$243 -> 0.000685568216 | F70: =CoS_Tariff_Revenue!AH$243 -> 0.000685568216 | G70: =CoS_Tariff_Revenue!AI$243 -> 0.000685568216 | H70: =CoS_Tariff_Revenue!AJ$243 -> 0.000685568216
A71: =ROW() -> 71 | C71: Commodity Tariff | D71: =CoS_Tariff_Revenue!AF$244 -> 6.35721797e-05 | E71: =CoS_Tariff_Revenue!AG$244 -> 6.35721797e-05 | F71: =CoS_Tariff_Revenue!AH$244 -> 6.35721797e-05 | G71: =CoS_Tariff_Revenue!AI$244 -> 6.35721797e-05 | H71: =CoS_Tariff_Revenue!AJ$244 -> 6.35721797e-05
A72: =ROW() -> 72 | C72: Total Tariff | D72: =CoS_Tariff_Revenue!AF$245 -> 0.0007491403957 | E72: =CoS_Tariff_Revenue!AG$245 -> 0.0007491403957 | F72: =CoS_Tariff_Revenue!AH$245 -> 0.0007491403957 | G72: =CoS_Tariff_Revenue!AI$245 -> 0.0007491403957 | H72: =CoS_Tariff_Revenue!AJ$245 -> 0.0007491403957
A73: =ROW() -> 73
A74: Reference Tariff | D74: =IF(Tariff_Variation!E$58="","",Tariff_Variation!E$58) -> 2021 | E74: =IF(Tariff_Variation!F$58="","",Tariff_Variation!F$58) ->  | F74: =IF(Tariff_Variation!G$58="","",Tariff_Variation!G$58) ->  | G74: =IF(Tariff_Variation!H$58="","",Tariff_Variation!H$58) ->  | H74: =IF(Tariff_Variation!I$58="","",Tariff_Variation!I$58) -> 
D75: =IF(Tariff_Variation!E$59="","",Tariff_Variation!E$59) -> Jan-Dec | E75: =IF(Tariff_Variation!F$59="","",Tariff_Variation!F$59) ->  | F75: =IF(Tariff_Variation!G$59="","",Tariff_Variation!G$59) ->  | G75: =IF(Tariff_Variation!H$59="","",Tariff_Variation!H$59) ->  | H75: =IF(Tariff_Variation!I$59="","",Tariff_Variation!I$59) -> 
A76: =ROW() -> 76 | B76: Full Haul T1 Service (T1 Service)
A77: =ROW() -> 77 | B77: Tariff [$/GJ/day]
A78: =ROW() -> 78 | C78: Capacity Reservation Tariff | D78: =IF(Tariff_Variation!E$62="","",Tariff_Variation!E$62) ->  | E78: =IF(Tariff_Variation!F$62="","",Tariff_Variation!F$62) ->  | F78: =IF(Tariff_Variation!G$62="","",Tariff_Variation!G$62) ->  | G78: =IF(Tariff_Variation!H$62="","",Tariff_Variation!H$62) ->  | H78: =IF(Tariff_Variation!I$62="","",Tariff_Variation!I$62) -> 
A79: =ROW() -> 79 | C79: Commodity Tariff | D79: =IF(Tariff_Variation!E$63="","",Tariff_Variation!E$63) ->  | E79: =IF(Tariff_Variation!F$63="","",Tariff_Variation!F$63) ->  | F79: =IF(Tariff_Variation!G$63="","",Tariff_Variation!G$63) ->  | G79: =IF(Tariff_Variation!H$63="","",Tariff_Variation!H$63) ->  | H79: =IF(Tariff_Variation!I$63="","",Tariff_Variation!I$63) -> 
A80: =ROW() -> 80 | C80: Total Tariff | D80: =IF(Tariff_Variation!E$64="","",Tariff_Variation!E$64) ->  | E80: =IF(Tariff_Variation!F$64="","",Tariff_Variation!F$64) ->  | F80: =IF(Tariff_Variation!G$64="","",Tariff_Variation!G$64) ->  | G80: =IF(Tariff_Variation!H$64="","",Tariff_Variation!H$64) ->  | H80: =IF(Tariff_Variation!I$64="","",Tariff_Variation!I$64) -> 
A81: =ROW() -> 81 | B81: Part Haul T1 Service (P1 Service)
A82: =ROW() -> 82 | B82: Tariff [$/GJ/day/km
A83: =ROW() -> 83 | C83: Capacity Reservation Tariff | D83: =IF(Tariff_Variation!E$68="","",Tariff_Variation!E$68) ->  | E83: =IF(Tariff_Variation!F$68="","",Tariff_Variation!F$68) ->  | F83: =IF(Tariff_Variation!G$68="","",Tariff_Variation!G$68) ->  | G83: =IF(Tariff_Variation!H$68="","",Tariff_Variation!H$68) ->  | H83: =IF(Tariff_Variation!I$68="","",Tariff_Variation!I$68) -> 
A84: =ROW() -> 84 | C84: Commodity Tariff | D84: =IF(Tariff_Variation!E$69="","",Tariff_Variation!E$69) ->  | E84: =IF(Tariff_Variation!F$69="","",Tariff_Variation!F$69) ->  | F84: =IF(Tariff_Variation!G$69="","",Tariff_Variation!G$69) ->  | G84: =IF(Tariff_Variation!H$69="","",Tariff_Variation!H$69) ->  | H84: =IF(Tariff_Variation!I$69="","",Tariff_Variation!I$69) -> 
A85: =ROW() -> 85 | C85: Total Tariff | D85: =IF(Tariff_Variation!E$70="","",Tariff_Variation!E$70) ->  | E85: =IF(Tariff_Variation!F$70="","",Tariff_Variation!F$70) ->  | F85: =IF(Tariff_Variation!G$70="","",Tariff_Variation!G$70) ->  | G85: =IF(Tariff_Variation!H$70="","",Tariff_Variation!H$70) ->  | H85: =IF(Tariff_Variation!I$70="","",Tariff_Variation!I$70) -> 
A86: =ROW() -> 86 | B86: Back Haul T1 Service (B1 Service)
A87: =ROW() -> 87 | B87: Tariff [$/GJ/day/km
A88: =ROW() -> 88 | C88: Capacity Reservation Tariff | D88: =IF(Tariff_Variation!E$74="","",Tariff_Variation!E$74) ->  | E88: =IF(Tariff_Variation!F$74="","",Tariff_Variation!F$74) ->  | F88: =IF(Tariff_Variation!G$74="","",Tariff_Variation!G$74) ->  | G88: =IF(Tariff_Variation!H$74="","",Tariff_Variation!H$74) ->  | H88: =IF(Tariff_Variation!I$74="","",Tariff_Variation!I$74) -> 
A89: =ROW() -> 89 | C89: Commodity Tariff | D89: =IF(Tariff_Variation!E$75="","",Tariff_Variation!E$75) ->  | E89: =IF(Tariff_Variation!F$75="","",Tariff_Variation!F$75) ->  | F89: =IF(Tariff_Variation!G$75="","",Tariff_Variation!G$75) ->  | G89: =IF(Tariff_Variation!H$75="","",Tariff_Variation!H$75) ->  | H89: =IF(Tariff_Variation!I$75="","",Tariff_Variation!I$75) -> 
A90: =ROW() -> 90 | C90: Total Tariff | D90: =IF(Tariff_Variation!E$76="","",Tariff_Variation!E$76) ->  | E90: =IF(Tariff_Variation!F$76="","",Tariff_Variation!F$76) ->  | F90: =IF(Tariff_Variation!G$76="","",Tariff_Variation!G$76) ->  | G90: =IF(Tariff_Variation!H$76="","",Tariff_Variation!H$76) ->  | H90: =IF(Tariff_Variation!I$76="","",Tariff_Variation!I$76) -> 

Sheet WACC
A1: =Main!A1 -> ERA, DBNGP Tariff Model, Draft Decision, August 2020
A2: WACC
A3: Ref | B3: =COLUMN() -> 2 | C3: =COLUMN() -> 3 | D3: =COLUMN() -> 4 | E3: =COLUMN() -> 5 | F3: =COLUMN() -> 6 | G3: =COLUMN() -> 7 | H3: =COLUMN() -> 8 | I3: =COLUMN() -> 9 | J3: =COLUMN() -> 10 | K3: =COLUMN() -> 11 | L3: =COLUMN() -> 12 | M3: =COLUMN() -> 13 | O3: =COLUMN() -> 15 | P3: =COLUMN() -> 16 | Q3: =COLUMN() -> 17 | R3: =COLUMN() -> 18 | S3: =COLUMN() -> 19 | T3: =COLUMN() -> 20 | U3: =COLUMN() -> 21 | V3: =COLUMN() -> 22 | W3: =COLUMN() -> 23 | X3: =COLUMN() -> 24
A4: =ROW() -> 4 | C4: Determination of the Weighted Average Cost of Capital (WACC) | E4: DBNGP | G4: ERA | I4: DBNGP | K4: ERA | M4: ERA | O4: ERA | P4: ERA | Q4: ERA | R4: ERA | S4: ERA | T4: ERA | U4: ERA | V4: ERA | W4: ERA | X4: ERA
A5: =ROW() -> 5 | E5: AA3 | G5: DD3 | I5: Post DD3 | K5: FD3 | M5: Selected | O5: FD4 2016 | P5: FD4 2017 | Q5: FD4 2018 | R5: FD4 2019 | S5: FD4 2020 | T5: DD5 2021 | U5: DD5 2022 | V5: DD5 2023 | W5: DD5 2024 | X5: DD5 2025
A6: =ROW() -> 6 | E6: 2010-03-01 | G6: 2011-02-28 | I6: 2011-04-18 | K6: 31/09/2011 | M6: =K6 -> 31/09/2011 | O6: 2016-06-10
C8: Return on Debt
A9: =ROW() -> 9 | C9: Debt: Nominal Risk Free Rate (DRfn) | G9: 0.0546 | K9: 0.038 | M9: =K9 -> 0.038 | O9: 0.018 | P9: =O9 -> 0.018 | Q9: =P9 -> 0.018 | R9: 0.018 | S9: 0.018
A10: =ROW() -> 10 | C10: Debt: Real Risk Free Rate (DRfr) | G10: =((1+G9)/(G27+1))-1 -> 0.02737457379 | K10: =((1+K9)/(K27+1))-1 -> 0.0102189781 | M10: =K10 -> 0.0102189781 | O10: =((1+O9)/(O27+1))-1 -> 0.003647835946 | P10: =((1+P9)/(P27+1))-1 -> 0.003647835946 | Q10: =((1+Q9)/(Q27+1))-1 -> 0.003647835946 | R10: =((1+R9)/(R27+1))-1 -> 0.003647835946 | S10: =((1+S9)/(S27+1))-1 -> 0.003647835946
A11: =ROW() -> 11 | C11: Cost of Debt; 5 year Interest Rate Swap Spread | O11: 0.021 | P11: =O11 -> 0.021 | Q11: =P11 -> 0.021 | R11: =Q11 -> 0.021 | S11: =R11 -> 0.021 | T11: 0.0084 | U11: =T11 -> 0.0084 | V11: =U11 -> 0.0084 | W11: =V11 -> 0.0084 | X11: =W11 -> 0.0084
A12: =ROW() -> 12 | C12: Cost of Debt; Debt Risk Premium (Drp) | G12: 0.03124 | K12: 0.03143 | M12: =K12 -> 0.03143 | O12: 0.02716 | P12: =IF(P40="",O12,P40) -> 0.0283 | Q12: 0.0263 | R12: 0.02339 | S12: 0.02326 | T12: 0.0224 | U12: 0.0224 | V12: 0.0224 | W12: 0.0224 | X12: 0.0224
A13: =ROW() -> 13 | C13: Cost of Debt; Debt Issuing Cost (Disc) + Hedging Cost | G13: 0.00125 | K13: 0.00125 | M13: =K13 -> 0.00125 | O13: =0.125%+0.114% -> 0.00239 | P13: =O13 -> 0.00239 | Q13: =P13 -> 0.00239 | R13: 0.00239 | S13: 0.00239 | T13: 0.00214 | U13: =T13 -> 0.00214 | V13: =U13 -> 0.00214 | W13: =V13 -> 0.00214 | X13: =W13 -> 0.00214
A14: =ROW() -> 14 | C14: Cost of Debt; Risk Margin (DRm) | G14: =SUM(G12:G13) -> 0.03249 | K14: =SUM(K12:K13) -> 0.03268 | M14: =K14 -> 0.03268 | O14: =O11+O12+O13-O9 -> 0.03255 | P14: =P11+P12+P13-P9 -> 0.03369 | Q14: 0.03169 | R14: 0.02878 | S14: 0.02865 | T14: =T11+T12+T13 -> 0.03294 | U14: =U11+U12+U13 -> 0.03294 | V14: 0.03294 | W14: 0.03294 | X14: 0.03294
A15: =ROW() -> 15 | C15: Nominal Cost of Debt (DPn) | E15: 0.0973 | G15: =G9+G14 -> 0.08709 | I15: 0.0952 | K15: =K9+K14 -> 0.07068 | M15: =K15 -> 0.07068 | O15: =O9+O14 -> 0.05055 | P15: =P9+P14 -> 0.05169 | Q15: =Q9+Q14 -> 0.04969 | R15: =R9+R14 -> 0.04678 | S15: =S9+S14 -> 0.04665 | T15: =T14 -> 0.03294 | U15: =U14 -> 0.03294 | V15: 0.03294 | W15: 0.03294 | X15: 0.03294
C17: Return on Equity
A18: =ROW() -> 18 | C18: Equity: Nominal Risk Free Rate (ERfn) | T18: 0.0074 | U18: =T18 -> 0.0074 | V18: 0.0074 | W18: 0.0074 | X18: 0.0074
A19: =ROW() -> 19 | C19: Australian Market Risk Premium (Rp) | G19: 0.06 | K19: 0.06 | M19: =K19 -> 0.06 | O19: 0.074 | P19: =O19 -> 0.074 | Q19: =P19 -> 0.074 | R19: =Q19 -> 0.074 | S19: =R19 -> 0.074 | T19: 0.06 | U19: 0.06 | V19: 0.06 | W19: 0.06 | X19: 0.06
A20: =ROW() -> 20 | C20: Equity Beta (Be) | G20: 0.8 | K20: 0.8 | M20: =K20 -> 0.8 | O20: 0.7 | P20: =O20 -> 0.7 | Q20: =P20 -> 0.7 | R20: 0.7 | S20: 0.7 | T20: 0.7 | U20: 0.7 | V20: 0.7 | W20: 0.7 | X20: 0.7
A21: =ROW() -> 21 | C21: Nominal Pre Tax Cost of Equity (EPn) | E21: 0.135 | G21: =G22/(1-G28*(1-G29)) -> 0.1194412107 | I21: 0.125 | K21: =K22/(1-K28*(1-K29)) -> 0.1109677419 | M21: =K21 -> 0.1109677419 | O21: =O22/(1-O28*(1-O29)) -> 0.08512195122 | P21: 0.08512195122 | Q21: 0.08512195122 | R21: 0.08512195122 | S21: 0.08512195122 | T21: 0.05811764706 | U21: 0.05811764706 | V21: 0.05811764706 | W21: 0.05811764706 | X21: 0.05811764706
A22: =ROW() -> 22 | C22: Nominal After Tax Cost of Equity (EAn) | G22: =G9+G19*G20 -> 0.1026 | K22: =K9+K19*K20 -> 0.086 | M22: =K22 -> 0.086 | O22: =O9+O19*O20 -> 0.0698 | P22: =P9+P19*P20 -> 0.0698 | Q22: =Q9+Q19*Q20 -> 0.0698 | R22: =R9+R19*R20 -> 0.0698 | S22: =S9+S19*S20 -> 0.0698 | T22: =T18+T19*T20 -> 0.0494 | U22: =U18+U19*U20 -> 0.0494 | V22: 0.0494 | W22: 0.0494 | X22: 0.0494
C24: Other Parameter
A25: =ROW() -> 25 | C25: Debt Proportion (D) | E25: 0.6 | G25: 0.6 | I25: 0.6 | K25: 0.6 | M25: 0.6 | O25: 0.6 | P25: =O25 -> 0.6 | Q25: 0.6 | R25: 0.6 | S25: 0.6 | T25: 0.55 | U25: =T25 -> 0.55 | V25: =U25 -> 0.55 | W25: =V25 -> 0.55 | X25: =W25 -> 0.55
A26: =ROW() -> 26 | C26: Equity Proportion (E) | E26: 0.4 | G26: =1-G25 -> 0.4 | I26: 0.4 | K26: =1-K25 -> 0.4 | M26: 0.4 | O26: =1-O25 -> 0.4 | P26: =1-P25 -> 0.4 | Q26: 0.4 | R26: 0.4 | S26: 0.4 | T26: =1-T25 -> 0.45 | U26: =1-U25 -> 0.45 | V26: 0.45 | W26: 0.45 | X26: 0.45
A27: =ROW() -> 27 | C27: Inflation Rate for WACC (I) | E27: 0.0252 | G27: 0.0265 | I27: 0.0257 | K27: 0.0275 | M27: =K27 -> 0.0275 | O27: 0.0143 | P27: =O27 -> 0.0143 | Q27: =P27 -> 0.0143 | R27: 0.0143 | S27: 0.0143 | T27: 0.0129 | U27: =T27 -> 0.0129 | V27: =U27 -> 0.0129 | W27: =V27 -> 0.0129 | X27: =W27 -> 0.0129
A28: =ROW() -> 28 | C28: Corporate Tax Rate (T) | E28: 0.3 | G28: 0.3 | I28: 0.3 | K28: 0.3 | M28: 0.3 | O28: 0.3 | P28: =O28 -> 0.3 | Q28: 0.3 | R28: 0.3 | S28: 0.3 | T28: 0.3 | U28: =T28 -> 0.3 | V28: =U28 -> 0.3 | W28: =V28 -> 0.3 | X28: =W28 -> 0.3
A29: =ROW() -> 29 | C29: Franking Credit (g) | E29: 0 | G29: 0.53 | I29: 0 | K29: 0.25 | M29: 0.25 | O29: 0.4 | P29: 0.4 | Q29: 0.4 | R29: 0.4 | S29: 0.4 | T29: 0.5 | U29: 0.5 | V29: 0.5 | W29: 0.5 | X29: 0.5
A30: =ROW() -> 30 | C30: Imputation Adj (G) | E30: =(1-E28)/(1-E28*(1-E29)) -> 1 | G30: =(1-G28)/(1-G28*(1-G29)) -> 0.8149010477 | K30: =(1-K28)/(1-K28*(1-K29)) -> 0.9032258065 | M30: 0.9032258065 | O30: =(1-O28)/(1-O28*(1-O29)) -> 0.8536585366 | P30: =(1-P28)/(1-P28*(1-P29)) -> 0.8536585366 | Q30: 0.8536585366 | R30: 0.8536585366 | S30: 0.8536585366 | T30: =(1-T28)/(1-T28*(1-T29)) -> 0.8235294118 | U30: =(1-U28)/(1-U28*(1-U29)) -> 0.8235294118 | V30: 0.8235294118 | W30: 0.8235294118 | X30: 0.8235294118
A32: =ROW() -> 32 | C32: WACC; Pre-tax Officer (Market Practise or Forward Transformation)
A33: =ROW() -> 33 | C33: Nominal Pre Tax WACC (WPn) | E33: =E21*(1/(1-E28*(1-E29))*E26)+E15*E25 -> 0.1355228571 | G33: =G21*G26+G15*G25 -> 0.1000304843 | I33: =I21*(1/(1-I28*(1-I29))*I26)+I15*I25 -> 0.1285485714 | K33: =K21*K26+K15*K25 -> 0.08679509677 | M33: 0.08679509677 | O33: =O21*O26+O15*O25 -> 0.06437878049 | P33: 0.06506278049 | Q33: 0.06386278049 | R33: 0.06211678049 | S33: 0.06203878049 | T33: 0.04426994118 | U33: 0.04426994118 | V33: 0.04426994118 | W33: 0.04426994118 | X33: 0.04426994118
A34: =ROW() -> 34 | C34: Real Pre Tax WACC (WPr) | E34: =(1+E33)/(1+E27)- 1 -> 0.1076110585 | G34: =(1+G33)/(1+G27)-1 -> 0.07163223018 | I34: =(1+I33)/(1+I27)- 1 -> 0.1002715915 | K34: =(1+K33)/(1+K27)-1 -> 0.05770812338 | M34: 0.05770812338 | O34: =(1+O33)/(1+O27)-1 -> 0.04937275016 | P34: 0.05004710686 | Q34: 0.04886402493 | R34: 0.04714264073 | S34: 0.0470657404 | T34: 0.03097042272 | U34: 0.03097042272 | V34: 0.03097042272 | W34: 0.03097042272 | X34: 0.03097042272
A35: =ROW() -> 35 | C35: WACC: Vanilla
A36: =ROW() -> 36 | C36: Nominal After Tax WACC (WVAn) | G36: =G25*G15+G26*G22 -> 0.093294 | K36: =K25*K15+K26*K22 -> 0.076808 | M36: 0.076808 | O36: =O25*O15+O26*O22 -> 0.05825 | P36: 0.058934 | Q36: 0.057734 | R36: 0.055988 | S36: 0.05591 | T36: 0.040347 | U36: 0.040347 | V36: 0.040347 | W36: 0.040347 | X36: 0.040347
A37: =ROW() -> 37 | C37: Real After Tax WACC (WVAr) | G37: =(1+G36)/(1+G27)-1 -> 0.06506965416 | K37: =(1+K36)/(1+K27)-1 -> 0.04798832117 | M37: 0.04798832117 | O37: =(1+O36)/(1+O27)-1 -> 0.04333037563 | P37: 0.04400473233 | Q37: 0.0428216504 | R37: 0.04110026619 | S37: 0.04102336587 | T37: 0.02709744299 | U37: 0.02709744299 | V37: 0.02709744299 | W37: 0.02709744299 | X37: 0.02709744299
A38: =ROW() -> 38
A39: =ROW() -> 39 | C39: Cost of Debt; Debt Risk Premium (Drp)
A40: =ROW() -> 40 | C40: Trailing Average DRP | O40: =O44 -> 0.02716 | P40: =P44 -> 0.0283 | Q40: 0.0263 | R40: 0.02339 | S40: 0.02326 | T40: =T44 -> 0.0224 | U40: =IF(Inputs!AE12="","",Inputs!AE12) ->  | V40: =IF(Inputs!AF12="","",Inputs!AF12) ->  | W40: =IF(Inputs!AG12="","",Inputs!AG12) ->  | X40: =IF(Inputs!AH12="","",Inputs!AH12) -> 
A41: =ROW() -> 41 | C41: Modelled DRP | O41: =IF(O40="",N41,O40) -> 0.02716 | P41: =IF(P40="",O41,P40) -> 0.0283 | Q41: 0.0263 | R41: 0.02339 | S41: 0.02326 | T41: =IF(T40="",S41,T40) -> 0.0224 | U41: 0.0224 | V41: =IF(V40="",U41,V40) -> 0.0224 | W41: =IF(W40="",V41,W40) -> 0.0224 | X41: =IF(X40="",W41,X40) -> 0.0224
A42: =ROW() -> 42
A43: =ROW() -> 43 | C43: Annual Update of Debt Risk Premium | O43: 2016 | P43: =O43+1 -> 2017 | Q43: =P43+1 -> 2018 | R43: 2019 | S43: 2020 | T43: 2021 | U43: =T43+1 -> 2022 | V43: =U43+1 -> 2023 | W43: 2024 | X43: 2025
A44: =ROW() -> 44 | C44: Trailing Average DRP | O44: =ROUND(AVERAGE(O47:O66),5) -> 0.02716 | P44: =ROUND(AVERAGE(P47:P66),5) -> 0.0283 | Q44: 0.0263 | R44: 0.02339 | S44: 0.02326 | T44: =IF(T51="","",ROUND(AVERAGE(T47:T66),5)) -> 0.0224 | U44: =IF(U50="","",ROUND(AVERAGE(U47:U66),5)) ->  | V44: =IF(V49="","",ROUND(AVERAGE(V47:V66),5)) ->  | W44: =IF(W48="","",ROUND(AVERAGE(W47:W66),5)) ->  | X44: =IF(X47="","",ROUND(AVERAGE(X47:X66),5)) ->  | Z44: This number is automatically populated when the annual DRP at Inputs sheet, Row 11 is updated
A45: =ROW() -> 45
A46: =ROW() -> 46 | C46: Annual Debt Risk Premium, Year | O46: 2016 | P46: =O46+1 -> 2017 | Q46: =P46+1 -> 2018 | R46: 2019 | S46: 2020 | T46: 2021 | U46: =T46+1 -> 2022 | V46: =U46+1 -> 2023 | W46: 2024 | X46: 2025
A47: =ROW() -> 47 | C47: =C48+1 -> 2025 | X47: =IF(Inputs!AH$11="","",Inputs!AH$11) -> 
A48: =ROW() -> 48 | C48: 2024 | W48: =IF(Inputs!AG$11="","",Inputs!AG$11) ->  | X48: =W48 -> 
A49: =ROW() -> 49 | C49: 2023 | V49: =IF(Inputs!AF$11="","",Inputs!AF$11) ->  | W49: =V49 -> 
A50: =ROW() -> 50 | C50: 2022 | U50: =IF(Inputs!AE$11="","",Inputs!AE$11) ->  | V50: =U50 ->  | W50: =V50 ->  | X50: =W50 -> 
A51: =ROW() -> 51 | C51: 2021 | T51: 0.01515 | U51: =T51 -> 0.01515 | V51: =U51 -> 0.01515 | W51: =V51 -> 0.01515 | X51: =W51 -> 0.01515
A52: =ROW() -> 52 | C52: =C53+1 -> 2020 | S52: 0.01995 | T52: =S52 -> 0.01995 | U52: =T52 -> 0.01995 | V52: 0.01995 | W52: 0.01995 | X52: 0.01995
A53: =ROW() -> 53 | C53: 2019 | R53: 0.01712 | S53: =R53 -> 0.01712 | T53: 0.01712 | U53: =T53 -> 0.01712 | V53: 0.01712 | W53: 0.01712 | X53: 0.01712
A54: =ROW() -> 54 | C54: 2018 | Q54: 0.01756 | R54: =Q54 -> 0.01756 | S54: 0.01756 | T54: 0.01756 | U54: 0.01756 | V54: 0.01756 | W54: 0.01756 | X54: 0.01756
A55: =ROW() -> 55 | C55: 2017 | P55: 0.02274 | Q55: 0.02274 | R55: 0.02274 | S55: 0.02274 | T55: 0.02274 | U55: 0.02274 | V55: 0.02274 | W55: 0.02274 | X55: 0.02274
A56: =ROW() -> 56 | C56: 2016 | O56: 0.02612 | P56: =O56 -> 0.02612 | Q56: 0.02612 | R56: 0.02612 | S56: 0.02612 | T56: 0.02612 | U56: =T56 -> 0.02612 | V56: =U56 -> 0.02612 | W56: =V56 -> 0.02612 | X56: =W56 -> 0.02612
A57: =ROW() -> 57 | C57: 2015 | O57: 0.0207 | P57: =O57 -> 0.0207 | Q57: 0.0207 | R57: 0.0207 | S57: 0.0207 | T57: 0.0207 | U57: =T57 -> 0.0207 | V57: 0.0207 | W57: 0.0207
A58: =ROW() -> 58 | C58: 2014 | O58: 0.02251 | P58: =O58 -> 0.02251 | Q58: 0.02251 | R58: 0.02251 | S58: 0.02251 | T58: 0.02251 | U58: =T58 -> 0.02251 | V58: 0.02251
A59: =ROW() -> 59 | C59: 2013 | O59: 0.03043 | P59: 0.03043 | Q59: 0.03043 | R59: 0.03043 | S59: 0.03043 | T59: 0.03043 | U59: 0.03043
A60: =ROW() -> 60 | C60: 2012 | O60: 0.03168 | P60: 0.03168 | Q60: 0.03168 | R60: 0.03168 | S60: 0.03168 | T60: 0.03168
A61: =ROW() -> 61 | C61: 2011 | O61: 0.02379 | P61: 0.02379 | Q61: 0.02379 | R61: 0.02379 | S61: 0.02379
A62: =ROW() -> 62 | C62: 2010 | O62: 0.02125 | P62: =O62 -> 0.02125 | Q62: =P62 -> 0.02125 | R62: =Q62 -> 0.02125
A63: =ROW() -> 63 | C63: 2009 | O63: 0.04624 | P63: 0.04624 | Q63: 0.04624
A64: =ROW() -> 64 | C64: =C65+1 -> 2008 | O64: 0.03756 | P64: 0.03756
A65: =ROW() -> 65 | C65: 2007 | O65: 0.0113

Sheet Inputs
A1: =Main!A1 -> ERA, DBNGP Tariff Model, Draft Decision, August 2020
A2: Inputs
A3: Ref. | B3: =COLUMN() -> 2 | C3: =COLUMN() -> 3 | D3: =COLUMN() -> 4 | E3: =COLUMN() -> 5 | F3: =COLUMN() -> 6 | G3: =COLUMN() -> 7 | H3: =COLUMN() -> 8 | I3: =COLUMN() -> 9 | J3: =COLUMN() -> 10 | K3: =COLUMN() -> 11 | L3: =COLUMN() -> 12 | M3: =COLUMN() -> 13 | N3: =COLUMN() -> 14 | O3: =COLUMN() -> 15 | P3: =COLUMN() -> 16 | Q3: =COLUMN() -> 17 | R3: =COLUMN() -> 18 | S3: =COLUMN() -> 19 | T3: =COLUMN() -> 20 | U3: =COLUMN() -> 21 | V3: =COLUMN() -> 22 | W3: =COLUMN() -> 23 | X3: =COLUMN() -> 24 | Y3: =COLUMN() -> 25 | Z3: =COLUMN() -> 26 | AA3: =COLUMN() -> 27 | AB3: =COLUMN() -> 28 | AC3: =COLUMN() -> 29 | AD3: =COLUMN() -> 30 | AE3: =COLUMN() -> 31 | AF3: =COLUMN() -> 32 | AG3: =COLUMN() -> 33 | AH3: =COLUMN() -> 34
A5: Regulatory Period | H5: AA1 | I5: AA1 | J5: AA1 | K5: AA1 | L5: AA1 | M5: AA1 | N5: AA2 | O5: AA2 | P5: AA2 | Q5: AA2 | R5: AA2 | S5: AA2 | T5: AA3 | U5: AA3 | V5: AA3 | W5: AA3 | X5: AA3 | Y5: AA4 | Z5: AA4 | AA5: AA4 | AB5: AA4 | AC5: AA4 | AD5: AA5 | AE5: AA5 | AF5: AA5 | AG5: AA5 | AH5: AA5
A6: Year ending (31-December) | F6: =G6-1 -> 1997 | G6: =H6-1 -> 1998 | H6: 1999 | I6: =H6+1 -> 2000 | J6: =I6+1 -> 2001 | K6: 2002 | L6: 2003 | M6: 2004 | N6: 2005 | O6: 2006 | P6: 2007 | Q6: 2008 | R6: 2009 | S6: 2010 | T6: 2011 | U6: 2012 | V6: 2013 | W6: 2014 | X6: 2015 | Y6: 2016 | Z6: 2017 | AA6: 2018 | AB6: 2019 | AC6: 2020 | AD6: =AC6+1 -> 2021 | AE6: =AD6+1 -> 2022 | AF6: =AE6+1 -> 2023 | AG6: =AF6+1 -> 2024 | AH6: =AG6+1 -> 2025
A7: Days | F7: =IF(INT(F6/4)=F6/4,366,365) -> 365 | G7: 365 | H7: =IF(INT(H6/4)=H6/4,366,365) -> 365 | I7: =IF(INT(I6/4)=I6/4,366,365) -> 366 | J7: 365 | K7: 365 | L7: 365 | M7: =IF(INT(M6/4)=M6/4,366,365) -> 366 | N7: =IF(INT(N6/4)=N6/4,366,365) -> 365 | O7: 365 | P7: 365 | Q7: 366 | R7: 365 | S7: 365 | T7: 365 | U7: 366 | V7: 365 | W7: 365 | X7: 365 | Y7: 366 | Z7: 365 | AA7: 365 | AB7: 365 | AC7: 366 | AD7: =IF(INT(AD6/4)=AD6/4,366,365) -> 365 | AE7: 365 | AF7: 365 | AG7: 366 | AH7: 365
A8: Project Year | F8: 0 | G8: 0 | H8: 0 | I8: =H8+1 -> 1 | J8: 2 | K8: 3 | L8: 4 | M8: 5 | N8: 6 | O8: 7 | P8: 8 | Q8: 9 | R8: 10 | S8: 11 | T8: 12 | U8: 13 | V8: 14 | W8: 15 | X8: 16 | Y8: 17 | Z8: 18 | AA8: 19 | AB8: 20 | AC8: 21 | AD8: =AC8+1 -> 22 | AE8: =AD8+1 -> 23 | AF8: =AE8+1 -> 24 | AG8: =AF8+1 -> 25 | AH8: =AG8+1 -> 26
A9: General Inputs
A10: =ROW() -> 10 | B10: Tariff Recalculation | D10: =IF(ISNUMBER($AH$11),$AH$6,IF(ISNUMBER($AG$11),$AG$6,IF(ISNUMBER($AF$11),$AF$6,IF(ISNUMBER(AE$11),$AE$6,$AD$6)))) -> 2021 | E10: =$AH$6 -> 2025
A11: =ROW() -> 11 | B11: Annual Debt Risk Premium (Annual Update)
A12: =ROW() -> 12 | B12: Trailing Average DRP (10 year ave, modelled) | AD12: =WACC!T12 -> 0.0224 | AE12: =IF(WACC!U44="","",WACC!U44) ->  | AF12: =IF(WACC!V44="","",WACC!V44) ->  | AG12: =IF(WACC!W44="","",WACC!W44) ->  | AH12: =IF(WACC!X44="","",WACC!X44) -> 
A13: =ROW() -> 13 | B13: X-Factor | AD13: =X_Factor_2021 -> -0.2160551 | AE13: =X_Factor_2022 -> 0 | AF13: =X_Factor_2023 -> 0 | AG13: =X_Factor_2024 -> 0 | AH13: =X_Factor_2025 -> 0
A14: =ROW() -> 14 | B14: Rebatable Revenue ($DoD Sep to Sep pre- tax)
A15: =ROW() -> 15 | C15: $m Dec 2019 Sep to Sep | AE15: =AD14*AE33 -> 0 | AF15: =AE14*AF33 -> 0 | AG15: =AF14*AG33 -> 0 | AH15: =AG14*AH33 -> 0
A16: =ROW() -> 16 | C16: $m Dec 2019 Compounded at real WACC | AE16: =AE15*(1+AD38)^0.5 -> 0 | AF16: =AF15*(1+AE38)^0.5 -> 0 | AG16: 0 | AH16: 0
A17: =ROW() -> 17 | C17: $m Nominal compounded at real WACC | AE17: =AE16*AE32 -> 0 | AF17: =AF16*AF32 -> 0 | AG17: 0 | AH17: 0
A18: =ROW() -> 18
A19: CPI and Inflations
A20: =ROW() -> 20 | B20: CPI and Inflation
A21: =ROW() -> 21 | C21: September CPI | W21: 106.4 | X21: 108 | Y21: 109.4 | Z21: 111.4 | AA21: 113.5 | AB21: 115.4
A22: =ROW() -> 22
A23: =ROW() -> 23 | C23: December CPI (pre Sep 2012 rebase) | F23: 117.6 | G23: 120.2 | H23: 124.1 | I23: 131.3 | J23: 135.4 | K23: 139.5 | L23: 142.8 | M23: 146.5 | N23: 150.6 | O23: 155.5 | P23: 160.1 | Q23: 166 | R23: 169.5 | S23: 174 | T23: 179.4
A24: =ROW() -> 24 | C24: December CPI | F24: =G24/(G25+1) -> 65.42073579 | G24: 66.8671126 | H24: 69.03667781 | I24: 73.04202899 | J24: 75.32285396 | K24: 77.60367893 | L24: 79.43946488 | M24: 81.49777035 | N24: 83.77859532 | O24: 86.50445931 | P24: 89.06343367 | Q24: 92.34559643 | R24: 94.29264214 | S24: =T24/(T25+1) -> 96.79598662 | T24: 99.8 | U24: 102 | V24: 104.8 | W24: 106.6 | X24: =108.4*1+109.5315*0 -> 108.4 | Y24: 110 | Z24: 112.1 | AA24: 114.1 | AB24: 116.2 | AC24: =AB24*(1+AC25) -> 117.69898 | AD24: =AC24*(1+AD25) -> 119.2172968 | AE24: =AD24*(1+AE25) -> 120.7552 | AF24: =AE24*(1+AF25) -> 122.3129421 | AG24: =AF24*(1+AG25) -> 123.890779 | AH24: =AG24*(1+AH25) -> 125.4889701
A25: =ROW() -> 25 | C25: December Inflation | G25: =G23/F23-1 -> 0.02210884354 | H25: =H23/G23-1 -> 0.03244592346 | I25: 0.05801772764 | J25: 0.03122619954 | K25: 0.03028064993 | L25: 0.02365591398 | M25: 0.02591036415 | N25: 0.02798634812 | O25: 0.03253652058 | P25: 0.02958199357 | Q25: 0.03685196752 | R25: 0.02108433735 | S25: 0.02654867257 | T25: =T23/S23-1 -> 0.03103448276 | U25: =U24/T24-1 -> 0.02204408818 | V25: =V24/U24-1 -> 0.02745098039 | W25: =W24/V24-1 -> 0.01717557252 | X25: =X24/W24-1 -> 0.01688555347 | Y25: =Y24/X24-1 -> 0.0147601476 | Z25: 0.01909090909 | AA25: 0.0178412132 | AB25: 0.01840490798 | AC25: =AD25 -> 0.0129 | AD25: =WACC!T$27 -> 0.0129 | AE25: =WACC!U$27 -> 0.0129 | AF25: =WACC!V$27 -> 0.0129 | AG25: =WACC!W$27 -> 0.0129 | AH25: =WACC!X$27 -> 0.0129
A26: =ROW() -> 26 | C26: Inflation Factors | F26: =F24/$AB$24 -> 0.5630011686 | G26: 0.5754484733 | H26: 0.5941194304 | I26: 0.6285888897 | J26: 0.6482173318 | K26: 0.6678457739 | L26: 0.6836442761 | M26: 0.7013577482 | N26: 0.7209861903 | O26: 0.7444445724 | P26: 0.7664667269 | Q26: 0.7947125338 | R26: 0.811468521 | S26: 0.8330119331 | T26: 0.8588640275 | U26: 0.8777969019 | V26: 0.9018932874 | W26: 0.917383821 | X26: 0.9328743546 | Y26: 0.9466437177 | Z26: 0.9647160069 | AA26: 0.9819277108 | AB26: =AB24/$AB$24 -> 1 | AC26: =AC24/$AB$24 -> 1.0129 | AD26: 1.02596641 | AE26: 1.039201377 | AF26: 1.052607074 | AG26: 1.066185706 | AH26: 1.079939501
A27: Financial Parameters
A28: =ROW() -> 28 | B28: Modelled Inflation
A29: =ROW() -> 29 | C29: Selected CPI period | D29: Base period: | E29: 2019-12-31 | F29: 1997-12-31 | G29: 1998-12-31 | H29: 1999-12-31 | I29: 2000-12-31 | J29: 2001-12-31 | K29: 2002-12-31 | L29: 2003-12-31 | M29: 2004-12-31 | N29: 2005-12-31 | O29: 2006-12-31 | P29: 2007-12-31 | Q29: 2008-12-31 | R29: 2009-12-31 | S29: 2010-12-31 | T29: 2011-12-31 | U29: 2012-12-31 | V29: 2013-12-31 | W29: 2014-12-31 | X29: 2015-12-31 | Y29: 2016-12-31 | Z29: 2017-12-31 | AA29: 2018-12-31 | AB29: 2019-12-31 | AC29: 2020-12-31 | AD29: 2021-12-31 | AE29: 2022-12-31 | AF29: 2023-12-31 | AG29: 2024-12-31 | AH29: 2025-12-31
A30: =ROW() -> 30 | C30: December CPI (modelled) | D30: Base CPI: | E30: =HLOOKUP($E$29,$H$29:$AC$30,2,FALSE) -> 116.2 | F30: =G30/(G31+1) -> 69.03667781 | G30: =H30/(H31+1) -> 69.03667781 | H30: =I30/(I31+1) -> 69.03667781 | I30: 73.04202899 | J30: 75.32285396 | K30: 77.60367893 | L30: 79.43946488 | M30: 81.49777035 | N30: 83.77859532 | O30: 86.50445931 | P30: 89.06343367 | Q30: 92.34559643 | R30: 94.29264214 | S30: 96.79598662 | T30: =T24 -> 99.8 | U30: =U24 -> 102 | V30: 104.8 | W30: 106.6 | X30: 108.4 | Y30: 110 | Z30: 112.1 | AA30: 114.1 | AB30: 116.2 | AC30: =AC24 -> 117.69898 | AD30: =AD24 -> 119.2172968 | AE30: 120.7552 | AF30: 122.3129421 | AG30: 123.890779 | AH30: =AH24 -> 125.4889701
A31: =ROW() -> 31 | C31: December Inflation | I31: =I25 -> 0.05801772764 | J31: 0.03122619954 | K31: 0.03028064993 | L31: 0.02365591398 | M31: 0.02591036415 | N31: 0.02798634812 | O31: 0.03253652058 | P31: 0.02958199357 | Q31: 0.03685196752 | R31: 0.02108433735 | S31: 0.02654867257 | T31: 0.03103448276 | U31: 0.02204408818 | V31: 0.02745098039 | W31: 0.01717557252 | X31: 0.01688555347 | Y31: 0.0147601476 | Z31: 0.01909090909 | AA31: 0.0178412132 | AB31: 0.01840490798 | AC31: =AC25 -> 0.0129 | AD31: =AD25 -> 0.0129 | AE31: 0.0129 | AF31: 0.0129 | AG31: 0.0129 | AH31: =AH25 -> 0.0129
A32: =ROW() -> 32 | C32: ="Inflation Factor (convert " &$E$32& " $ to nominal $)" -> Inflation Factor (convert 31/12/2019 $ to nominal $) | D32: Real $ at | E32: =TEXT($E$29,"dd/mm/yyyy") -> 31/12/2019 | F32: =F$30/$E$30 -> 0.5941194304 | G32: 0.5941194304 | H32: =H$30/$E$30 -> 0.5941194304 | I32: 0.6285888897 | J32: 0.6482173318 | K32: 0.6678457739 | L32: 0.6836442761 | M32: 0.7013577482 | N32: 0.7209861903 | O32: 0.7444445724 | P32: 0.7664667269 | Q32: 0.7947125338 | R32: 0.811468521 | S32: 0.8330119331 | T32: 0.8588640275 | U32: 0.8777969019 | V32: 0.9018932874 | W32: 0.917383821 | X32: 0.9328743546 | Y32: 0.9466437177 | Z32: 0.9647160069 | AA32: 0.9819277108 | AB32: =AB$30/$E$30 -> 1 | AC32: 1.0129 | AD32: 1.02596641 | AE32: 1.039201377 | AF32: 1.052607074 | AG32: 1.066185706 | AH32: 1.079939501
A33: =ROW() -> 33 | C33: ="Inflation Factor (convert nominal to real "&$E$32&" $)" -> Inflation Factor (convert nominal to real 31/12/2019 $) | F33: =1/F32 -> 1.683163264 | G33: 1.683163264 | H33: =1/H32 -> 1.683163264 | I33: 1.590864898 | J33: 1.542692475 | K33: 1.497351693 | L33: 1.462749027 | M33: 1.425805878 | N33: 1.386989118 | O33: 1.343283351 | P33: 1.304688077 | Q33: 1.258316633 | R33: 1.232333694 | S33: 1.200462995 | T33: 1.164328657 | U33: 1.139215686 | V33: 1.108778626 | W33: 1.090056285 | X33: 1.07195572 | Y33: 1.056363636 | Z33: 1.036574487 | AA33: 1.018404908 | AB33: 1 | AC33: 0.9872642907 | AD33: =1/AD32 -> 0.9746907796 | AE33: 0.9622774011 | AF33: 0.9500221158 | AG33: 0.9379229103 | AH33: 0.9259777967
A34: =ROW() -> 34 | B34: Real Pre-tax WACC
A35: =ROW() -> 35 | C35: WACC | I35: 0.074 | J35: =I35 -> 0.074 | K35: =J35 -> 0.074 | L35: =K35 -> 0.074 | M35: =L35 -> 0.074 | N35: 0.07237578324 | O35: =N35 -> 0.07237578324 | P35: =O35 -> 0.07237578324 | Q35: =P35 -> 0.07237578324 | R35: =Q35 -> 0.07237578324 | S35: =R35 -> 0.07237578324 | T35: =WACC!$M$34 -> 0.05770812338 | U35: =WACC!$M$34 -> 0.05770812338 | V35: =WACC!$M$34 -> 0.05770812338 | W35: =WACC!$M$34 -> 0.05770812338 | X35: =WACC!$M$34 -> 0.05770812338
A36: =ROW() -> 36 | C36: Discounting Factor | I36: =J36/(1+J35) -> 0.4941978894 | J36: 0.5307685333 | K36: 0.5700454047 | L36: 0.6122287647 | M36: 0.6575336933 | N36: 0.7051232093 | O36: 0.7561570539 | P36: 0.8108845129 | Q36: 0.8695729146 | R36: 0.9325089354 | S36: 1 | T36: =S36*(1+T35) -> 1.057708123 | U36: =T36*(1+U35) -> 1.118746474 | V36: =U36*(1+V35) -> 1.183307234 | W36: =V36*(1+W35) -> 1.251593674 | X36: =W36*(1+X35) -> 1.323820796
A37: =ROW() -> 37 | B37: Real Post Tax WACC
A38: =ROW() -> 38 | C38: WACC | AC38: =AD38 -> 0.02709744299 | AD38: =WACC!T$37 -> 0.02709744299 | AE38: =WACC!U$37 -> 0.02709744299 | AF38: =WACC!V$37 -> 0.02709744299 | AG38: =WACC!W$37 -> 0.02709744299 | AH38: =WACC!X$37 -> 0.02709744299
A39: =ROW() -> 39 | C39: Discounting Factor | AB39: 1 | AC39: =AB39/(1+AC38) -> 0.9736174565 | AD39: =AC39/(1+AD38) -> 0.9479309516 | AE39: =AD39/(1+AE38) -> 0.922922122 | AF39: =AE39/(1+AF38) -> 0.8985730889 | AG39: =AF39/(1+AG38) -> 0.8748664453 | AH39: =AG39/(1+AH38) -> 0.8517852433
A40: =ROW() -> 40 | B40: Nominal Post Tax WACC
A41: =ROW() -> 41 | C41: WACC | AC41: =AD41 -> 0.040347 | AD41: =WACC!T$36 -> 0.040347 | AE41: =WACC!U$36 -> 0.040347 | AF41: =WACC!V$36 -> 0.040347 | AG41: =WACC!W$36 -> 0.040347 | AH41: =WACC!X$36 -> 0.040347
A42: =ROW() -> 42 | C42: Discounting Factor | AB42: 1 | AC42: =AB42/(1+AC41) -> 0.9612177475 | AD42: =AC42/(1+AD41) -> 0.9239395582 | AE42: =AD42/(1+AE41) -> 0.888107101 | AF42: =AE42/(1+AF41) -> 0.8536643072 | AG42: =AF42/(1+AG41) -> 0.8205572825 | AH42: =AG42/(1+AH41) -> 0.7887342228
A43: =ROW() -> 43
A44: Asset Life and Tax Asset Life
A45: =ROW() -> 45 | B45: Opening Capital Base (OCB) | D45: Economic Asset Life (years) | E45: Tax Asset Life (years)
A46: =ROW() -> 46 | C46: Pipeline | D46: 54.5 | E46: 7.692307692
A47: =ROW() -> 47 | C47: Compression | D47: 19.60073141 | E47: 7.692307692
A48: =ROW() -> 48 | C48: Metering | D48: 38.50225195 | E48: 7.692307692
A49: =ROW() -> 49 | C49: Other Depreciable | D49: 16.85 | E49: 7.692307692
A50: =ROW() -> 50 | C50: Computers and Motor Vehicles
A51: =ROW() -> 51 | C51: Cathodic/Corrosion Protection
A52: =ROW() -> 52 | C52: SCADA, ECI and Comms
A53: =ROW() -> 53 | C53: Non-Depreciable
A54: =ROW() -> 54 | C54: Cost of Raising Equity
A55: =ROW() -> 55 | C55: BEP Lease
A56: =ROW() -> 56 | C56: Average | E56: 7.692307692
A57: =ROW() -> 57 | B57: Assets acquired prior to 1-Jan-2001 | D57: Economic Asset Life | E57: Tax Asset Life
A58: =ROW() -> 58 | C58: Pipeline | D58: =D70 -> 70 | E58: =E46 -> 7.692307692
A59: =ROW() -> 59 | C59: Compression | D59: =D71 -> 30 | E59: =E47 -> 7.692307692
A60: =ROW() -> 60 | C60: Metering | D60: 30 | E60: =E48 -> 7.692307692
A61: =ROW() -> 61 | C61: Other Depreciable | D61: 30 | E61: =E49 -> 7.692307692
A62: =ROW() -> 62 | C62: Computers and Motor Vehicles
A63: =ROW() -> 63 | C63: Cathodic/Corrosion Protection
A64: =ROW() -> 64 | C64: SCADA, ECI and Comms
A65: =ROW() -> 65 | C65: Non-Depreciable
A66: =ROW() -> 66 | C66: Cost of Raising Equity
A67: =ROW() -> 67 | C67: BEP Lease
A68: =ROW() -> 68
A69: =ROW() -> 69 | B69: Assets acquired from 1-Jan-2001 onwards | D69: Economic Asset Life | E69: Tax Asset Life
A70: =ROW() -> 70 | C70: Pipeline | D70: 70 | E70: 20
A71: =ROW() -> 71 | C71: Compression | D71: 30 | E71: 20
A72: =ROW() -> 72 | C72: Metering | D72: 30 | E72: 15
A73: =ROW() -> 73 | C73: Other Depreciable | D73: 30 | E73: 20
A74: =ROW() -> 74 | C74: Computers and Motor Vehicles
A75: =ROW() -> 75 | C75: Cathodic/Corrosion Protection
A76: =ROW() -> 76 | C76: SCADA, ECI and Comms
A77: =ROW() -> 77 | C77: Non-Depreciable
A78: =ROW() -> 78 | C78: Cost of Raising Equity | D78: 62.59899528 | E78: 5
A79: =ROW() -> 79 | C79: BEP Lease | D79: 57 | E79: 20
A80: =ROW() -> 80
A81: =ROW() -> 81 | B81: Assets acquired from 1-Jan-2021 onwards | D81: Economic Asset Life | E81: Tax Asset Life
A82: =ROW() -> 82 | C82: Pipeline | D82: =D70 -> 70 | E82: 20
A83: =ROW() -> 83 | C83: Compression | D83: =D71 -> 30 | E83: 20
A84: =ROW() -> 84 | C84: Metering | D84: 30 | E84: 15
A85: =ROW() -> 85 | C85: Other Depreciable | D85: 30 | E85: 20
A86: =ROW() -> 86 | C86: Computers and Motor Vehicles | D86: 5 | E86: 5
A87: =ROW() -> 87 | C87: Cathodic/Corrosion Protection | D87: 15 | E87: 15
A88: =ROW() -> 88 | C88: SCADA, ECI and Comms | D88: 10 | E88: 10
A89: =ROW() -> 89 | C89: Non-Depreciable
A90: =ROW() -> 90 | C90: Cost of Raising Equity | D90: =SUMPRODUCT($D$82:$D$88,Asset!$AD$56:$AD$62)/SUM(Asset!$AD$56:$AD$62) -> 61.81199933 | E90: 5
A91: =ROW() -> 91 | C91: BEP Lease | E91: 20
A92: =ROW() -> 92
A93: =ROW() -> 93
A94: =ROW() -> 94
A95: =ROW() -> 95
A96: Approved Asset Values
A97: =ROW() -> 97
A98: Hide | B98: Asset Closing Value (AA2 Approved Model) | H98: Asset Value (Using 8 Cities CPI) [m$ 31/12/2004]
A99: Hide | C99: Pipeline | H99: 1491.144143 | I99: 1465.332204 | J99: 1437.997073 | K99: 1410.691804 | L99: 1383.316745 | M99: 1356.556853
A100: Hide | C100: Compression | H100: 249.7980599 | I100: 234.2300841 | J100: 222.2871855 | K100: 208.8248294 | L100: 194.9820977 | M100: 181.3685957
A101: Hide | C101: Metering | H101: 20.48539349 | I101: 20.58425296 | J101: 20.62911002 | K101: 20.46484178 | L101: 19.89087446 | M101: 21.0188432
A102: Hide | C102: Other Depreciable | H102: 56.26053033 | I102: 58.6075319 | J102: 56.55249282 | K102: 53.60394018 | L102: 50.58698346 | M102: 47.34143322
A103: Hide | C103: Computers and Motor Vehicles
A104: Hide | C104: Cathodic/Corrosion Protection
A105: Hide | C105: SCADA , ECI And Comms
A106: Hide | C106: Non-Depreciable | H106: 12.08624922 | I106: 12.08624922 | J106: 12.08624922 | K106: 12.08624922 | L106: 12.08624922 | M106: 12.08624922
A107: Hide | C107: Cost of Raising Equity
A108: Hide | C108: Total | H108: =SUM(H99:H106) -> 1829.774376 | I108: 1790.840322 | J108: 1749.552111 | K108: 1705.671665 | L108: 1660.86295 | M108: 1618.371975 | N108: =M166+M291-M108 -> 0
A109: Hide | B109: Asset Closing Value (modelled) | H109: ="AA1 [m$ "&$E$32&"]" -> AA1 [m$ 31/12/2019]
A110: Hide | C110: Pipeline | H110: =H99/$M$32 -> 2126.082083 | I110: 2089.27927 | J110: 2050.30468 | K110: 2011.372667 | L110: 1972.341146 | M110: 1934.186735
A111: Hide | C111: Compression | H111: 356.1635421 | I111: 333.9666307 | J111: 316.9383756 | K111: 297.7436692 | L111: 278.006621 | M111: 258.5964098
A112: Hide | C112: Metering | H112: 29.20819445 | I112: 29.34914886 | J112: 29.41310633 | K112: 29.17889171 | L112: 28.36052572 | M112: 29.96879019
A113: Hide | C113: Other Depreciable | H113: 80.21659485 | I113: 83.56296348 | J113: 80.63287668 | K113: 76.42881298 | L113: 72.12721837 | M113: 67.49969376
A114: Hide | C114: Computers and Motor Vehicles | H114: =H103/$M$32 -> 0 | I114: 0 | J114: 0 | K114: 0 | L114: 0 | M114: 0
A115: Hide | C115: Cathodic/Corrosion Protection | H115: =H104/$M$32 -> 0 | I115: 0 | J115: 0 | K115: 0 | L115: 0 | M115: 0
A116: Hide | C116: SCADA , ECI And Comms | H116: =H105/$M$32 -> 0 | I116: 0 | J116: 0 | K116: 0 | L116: 0 | M116: 0
A117: Hide | C117: Non-Depreciable | H117: =H106/$M$32 -> 17.23264518 | I117: 17.23264518 | J117: 17.23264518 | K117: 17.23264518 | L117: 17.23264518 | M117: 17.23264518
A118: Hide | C118: Cost of Raising Equity
A119: Hide | C119: Total | H119: =SUM(H110:H117) -> 2608.90306 | I119: 2553.390658 | J119: 2494.521683 | K119: 2431.956686 | L119: 2368.068156 | M119: 2307.484274 | N119: =M177+M302-M119 -> 0
A120: =ROW() -> 120 | B120: Approved Asset Depreciation | I120: AA1 [m$ 31/12/2004] | N120: AA2 [m$ 31/12/2004] | T120: AA3 [m$ 31/12/2010] | Y120: AA4 [m$ 31/12/2015]
A121: =ROW() -> 121 | C121: Pipeline | I121: 27.36044298 | J121: 27.36769462 | K121: 27.37241662 | L121: 27.37508118 | M121: 27.38111859 | N121: 27.39286391 | O121: 27.45714465 | P121: 27.53919085 | Q121: 31.17101727 | R121: 35.0846799 | S121: 36.27857625 | T121: 51.02396609 | U121: 51.32938537 | V121: 51.38438537 | W121: 51.44374251 | X121: 51.45109965 | Y121: 58.22280694 | Z121: 58.27532839 | AA121: 58.31090964 | AB121: 58.3343277 | AC121: 58.41114566
A122: =ROW() -> 122 | C122: Compression | I122: 13.34090349 | J122: 13.37867948 | K122: 13.54985192 | L122: 13.72495936 | M122: 13.79696984 | N122: 12.54002538 | O122: 12.60559336 | P122: 14.89842708 | Q122: 18.80868067 | R122: 20.15568906 | S122: 20.16936446 | T122: 28.89687446 | U122: 30.09022971 | V122: 30.30905305 | W122: 30.37745305 | X122: 30.47051971 | Y122: 34.11317936 | Z122: 34.63363566 | AA122: 35.14508475 | AB122: 29.10932637 | AC122: 19.7779653
A123: =ROW() -> 123 | C123: Metering | I123: 0.5390160353 | J123: 0.5390160353 | K123: 0.5401965349 | L123: 0.5413770345 | M123: 0.5425575341 | N123: 0.5957306903 | O123: 0.6182928278 | P123: 0.6429066893 | Q123: 0.6459834996 | R123: 0.6459834996 | S123: 0.6459834996 | T123: 0.8078240677 | U123: 0.8188130383 | V123: 0.8285190383 | W123: 0.8816190383 | X123: 0.9347190383 | Y123: -0.2480729442 | Z123: 1.128477874 | AA123: 1.182157721 | AB123: 1.199164501 | AC123: 1.212144087
A124: =ROW() -> 124 | C124: Other Depreciable | I124: 3.338903877 | J124: 3.538093509 | K124: 3.736220692 | L124: 3.961302615 | M124: 4.147034552 | N124: 3.665652482 | O124: 3.799316054 | P124: 3.905292402 | Q124: 3.958281912 | R124: 4.140843923 | S124: 4.357940926 | T124: 7.061071921 | U124: 9.683287685 | V124: 9.766287685 | W124: 9.829621018 | X124: 9.979621018 | Y124: 5.884382829 | Z124: 6.35644569 | AA124: 6.444676422 | AB124: 6.531253531 | AC124: 6.589939801
A125: =ROW() -> 125 | C125: Computers and Motor Vehicles
A126: =ROW() -> 126 | C126: Cathodic/Corrosion Protection
A127: =ROW() -> 127 | C127: SCADA , ECI And Comms
A128: =ROW() -> 128 | C128: Non-Depreciable | I128: 0 | J128: 0 | K128: 0 | L128: 0 | M128: 0 | N128: 0 | O128: 0 | P128: 0 | Q128: 0 | R128: 0 | S128: 0 | T128: 0 | U128: 0 | V128: 0 | W128: 0 | X128: 0 | Y128: -0.06213890957 | Z128: 0 | AA128: 0 | AB128: 0 | AC128: 0
A129: =ROW() -> 129 | C129: Cost of Raising Equity
A130: =ROW() -> 130 | C130: Total | I130: =SUM(I121:I128) -> 44.57926639 | J130: 44.82348365 | K130: 45.19868577 | L130: 45.60272019 | M130: 45.86768051 | N130: 44.19427246 | O130: 44.48034689 | P130: 46.98581702 | Q130: 54.58396334 | R130: 60.02719638 | S130: 61.45186514 | T130: =SUM(T121:T128) -> 87.78973655 | U130: 91.9217158 | V130: 92.28824514 | W130: 92.53243561 | X130: 92.83595942 | Y130: =SUM(Y121:Y128) -> 97.91015727 | Z130: 100.3938876 | AA130: 101.0828285 | AB130: 95.1740721 | AC130: 85.99119485
A131: =ROW() -> 131 | B131: Approved Asset Depreciation (modelled) | I131: ="AA1 [m$ "&$E$32&"]" -> AA1 [m$ 31/12/2019] | N131: ="AA2 [m$ "&$E$32&"]" -> AA2 [m$ 31/12/2019] | T131: ="AA1 [m$ "&$E$32&"]" -> AA1 [m$ 31/12/2019] | Y131: ="AA1 [m$ "&$E$32&"]" -> AA1 [m$ 31/12/2019]
A132: =ROW() -> 132 | C132: Pipeline | I132: =I121/$M$32 -> 39.01068043 | J132: 39.02101986 | K132: 39.02775251 | L132: 39.03155165 | M132: 39.04015983 | N132: 39.05690637 | O132: 39.14855823 | P132: 39.26554019 | Q132: 44.44381964 | R132: 50.02394283 | S132: 51.72620727 | T132: =T121/$S$32 -> 61.25238315 | U132: 61.61902769 | V132: 61.68505315 | W132: 61.7563092 | X132: 61.76514118 | Y132: =Y121/$X$32 -> 62.41227091 | Z132: 62.46857158 | AA132: 62.5067131 | AB132: 62.53181623 | AC132: 62.61416168
A133: =ROW() -> 133 | C133: Compression | I133: =I122/$M$32 -> 19.02153862 | J133: 19.07539984 | K133: 19.31945852 | L133: 19.56912773 | M133: 19.67180069 | N133: 17.87964189 | O133: 17.97312911 | P133: 21.2422649 | Q133: 26.81752745 | R133: 28.73809993 | S133: 28.7575984 | T133: 34.68962846 | U133: 36.12220728 | V133: 36.38489659 | W133: 36.46700826 | X133: 36.57873135 | Y133: 36.56781772 | Z133: 37.12572383 | AA133: 37.67397462 | AB133: 31.20390889 | AC133: 21.20110303
A134: =ROW() -> 134 | C134: Metering | I134: =I123/$M$32 -> 0.7685322314 | J134: 0.7685322314 | K134: 0.7702153947 | L134: 0.771898558 | M134: 0.7735817212 | N134: 0.8493963198 | O134: 0.8815655482 | P134: 0.9166601366 | Q134: 0.9210470707 | R134: 0.9210470707 | S134: 0.9210470707 | T134: 0.9697628997 | U134: 0.9829547523 | V134: 0.9946064461 | W134: 1.058351031 | X134: 1.122095616 | Y134: -0.2659232114 | Z134: 1.209678312 | AA134: 1.26722073 | AB134: 1.285451246 | AC134: 1.299364787
A135: =ROW() -> 135 | C135: Other Depreciable | I135: =I124/$M$32 -> 4.760628774 | J135: 5.044634523 | K135: 5.327125424 | L135: 5.648048553 | M135: 5.91286624 | N135: 5.226508855 | O135: 5.417087163 | P135: 5.568188863 | Q135: 5.643741617 | R135: 5.904039605 | S135: 6.213577788 | T135: 8.476555546 | U135: 11.62442854 | V135: 11.72406696 | W135: 11.80009629 | X135: 11.98016574 | Y135: 6.30779783 | Z135: 6.813828314 | AA135: 6.908407752 | AB135: 7.001214579 | AC135: 7.064123661
A136: =ROW() -> 136 | C136: Computers and Motor Vehicles | I136: =I125/$M$32 -> 0 | J136: 0 | K136: 0 | L136: 0 | M136: 0 | N136: 0 | O136: 0 | P136: 0 | Q136: 0 | R136: 0 | S136: 0 | T136: =T125/$S$32 -> 0 | U136: 0 | V136: 0 | W136: 0 | X136: 0 | Y136: 0 | Z136: 0 | AA136: 0 | AB136: 0 | AC136: 0
A137: =ROW() -> 137 | C137: Cathodic/Corrosion Protection | I137: =I126/$M$32 -> 0 | J137: 0 | K137: 0 | L137: 0 | M137: 0 | N137: 0 | O137: 0 | P137: 0 | Q137: 0 | R137: 0 | S137: 0 | T137: =T126/$S$32 -> 0 | U137: 0 | V137: 0 | W137: 0 | X137: 0 | Y137: 0 | Z137: 0 | AA137: 0 | AB137: 0 | AC137: 0
A138: =ROW() -> 138 | C138: SCADA , ECI And Comms | I138: =I127/$M$32 -> 0 | J138: 0 | K138: 0 | L138: 0 | M138: 0 | N138: 0 | O138: 0 | P138: 0 | Q138: 0 | R138: 0 | S138: 0 | T138: =T127/$S$32 -> 0 | U138: 0 | V138: 0 | W138: 0 | X138: 0 | Y138: 0 | Z138: 0 | AA138: 0 | AB138: 0 | AC138: 0
A139: =ROW() -> 139 | C139: Non-Depreciable | I139: =I128/$M$32 -> 0 | J139: 0 | K139: 0 | L139: 0 | M139: 0 | N139: 0 | O139: 0 | P139: 0 | Q139: 0 | R139: 0 | S139: 0 | T139: =T128/$S$32 -> 0 | U139: 0 | V139: 0 | W139: 0 | X139: 0 | Y139: -0.06661015952 | Z139: 0 | AA139: 0 | AB139: 0 | AC139: 0
A140: =ROW() -> 140 | C140: Cost of Raising Equity
A141: =ROW() -> 141 | C141: Total | I141: =SUM(I132:I139) -> 63.56138005 | J141: 63.90958646 | K141: 64.44455185 | L141: 65.0206265 | M141: 65.39840848 | N141: 63.01245344 | O141: 63.42034004 | P141: 66.99265409 | Q141: 77.82613578 | R141: 85.58712944 | S141: 87.61843053 | T141: =SUM(T132:T139) -> 105.3883301 | U141: 110.3486183 | V141: 110.7886232 | W141: 111.0817648 | X141: 111.4461339 | Y141: =SUM(Y132:Y139) -> 104.9553531 | Z141: 107.617802 | AA141: 108.3563162 | AB141: 102.0223909 | AC141: 92.17875315
A142: =ROW() -> 142
A143: Approved DBNGP OCB Values
A144: =ROW() -> 144 | F144: OCB [m$ 31/12/1999]
A145: =ROW() -> 145 | B145: OCB (AA1 & AA2 Approved Model) | E145: Tax Asset Life (years) | F145: Economic Asset Life (years) | G145: CV | H145: ="m$ " &$E$32 -> m$ 31/12/2019 | I145: m$ 31/12/204 | J145: ="m$ " &$E$32 -> m$ 31/12/2019
A146: =ROW() -> 146 | C146: Pipeline | E146: =E46 -> 7.692307692 | F146: =D46 -> 54.5 | G146: 1263.146676 | H146: =G146/$H$32 -> 2126.082083 | I146: 1491.144143 | J146: =I146/$M$32 -> 2126.082083
A147: =ROW() -> 147 | C147: Compression | E147: =E47 -> 7.692307692 | F147: =D47 -> 19.60073141 | G147: 211.6036808 | H147: =G147/$H$32 -> 356.1635421 | I147: 249.7980599 | J147: =I147/$M$32 -> 356.1635421
A148: =ROW() -> 148 | C148: Metering | E148: =E48 -> 7.692307692 | F148: =D48 -> 38.50225195 | G148: 17.35315585 | H148: =G148/$H$32 -> 29.20819445 | I148: 20.48539349 | J148: =I148/$M$32 -> 29.20819445
A149: =ROW() -> 149 | C149: Other Depreciable | E149: =E49 -> 7.692307692 | F149: =D49 -> 16.85 | G149: 47.65823764 | H149: =G149/$H$32 -> 80.21659485 | I149: 56.26053033 | J149: =I149/$M$32 -> 80.21659485
A150: =ROW() -> 150 | C150: Computers and Motor Vehicles
A151: =ROW() -> 151 | C151: Cathodic/Corrosion Protection
A152: =ROW() -> 152 | C152: SCADA , ECI And Comms
A153: =ROW() -> 153 | C153: Non-Depreciable | G153: 10.23824934 | H153: =G153/$H$32 -> 17.23264518 | I153: 12.08624922 | J153: =I153/$M$32 -> 17.23264518
A154: =ROW() -> 154 | C154: Cost of Raising Equity
A155: =ROW() -> 155 | C155: Total | G155: =SUM(G146:G153) -> 1550 | H155: =SUM(H146:H153) -> 2608.90306 | I155: =SUM(I146:I153) -> 1829.774376 | J155: =SUM(J146:J153) -> 2608.90306
A156: Hide | B156: Approved Asset Depreciation (AA2 Approved Model) | H156: OCB [m$ 31/12/2004]
A157: Hide | C157: Pipeline | H157: 1491.144143 | I157: 1463.7837 | J157: 1436.423257 | K157: 1409.062814 | L157: 1381.702371 | M157: 1354.341928
A158: Hide | C158: Compression | H158: 249.7980599 | I158: 236.4571564 | J158: 223.1162529 | K158: 209.7753494 | L158: 196.4344459 | M158: 183.0935424
A159: Hide | C159: Metering | H159: 20.48539349 | I159: 19.94637745 | J159: 19.40736142 | K159: 18.86834538 | L159: 18.32932935 | M159: 17.79031331
A160: Hide | C160: Other Depreciable | H160: 56.26053033 | I160: 52.92162646 | J160: 49.58272258 | K160: 46.2438187 | L160: 42.90491482 | M160: 39.56601095
A161: Hide | C161: Computers and Motor Vehicles
A162: Hide | C162: Cathodic/Corrosion Protection
A163: Hide | C163: SCADA , ECI And Comms
A164: Hide | C164: Non-Depreciable | H164: 12.08624922 | I164: 12.08624922 | J164: 12.08624922 | K164: 12.08624922 | L164: 12.08624922 | M164: 12.08624922
A165: Hide | C165: Cost of Raising Equity
A166: Hide | C166: Total | H166: =SUM(H157:H164) -> 1829.774376 | I166: 1785.195109 | J166: 1740.615843 | K166: 1696.036576 | L166: 1651.45731 | M166: 1606.878044
A167: Hide | B167: OCB Closing Value (modelled) | H167: ="AA1 [m$ "&$E$32&"]" -> AA1 [m$ 31/12/2019]
A168: Hide | C168: Pipeline | H168: =H157/$M$32 -> 2126.082083 | I168: 2087.071403 | J168: 2048.060722 | K168: 2009.050042 | L168: 1970.039362 | M168: 1931.028681
A169: Hide | C169: Compression | H169: 356.1635421 | I169: 337.1420035 | J169: 318.1204649 | K169: 299.0989263 | L169: 280.0773876 | M169: 261.055849
A170: Hide | C170: Metering | H170: 29.20819445 | I170: 28.43966222 | J170: 27.67112999 | K170: 26.90259776 | L170: 26.13406552 | M170: 25.36553329
A171: Hide | C171: Other Depreciable | H171: 80.21659485 | I171: 75.45596607 | J171: 70.6953373 | K171: 65.93470852 | L171: 61.17407975 | M171: 56.41345098
A172: Hide | C172: Computers and Motor Vehicles | H172: =H161/$M$32 -> 0 | I172: 0 | J172: 0 | K172: 0 | L172: 0 | M172: 0
A173: Hide | C173: Cathodic/Corrosion Protection | H173: =H162/$M$32 -> 0 | I173: 0 | J173: 0 | K173: 0 | L173: 0 | M173: 0
A174: Hide | C174: SCADA , ECI And Comms | H174: =H163/$M$32 -> 0 | I174: 0 | J174: 0 | K174: 0 | L174: 0 | M174: 0
A175: Hide | C175: Non-Depreciable | H175: =H164/$M$32 -> 17.23264518 | I175: 17.23264518 | J175: 17.23264518 | K175: 17.23264518 | L175: 17.23264518 | M175: 17.23264518
A176: Hide | C176: Cost of Raising Equity
A177: Hide | C177: Total | H177: =SUM(H168:H175) -> 2608.90306 | I177: 2545.34168 | J177: 2481.7803 | K177: 2418.21892 | L177: 2354.65754 | M177: 2291.09616
A178: Hide | B178: Approved OCB Depreciation [m$ 31/12/1999] (AA2 Approved Model) | I178: AA1 OCB Depreciation [m$ 31/12/1999]
A179: Hide | C179: Pipeline | I179: 23.17700324 | J179: 23.17700324 | K179: 23.17700324 | L179: 23.17700324 | M179: 23.17700324
A180: Hide | C180: Compression | I180: 11.30106569 | J180: 11.30106569 | K180: 11.30106569 | L180: 11.30106569 | M180: 11.30106569
A181: Hide | C181: Metering | I181: 0.4565999316 | J181: 0.4565999316 | K181: 0.4565999316 | L181: 0.4565999316 | M181: 0.4565999316
A182: Hide | C182: Other Depreciable | I182: 2.828382056 | J182: 2.828382056 | K182: 2.828382056 | L182: 2.828382056 | M182: 2.828382056
A183: Hide | C183: Computers and Motor Vehicles
A184: Hide | C184: Cathodic/Corrosion Protection
A185: Hide | C185: SCADA , ECI And Comms
A186: Hide | C186: Non-Depreciable | I186: 0 | J186: 0 | K186: 0 | L186: 0 | M186: 0
A187: Hide | C187: Cost of Raising Equity
A188: Hide | C188: Total | I188: =SUM(I179:I186) -> 37.76305091 | J188: =SUM(J179:J186) -> 37.76305091 | K188: =SUM(K179:K186) -> 37.76305091 | L188: =SUM(L179:L186) -> 37.76305091 | M188: =SUM(M179:M186) -> 37.76305091
A189: Hide | B189: Approved OCB Depreciation (modelled) | I189: ="AA1 [m$ "&$E$32&"]" -> AA1 [m$ 31/12/2019]
A190: Hide | C190: Pipeline | I190: =I179/$H$32 -> 39.01068043 | J190: 39.01068043 | K190: 39.01068043 | L190: 39.01068043 | M190: 39.01068043
A191: Hide | C191: Compression | I191: 19.02153862 | J191: 19.02153862 | K191: 19.02153862 | L191: 19.02153862 | M191: 19.02153862
A192: Hide | C192: Metering | I192: 0.7685322314 | J192: 0.7685322314 | K192: 0.7685322314 | L192: 0.7685322314 | M192: 0.7685322314
A193: Hide | C193: Other Depreciable | I193: 4.760628774 | J193: 4.760628774 | K193: 4.760628774 | L193: 4.760628774 | M193: 4.760628774
A194: Hide | C194: Computers and Motor Vehicles | I194: =I183/$H$32 -> 0 | J194: 0 | K194: 0 | L194: 0 | M194: 0
A195: Hide | C195: Cathodic/Corrosion Protection | I195: =I184/$H$32 -> 0 | J195: 0 | K195: 0 | L195: 0 | M195: 0
A196: Hide | C196: SCADA , ECI And Comms | I196: =I185/$H$32 -> 0 | J196: 0 | K196: 0 | L196: 0 | M196: 0
A197: Hide | C197: Non-Depreciable | I197: =I186/$H$32 -> 0 | J197: 0 | K197: 0 | L197: 0 | M197: 0
A198: Hide | C198: Cost of Raising Equity
A199: Hide | C199: Total | I199: =SUM(I190:I197) -> 63.56138005 | J199: =SUM(J190:J197) -> 63.56138005 | K199: =SUM(K190:K197) -> 63.56138005 | L199: =SUM(L190:L197) -> 63.56138005 | M199: =SUM(M190:M197) -> 63.56138005
A200: =ROW() -> 200 | B200: Approved OCB Depreciation (AA2 Approved Model) | I200: AA1 [m$ 31/12/2004] | N200: AA2 [m$ 31/12/2004] | T200: AA3 [m$ 31/12/2010] | Y200: AA4 [m$ 31/12/2015]
A201: =ROW() -> 201 | C201: Pipeline | I201: 27.36044298 | J201: 27.36044298 | K201: 27.36044298 | L201: 27.36044298 | M201: 27.36044298 | N201: 27.36044298 | O201: 27.36044298 | P201: 27.36044298 | Q201: 27.36044298 | R201: 27.36044298 | S201: 27.36044298 | T201: 32.49636231 | U201: 32.49636231 | V201: 32.49636231 | W201: 32.49636231 | X201: 32.49636231 | Y201: 36.39206333 | Z201: 36.39206333 | AA201: 36.39206333 | AB201: 36.39206333 | AC201: 36.39206333
... 2987 more rows

Sheet Load
A1: =Main!A1 -> ERA, DBNGP Tariff Model, Draft Decision, August 2020
A2: Load
A3: Ref. | B3: =COLUMN() -> 2 | C3: =COLUMN() -> 3 | D3: =COLUMN() -> 4 | E3: =COLUMN() -> 5 | F3: =COLUMN() -> 6 | G3: =COLUMN() -> 7 | H3: =COLUMN() -> 8 | I3: =COLUMN() -> 9 | J3: =COLUMN() -> 10 | K3: =COLUMN() -> 11 | L3: =COLUMN() -> 12 | M3: =COLUMN() -> 13 | N3: =COLUMN() -> 14 | O3: =COLUMN() -> 15 | P3: =COLUMN() -> 16 | Q3: =COLUMN() -> 17 | R3: =COLUMN() -> 18 | S3: =COLUMN() -> 19 | T3: =COLUMN() -> 20 | U3: =COLUMN() -> 21 | V3: =COLUMN() -> 22 | W3: =COLUMN() -> 23 | X3: =COLUMN() -> 24 | Y3: =COLUMN() -> 25 | Z3: =COLUMN() -> 26 | AA3: =COLUMN() -> 27 | AB3: =COLUMN() -> 28 | AC3: =COLUMN() -> 29 | AD3: =COLUMN() -> 30 | AE3: =COLUMN() -> 31 | AF3: =COLUMN() -> 32 | AG3: =COLUMN() -> 33 | AH3: =COLUMN() -> 34
A5: Regulatory Period | I5: =Inputs!I$5 -> AA1 | J5: =Inputs!J$5 -> AA1 | K5: =Inputs!K$5 -> AA1 | L5: =Inputs!L$5 -> AA1 | M5: =Inputs!M$5 -> AA1 | N5: =Inputs!N$5 -> AA2 | O5: =Inputs!O$5 -> AA2 | P5: =Inputs!P$5 -> AA2 | Q5: =Inputs!Q$5 -> AA2 | R5: =Inputs!R$5 -> AA2 | S5: =Inputs!S$5 -> AA2 | T5: =Inputs!T$5 -> AA3 | U5: =Inputs!U$5 -> AA3 | V5: =Inputs!V$5 -> AA3 | W5: =Inputs!W$5 -> AA3 | X5: =Inputs!X$5 -> AA3 | Y5: =Inputs!Y$5 -> AA4 | Z5: =Inputs!Z$5 -> AA4 | AA5: =Inputs!AA$5 -> AA4 | AB5: =Inputs!AB$5 -> AA4 | AC5: =Inputs!AC$5 -> AA4 | AD5: =Inputs!AD$5 -> AA5 | AE5: =Inputs!AE$5 -> AA5 | AF5: =Inputs!AF$5 -> AA5 | AG5: =Inputs!AG$5 -> AA5 | AH5: =Inputs!AH$5 -> AA5
A6: Year | H6: =Inputs!H$6 -> 1999 | I6: =Inputs!I$6 -> 2000 | J6: =Inputs!J$6 -> 2001 | K6: =Inputs!K$6 -> 2002 | L6: =Inputs!L$6 -> 2003 | M6: =Inputs!M$6 -> 2004 | N6: =Inputs!N$6 -> 2005 | O6: =Inputs!O$6 -> 2006 | P6: =Inputs!P$6 -> 2007 | Q6: =Inputs!Q$6 -> 2008 | R6: =Inputs!R$6 -> 2009 | S6: =Inputs!S$6 -> 2010 | T6: =Inputs!T$6 -> 2011 | U6: =Inputs!U$6 -> 2012 | V6: =Inputs!V$6 -> 2013 | W6: =Inputs!W$6 -> 2014 | X6: =Inputs!X$6 -> 2015 | Y6: =Inputs!Y$6 -> 2016 | Z6: =Inputs!Z$6 -> 2017 | AA6: =Inputs!AA$6 -> 2018 | AB6: =Inputs!AB$6 -> 2019 | AC6: =Inputs!AC$6 -> 2020 | AD6: =Inputs!AD$6 -> 2021 | AE6: =Inputs!AE$6 -> 2022 | AF6: =Inputs!AF$6 -> 2023 | AG6: =Inputs!AG$6 -> 2024 | AH6: =Inputs!AH$6 -> 2025
A7: Days | H7: =Inputs!H$7 -> 365 | I7: =Inputs!I$7 -> 366 | J7: =Inputs!J$7 -> 365 | K7: =Inputs!K$7 -> 365 | L7: =Inputs!L$7 -> 365 | M7: =Inputs!M$7 -> 366 | N7: =Inputs!N$7 -> 365 | O7: =Inputs!O$7 -> 365 | P7: =Inputs!P$7 -> 365 | Q7: =Inputs!Q$7 -> 366 | R7: =Inputs!R$7 -> 365 | S7: =Inputs!S$7 -> 365 | T7: =Inputs!T$7 -> 365 | U7: =Inputs!U$7 -> 366 | V7: =Inputs!V$7 -> 365 | W7: =Inputs!W$7 -> 365 | X7: =Inputs!X$7 -> 365 | Y7: =Inputs!Y$7 -> 366 | Z7: =Inputs!Z$7 -> 365 | AA7: =Inputs!AA$7 -> 365 | AB7: =Inputs!AB$7 -> 365 | AC7: =Inputs!AC$7 -> 366 | AD7: =Inputs!AD$7 -> 365 | AE7: =Inputs!AE$7 -> 365 | AF7: =Inputs!AF$7 -> 365 | AG7: =Inputs!AG$7 -> 366 | AH7: =Inputs!AH$7 -> 365
A8: Project Year | H8: =Inputs!H$8 -> 0 | I8: =Inputs!I$8 -> 1 | J8: =Inputs!J$8 -> 2 | K8: =Inputs!K$8 -> 3 | L8: =Inputs!L$8 -> 4 | M8: =Inputs!M$8 -> 5 | N8: =Inputs!N$8 -> 6 | O8: =Inputs!O$8 -> 7 | P8: =Inputs!P$8 -> 8 | Q8: =Inputs!Q$8 -> 9 | R8: =Inputs!R$8 -> 10 | S8: =Inputs!S$8 -> 11 | T8: =Inputs!T$8 -> 12 | U8: =Inputs!U$8 -> 13 | V8: =Inputs!V$8 -> 14 | W8: =Inputs!W$8 -> 15 | X8: =Inputs!X$8 -> 16 | Y8: =Inputs!Y$8 -> 17 | Z8: =Inputs!Z$8 -> 18 | AA8: =Inputs!AA$8 -> 19 | AB8: =Inputs!AB$8 -> 20 | AC8: =Inputs!AC$8 -> 21 | AD8: =Inputs!AD$8 -> 22 | AE8: =Inputs!AE$8 -> 23 | AF8: =Inputs!AF$8 -> 24 | AG8: =Inputs!AG$8 -> 25 | AH8: =Inputs!AH$8 -> 26
A9: Full Haul Equivalent Capacity and throughput forecast
A10: =ROW() -> 10 | B10: Full Haul
A11: =ROW() -> 11 | C11: MDQ [TJ/d] | N11: 541.99 | O11: 609.803 | P11: 711.157 | Q11: 785.133 | R11: 817.94 | S11: 878.64 | T11: 851.31 | U11: 860.31 | V11: 860.31 | W11: 860.31 | X11: 860.31 | Y11: 736.4300469 | Z11: 725.9800469 | AA11: 724.4800469 | AB11: 722.3600469 | AC11: 722.3600469 | AD11: 718.0840469 | AE11: 718.0840469 | AF11: 718.0840469 | AG11: 718.0840469 | AH11: 718.0840469
A12: =ROW() -> 12 | C12: Throughput [TJ/d] | N12: 525.6 | O12: 545.840423 | P12: 599.5140275 | Q12: 582.8725078 | R12: 625.4901504 | S12: 625.6198182 | T12: 703.07362 | U12: 718.81722 | V12: 719.71722 | W12: 725.8464727 | X12: 732.5209612 | Y12: 620.2109161 | Z12: 610.5658459 | AA12: 614.2212229 | AB12: 618.0149871 | AC12: 621.606189 | AD12: 589.3472889 | AE12: 589.3472889 | AF12: 589.3472889 | AG12: 589.3472889 | AH12: 589.3472889
A13: =ROW() -> 13 | C13: Load Factor | N13: =N12/N11 -> 0.9697595897 | O13: 0.8951094419 | P13: 0.8430122005 | Q13: 0.7423869686 | R13: 0.7647139771 | S13: 0.7120320247 | T13: =T12/T11 -> 0.8258726198 | U13: =U12/U11 -> 0.8355327963 | V13: =V12/V11 -> 0.8365789309 | W13: =W12/W11 -> 0.8437034007 | X13: =X12/X11 -> 0.8514616374 | Y13: =Y12/Y11 -> 0.8421857836 | Z13: 0.8410229021 | AA13: 0.8478097161 | AB13: 0.8555497909 | AC13: 0.8605212756 | AD13: =AD12/AD11 -> 0.8207218798 | AE13: 0.8207218798 | AF13: 0.8207218798 | AG13: 0.8207218798 | AH13: 0.8207218798
A14: =ROW() -> 14 | B14: FH Equivalent of Part Haul
A15: =ROW() -> 15 | C15: MDQ [TJ/d] | N15: 6.558460172 | O15: 7.133019071 | P15: 15.31132558 | Q15: 16.99170922 | R15: 26.44863896 | S15: 91.04443052 | T15: 30.58656503 | U15: 30.58656503 | V15: 30.58656503 | W15: 30.58656503 | X15: 30.58656503 | Y15: 24.10069189 | Z15: 23.76609932 | AA15: 23.48686594 | AB15: 23.06570797 | AC15: 22.64455 | AD15: 25.96724646 | AE15: 25.38784332 | AF15: 26.86570122 | AG15: 28.34355911 | AH15: 30.36073796
A16: =ROW() -> 16 | C16: Throughput [TJ/d] | N16: 6.121788492 | O16: 5.862333024 | P16: 11.70554153 | Q16: 15.12561481 | R16: 22.08511296 | S16: 23.08825433 | T16: 27.00164392 | U16: 26.98983549 | V16: 26.98983549 | W16: 26.98983549 | X16: 26.98983549 | Y16: 13.66704779 | Z16: 13.84066096 | AA16: 14.3338704 | AB16: 14.3338704 | AC16: 14.33055676 | AD16: 17.74130476 | AE16: 17.85907301 | AF16: 19.5650885 | AG16: 21.27224624 | AH16: 23.60394632
A17: =ROW() -> 17 | C17: Load Factor | N17: =N16/N15 -> 0.9334185665 | O17: 0.8218585939 | P17: 0.7645021636 | Q17: 0.8901761804 | R17: 0.8350188832 | S17: 0.2535932642 | T17: =T16/T15 -> 0.8827942561 | U17: =U16/U15 -> 0.88240819 | V17: =V16/V15 -> 0.88240819 | W17: =W16/W15 -> 0.88240819 | X17: =X16/X15 -> 0.88240819 | Y17: =Y16/Y15 -> 0.5670811383 | Z17: 0.5823699033 | AA17: 0.6102930223 | AB17: 0.6214363945 | AC17: 0.6328479374 | AD17: =AD16/AD15 -> 0.6832185609 | AE17: 0.7034497884 | AF17: 0.7282552701 | AG17: 0.7505142933 | AH17: 0.7774496903
A18: =ROW() -> 18 | B18: FH Equivalent of Back Haul
A19: =ROW() -> 19 | C19: MDQ [TJ/d] | N19: 11.6143268 | O19: 13.01039685 | P19: 13.50721708 | Q19: 13.32644282 | R19: 13.32644282 | S19: 13.32644282 | T19: 11.72479937 | U19: 11.72479937 | V19: 11.72479937 | W19: 11.72479937 | X19: 11.72479937 | Y19: 18.2735694 | Z19: 18.40813427 | AA19: 18.40813427 | AB19: 18.40813427 | AC19: 18.40813427 | AD19: 18.08818956 | AE19: 17.28962345 | AF19: 17.28962345 | AG19: 17.8936263 | AH19: 17.8936263
A20: =ROW() -> 20 | C20: Throughput [TJ/d] | N20: 4.389555397 | O20: 9.391935668 | P20: 10.00059821 | Q20: 5.606373101 | R20: 9.971516782 | S20: 10.69197174 | T20: 10.23098813 | U20: 10.23098813 | V20: 10.23098813 | W20: 10.23098813 | X20: 10.23098813 | Y20: 14.88098646 | Z20: 14.87955541 | AA20: 14.87955541 | AB20: 14.87955541 | AC20: 14.88098646 | AD20: 13.89414154 | AE20: 13.27218848 | AF20: 13.27218848 | AG20: 13.27218848 | AH20: 13.27218848
A21: =ROW() -> 21 | C21: Load Factor | N21: =N20/N19 -> 0.377943162 | O21: 0.7218792611 | P21: 0.7403892416 | Q21: 0.4206953933 | R21: 0.7482504461 | S21: 0.8023125063 | T21: =T20/T19 -> 0.8725938769 | U21: =U20/U19 -> 0.8725938769 | V21: =V20/V19 -> 0.8725938769 | W21: =W20/W19 -> 0.8725938769 | X21: =X20/X19 -> 0.8725938769 | Y21: =Y20/Y19 -> 0.8143448131 | Z21: 0.8083141502 | AA21: 0.8083141502 | AB21: 0.8083141502 | AC21: 0.8083918903 | AD21: =AD20/AD19 -> 0.7681333444 | AE21: 0.7676389554 | AF21: 0.7676389554 | AG21: 0.7417271522 | AH21: 0.7417271522
A22: =ROW() -> 22 | B22: Total System
A23: =ROW() -> 23 | C23: MDQ [TJ/d] | N23: =N11+N15+N19 -> 560.162787 | O23: 629.9464159 | P23: 739.9755427 | Q23: 815.451152 | R23: 857.7150818 | S23: 983.0108733 | T23: 893.6213644 | U23: 902.6213644 | V23: 902.6213644 | W23: 902.6213644 | X23: 902.6213644 | Y23: 778.8043082 | Z23: 768.1542805 | AA23: 766.3750471 | AB23: 763.8338892 | AC23: 763.4127312 | AD23: =AD11+AD15+AD19 -> 762.1394829 | AE23: 760.7615137 | AF23: 762.2393716 | AG23: 764.3212323 | AH23: 766.3384112
A24: =ROW() -> 24 | C24: Throughput [TJ/d] | N24: 536.1113439 | O24: 561.0946917 | P24: 621.2201672 | Q24: 603.6044957 | R24: 657.5467802 | S24: 659.4000442 | T24: 740.3062521 | U24: 756.0380436 | V24: 756.9380436 | W24: 763.0672963 | X24: 769.7417849 | Y24: 648.7589504 | Z24: 639.2860623 | AA24: 643.4346487 | AB24: 647.2284129 | AC24: 650.8177322 | AD24: =AD12+AD16+AD20 -> 620.9827352 | AE24: 620.4785504 | AF24: 622.1845658 | AG24: 623.8917236 | AH24: 626.2234237
A25: =ROW() -> 25 | C25: Load Factor | N25: =N24/N23 -> 0.9570634757 | O25: 0.8907022526 | P25: 0.8395144588 | Q25: 0.7402092623 | R25: 0.7666261142 | S25: 0.6707962873 | T25: =T24/T23 -> 0.8284339224 | U25: =U24/U23 -> 0.8376026465 | V25: =V24/V23 -> 0.8385997423 | W25: =W24/W23 -> 0.8453902449 | X25: =X24/X23 -> 0.8527848057 | Y25: =Y24/Y23 -> 0.833019211 | Z25: 0.8322365422 | AA25: 0.8395819399 | AB25: 0.8473418398 | AC25: 0.8525109756 | AD25: =AD24/AD23 -> 0.8147888268 | AE25: 0.8156019189 | AF25: 0.8162587621 | AG25: 0.8162689942 | AH25: 0.8171630373
A26: =ROW() -> 26
A27: =ROW() -> 27 | C27: MDQ [TJ/year] | N27: =N23*N$7 -> 204459.4172 | O27: =O23*O$7 -> 229930.4418 | P27: 270091.0731 | Q27: 298455.1216 | R27: 313066.0048 | S27: 358798.9688 | T27: 326171.798 | U27: 330359.4194 | V27: 329456.798 | W27: 329456.798 | X27: 329456.798 | Y27: 285042.3768 | Z27: 280376.3124 | AA27: 279726.8922 | AB27: 278799.3695 | AC27: 279409.0596 | AD27: =AD23*AD$7 -> 278180.9113 | AE27: 277677.9525 | AF27: 278217.3706 | AG27: 279741.571 | AH27: 279713.5201
A28: =ROW() -> 28 | C28: Throughput [TJ/year] | N28: =N24*N$7 -> 195680.6405 | O28: 204799.5625 | P28: 226745.361 | Q28: 220919.2454 | R28: 240004.5748 | S28: 240681.0161 | T28: 270211.782 | U28: 276709.924 | V28: 276282.3859 | W28: 278519.5631 | X28: 280955.7515 | Y28: 237445.7758 | Z28: 233339.4127 | AA28: 234853.6468 | AB28: 236238.3707 | AC28: 238199.29 | AD28: =AD24*AD$7 -> 226658.6983 | AE28: 226474.6709 | AF28: 227097.3665 | AG28: 228344.3708 | AH28: 228571.5496
A29: =ROW() -> 29
A30: Full Haul Capacity and throughput forecast [DBNGP Model]
A31: =ROW() -> 31 | B31: Contracted capacity [TJ/day] | D31: DBNGP km | E31: ERA km | F31: Selected | G31: Delta
A32: =ROW() -> 32
A33: =ROW() -> 33 | D33: 1398.654 | E33: 1399
A34: =ROW() -> 34
A35: =ROW() -> 35
A36: =ROW() -> 36
A37: =ROW() -> 37
A38: =ROW() -> 38
A39: =ROW() -> 39
A40: =ROW() -> 40
A41: =ROW() -> 41
A42: =ROW() -> 42
A43: =ROW() -> 43
A44: =ROW() -> 44
A45: =ROW() -> 45
A46: =ROW() -> 46
A47: =ROW() -> 47
A48: =ROW() -> 48
A49: =ROW() -> 49
A50: =ROW() -> 50
A51: =ROW() -> 51
A52: =ROW() -> 52
A53: =ROW() -> 53
A54: =ROW() -> 54
A55: =ROW() -> 55
A56: =ROW() -> 56
A57: =ROW() -> 57
A58: =ROW() -> 58
A59: =ROW() -> 59
A60: =ROW() -> 60
A61: =ROW() -> 61
A62: =ROW() -> 62
A63: =ROW() -> 63
A64: =ROW() -> 64
A65: =ROW() -> 65
A66: =ROW() -> 66
A67: =ROW() -> 67
A68: =ROW() -> 68
A69: =ROW() -> 69
A70: =ROW() -> 70
A71: =ROW() -> 71
A72: =ROW() -> 72
A73: =ROW() -> 73
A74: =ROW() -> 74
A75: =ROW() -> 75
A76: =ROW() -> 76
A77: =ROW() -> 77
A78: =ROW() -> 78
A79: =ROW() -> 79
A80: =ROW() -> 80
A81: =ROW() -> 81
A82: =ROW() -> 82
A83: =ROW() -> 83
A84: =ROW() -> 84
A85: =ROW() -> 85
A86: =ROW() -> 86
A87: =ROW() -> 87
A88: =ROW() -> 88 | AD88: 718.0840469 | AE88: 718.0840469 | AF88: 718.0840469 | AG88: 718.0840469 | AH88: 718.0840469
A89: =ROW() -> 89 | B89: Throughput [TJ/day]
A90: =ROW() -> 90
A91: =ROW() -> 91
A92: =ROW() -> 92
A93: =ROW() -> 93
A94: =ROW() -> 94
A95: =ROW() -> 95
A96: =ROW() -> 96
A97: =ROW() -> 97
A98: =ROW() -> 98
A99: =ROW() -> 99
A100: =ROW() -> 100
A101: =ROW() -> 101
A102: =ROW() -> 102
A103: =ROW() -> 103
A104: =ROW() -> 104
A105: =ROW() -> 105
A106: =ROW() -> 106
A107: =ROW() -> 107
A108: =ROW() -> 108
A109: =ROW() -> 109
A110: =ROW() -> 110
A111: =ROW() -> 111
A112: =ROW() -> 112
A113: =ROW() -> 113
A114: =ROW() -> 114
A115: =ROW() -> 115
A116: =ROW() -> 116
A117: =ROW() -> 117
A118: =ROW() -> 118
A119: =ROW() -> 119
A120: =ROW() -> 120
A121: =ROW() -> 121
A122: =ROW() -> 122
A123: =ROW() -> 123
A124: =ROW() -> 124
A125: =ROW() -> 125
A126: =ROW() -> 126
A127: =ROW() -> 127
A128: =ROW() -> 128
A129: =ROW() -> 129
A130: =ROW() -> 130
A131: =ROW() -> 131
A132: =ROW() -> 132
A133: =ROW() -> 133
A134: =ROW() -> 134
A135: =ROW() -> 135
A136: =ROW() -> 136
A137: =ROW() -> 137
A138: =ROW() -> 138
A139: =ROW() -> 139
A140: =ROW() -> 140
A141: =ROW() -> 141
A142: =ROW() -> 142
A143: =ROW() -> 143
A144: =ROW() -> 144
A145: =ROW() -> 145
A146: =ROW() -> 146 | C146: Total Throughput | N146: =SUM(N91:N128) -> 0 | O146: 0 | P146: 0 | Q146: 0 | R146: 0 | S146: 0 | T146: 0 | U146: 0 | V146: 0 | W146: 0 | X146: 0 | Y146: 0 | Z146: 0 | AA146: 0 | AB146: 0 | AC146: 0 | AD146: 589.3472889 | AE146: 589.3472889 | AF146: 589.3472889 | AG146: 589.3472889 | AH146: 589.3472889
A147: =ROW() -> 147 | B147: Load factor | AD147: =SUM(AD130:AD144) -> 0 | AE147: =SUM(AE130:AE144) -> 0 | AF147: 0 | AG147: 0 | AH147: 0
A148: =ROW() -> 148
A149: =ROW() -> 149
A150: =ROW() -> 150
A151: =ROW() -> 151
A152: =ROW() -> 152
A153: =ROW() -> 153
A154: =ROW() -> 154
A155: =ROW() -> 155
A156: =ROW() -> 156
A157: =ROW() -> 157
A158: =ROW() -> 158
A159: =ROW() -> 159
A160: =ROW() -> 160
A161: =ROW() -> 161
A162: =ROW() -> 162
A163: =ROW() -> 163
A164: =ROW() -> 164
A165: =ROW() -> 165
A166: =ROW() -> 166
A167: =ROW() -> 167
A168: =ROW() -> 168
A169: =ROW() -> 169
A170: =ROW() -> 170
A171: =ROW() -> 171
A172: =ROW() -> 172
A173: =ROW() -> 173
A174: =ROW() -> 174
A175: =ROW() -> 175
A176: =ROW() -> 176
A177: =ROW() -> 177
A178: =ROW() -> 178
A179: =ROW() -> 179
A180: =ROW() -> 180
A181: =ROW() -> 181
A182: =ROW() -> 182
A183: =ROW() -> 183
A184: =ROW() -> 184
A185: =ROW() -> 185
A186: =ROW() -> 186
A187: =ROW() -> 187
A188: =ROW() -> 188
A189: =ROW() -> 189
A190: =ROW() -> 190
A191: =ROW() -> 191
A192: =ROW() -> 192
A193: =ROW() -> 193
A194: =ROW() -> 194
A195: =ROW() -> 195
A196: =ROW() -> 196
A197: =ROW() -> 197
A198: =ROW() -> 198
A199: =ROW() -> 199
A200: =ROW() -> 200
A201: =ROW() -> 201
... 318 more rows

Sheet CoS_Tariff_Revenue
A1: =Main!A1 -> ERA, DBNGP Tariff Model, Draft Decision, August 2020
A2: CoS_Tariff_Revenue
A3: Ref. | B3: =COLUMN() -> 2 | C3: =COLUMN() -> 3 | D3: =COLUMN() -> 4 | E3: =COLUMN() -> 5 | F3: =COLUMN() -> 6 | G3: =COLUMN() -> 7 | H3: =COLUMN() -> 8 | I3: =COLUMN() -> 9 | J3: =COLUMN() -> 10 | K3: =COLUMN() -> 11 | L3: =COLUMN() -> 12 | M3: =COLUMN() -> 13 | N3: =COLUMN() -> 14 | O3: =COLUMN() -> 15 | P3: =COLUMN() -> 16 | Q3: =COLUMN() -> 17 | R3: =COLUMN() -> 18 | S3: =COLUMN() -> 19 | T3: =COLUMN() -> 20 | U3: =COLUMN() -> 21 | V3: =COLUMN() -> 22 | W3: =COLUMN() -> 23 | X3: =COLUMN() -> 24 | Y3: =COLUMN() -> 25 | Z3: =COLUMN() -> 26 | AA3: =COLUMN() -> 27 | AB3: =COLUMN() -> 28 | AC3: =COLUMN() -> 29 | AD3: =COLUMN() -> 30 | AE3: =COLUMN() -> 31 | AF3: =COLUMN() -> 32 | AG3: =COLUMN() -> 33 | AH3: =COLUMN() -> 34 | AI3: =COLUMN() -> 35 | AJ3: =COLUMN() -> 36
A5: Regulatory Period | I5: =Inputs!I$5 -> AA1 | J5: =Inputs!J$5 -> AA1 | K5: =Inputs!K$5 -> AA1 | L5: =Inputs!L$5 -> AA1 | M5: =Inputs!M$5 -> AA1 | N5: =Inputs!N$5 -> AA2 | O5: =Inputs!O$5 -> AA2 | P5: =Inputs!P$5 -> AA2 | Q5: =Inputs!Q$5 -> AA2 | R5: =Inputs!R$5 -> AA2 | S5: =Inputs!S$5 -> AA2 | T5: =Inputs!T$5 -> AA3 | U5: =Inputs!U$5 -> AA3 | V5: =Inputs!V$5 -> AA3 | W5: =Inputs!W$5 -> AA3 | X5: =Inputs!X$5 -> AA3 | Y5: =Z5 -> AA4 | Z5: =AA5 -> AA4 | AA5: =Inputs!Y$5 -> AA4 | AB5: =Inputs!Z$5 -> AA4 | AC5: =Inputs!AA$5 -> AA4 | AD5: =Inputs!AB$5 -> AA4 | AE5: =Inputs!AC$5 -> AA4 | AF5: =Inputs!AD$5 -> AA5 | AG5: =Inputs!AE$5 -> AA5 | AH5: =Inputs!AF$5 -> AA5 | AI5: =Inputs!AG$5 -> AA5 | AJ5: =Inputs!AH$5 -> AA5
A6: Year | H6: =Inputs!H$6 -> 1999 | I6: =Inputs!I$6 -> 2000 | J6: =Inputs!J$6 -> 2001 | K6: =Inputs!K$6 -> 2002 | L6: =Inputs!L$6 -> 2003 | M6: =Inputs!M$6 -> 2004 | N6: =Inputs!N$6 -> 2005 | O6: =Inputs!O$6 -> 2006 | P6: =Inputs!P$6 -> 2007 | Q6: =Inputs!Q$6 -> 2008 | R6: =Inputs!R$6 -> 2009 | S6: =Inputs!S$6 -> 2010 | T6: =Inputs!T$6 -> 2011 | U6: =Inputs!U$6 -> 2012 | V6: =Inputs!V$6 -> 2013 | W6: =Inputs!W$6 -> 2014 | X6: =Inputs!X$6 -> 2015 | Y6: =Z6 -> 2016 | Z6: 2016 | AA6: =Inputs!Y$6 -> 2016 | AB6: =Inputs!Z$6 -> 2017 | AC6: =Inputs!AA$6 -> 2018 | AD6: =Inputs!AB$6 -> 2019 | AE6: =Inputs!AC$6 -> 2020 | AF6: =Inputs!AD$6 -> 2021 | AG6: =Inputs!AE$6 -> 2022 | AH6: =Inputs!AF$6 -> 2023 | AI6: =Inputs!AG$6 -> 2024 | AJ6: =Inputs!AH$6 -> 2025
A7: Days | H7: =Inputs!H$7 -> 365 | I7: =Inputs!I$7 -> 366 | J7: =Inputs!J$7 -> 365 | K7: =Inputs!K$7 -> 365 | L7: =Inputs!L$7 -> 365 | M7: =Inputs!M$7 -> 366 | N7: =Inputs!N$7 -> 365 | O7: =Inputs!O$7 -> 365 | P7: =Inputs!P$7 -> 365 | Q7: =Inputs!Q$7 -> 366 | R7: =Inputs!R$7 -> 365 | S7: =Inputs!S$7 -> 365 | T7: =Inputs!T$7 -> 365 | U7: =Inputs!U$7 -> 366 | V7: =Inputs!V$7 -> 365 | W7: =Inputs!W$7 -> 365 | X7: =Inputs!X$7 -> 365 | Y7: =DATEVALUE("1/7/2016")-DATEVALUE("1/1/2016") -> 182 | Z7: =AA7-Y7 -> 184 | AA7: =Inputs!Y$7 -> 366 | AB7: =Inputs!Z$7 -> 365 | AC7: =Inputs!AA$7 -> 365 | AD7: =Inputs!AB$7 -> 365 | AE7: =Inputs!AC$7 -> 366 | AF7: =Inputs!AD$7 -> 365 | AG7: =Inputs!AE$7 -> 365 | AH7: =Inputs!AF$7 -> 365 | AI7: =Inputs!AG$7 -> 366 | AJ7: =Inputs!AH$7 -> 365
A8: Project Year | H8: =Inputs!H$8 -> 0 | I8: =Inputs!I$8 -> 1 | J8: =Inputs!J$8 -> 2 | K8: =Inputs!K$8 -> 3 | L8: =Inputs!L$8 -> 4 | M8: =Inputs!M$8 -> 5 | N8: =Inputs!N$8 -> 6 | O8: =Inputs!O$8 -> 7 | P8: =Inputs!P$8 -> 8 | Q8: =Inputs!Q$8 -> 9 | R8: =Inputs!R$8 -> 10 | S8: =Inputs!S$8 -> 11 | T8: =Inputs!T$8 -> 12 | U8: =Inputs!U$8 -> 13 | V8: =Inputs!V$8 -> 14 | W8: =Inputs!W$8 -> 15 | X8: =Inputs!X$8 -> 16 | AA8: =Inputs!Y$8 -> 17 | AB8: =Inputs!Z$8 -> 18 | AC8: =Inputs!AA$8 -> 19 | AD8: =Inputs!AB$8 -> 20 | AE8: =Inputs!AC$8 -> 21 | AF8: =Inputs!AD$8 -> 22 | AG8: =Inputs!AE$8 -> 23 | AH8: =Inputs!AF$8 -> 24 | AI8: =Inputs!AG$8 -> 25 | AJ8: =Inputs!AH$8 -> 26
A9: Financial Parameters
A10: =ROW() -> 10 | B10: Modelled Inflation
A11: =ROW() -> 11 | C11: Inflation | I11: =Inputs!I$31 -> 0.05801772764 | J11: =Inputs!J$31 -> 0.03122619954 | K11: =Inputs!K$31 -> 0.03028064993 | L11: =Inputs!L$31 -> 0.02365591398 | M11: =Inputs!M$31 -> 0.02591036415 | N11: =Inputs!N$31 -> 0.02798634812 | O11: =Inputs!O$31 -> 0.03253652058 | P11: =Inputs!P$31 -> 0.02958199357 | Q11: =Inputs!Q$31 -> 0.03685196752 | R11: =Inputs!R$31 -> 0.02108433735 | S11: =Inputs!S$31 -> 0.02654867257 | T11: =Inputs!T$31 -> 0.03103448276 | U11: =Inputs!U$31 -> 0.02204408818 | V11: =Inputs!V$31 -> 0.02745098039 | W11: =Inputs!W$31 -> 0.01717557252 | X11: =Inputs!X$31 -> 0.01688555347 | AA11: =Inputs!Y$31 -> 0.0147601476 | AB11: =Inputs!Z$31 -> 0.01909090909 | AC11: =Inputs!AA$31 -> 0.0178412132 | AD11: =Inputs!AB$31 -> 0.01840490798 | AE11: =Inputs!AC$31 -> 0.0129 | AF11: =Inputs!AD$31 -> 0.0129 | AG11: =Inputs!AE$31 -> 0.0129 | AH11: =Inputs!AF$31 -> 0.0129 | AI11: =Inputs!AG$31 -> 0.0129 | AJ11: =Inputs!AH$31 -> 0.0129
A12: =ROW() -> 12 | C12: =Inputs!C32 -> Inflation Factor (convert 31/12/2019 $ to nominal $) | I12: =Inputs!I$32 -> 0.6285888897 | J12: =Inputs!J$32 -> 0.6482173318 | K12: =Inputs!K$32 -> 0.6678457739 | L12: =Inputs!L$32 -> 0.6836442761 | M12: =Inputs!M$32 -> 0.7013577482 | N12: =Inputs!N$32 -> 0.7209861903 | O12: =Inputs!O$32 -> 0.7444445724 | P12: =Inputs!P$32 -> 0.7664667269 | Q12: =Inputs!Q$32 -> 0.7947125338 | R12: =Inputs!R$32 -> 0.811468521 | S12: =Inputs!S$32 -> 0.8330119331 | T12: =Inputs!T$32 -> 0.8588640275 | U12: =Inputs!U$32 -> 0.8777969019 | V12: =Inputs!V$32 -> 0.9018932874 | W12: =Inputs!W$32 -> 0.917383821 | X12: =Inputs!X$32 -> 0.9328743546 | Y12: =AA12 -> 0.9466437177 | Z12: =AA12 -> 0.9466437177 | AA12: =Inputs!Y$32 -> 0.9466437177 | AB12: =Inputs!Z$32 -> 0.9647160069 | AC12: =Inputs!AA$32 -> 0.9819277108 | AD12: =Inputs!AB$32 -> 1 | AE12: =Inputs!AC$32 -> 1.0129 | AF12: =Inputs!AD$32 -> 1.02596641 | AG12: =Inputs!AE$32 -> 1.039201377 | AH12: =Inputs!AF$32 -> 1.052607074 | AI12: =Inputs!AG$32 -> 1.066185706 | AJ12: =Inputs!AH$32 -> 1.079939501
A13: =ROW() -> 13 | C13: =Inputs!C33 -> Inflation Factor (convert nominal to real 31/12/2019 $) | I13: =Inputs!I$33 -> 1.590864898 | J13: =Inputs!J$33 -> 1.542692475 | K13: =Inputs!K$33 -> 1.497351693 | L13: =Inputs!L$33 -> 1.462749027 | M13: =Inputs!M$33 -> 1.425805878 | N13: =Inputs!N$33 -> 1.386989118 | O13: =Inputs!O$33 -> 1.343283351 | P13: =Inputs!P$33 -> 1.304688077 | Q13: =Inputs!Q$33 -> 1.258316633 | R13: =Inputs!R$33 -> 1.232333694 | S13: =Inputs!S$33 -> 1.200462995 | T13: =Inputs!T$33 -> 1.164328657 | U13: =Inputs!U$33 -> 1.139215686 | V13: =Inputs!V$33 -> 1.108778626 | W13: =Inputs!W$33 -> 1.090056285 | X13: =Inputs!X$33 -> 1.07195572 | Y13: =AA13 -> 1.056363636 | Z13: =AA13 -> 1.056363636 | AA13: =Inputs!Y$33 -> 1.056363636 | AB13: =Inputs!Z$33 -> 1.036574487 | AC13: =Inputs!AA$33 -> 1.018404908 | AD13: =Inputs!AB$33 -> 1 | AE13: =Inputs!AC$33 -> 0.9872642907 | AF13: =Inputs!AD$33 -> 0.9746907796 | AG13: =Inputs!AE$33 -> 0.9622774011 | AH13: =Inputs!AF$33 -> 0.9500221158 | AI13: =Inputs!AG$33 -> 0.9379229103 | AJ13: =Inputs!AH$33 -> 0.9259777967
A14: =ROW() -> 14 | B14: Real Post Tax WACC
A15: =ROW() -> 15 | C15: WACC | AE15: =Inputs!AC$38 -> 0.02709744299 | AF15: =Inputs!AD$38 -> 0.02709744299 | AG15: =Inputs!AE$38 -> 0.02709744299 | AH15: =Inputs!AF$38 -> 0.02709744299 | AI15: =Inputs!AG$38 -> 0.02709744299 | AJ15: =Inputs!AH$38 -> 0.02709744299
A16: =ROW() -> 16 | C16: Discounting Factor | AD16: =Inputs!AB$39 -> 1 | AE16: =Inputs!AC$39 -> 0.9736174565 | AF16: =Inputs!AD$39 -> 0.9479309516 | AG16: =Inputs!AE$39 -> 0.922922122 | AH16: =Inputs!AF$39 -> 0.8985730889 | AI16: =Inputs!AG$39 -> 0.8748664453 | AJ16: =Inputs!AH$39 -> 0.8517852433
A17: =ROW() -> 17 | B17: Nominal Post Tax WACC
A18: =ROW() -> 18 | C18: WACC | AE18: =Inputs!AC$41 -> 0.040347 | AF18: =Inputs!AD$41 -> 0.040347 | AG18: =Inputs!AE$41 -> 0.040347 | AH18: =Inputs!AF$41 -> 0.040347 | AI18: =Inputs!AG$41 -> 0.040347 | AJ18: =Inputs!AH$41 -> 0.040347
A19: =ROW() -> 19 | C19: Discounting Factor | AD19: =Inputs!AB$42 -> 1 | AE19: =Inputs!AC$42 -> 0.9612177475 | AF19: =Inputs!AD$42 -> 0.9239395582 | AG19: =Inputs!AE$42 -> 0.888107101 | AH19: =Inputs!AF$42 -> 0.8536643072 | AI19: =Inputs!AG$42 -> 0.8205572825 | AJ19: =Inputs!AH$42 -> 0.7887342228
A20: =ROW() -> 20
A21: ="Capital Base [m$ "&Inputs!$E$32&"]" -> Capital Base [m$ 31/12/2019]
A22: =ROW() -> 22 | B22: Asset Account
A23: =ROW() -> 23 | C23: Opening Value | I23: =Asset!I29 -> 2608.90306 | J23: =Asset!J29 -> 2553.390658 | K23: =Asset!K29 -> 2494.521683 | L23: =Asset!L29 -> 2431.956686 | M23: =Asset!M29 -> 2368.068156 | N23: =Asset!N29 -> 2307.484274 | O23: =Asset!O29 -> 2308.471125 | P23: =Asset!P29 -> 2761.204847 | Q23: =Asset!Q29 -> 2700.988376 | R23: =Asset!R29 -> 3412.62029 | S23: =Asset!S29 -> 3328.511278 | T23: =Asset!T29 -> 4020.677942 | U23: =Asset!U29 -> 4080.461855 | V23: =Asset!V29 -> 4004.345511 | W23: =Asset!W29 -> 3915.351121 | X23: =Asset!X29 -> 3814.919396 | AA23: =Asset!Y29 -> 3726.31782 | AB23: =Asset!Z29 -> 3638.301456 | AC23: =Asset!AA29 -> 3554.140984 | AD23: =Asset!AB29 -> 3468.661376 | AE23: =Asset!AC29 -> 3393.653103 | AF23: =Asset!AD29 -> 3327.388989 | AG23: =Asset!AE29 -> 3241.398583 | AH23: =Asset!AF29 -> 3161.655316 | AI23: =Asset!AG29 -> 3071.405378 | AJ23: =Asset!AH29 -> 2983.218781
A24: =ROW() -> 24 | C24: Capex | I24: =Asset!I30 -> 8.048978154 | J24: =Asset!J30 -> 5.040611844 | K24: =Asset!K30 -> 1.879554216 | L24: =Asset!L30 -> 1.13209695 | M24: =Asset!M30 -> 4.814526422 | N24: =Asset!N30 -> 72.35976823 | O24: =Asset!O30 -> 516.1540624 | P24: =Asset!P30 -> 6.818227898 | Q24: =Asset!Q30 -> 789.4898201 | R24: =Asset!R30 -> 1.5795629 | S24: =Asset!S30 -> 742.9262251 | T24: =Asset!T30 -> 170.3195658 | U24: =Asset!U30 -> 35.05240507 | V24: =Asset!V30 -> 23.03399318 | W24: =Asset!W30 -> 13.42431892 | X24: =Asset!X30 -> 24.0774892 | AA24: =Asset!Y30 -> 17.3361534 | AB24: =Asset!Z30 -> 23.85449513 | AC24: =Asset!AA30 -> 23.27387238 | AD24: =Asset!AB30 -> 27.41128161 | AE24: =Asset!AC30 -> 26.31180352 | AF24: =Asset!AD30 -> 37.95141659 | AG24: =Asset!AE30 -> 28.42694962 | AH24: =Asset!AF30 -> 18.58121266 | AI24: =Asset!AG30 -> 20.51137246 | AJ24: =Asset!AH30 -> 26.46392156
A25: =ROW() -> 25 | C25: Depreciation | I25: =Asset!I32 -> -63.56138005 | J25: =Asset!J32 -> -63.90958646 | K25: =Asset!K32 -> -64.44455185 | L25: =Asset!L32 -> -65.0206265 | M25: =Asset!M32 -> -65.39840848 | N25: =Asset!N32 -> -63.01245344 | O25: =Asset!O32 -> -63.42034004 | P25: =Asset!P32 -> -66.99265409 | Q25: =Asset!Q32 -> -77.82613578 | R25: =Asset!R32 -> -85.58712944 | S25: =Asset!S32 -> -87.61843053 | T25: =Asset!T32 -> -105.3883301 | U25: =Asset!U32 -> -110.7457826 | V25: =Asset!V32 -> -111.1857875 | W25: =Asset!W32 -> -111.4789291 | X25: =Asset!X32 -> -111.8432982 | AA25: =Asset!Y32 -> -105.3525174 | AB25: =Asset!Z32 -> -108.0149664 | AC25: =Asset!AA32 -> -108.7534806 | AD25: =Asset!AB32 -> -102.4195553 | AE25: =Asset!AC32 -> -92.5759175 | AF25: =Asset!AD32 -> -123.9418219 | AG25: =Asset!AE32 -> -108.1702166 | AH25: =Asset!AF32 -> -108.8311508 | AI25: =Asset!AG32 -> -108.6979698 | AJ25: =Asset!AH32 -> -109.4536036
A26: =ROW() -> 26 | C26: Asset Adjustment, Redundant Assets & Asset Disposal | I26: =Asset!I31 -> 0 | J26: =Asset!J31 -> 0 | K26: =Asset!K31 -> 0 | L26: =Asset!L31 -> 0 | M26: =Asset!M31 -> 0 | N26: =Asset!N31 -> -8.360463955 | O26: =Asset!O31 -> 0 | P26: =Asset!P31 -> -0.04204545337 | Q26: =Asset!Q31 -> -0.03177033202 | R26: =Asset!R31 -> -0.1014450127 | S26: =Asset!S31 -> -0.01329458569 | T26: =Asset!T31 -> -5.147322122 | U26: =Asset!U31 -> -0.4229668787 | V26: =Asset!V31 -> -0.8425955491 | W26: =Asset!W31 -> -2.377115297 | X26: =Asset!X31 -> -0.8357667587 | AA26: =Asset!Y31 -> 0 | AB26: =Asset!Z31 -> 0 | AC26: =Asset!AA31 -> 0 | AD26: =Asset!AB31 -> 0 | AE26: =Asset!AC31 -> 0 | AF26: =Asset!AD31 -> 0 | AG26: =Asset!AE31 -> 0 | AH26: =Asset!AF31 -> 0 | AI26: =Asset!AG31 -> 0 | AJ26: =Asset!AH31 -> 0
A27: =ROW() -> 27 | C27: Closing Value | I27: =Asset!I33 -> 2553.390658 | J27: =Asset!J33 -> 2494.521683 | K27: =Asset!K33 -> 2431.956686 | L27: =Asset!L33 -> 2368.068156 | M27: =Asset!M33 -> 2307.484274 | N27: =Asset!N33 -> 2308.471125 | O27: =Asset!O33 -> 2761.204847 | P27: =Asset!P33 -> 2700.988376 | Q27: =Asset!Q33 -> 3412.62029 | R27: =Asset!R33 -> 3328.511278 | S27: =Asset!S33 -> 4020.677942 | T27: =Asset!T33 -> 4080.461855 | U27: =Asset!U33 -> 4004.345511 | V27: =Asset!V33 -> 3915.351121 | W27: =Asset!W33 -> 3814.919396 | X27: =Asset!X33 -> 3726.31782 | AA27: =Asset!Y33 -> 3638.301456 | AB27: =Asset!Z33 -> 3554.140984 | AC27: =Asset!AA33 -> 3468.661376 | AD27: =Asset!AB33 -> 3393.653103 | AE27: =Asset!AC33 -> 3327.388989 | AF27: =Asset!AD33 -> 3241.398583 | AG27: =Asset!AE33 -> 3161.655316 | AH27: =Asset!AF33 -> 3071.405378 | AI27: =Asset!AG33 -> 2983.218781 | AJ27: =Asset!AH33 -> 2900.229099
A28: Capital Base [m$ nominal]
A29: =ROW() -> 29 | B29: Asset Account
A30: =ROW() -> 30 | C30: Opening Value (start period) | I30: =H36 -> 0 | J30: 1605.032999 | K30: 1616.99219 | L30: 1624.171995 | M30: 1618.91624 | N30: 1618.371975 | O30: 1664.375802 | P30: 2055.563962 | Q30: 2070.21772 | R30: 2712.052118 | S30: 2700.982124 | T30: 3349.272704 | U30: 3504.561903 | V30: 3515.002084 | W30: 3531.228894 | X30: 3499.745332 | AA30: =X36 -> 3476.186331 | AB30: 3444.175216 | AC30: 3428.736698 | AD30: 3405.974725 | AE30: 3393.653103 | AF30: =AE36 -> 3370.312307 | AG30: =AF36 -> 3325.566068 | AH30: =AG36 -> 3285.596557 | AI30: =AH36 -> 3232.98303 | AJ30: 3180.665221
A31: =ROW() -> 31 | C31: Inflation on Opening Value (start period) | I31: =I30*I$11 -> 0 | J31: 50.11908069 | K31: 48.96357443 | L31: 38.421273 | M31: 41.94670931 | N31: 45.29232147 | O31: 54.15299754 | P31: 60.8076799 | Q31: 76.29159617 | R31: 57.18182175 | S31: 71.70749002 | T31: 103.942946 | U31: 77.25487162 | V31: 96.49025328 | W31: 60.65087795 | X31: 59.09513694 | AA31: 51.30902334 | AB31: 65.75243595 | AC31: 61.17282245 | AD31: 62.68665138 | AE31: =AE30*AE$11 -> 43.77812502 | AF31: =AF30*AF$11 -> 43.47702875 | AG31: 42.89980228 | AH31: 42.38419559 | AI31: 41.70548108 | AJ31: =AJ30*AJ$11 -> 41.03058135
A32: =ROW() -> 32 | C32: Opening Value (end period) | I32: =SUM(I30:I31) -> 0 | J32: 1655.152079 | K32: 1665.955764 | L32: 1662.593268 | M32: 1660.86295 | N32: 1663.664296 | O32: 1718.528799 | P32: 2116.371642 | Q32: 2146.509316 | R32: 2769.233939 | S32: 2772.689614 | T32: 3453.21565 | U32: 3581.816775 | V32: 3611.492337 | W32: 3591.879772 | X32: 3558.840469 | AA32: 3527.495354 | AB32: 3509.927652 | AC32: 3489.909521 | AD32: 3468.661376 | AE32: =SUM(AE30:AE31) -> 3437.431228 | AF32: =SUM(AF30:AF31) -> 3413.789335 | AG32: 3368.46587 | AH32: 3327.980753 | AI32: 3274.688511 | AJ32: =SUM(AJ30:AJ31) -> 3221.695802
A33: =ROW() -> 33 | C33: Capex | I33: =I24*I$12 -> 5.059498241 | J33: 3.26741196 | K33: 1.25525234 | L33: 0.7739516 | M33: 3.37670541 | N33: 52.17039363 | O33: 384.2480902 | P33: 5.22594482 | Q33: 627.4174554 | R33: 1.28176557 | S33: 618.8664109 | T33: 146.2813483 | U33: 30.76889257 | V33: 20.77420383 | W33: 12.31525298 | X33: 22.4612722 | AA33: =AA24*AA$12 -> 16.41116071 | AB33: 23.01281329 | AC33: 22.85326023 | AD33: 27.41128161 | AE33: 26.65122578 | AF33: =AF24*AF$12 -> 38.93687863 | AG33: 29.54132518 | AH33: 19.5587159 | AI33: 21.86893212 | AJ33: 28.57943425
A34: =ROW() -> 34 | C34: Depreciation | I34: =I25*I$12 -> -39.95397732 | J34: -41.42730161 | K34: -43.0390216 | L34: -44.45097913 | M34: -45.86768051 | N34: -45.43110875 | O34: -47.21292792 | P34: -51.34764031 | Q34: -61.84940556 | R34: -69.45126134 | S34: -72.98719818 | T34: -90.51424561 | U34: -97.21230487 | V34: -100.2777154 | W34: -102.268966 | X34: -104.3357447 | AA34: -99.73129878 | AB34: -104.2037671 | AC34: -106.7880562 | AD34: -102.4195553 | AE34: -93.77014684 | AF34: =AF25*AF$12 -> -127.1601461 | AG34: -112.410638 | AH34: -114.5564392 | AI34: -115.8922216 | AJ34: -118.2032701
A35: =ROW() -> 35 | C35: Asset Adjustment, Redundant Assets & Asset Disposal | I35: =I26*I$12 -> 0 | J35: 0 | K35: 0 | L35: 0 | M35: 0 | N35: -6.027779056 | O35: 0 | P35: -0.03222644103 | Q35: -0.02524828106 | R35: -0.08231943446 | S35: -0.01107454853 | T35: -4.420849809 | U35: -0.3712790157 | V35: -0.7599312697 | W35: -2.180727114 | X35: -0.7796653756 | AA35: 0 | AB35: 0 | AC35: 0 | AD35: 0 | AE35: 0 | AF35: =AF26*AF$12 -> 0 | AG35: 0 | AH35: 0 | AI35: 0 | AJ35: 0
A36: =ROW() -> 36 | C36: Closing Value | I36: =I27*I$12 -> 1605.032999 | J36: 1616.99219 | K36: 1624.171995 | L36: 1618.91624 | M36: 1618.371975 | N36: 1664.375802 | O36: 2055.563962 | P36: 2070.21772 | Q36: 2712.052118 | R36: 2700.982124 | S36: 3349.272704 | T36: 3504.561903 | U36: 3515.002084 | V36: 3531.228894 | W36: 3499.745332 | X36: 3476.186331 | AA36: 3444.175216 | AB36: 3428.736698 | AC36: 3405.974725 | AD36: 3393.653103 | AE36: 3370.312307 | AF36: =AF27*AF$12 -> 3325.566068 | AG36: 3285.596557 | AH36: 3232.98303 | AI36: 3180.665221 | AJ36: 3132.071967
A37: =ROW() -> 37
A38: Cost of Service, Allowable Revenue [m$ nominal]
A39: =ROW() -> 39 | B39: Cost of Service | F39: PV | H39: based nominal post tax WACC
A40: =ROW() -> 40 | C40: OPEX
A41: =ROW() -> 41 | C41: Opex; System Use Gas | F41: =SUMPRODUCT($AF$19:$AJ$19,AF41:AJ41) -> 109.6952282 | AF41: =Inputs!AD$3286 -> 24.32408836 | AG41: =Inputs!AE$3286 -> 25.10119985 | AH41: =Inputs!AF$3286 -> 25.89453698 | AI41: =Inputs!AG$3286 -> 26.47349023 | AJ41: =Inputs!AH$3286 -> 26.7522686
A42: =ROW() -> 42 | C42: Opex; Other Expenses | F42: =SUMPRODUCT($AF$19:$AJ$19,AF42:AJ42) -> 301.0906265 | AF42: =Inputs!AD$3287-AF41 -> 71.75065683 | AG42: =Inputs!AE$3287-AG41 -> 70.87590992 | AH42: =Inputs!AF$3287-AH41 -> 71.80907228 | AI42: =Inputs!AG$3287-AI41 -> 69.54581959 | AJ42: =Inputs!AH$3287-AJ41 -> 67.81091175
A43: =ROW() -> 43 | C43: Depreciation | F43: 503.4408892 | AF43: =-AF$34 -> 127.1601461 | AG43: 112.410638 | AH43: 114.5564392 | AI43: 115.8922216 | AJ43: 118.2032701
A44: =ROW() -> 44 | C44: Inflationary Gains on RAB | F44: -181.0356006 | AF44: =-AF$31 -> -43.47702875 | AG44: -42.89980228 | AH44: -42.38419559 | AI44: -41.70548108 | AJ44: -41.03058135
A45: =ROW() -> 45 | C45: Return on Asset | F45: 566.220417 | AF45: =AF$18*AF$30 -> 135.9819906 | AG45: 134.1766141 | AH45: 132.5639643 | AI45: 130.4411663 | AJ45: =AJ$18*AJ$30 -> 128.3302997
A46: =ROW() -> 46 | C46: Tax | F46: 59.66728914 | AF46: =-Tax_CoRE!AD45 -> 20.84429158 | AG46: =-Tax_CoRE!AE45 -> 12.59540059 | AH46: =-Tax_CoRE!AF45 -> 11.84215058 | AI46: =-Tax_CoRE!AG45 -> 11.83378148 | AJ46: =-Tax_CoRE!AH45 -> 11.92143281
A47: =ROW() -> 47 | C47: Imputation Credits | F47: -29.83364457 | AF47: =-Tax_CoRE!AD46 -> -10.42214579 | AG47: =-Tax_CoRE!AE46 -> -6.297700297 | AH47: =-Tax_CoRE!AF46 -> -5.921075291 | AI47: =-Tax_CoRE!AG46 -> -5.916890739 | AJ47: =-Tax_CoRE!AH46 -> -5.960716405
A48: =ROW() -> 48 | C48: Over Depreciation | F48: 0
A49: =ROW() -> 49 | C49: Cost of Service | F49: 1329.245205 | AF49: =SUM(AF40:AF48) -> 326.1619989 | AG49: =SUM(AG40:AG48) -> 305.96226 | AH49: =SUM(AH40:AH48) -> 308.3608925 | AI49: =SUM(AI40:AI48) -> 306.5641074 | AJ49: =SUM(AJ40:AJ48) -> 306.0268852
A50: =ROW() -> 50 | C50: less non-reference cost of service | D50: 0.03 | F50: -39.87735615 | AF50: =-AF49*$D50 -> -9.784859968 | AG50: =-AG49*$D50 -> -9.178867799 | AH50: -9.250826775 | AI50: -9.196923222 | AJ50: -9.180806556
A51: =ROW() -> 51 | C51: add back SUG | D51: =D$50 -> 0.03 | F51: 3.290856847 | AF51: =$D50*Inputs!AD$3246 -> 0.7297226509 | AG51: =$D50*Inputs!AE$3246 -> 0.7530359955 | AH51: =$D50*Inputs!AF$3246 -> 0.7768361094 | AI51: =$D50*Inputs!AG$3246 -> 0.7942047068 | AJ51: =$D50*Inputs!AH$3246 -> 0.8025680581
A52: =ROW() -> 52 | C52: Rebatable Revenue | F52: 0 | AG52: =Inputs!AE17 -> 0 | AH52: =Inputs!AF17 -> 0 | AI52: =Inputs!AG17 -> 0 | AJ52: =Inputs!AH17 -> 0
A53: =ROW() -> 53 | C53: Total Unsmooth Revenue | F53: 1292.658706 | AF53: =SUM(AF49:AF52) -> 317.1068616 | AG53: =SUM(AG49:AG52) -> 297.5364282 | AH53: 299.8869018 | AI53: 298.1613889 | AJ53: 297.6486467
A54: =ROW() -> 54 | C54: Total Tariff Revenue | F54: 1292.658706 | AF54: =AF202 -> 294.4159674 | AG54: =AG202 -> 297.6956216 | AH54: 302.1387677 | AI54: 307.7132346 | AJ54: 311.6755006
A55: =ROW() -> 55 | C55: Check CoS - Revenue (should be 0) | F55: =IF(ROUND(F53-F54,5)=0,"OK",F53-F54) -> OK
A56: =ROW() -> 56
A57: Hide | B57: Cost of Service | F57: PV | H57: based real post tax WACC | AA57: PV | AB57: PV | AC57: PV | AD57: PV | AE57: PV | AF57: PV | AG57: PV | AH57: PV | AI57: PV | AJ57: PV
A58: Hide | C58: OPEX
A59: Hide | C59: Opex; System Use Gas | F59: =SUM(AA59:AJ59) -> 109.6952282 | AA59: =AA41*AA$19 -> 0 | AB59: 0 | AC59: 0 | AD59: 0 | AE59: 0 | AF59: 22.47398746 | AG59: 22.29255383 | AH59: 22.10524197 | AI59: 21.7230152 | AJ59: 21.10042979
A60: Hide | C60: Opex; Other Expenses | F60: 301.0906265 | AA60: =AA42*AA$19 -> 0 | AB60: 0 | AC60: 0 | AD60: 0 | AE60: 0 | AF60: 66.29327017 | AG60: 62.94539889 | AH60: 61.30084193 | AI60: 57.06632873 | AJ60: 53.48478678
A61: Hide | C61: Depreciation | F61: 503.4408892 | AA61: =AA43*AA$19 -> 0 | AB61: 0 | AC61: 0 | AD61: 0 | AE61: 0 | AF61: 117.4882892 | AG61: 99.83268587 | AH61: 97.79274333 | AI61: 95.09620644 | AJ61: 93.23096438
A62: Hide | C62: Inflationary Gains on RAB | F62: -181.0356006 | AA62: =AA44*AA$19 -> 0 | AB62: 0 | AC62: 0 | AD62: 0 | AE62: 0 | AF62: -40.17014674 | AG62: -38.09961903 | AH62: -36.18187496 | AI62: -34.22173622 | AJ62: -32.36222369
A63: Hide | C63: Return on Asset | F63: 566.220417 | AA63: =AA45*AA$19 -> 0 | AB63: 0 | AC63: 0 | AD63: 0 | AE63: 0 | AF63: 125.6391403 | AG63: 119.1632038 | AH63: 113.1651247 | AI63: 107.0344489 | AJ63: 101.2184992
A64: Hide | C64: Tax | F64: 59.66728914 | AA64: =AA46*AA$19 -> 0 | AB64: 0 | AC64: 0 | AD64: 0 | AE64: 0 | AF64: =AF46*AF$19 -> 19.25886555 | AG64: 11.18606471 | AH64: 10.10922127 | AI64: 9.710295571 | AJ64: 9.402842043
A65: Hide | C65: Imputation Credits | F65: -29.83364457 | AA65: 0 | AB65: 0 | AC65: 0 | AD65: 0 | AE65: 0 | AF65: =AF47*AF$19 -> -9.629432776 | AG65: -5.593032354 | AH65: -5.054610636 | AI65: -4.855147785 | AJ65: -4.701421021
A66: Hide | C66: Over Depreciation | F66: 0 | AA66: =AA48*AA$19 -> 0
A67: Hide | C67: Cost of Service | F67: 1329.245205 | AA67: =AA49*AA$19 -> 0 | AB67: =AB49*AB$19 -> 0 | AC67: =AC49*AC$19 -> 0 | AD67: =AD49*AD$19 -> 0 | AE67: =AE49*AE$19 -> 0 | AF67: =AF49*AF$19 -> 301.3539732 | AG67: 271.7272557 | AH67: 263.2366876 | AI67: 251.5534109 | AJ67: 241.3738774
A68: Hide | C68: less non-reference cost of service | D68: =D$50 -> 0.03 | F68: -39.87735615 | AF68: =-AF67*$D68 -> -9.040619196 | AG68: =-AG67*$D68 -> -8.151817672 | AH68: =-AH67*$D68 -> -7.897100629 | AI68: =-AI67*$D68 -> -7.546602326 | AJ68: =-AJ67*$D68 -> -7.241216323
A69: Hide | C69: add back SUG | D69: 0.03 | F69: 3.290856847 | AF69: =AF51*AF$19 -> 0.6742196237 | AG69: 0.6687766149 | AH69: 0.6631572592 | AI69: 0.6516904559 | AJ69: 0.6330128936
A70: Hide | C70: Rebatable Revenue | F70: =SUM(AA70:AJ70) -> 0 | AA70: =AA52*AA$19 -> 0 | AB70: 0 | AC70: 0 | AD70: 0 | AE70: 0 | AF70: 0 | AG70: 0 | AH70: 0 | AI70: 0 | AJ70: 0
A71: Hide | C71: Total Unsmooth Revenue | F71: 1292.658706 | AF71: =SUM(AF67:AF70) -> 292.9875736 | AG71: =SUM(AG67:AG70) -> 264.2442147 | AH71: =SUM(AH67:AH70) -> 256.0027443 | AI71: =SUM(AI67:AI70) -> 244.658499 | AJ71: =SUM(AJ67:AJ70) -> 234.765674
A72: Hide | C72: Total Tariff Revenue | F72: 1292.658706 | AA72: =AA54*AA$19 -> 0 | AB72: 0 | AC72: 0 | AD72: 0 | AE72: 0 | AF72: 272.0225589 | AG72: 264.3855955 | AH72: 257.9250818 | AI72: 252.4963356 | AJ72: 245.8291337
A73: Hide | C73: Check CoS - Revenue (should be 0) | F73: =IF(ROUND(F71-F72,5)=0,"OK",F71-F72) -> OK
A74: Hide
A75: ="CHECK -- Cost of Service, Allowable Revenue [m$ "&Inputs!$E$32&"]" -> CHECK -- Cost of Service, Allowable Revenue [m$ 31/12/2019]
A76: =ROW() -> 76 | B76: Cost of Service | F76: PV | H76: based on real post tax WACC
A77: =ROW() -> 77 | C77: OPEX
A78: =ROW() -> 78 | C78: Opex; System Use Gas | F78: =SUMPRODUCT($AF$16:$AJ$16,AF78:AJ78) -> 109.6952282 | AF78: =Inputs!AD$3294 -> 23.70846465 | AG78: =Inputs!AE$3294 -> 24.15431736 | AH78: =Inputs!AF$3294 -> 24.60038281 | AI78: =Inputs!AG$3294 -> 24.830093 | AJ78: =Inputs!AH$3294 -> 24.77200674
A79: =ROW() -> 79 | C79: Opex; Other Expenses | F79: =SUMPRODUCT($AF$16:$AJ$16,AF79:AJ79) -> 301.0906265 | AF79: =Inputs!AD$3295-AF78 -> 69.93470364 | AG79: =Inputs!AE$3295-AG78 -> 68.2022864 | AH79: =Inputs!AF$3295-AH78 -> 68.22020678 | AI79: =Inputs!AG$3295-AI78 -> 65.2286175 | AJ79: =Inputs!AH$3295-AJ78 -> 62.79139866
A80: =ROW() -> 80 | C80: Depreciation | F80: 503.4408892 | AF80: =-AF25 -> 123.9418219 | AG80: =-AG25 -> 108.1702166 | AH80: =-AH25 -> 108.8311508 | AI80: =-AI25 -> 108.6979698 | AJ80: =-AJ25 -> 109.4536036
A81: =ROW() -> 81 | C81: Return on Asset | F81: 385.1848164 | AF81: =AF$15*AF$23 -> 90.16373341 | AG81: 87.8336133 | AH81: 85.67277467 | AI81: 83.22723212 | AJ81: =AJ$15*AJ$23 -> 80.83760083
A82: =ROW() -> 82 | C82: Tax | F82: 59.66728914 | AF82: =AF46*AF$13 -> 20.31673881 | AG82: 12.12026935 | AH82: 11.25030495 | AI82: 11.09917476 | AJ82: 11.03898209
A83: =ROW() -> 83 | C83: Imputation Credits | F83: -29.83364457 | AF83: -10.1583694 | AG83: -6.060134675 | AH83: -5.625152476 | AI83: -5.549587381 | AJ83: -5.519491044
A84: =ROW() -> 84 | C84: Over Depreciation | F84: 0
A85: =ROW() -> 85 | C85: Cost of Service | F85: 1329.245205 | AF85: =SUM(AF77:AF84) -> 317.907093 | AG85: =SUM(AG77:AG84) -> 294.4205684 | AH85: =SUM(AH77:AH84) -> 292.9496675 | AI85: =SUM(AI77:AI84) -> 287.5334998 | AJ85: =SUM(AJ77:AJ84) -> 283.3741009
A86: =ROW() -> 86 | C86: less non-reference cost of service | D86: =D$50 -> 0.03 | F86: -39.87735615 | AF86: =-AF85*$D86 -> -9.53721279 | AG86: =-AG85*$D86 -> -8.832617051 | AH86: =-AH85*$D86 -> -8.788490026 | AI86: =-AI85*$D86 -> -8.626004994 | AJ86: =-AJ85*$D86 -> -8.501223026
A87: =ROW() -> 87 | C87: add back SUG | D87: 0.03 | F87: 3.290856847 | AF87: =$D87*Inputs!AD$3254 -> 0.7112539395 | AG87: =$D87*Inputs!AE$3254 -> 0.7246295207 | AH87: =$D87*Inputs!AF$3254 -> 0.7380114843 | AI87: =$D87*Inputs!AG$3254 -> 0.7449027899 | AJ87: =$D87*Inputs!AH$3254 -> 0.7431602021
A88: =ROW() -> 88 | C88: Rebatable Revenue | F88: 0 | AG88: =AG52*AG$13 -> 0 | AH88: =AH52*AH$13 -> 0 | AI88: =AI52*AI$13 -> 0 | AJ88: =AJ52*AJ$13 -> 0
A89: =ROW() -> 89 | C89: Total Unsmooth Revenue | F89: 1292.658706 | AF89: =SUM(AF85:AF88) -> 309.0811342 | AG89: =SUM(AG85:AG88) -> 286.3125808 | AH89: =SUM(AH85:AH88) -> 284.899189 | AI89: =SUM(AI85:AI88) -> 279.6523976 | AJ89: =SUM(AJ85:AJ88) -> 275.6160381
A90: =ROW() -> 90 | C90: Total Tariff Revenue | F90: 1292.658706 | AF90: =AF212 -> 286.9645288 | AG90: =AG212 -> 286.4657691 | AH90: 287.0385114 | AI90: 288.6112926 | AJ90: 288.6045933
A91: =ROW() -> 91 | C91: Check CoS - Revenue (should be 0) | F91: =IF(ROUND(F89-F90,5)=0,"OK",F89-F90) -> OK
A92: =ROW() -> 92
A93: Hide | B93: Cost of Service | F93: PV | H93: based on real post tax WACC | AA93: PV | AB93: PV | AC93: PV | AD93: PV | AE93: PV | AF93: PV | AG93: PV | AH93: PV | AI93: PV | AJ93: PV
A94: Hide | C94: OPEX
A95: Hide | C95: Opex; System Use Gas | F95: =SUM(AF95:AJ95) -> 109.6952282 | AA95: =AA78*AA$16 -> 0 | AB95: 0 | AC95: 0 | AD95: 0 | AF95: 22.47398746 | AG95: 22.29255383 | AH95: 22.10524197 | AI95: 21.7230152 | AJ95: 21.10042979
A96: Hide | C96: Opex; Other Expenses | F96: =SUM(AF96:AJ96) -> 301.0906265 | AA96: =AA79*AA$16 -> 0 | AB96: 0 | AC96: 0 | AD96: 0 | AF96: 66.29327017 | AG96: 62.94539889 | AH96: 61.30084193 | AI96: 57.06632873 | AJ96: 53.48478678
A97: Hide | C97: Depreciation | F97: 503.4408892 | AA97: =AA80*AA$16 -> 0 | AB97: 0 | AC97: 0 | AD97: 0 | AF97: 117.4882892 | AG97: 99.83268587 | AH97: 97.79274333 | AI97: 95.09620644 | AJ97: 93.23096438
A98: Hide | C98: Return on Asset | F98: 385.1848164 | AA98: =AA81*AA$16 -> 0 | AB98: 0 | AC98: 0 | AD98: 0 | AF98: 85.46899361 | AG98: 81.06358477 | AH98: 76.98324978 | AI98: 72.81271272 | AJ98: 68.85627548
A99: Hide | C99: Tax | F99: 59.66728914 | AA99: =AA82*AA$16 -> 0 | AB99: 0 | AC99: 0 | AD99: 0 | AF99: =AF82*AF$16 -> 19.25886555 | AG99: 11.18606471 | AH99: 10.10922127 | AI99: 9.710295571 | AJ99: 9.402842043
A100: Hide | C100: Imputation Credits | F100: -29.83364457 | AA100: 0 | AB100: 0 | AC100: 0 | AD100: 0 | AF100: =AF83*AF$16 -> -9.629432776 | AG100: -5.593032354 | AH100: -5.054610636 | AI100: -4.855147785 | AJ100: -4.701421021
A101: Hide | C101: Over Depreciation | F101: 0 | AA101: =AA84*AA$16 -> 0
A102: Hide | C102: Cost of Service | F102: 1329.245205 | AA102: =AA85*AA$16 -> 0 | AB102: =AB85*AB$16 -> 0 | AC102: =AC85*AC$16 -> 0 | AD102: =AD85*AD$16 -> 0 | AF102: =AF85*AF$16 -> 301.3539732 | AG102: 271.7272557 | AH102: 263.2366876 | AI102: 251.5534109 | AJ102: 241.3738774
A103: Hide | C103: less non-reference cost of service | D103: =D$50 -> 0.03 | F103: -39.87735615 | AF103: =-AF102*$D103 -> -9.040619196 | AG103: =-AG102*$D103 -> -8.151817672 | AH103: =-AH102*$D103 -> -7.897100629 | AI103: =-AI102*$D103 -> -7.546602326 | AJ103: =-AJ102*$D103 -> -7.241216323
A104: Hide | C104: add back SUG | D104: 0.03 | F104: 3.290856847 | AF104: =AF87*AF$16 -> 0.6742196237 | AG104: 0.6687766149 | AH104: 0.6631572592 | AI104: 0.6516904559 | AJ104: 0.6330128936
A105: Hide | C105: Rebatable Revenue | F105: 0 | AA105: =AA88*AA$16 -> 0 | AB105: =AB88*AB$16 -> 0 | AC105: =AC88*AC$16 -> 0 | AD105: =AD88*AD$16 -> 0 | AF105: =AF88*AF$16 -> 0 | AG105: =AG88*AG$16 -> 0 | AH105: =AH88*AH$16 -> 0 | AI105: =AI88*AI$16 -> 0 | AJ105: =AJ88*AJ$16 -> 0
A106: Hide | C106: Total Unsmooth Revenue | F106: 1292.658706 | AF106: =SUM(AF102:AF105) -> 292.9875736 | AG106: =SUM(AG102:AG105) -> 264.2442147 | AH106: =SUM(AH102:AH105) -> 256.0027443 | AI106: =SUM(AI102:AI105) -> 244.658499 | AJ106: =SUM(AJ102:AJ105) -> 234.765674
A107: Hide | C107: Total Tariff Revenue | F107: 1292.658706 | AA107: =AA90*AA$16 -> 0 | AB107: =AB90*AB$16 -> 0 | AC107: 0 | AD107: 0 | AF107: =AF90*AF$16 -> 272.0225589 | AG107: 264.3855955 | AH107: 257.9250818 | AI107: 252.4963356 | AJ107: 245.8291337
A108: Hide | C108: Check CoS - Revenue (should be 0) | F108: =IF(ROUND(F106-F107,5)=0,"OK",F106-F107) -> OK
A109: Hide
A110: Credit Foncier Check
A111: =ROW() -> 111 | B111: Net Cash Flow | F111: PV | H111: based nominal post tax WACC
A112: =ROW() -> 112 | C112: Total Tariff Revenue | F112: =SUMPRODUCT($AE$19:$AJ$19,AE112:AJ112) -> 1292.658706 | AF112: =AF$54 -> 294.4159674 | AG112: 297.6956216 | AH112: 302.1387677 | AI112: 307.7132346 | AJ112: 311.6755006
A113: =ROW() -> 113 | C113: Opex | F113: -410.7858547 | AF113: =-(AF41+AF42) -> -96.07474519 | AG113: =-(AG41+AG42) -> -95.97710977 | AH113: =-(AH41+AH42) -> -97.70360926 | AI113: =-(AI41+AI42) -> -96.01930981 | AJ113: =-(AJ41+AJ42) -> -94.56318035
A114: =ROW() -> 114 | C114: Tax | F114: -59.66728914 | AF114: =-AF$46 -> -20.84429158 | AG114: -12.59540059 | AH114: -11.84215058 | AI114: -11.83378148 | AJ114: -11.92143281
A115: =ROW() -> 115 | C115: Imputation Credits | F115: 29.83364457 | AF115: =-AF$47 -> 10.42214579 | AG115: 6.297700297 | AH115: 5.921075291 | AI115: 5.916890739 | AJ115: 5.960716405
A116: =ROW() -> 116 | C116: Over Depreciation | F116: 0
A117: =ROW() -> 117 | C117: Asset Opening Value | F117: =SUMPRODUCT($AE$19:$AJ$19,AE117:AJ117) -> -3239.604004 | AE117: =-AE36 -> -3370.312307
A118: =ROW() -> 118 | C118: Capex | F118: =SUMPRODUCT($AE$19:$AJ$19,AE118:AJ118) -> -119.3940501 | AF118: =-AF$33 -> -38.93687863 | AG118: -29.54132518 | AH118: -19.5587159 | AI118: -21.86893212 | AJ118: -28.57943425
A119: =ROW() -> 119 | C119: Asset Residual Value | F119: 2470.372348 | AJ119: =AJ36 -> 3132.071967
A120: =ROW() -> 120 | C120: non-reference cost of service | F120: 39.87735615 | AF120: =-AF50 -> 9.784859968 | AG120: 9.178867799 | AH120: 9.250826775 | AI120: 9.196923222 | AJ120: 9.180806556
A121: =ROW() -> 121 | C121: SUG | F121: -3.290856847 | AF121: -0.7297226509 | AG121: -0.7530359955 | AH121: -0.7768361094 | AI121: -0.7942047068 | AJ121: -0.8025680581
A122: =ROW() -> 122 | C122: Net Cash Flow (should be 0) | F122: =SUMPRODUCT($AE$19:$AJ$19,AE122:AJ122) -> -9.998530004e-09 | AE122: =SUM(AE112:AE121) -> -3370.312307 | AF122: =SUM(AF112:AF121) -> 158.0373351 | AG122: 174.3053182 | AH122: 187.429358 | AI122: 192.3108205 | AJ122: 3323.022375
A123: =ROW() -> 123
A124: =ROW() -> 124 | F124: IRR | G124: Check
A125: =ROW() -> 125 | C125: Net Cash Flow [m$ OD] | E125: Nominal IRR | F125: =IRR(AE125:AJ125,0.05) -> 0.040347 | G125: =IF(Recalc_From_Year=Inputs!$Y$6,IF(ABS(F125-WACC!$O$36)<0.00001,"OK","Check"),"") ->  | AE125: =AE122 -> -3370.312307 | AF125: =AF122 -> 158.0373351 | AG125: 174.3053182 | AH125: 187.429358 | AI125: 192.3108205 | AJ125: 3323.022375
A126: =ROW() -> 126 | C126: ="Net Cash Flow [m$ "&Inputs!$E$32&"]" -> Net Cash Flow [m$ 31/12/2019] | E126: Real IRR | F126: =IRR(AE126:AJ126,0.05) -> 0.02709744298 | G126: =IF(Recalc_From_Year=Inputs!$Y$6,IF(ABS(F126-WACC!$O$37)<0.00001,"OK","Check"),"") ->  | AE126: =AE125*AE$13 -> -3327.388989 | AF126: =AF125*AF$13 -> 154.0375334 | AG126: 167.7300686 | AH126: 178.0620352 | AI126: 180.3727244 | AJ126: 3077.044937
A127: =ROW() -> 127
A128: =ROW() -> 128
A129: =ROW() -> 129
A130: =ROW() -> 130
A131: =ROW() -> 131 | C131: Credit Foncier Check | F131: (A) | AE131: Total Revenue Building Block | AH131: (B) | AI131: (A + B)
A132: =ROW() -> 132 | AI132: Difference
A133: =ROW() -> 133 | F133: PV | AH133: PV | AI133: (should be 0)
A134: =ROW() -> 134 | C134: Total Smoothed Revenue | F134: =F112 -> 1292.658706 | AE134: Total Unsmoothed Revenue | AH134: =-F53 -> -1292.658706 | AI134: =ROUND(AH134+F134,0.000001) -> 0
A135: =ROW() -> 135
A136: =ROW() -> 136 | C136: Asset Opening Value | F136: =F117 -> -3239.604004 | AE136: Return on Asset | AH136: =F45 -> 566.220417
A137: =ROW() -> 137 | C137: Capex | F137: =F118 -> -119.3940501 | AE137: Inflationary gains | AH137: =F44 -> -181.0356006
A138: =ROW() -> 138 | C138: Asset Residual Value | F138: =F119 -> 2470.372348 | AE138: Depreciation | AH138: =F43 -> 503.4408892
A139: =ROW() -> 139 | F139: =SUM(F136:F138) -> -888.6257056 | AH139: =SUM(AH136:AH138) -> 888.6257056 | AI139: =ROUND(AH139+F139,0.000001) -> 0
A140: =ROW() -> 140
A141: =ROW() -> 141 | C141: Opex | F141: =F113 -> -410.7858547 | AE141: Opex | AH141: =F41+F42 -> 410.7858547 | AI141: =ROUND(AH141+F141,0.000001) -> 0
A142: =ROW() -> 142 | C142: Tax | F142: =F114 -> -59.66728914 | AE142: Tax | AH142: =F46 -> 59.66728914 | AI142: 0
A143: =ROW() -> 143 | C143: Imputation Credits | F143: =F115 -> 29.83364457 | AE143: Imputation Credits | AH143: =F47 -> -29.83364457 | AI143: 0
A144: =ROW() -> 144 | C144: Over Depreciation | F144: =F116 -> 0 | AE144: Over Depreciation | AH144: =F48 -> 0 | AI144: 0
A145: =ROW() -> 145 | F145: =SUM(F141:F144) -> -440.6194993 | AH145: =SUM(AH141:AH144) -> 440.6194993 | AI145: 0
A146: =ROW() -> 146
A147: =ROW() -> 147 | C147: non-reference cost of service | F147: =F120 -> 39.87735615 | AE147: non-reference cost of service | AH147: =F50 -> -39.87735615 | AI147: 0
A148: =ROW() -> 148 | C148: SUG | F148: =F121 -> -3.290856847 | AE148: SUG | AH148: =F51 -> 3.290856847 | AI148: 0
A149: =ROW() -> 149 | F149: =SUM(F147:F148) -> 36.5864993 | AH149: =SUM(AH147:AH148) -> -36.5864993 | AI149: =ROUND(AH149+F149,0.000001) -> 0
A150: =ROW() -> 150
A151: =ROW() -> 151 | C151: Net Cash Flow (should be 0) | F151: =ROUND(F134+F139+F145+F149,0.00001) -> 0 | AH151: =ROUND(AH134+AH139+AH145+AH149,0.00001) -> 0 | AI151: =ROUND(AH151+F151,0.000001) -> 0
A152: =ROW() -> 152
A153: =ROW() -> 153
A154: Financability metrics
A155: =ROW() -> 155
A156: =ROW() -> 156 | C156: Debt | AF156: =Tax_CoRE!AD21 -> 1853.671769 | AG156: =Tax_CoRE!AE21 -> 1829.061337 | AH156: =Tax_CoRE!AF21 -> 1807.078107 | AI156: =Tax_CoRE!AG21 -> 1778.140666 | AJ156: =Tax_CoRE!AH21 -> 1749.365872
A157: =ROW() -> 157 | C157: Smoothed Revenue | AF157: =AF54 -> 294.4159674 | AG157: =AG54 -> 297.6956216 | AH157: =AH54 -> 302.1387677 | AI157: =AI54 -> 307.7132346 | AJ157: =AJ54 -> 311.6755006
A158: =ROW() -> 158 | C158: Interest | AF158: =-Tax_CoRE!AD38 -> 61.05994806 | AG158: =-Tax_CoRE!AE38 -> 60.24928045 | AH158: =-Tax_CoRE!AF38 -> 59.52515283 | AI158: =-Tax_CoRE!AG38 -> 58.57195355 | AJ158: =-Tax_CoRE!AH38 -> 57.62411181
A159: =ROW() -> 159 | C159: Opex | AF159: =SUM(AF41:AF42) -> 96.07474519 | AG159: =SUM(AG41:AG42) -> 95.97710977 | AH159: =SUM(AH41:AH42) -> 97.70360926 | AI159: =SUM(AI41:AI42) -> 96.01930981 | AJ159: =SUM(AJ41:AJ42) -> 94.56318035
A160: =ROW() -> 160 | C160: Tax (gross) | AF160: =AF46 -> 20.84429158 | AG160: =AG46 -> 12.59540059 | AH160: =AH46 -> 11.84215058 | AI160: =AI46 -> 11.83378148 | AJ160: =AJ46 -> 11.92143281
A161: =ROW() -> 161 | C161: FFO | AF161: =AF157-AF158-AF159-AF160 -> 116.4369826 | AG161: =AG157-AG158-AG159-AG160 -> 128.8738308 | AH161: 133.0678551 | AI161: 141.2881898 | AJ161: 147.5667756
A162: =ROW() -> 162 | C162: FFO + Interest | AF162: =AF161+AF158 -> 177.4969307 | AG162: =AG161+AG158 -> 189.1231113 | AH162: 192.5930079 | AI162: 199.8601434 | AJ162: 205.1908874
A163: =ROW() -> 163
A164: =ROW() -> 164 | C164: FFO/debt | AF164: =AF161/AF156 -> 0.0628142396 | AG164: =AG161/AG156 -> 0.07045899894 | AH164: 0.07363702465 | AI164: 0.07945838734 | AJ164: 0.08435443838
A165: =ROW() -> 165 | C165: FFO Interest Cover | AF165: =AF162/AF158 -> 2.906928949 | AG165: =AG162/AG158 -> 3.13901029 | AH165: 3.235489516 | AI165: 3.412215766 | AJ165: 3.560851196
A166: =ROW() -> 166
A167: ="Cost of Service Tariff [m$ "&Inputs!$E$32&"] (Not used for Reference Tariff)" -> Cost of Service Tariff [m$ 31/12/2019] (Not used for Reference Tariff)
A168: =ROW() -> 168
A169: =ROW() -> 169 | B169: ="Cost of Service Tariff [$/TJ OD]" -> Cost of Service Tariff [$/TJ OD]
A170: =ROW() -> 170 | C170: Capacity Reservation | AF170: =1000*((AF49-AF41)/AF$7)/AF186 -> 1.085041778 | AG170: =1000*((AG49-AG41)/AG$7)/AG186 -> 1.011463307 | AH170: =1000*((AH49-AH41)/AH$7)/AH186 -> 1.015272177 | AI170: =1000*((AI49-AI41)/AI$7)/AI186 -> 1.001247745 | AJ170: =1000*((AJ49-AJ41)/AJ$7)/AJ186 -> 0.9984308821
A171: =ROW() -> 171 | C171: Commodity | AF171: =1000*(AF41/AF$7)/AF187 -> 0.1073159272 | AG171: =1000*(AG41/AG$7)/AG187 -> 0.1108344688 | AH171: =1000*(AH41/AH$7)/AH187 -> 0.1140239421 | AI171: =1000*(AI41/AI$7)/AI187 -> 0.1159366886 | AJ171: =1000*(AJ41/AJ$7)/AJ187 -> 0.1170411131
A172: =ROW() -> 172 | C172: Total | AF172: =SUM(AF170:AF171) -> 1.192357705 | AG172: 1.122297776 | AH172: 1.129296119 | AI172: 1.117184434 | AJ172: 1.115471995
A173: =ROW() -> 173
A174: =ROW() -> 174 | B174: ="Cost of Service Tariff [$/TJ "&Inputs!$E$32&"]" -> Cost of Service Tariff [$/TJ 31/12/2019]
A175: =ROW() -> 175 | C175: Capacity Reservation | AF175: =1000*((AF85-AF78)/AF$7)/AF186 -> 1.057580216 | AG175: =1000*((AG85-AG78)/AG$7)/AG186 -> 0.9733082824 | AH175: =1000*((AH85-AH78)/AH$7)/AH186 -> 0.9645310216 | AI175: =1000*((AI85-AI78)/AI$7)/AI186 -> 0.9390931989 | AJ175: =1000*((AJ85-AJ78)/AJ$7)/AJ186 -> 0.9245248283
A176: =ROW() -> 176 | C176: Commodity | AF176: =1000*(AF78/AF$7)/AF187 -> 0.1045998447 | AG176: =1000*(AG78/AG$7)/AG187 -> 0.1066535046 | AH176: =1000*(AH78/AH$7)/AH187 -> 0.1083252668 | AI176: =1000*(AI78/AI$7)/AI187 -> 0.1087396764 | AJ176: =1000*(AJ78/AJ$7)/AJ187 -> 0.1083774721
A177: =ROW() -> 177 | C177: Total | AF177: =SUM(AF175:AF176) -> 1.162180061 | AG177: 1.079961787 | AH177: 1.072856288 | AI177: 1.047832875 | AJ177: 1.0329023
A178: =ROW() -> 178
A179: Tariff and Revenue
A180: =ROW() -> 180
A181: =ROW() -> 181 | AF181: X_Factor_2021 | AG181: X_Factor_2022 | AH181: X_Factor_2023 | AI181: X_Factor_2024 | AJ181: X_Factor_2025
A182: =ROW() -> 182 | B182: X_Factor (for real $ calculation) | AF182: =X_Factor_2021 -> -0.2160551 | AG182: =X_Factor_2022 -> 0 | AH182: =X_Factor_2023 -> 0 | AI182: =X_Factor_2024 -> 0 | AJ182: =X_Factor_2025 -> 0
A183: =ROW() -> 183
A184: =ROW() -> 184
A185: =ROW() -> 185 | B185: Load F/H Equivalent [TJ/day] | F185: PV | H185: DWAT =
A186: =ROW() -> 186 | C186: Capacity Reservation | F186: =SUMPRODUCT($AF$19:$AJ$19,AF186:AJ186) -> 3262.111749 | H186: Rev / | AE186: =Load!AC$23 -> 763.4127312 | AF186: =Load!AD$23 -> 762.1394829 | AG186: =Load!AE$23 -> 760.7615137 | AH186: =Load!AF$23 -> 762.2393716 | AI186: =Load!AG$23 -> 764.3212323 | AJ186: =Load!AH$23 -> 766.3384112
A187: =ROW() -> 187 | C187: Commodity | F187: =SUMPRODUCT($AF$19:$AJ$19,AF187:AJ187) -> 2661.80142 | H187: Throughput | AE187: =Load!AC$24 -> 650.8177322 | AF187: =Load!AD$24 -> 620.9827352 | AG187: =Load!AE$24 -> 620.4785504 | AH187: =Load!AF$24 -> 622.1845658 | AI187: =Load!AG$24 -> 623.8917236 | AJ187: =Load!AH$24 -> 626.2234237
A188: =ROW() -> 188 | C188: Total | H188: =(F187*1000000)/(F49*365.2*1000) -> 5.483271891 | AE188: =SUM(AE186:AE187) -> 1414.230463 | AF188: =SUM(AF186:AF187) -> 1383.122218 | AG188: 1381.240064 | AH188: 1384.423937 | AI188: 1388.212956 | AJ188: =SUM(AJ186:AJ187) -> 1392.561835
A189: =ROW() -> 189
A190: =ROW() -> 190 | B190: Applied Tariff Allocation
A191: =ROW() -> 191 | C191: Capacity Reservation | AF191: =IF(Recalc_From_Year>=AF$6,SolverSheet!I22,AE191) -> 0.9151398306 | AG191: =IF(Recalc_From_Year>=AG$6,SolverSheet!J22,AF191) -> 0.9151398306 | AH191: =IF(Recalc_From_Year>=AH$6,SolverSheet!K22,AG191) -> 0.9151398306 | AI191: =IF(Recalc_From_Year>=AI$6,SolverSheet!L22,AH191) -> 0.9151398306 | AJ191: =IF(Recalc_From_Year>=AJ$6,SolverSheet!M22,AI191) -> 0.9151398306
A192: =ROW() -> 192 | C192: Commodity | AF192: =IF(Recalc_From_Year>=AF$6,SolverSheet!I23,AE192) -> 0.08486016767 | AG192: =IF(Recalc_From_Year>=AG$6,SolverSheet!J23,AF192) -> 0.08486016767 | AH192: =IF(Recalc_From_Year>=AH$6,SolverSheet!K23,AG192) -> 0.08486016767 | AI192: =IF(Recalc_From_Year>=AI$6,SolverSheet!L23,AH192) -> 0.08486016767 | AJ192: =IF(Recalc_From_Year>=AJ$6,SolverSheet!M23,AI192) -> 0.08486016767
A193: =ROW() -> 193 | C193: Total | AF193: =SUM(AF191:AF192) -> 0.9999999982 | AG193: 0.9999999982 | AH193: 0.9999999982 | AI193: 0.9999999982 | AJ193: 0.9999999982
A194: =ROW() -> 194
A195: =ROW() -> 195 | B195: Forecast Full Haul Tariff [$ OD /GJ/day]
A196: =ROW() -> 196 | C196: Capacity Reservation Charge | AE196: 1.218619 | AF196: =AF206*AF$12 -> 0.984014576 | AG196: 0.996708364 | AH196: 1.009565902 | AI196: 1.022589302 | AJ196: 1.035780704
A197: =ROW() -> 197 | C197: Commodity Charge | AE197: 0.135516 | AF197: 0.09124686646 | AG197: 0.09242395104 | AH197: 0.09361622 | AI197: 0.09482386924 | AJ197: 0.09604709716
A198: =ROW() -> 198 | C198: Total | AE198: 1.354135 | AF198: =SUM(AF196:AF197) -> 1.075261442 | AG198: 1.089132315 | AH198: 1.103182122 | AI198: 1.117413171 | AJ198: 1.131827801
A199: =ROW() -> 199 | B199: Forecast Tariff Revenue [m$ OD] | F199: PV
A200: =ROW() -> 200 | C200: Capacity Reservation | F200: =SUMPRODUCT($AF$19:$AJ$19,AF200:AJ200) -> 1201.72871 | AF200: =AF186*(AF196*AF$7)/1000 -> 273.7340715 | AG200: 276.7639378 | AH200: 280.8787707 | AI200: 286.0607379 | AJ200: 289.7218668
A201: =ROW() -> 201 | C201: Commodity | F201: =SUMPRODUCT($AF$19:$AJ$19,AF201:AJ201) -> 90.92999579 | AF201: =AF187*(AF197*AF$7)/1000 -> 20.68189598 | AG201: 20.93168389 | AH201: 21.25999703 | AI201: 21.65249676 | AJ201: 21.95363383
... 44 more rows

Sheet Tax_CoRE
A1: =Main!A1 -> ERA, DBNGP Tariff Model, Draft Decision, August 2020
A2: Tax_Core
A3: Ref. | B3: =COLUMN() -> 2 | C3: =COLUMN() -> 3 | D3: =COLUMN() -> 4 | E3: =COLUMN() -> 5 | F3: =COLUMN() -> 6 | G3: =COLUMN() -> 7 | H3: =COLUMN() -> 8 | I3: =COLUMN() -> 9 | J3: =COLUMN() -> 10 | K3: =COLUMN() -> 11 | L3: =COLUMN() -> 12 | M3: =COLUMN() -> 13 | N3: =COLUMN() -> 14 | Q3: =COLUMN() -> 17 | R3: =COLUMN() -> 18 | S3: =COLUMN() -> 19 | T3: =COLUMN() -> 20 | U3: =COLUMN() -> 21 | V3: =COLUMN() -> 22 | W3: =COLUMN() -> 23 | X3: =COLUMN() -> 24 | Y3: =COLUMN() -> 25 | Z3: =COLUMN() -> 26 | AA3: =COLUMN() -> 27 | AB3: =COLUMN() -> 28 | AC3: =COLUMN() -> 29 | AD3: =COLUMN() -> 30 | AE3: =COLUMN() -> 31 | AF3: =COLUMN() -> 32 | AG3: =COLUMN() -> 33 | AH3: =COLUMN() -> 34 | AI3: =COLUMN() -> 35
A5: Regulatory Period | I5: =Inputs!I$5 -> AA1 | J5: =Inputs!J$5 -> AA1 | K5: =Inputs!K$5 -> AA1 | L5: =Inputs!L$5 -> AA1 | M5: =Inputs!M$5 -> AA1 | N5: =Inputs!N$5 -> AA2 | O5: =Inputs!O$5 -> AA2 | P5: =Inputs!P$5 -> AA2 | Q5: =Inputs!Q$5 -> AA2 | R5: =Inputs!R$5 -> AA2 | S5: =Inputs!S$5 -> AA2 | T5: =Inputs!T$5 -> AA3 | U5: =Inputs!U$5 -> AA3 | V5: =Inputs!V$5 -> AA3 | W5: =Inputs!W$5 -> AA3 | X5: =Inputs!X$5 -> AA3 | Y5: =Inputs!Y$5 -> AA4 | Z5: =Inputs!Z$5 -> AA4 | AA5: =Inputs!AA$5 -> AA4 | AB5: =Inputs!AB$5 -> AA4 | AC5: =Inputs!AC$5 -> AA4 | AD5: =Inputs!AD$5 -> AA5 | AE5: =Inputs!AE$5 -> AA5 | AF5: =Inputs!AF$5 -> AA5 | AG5: =Inputs!AG$5 -> AA5 | AH5: =Inputs!AH$5 -> AA5 | AI5: AA6
A6: Year | H6: =Inputs!H$6 -> 1999 | I6: =Inputs!I$6 -> 2000 | J6: =Inputs!J$6 -> 2001 | K6: =Inputs!K$6 -> 2002 | L6: =Inputs!L$6 -> 2003 | M6: =Inputs!M$6 -> 2004 | N6: =Inputs!N$6 -> 2005 | O6: =Inputs!O$6 -> 2006 | P6: =Inputs!P$6 -> 2007 | Q6: =Inputs!Q$6 -> 2008 | R6: =Inputs!R$6 -> 2009 | S6: =Inputs!S$6 -> 2010 | T6: =Inputs!T$6 -> 2011 | U6: =Inputs!U$6 -> 2012 | V6: =Inputs!V$6 -> 2013 | W6: =Inputs!W$6 -> 2014 | X6: =Inputs!X$6 -> 2015 | Y6: =Inputs!Y$6 -> 2016 | Z6: =Inputs!Z$6 -> 2017 | AA6: =Inputs!AA$6 -> 2018 | AB6: =Inputs!AB$6 -> 2019 | AC6: =Inputs!AC$6 -> 2020 | AD6: =Inputs!AD$6 -> 2021 | AE6: =Inputs!AE$6 -> 2022 | AF6: =Inputs!AF$6 -> 2023 | AG6: =Inputs!AG$6 -> 2024 | AH6: =Inputs!AH$6 -> 2025 | AI6: =AH6+1 -> 2026
A7: Days | H7: =Inputs!H$7 -> 365 | I7: =Inputs!I$7 -> 366 | J7: =Inputs!J$7 -> 365 | K7: =Inputs!K$7 -> 365 | L7: =Inputs!L$7 -> 365 | M7: =Inputs!M$7 -> 366 | N7: =Inputs!N$7 -> 365 | O7: =Inputs!O$7 -> 365 | P7: =Inputs!P$7 -> 365 | Q7: =Inputs!Q$7 -> 366 | R7: =Inputs!R$7 -> 365 | S7: =Inputs!S$7 -> 365 | T7: =Inputs!T$7 -> 365 | U7: =Inputs!U$7 -> 366 | V7: =Inputs!V$7 -> 365 | W7: =Inputs!W$7 -> 365 | X7: =Inputs!X$7 -> 365 | Y7: =Inputs!Y$7 -> 366 | Z7: =Inputs!Z$7 -> 365 | AA7: =Inputs!AA$7 -> 365 | AB7: =Inputs!AB$7 -> 365 | AC7: =Inputs!AC$7 -> 366 | AD7: =Inputs!AD$7 -> 365 | AE7: =Inputs!AE$7 -> 365 | AF7: =Inputs!AF$7 -> 365 | AG7: =Inputs!AG$7 -> 366 | AH7: =Inputs!AH$7 -> 365 | AI7: 365
A8: Project Year | H8: =Inputs!H$8 -> 0 | I8: =Inputs!I$8 -> 1 | J8: =Inputs!J$8 -> 2 | K8: =Inputs!K$8 -> 3 | L8: =Inputs!L$8 -> 4 | M8: =Inputs!M$8 -> 5 | N8: =Inputs!N$8 -> 6 | O8: =Inputs!O$8 -> 7 | P8: =Inputs!P$8 -> 8 | Q8: =Inputs!Q$8 -> 9 | R8: =Inputs!R$8 -> 10 | S8: =Inputs!S$8 -> 11 | T8: =Inputs!T$8 -> 12 | U8: =Inputs!U$8 -> 13 | V8: =Inputs!V$8 -> 14 | W8: =Inputs!W$8 -> 15 | X8: =Inputs!X$8 -> 16 | Y8: =Inputs!Y$8 -> 17 | Z8: =Inputs!Z$8 -> 18 | AA8: =Inputs!AA$8 -> 19 | AB8: =Inputs!AB$8 -> 20 | AC8: =Inputs!AC$8 -> 21 | AD8: =Inputs!AD$8 -> 22 | AE8: =Inputs!AE$8 -> 23 | AF8: =Inputs!AF$8 -> 24 | AG8: =Inputs!AG$8 -> 25 | AH8: =Inputs!AH$8 -> 26 | AI8: =AH8+1 -> 27
A9: Financial Parameters
A10: =ROW() -> 10 | B10: Modelled Inflation
A11: =ROW() -> 11 | C11: Inflation | S11: =Inputs!S$31 -> 0.02654867257 | T11: =Inputs!T$31 -> 0.03103448276 | U11: =Inputs!U$31 -> 0.02204408818 | V11: =Inputs!V$31 -> 0.02745098039 | W11: =Inputs!W$31 -> 0.01717557252 | X11: =Inputs!X$31 -> 0.01688555347 | Y11: =Inputs!Y$31 -> 0.0147601476 | Z11: =Inputs!Z$31 -> 0.01909090909 | AA11: =Inputs!AA$31 -> 0.0178412132 | AB11: =Inputs!AB$31 -> 0.01840490798 | AC11: =Inputs!AC$31 -> 0.0129 | AD11: =Inputs!AD$31 -> 0.0129 | AE11: =Inputs!AE$31 -> 0.0129 | AF11: =Inputs!AF$31 -> 0.0129 | AG11: =Inputs!AG$31 -> 0.0129 | AH11: =Inputs!AH$31 -> 0.0129 | AI11: =AH11 -> 0.0129
A12: =ROW() -> 12 | C12: =Inputs!C32 -> Inflation Factor (convert 31/12/2019 $ to nominal $) | S12: =Inputs!S$32 -> 0.8330119331 | T12: =Inputs!T$32 -> 0.8588640275 | U12: =Inputs!U$32 -> 0.8777969019 | V12: =Inputs!V$32 -> 0.9018932874 | W12: =Inputs!W$32 -> 0.917383821 | X12: =Inputs!X$32 -> 0.9328743546 | Y12: =Inputs!Y$32 -> 0.9466437177 | Z12: =Inputs!Z$32 -> 0.9647160069 | AA12: =Inputs!AA$32 -> 0.9819277108 | AB12: =Inputs!AB$32 -> 1 | AC12: =Inputs!AC$32 -> 1.0129 | AD12: =Inputs!AD$32 -> 1.02596641 | AE12: =Inputs!AE$32 -> 1.039201377 | AF12: =Inputs!AF$32 -> 1.052607074 | AG12: =Inputs!AG$32 -> 1.066185706 | AH12: =Inputs!AH$32 -> 1.079939501
A13: =ROW() -> 13 | B13: Nominal Post Tax WACC
A14: =ROW() -> 14 | C14: WACC | T14: =Inputs!T$41 -> 0 | U14: =Inputs!U$41 -> 0 | V14: =Inputs!V$41 -> 0 | W14: =Inputs!W$41 -> 0 | X14: =Inputs!X$41 -> 0 | Y14: =Inputs!Y$41 -> 0 | Z14: =Inputs!Z$41 -> 0 | AA14: =Inputs!AA$41 -> 0 | AB14: =Inputs!AB$41 -> 0 | AC14: =Inputs!AC$41 -> 0.040347 | AD14: =Inputs!AD$41 -> 0.040347 | AE14: =Inputs!AE$41 -> 0.040347 | AF14: =Inputs!AF$41 -> 0.040347 | AG14: =Inputs!AG$41 -> 0.040347 | AH14: =Inputs!AH$41 -> 0.040347
A15: =ROW() -> 15 | C15: Discounting Factor | AB15: =Inputs!AB$42 -> 1 | AC15: =Inputs!AC$42 -> 0.9612177475 | AD15: =Inputs!AD$42 -> 0.9239395582 | AE15: =Inputs!AE$42 -> 0.888107101 | AF15: =Inputs!AF$42 -> 0.8536643072 | AG15: =Inputs!AG$42 -> 0.8205572825 | AH15: =Inputs!AH$42 -> 0.7887342228
A16: =ROW() -> 16 | B16: Nominal Cost of Debt (DPn) | AB16: =WACC!R$15 -> 0.04678 | AC16: =WACC!S$15 -> 0.04665 | AD16: =WACC!T15 -> 0.03294 | AE16: =WACC!U15 -> 0.03294 | AF16: =WACC!V15 -> 0.03294 | AG16: =WACC!W15 -> 0.03294 | AH16: =WACC!X15 -> 0.03294
A17: =ROW() -> 17
A18: Asset Value [m$ nominal]
A19: =ROW() -> 19 | B19: Asset Value (Opening) | AD19: =Asset!AC33*AC$12 -> 3370.312307 | AE19: =Asset!AD33*AD$12 -> 3325.566068 | AF19: =Asset!AE33*AE$12 -> 3285.596557 | AG19: =Asset!AF33*AF$12 -> 3232.98303 | AH19: =Asset!AG33*AG$12 -> 3180.665221 | AI19: =Asset!AH33*AH$12 -> 3132.071967
A20: =ROW() -> 20 | B20: Equity | AD20: =AD$19*WACC!T26 -> 1516.640538 | AE20: =AE$19*WACC!U26 -> 1496.504731 | AF20: =AF$19*WACC!V26 -> 1478.518451 | AG20: =AG$19*WACC!W26 -> 1454.842363 | AH20: =AH$19*WACC!X26 -> 1431.29935 | AI20: =AI$19*WACC!X26 -> 1409.432385
A21: =ROW() -> 21 | B21: Debt | AD21: =AD$19*WACC!T25 -> 1853.671769 | AE21: =AE$19*WACC!U25 -> 1829.061337 | AF21: =AF$19*WACC!V25 -> 1807.078107 | AG21: =AG$19*WACC!W25 -> 1778.140666 | AH21: =AH$19*WACC!X25 -> 1749.365872 | AI21: =AI$19*WACC!X25 -> 1722.639582
A22: =ROW() -> 22 | C22: Check that A=D+E | AD22: =IF(ROUND(AD19-AD20-AD21,8)=0,"OK","CHECK") -> OK | AE22: =IF(ROUND(AE19-AE20-AE21,8)=0,"OK","CHECK") -> OK | AF22: OK | AG22: OK | AH22: OK | AI22: OK
A23: Calculation of Tax Expense - [m$ nominal]
A24: =ROW() -> 24 | B24: Revenue | F24: PV
A25: =ROW() -> 25 | C25: Revenue requirement
A26: =ROW() -> 26 | C26: Opex
A27: =ROW() -> 27 | C27: Opex; System Use Gas | F27: =SUMPRODUCT($AB$15:$AH$15,AB27:AH27) -> 109.6952282 | AD27: =CoS_Tariff_Revenue!AF41 -> 24.32408836 | AE27: =CoS_Tariff_Revenue!AG41 -> 25.10119985 | AF27: =CoS_Tariff_Revenue!AH41 -> 25.89453698 | AG27: =CoS_Tariff_Revenue!AI41 -> 26.47349023 | AH27: =CoS_Tariff_Revenue!AJ41 -> 26.7522686
A28: =ROW() -> 28 | C28: Opex; Other Expenses | F28: 301.0906265 | AD28: =CoS_Tariff_Revenue!AF42 -> 71.75065683 | AE28: =CoS_Tariff_Revenue!AG42 -> 70.87590992 | AF28: =CoS_Tariff_Revenue!AH42 -> 71.80907228 | AG28: =CoS_Tariff_Revenue!AI42 -> 69.54581959 | AH28: =CoS_Tariff_Revenue!AJ42 -> 67.81091175
A29: =ROW() -> 29 | C29: Return of Asset (Depreciation) | F29: 503.4408892 | AD29: =CoS_Tariff_Revenue!AF43 -> 127.1601461 | AE29: =CoS_Tariff_Revenue!AG43 -> 112.410638 | AF29: =CoS_Tariff_Revenue!AH43 -> 114.5564392 | AG29: =CoS_Tariff_Revenue!AI43 -> 115.8922216 | AH29: =CoS_Tariff_Revenue!AJ43 -> 118.2032701
A30: =ROW() -> 30 | C30: Inflationary Gains on RAB | F30: -181.0356006 | AD30: =CoS_Tariff_Revenue!AF44 -> -43.47702875 | AE30: =CoS_Tariff_Revenue!AG44 -> -42.89980228 | AF30: =CoS_Tariff_Revenue!AH44 -> -42.38419559 | AG30: =CoS_Tariff_Revenue!AI44 -> -41.70548108 | AH30: =CoS_Tariff_Revenue!AJ44 -> -41.03058135
A31: =ROW() -> 31 | C31: Return on Asset | AD31: =CoS_Tariff_Revenue!AF45 -> 135.9819906 | AE31: =CoS_Tariff_Revenue!AG45 -> 134.1766141 | AF31: =CoS_Tariff_Revenue!AH45 -> 132.5639643 | AG31: =CoS_Tariff_Revenue!AI45 -> 130.4411663 | AH31: =CoS_Tariff_Revenue!AJ45 -> 128.3302997
A32: =ROW() -> 32 | C32: Income tax expense | F32: 59.66728914 | AD32: =-AD45 -> 20.84429158 | AE32: =-AE45 -> 12.59540059 | AF32: 11.84215058 | AG32: 11.83378148 | AH32: 11.92143281
A33: =ROW() -> 33 | C33: Imputation Credits | F33: -29.83364457 | AD33: =-AD46 -> -10.42214579 | AE33: =-AE46 -> -6.297700297 | AF33: -5.921075291 | AG33: -5.916890739 | AH33: -5.960716405
A34: =ROW() -> 34 | C34: Cost of Service | F34: =SUMPRODUCT($AB$15:$AH$15,AB34:AH34) -> 1329.245205 | AD34: =SUM(AD27:AD33) -> 326.1619989 | AE34: =SUM(AE27:AE33) -> 305.96226 | AF34: =SUM(AF27:AF33) -> 308.3608925 | AG34: =SUM(AG27:AG33) -> 306.5641074 | AH34: =SUM(AH27:AH33) -> 306.0268852
A35: =ROW() -> 35 | B35: Expenses
A36: =ROW() -> 36 | C36: Opex; System Use Gas | F36: =SUMPRODUCT($AB$15:$AH$15,AB36:AH36) -> -109.6952282 | AD36: =-Inputs!AD3286 -> -24.32408836 | AE36: =-Inputs!AE3286 -> -25.10119985 | AF36: =-Inputs!AF3286 -> -25.89453698 | AG36: =-Inputs!AG3286 -> -26.47349023 | AH36: =-Inputs!AH3286 -> -26.7522686
A37: =ROW() -> 37 | C37: Opex; Other Expenses | F37: -301.0906265 | AD37: =-Inputs!AD3287-AD36 -> -71.75065683 | AE37: =-Inputs!AE3287-AE36 -> -70.87590992 | AF37: =-Inputs!AF3287-AF36 -> -71.80907228 | AG37: =-Inputs!AG3287-AG36 -> -69.54581959 | AH37: =-Inputs!AH3287-AH36 -> -67.81091175
A38: =ROW() -> 38 | C38: Interest on Debt | F38: -254.2497657 | AD38: =-AD21*AD$16 -> -61.05994806 | AE38: =-AE21*AE$16 -> -60.24928045 | AF38: =-AF21*AF$16 -> -59.52515283 | AG38: =-AG21*AG$16 -> -58.57195355 | AH38: =-AH21*AH$16 -> -57.62411181
A39: =ROW() -> 39 | C39: Tax Depreciation | F39: -465.3186207 | AD39: =Tax_Asset!AD32 -> -99.54633375 | AE39: =Tax_Asset!AE32 -> -107.7512011 | AF39: =Tax_Asset!AF32 -> -111.6582951 | AG39: =Tax_Asset!AG32 -> -112.5269058 | AH39: =Tax_Asset!AH32 -> -114.1014837
A40: =ROW() -> 40 | C40: Total Expenses | F40: -1130.354241 | AD40: =SUM(AD36:AD39) -> -256.681027 | AE40: -263.9775913 | AF40: -268.8870572 | AG40: -267.1181691 | AH40: -266.2887758
A41: =ROW() -> 41 | B41: Tax
A42: =ROW() -> 42 | C42: Net Income | F42: =SUMPRODUCT($AB$15:$AH$15,AB42:AH42) -> 198.8909638 | AD42: =AD34+AD40 -> 69.48097193 | AE42: 41.98466865 | AF42: 39.47383527 | AG42: 39.44593826 | AH42: 39.73810937
A43: =ROW() -> 43 | C43: Tax Loss Carried Forward | AD43: =IF(AD44<0,AD44,0) -> 0 | AE43: 0 | AF43: 0 | AG43: 0 | AH43: 0
A44: =ROW() -> 44 | C44: Taxable Income | AD44: =AD42+AC43 -> 69.48097193 | AE44: =AE42+AD43 -> 41.98466865 | AF44: =AF42+AE43 -> 39.47383527 | AG44: =AG42+AF43 -> 39.44593826 | AH44: =AH42+AG43 -> 39.73810937
A45: =ROW() -> 45 | C45: Income tax expense | F45: =SUMPRODUCT($AB$15:$AH$15,AB45:AH45) -> -59.66728914 | AD45: =-IF((SUM(AD27:AD31)+AD40+AC43)>0,(SUM(AD27:AD31)+AD40+AC43)*WACC!T$28/(1-(1-WACC!T$29)*WACC!T$28),0) -> -20.84429158 | AE45: =-IF((SUM(AE27:AE31)+AE40+AD43)>0,(SUM(AE27:AE31)+AE40+AD43)*WACC!U$28/(1-(1-WACC!U$29)*WACC!U$28),0) -> -12.59540059 | AF45: =-IF((SUM(AF27:AF31)+AF40+AE43)>0,(SUM(AF27:AF31)+AF40+AE43)*WACC!V$28/(1-(1-WACC!V$29)*WACC!V$28),0) -> -11.84215058 | AG45: =-IF((SUM(AG27:AG31)+AG40+AF43)>0,(SUM(AG27:AG31)+AG40+AF43)*WACC!W$28/(1-(1-WACC!W$29)*WACC!W$28),0) -> -11.83378148 | AH45: =-IF((SUM(AH27:AH31)+AH40+AG43)>0,(SUM(AH27:AH31)+AH40+AG43)*WACC!X$28/(1-(1-WACC!X$29)*WACC!X$28),0) -> -11.92143281
A46: =ROW() -> 46 | C46: Imputation Credits | F46: 29.83364457 | AD46: =-AD45*WACC!T29 -> 10.42214579 | AE46: =-AE45*WACC!U29 -> 6.297700297 | AF46: =-AF45*WACC!V29 -> 5.921075291 | AG46: =-AG45*WACC!W29 -> 5.916890739 | AH46: =-AH45*WACC!X29 -> 5.960716405
A47: =ROW() -> 47 | C47: Net Tax Expense | F47: -29.83364457 | AD47: =SUM(AD45:AD46) -> -10.42214579 | AE47: =SUM(AE45:AE46) -> -6.297700297 | AF47: -5.921075291 | AG47: -5.916890739 | AH47: -5.960716405
A48: =ROW() -> 48
A49: Equity Raising Costs, Nominal Calculations [m$ nominal]
A50: =ROW() -> 50 | B50: Yield / cost inputs (ERA Rate of Return Guideline, 16 Dec 2013)
A51: =ROW() -> 51 | C51: Dividend imputation/payout ratio | F51: 0.7
A52: =ROW() -> 52 | C52: Benchmark seasoned equity offering (SEO) raising cost | F52: 0.03
A53: =ROW() -> 53 | C53: Benchmark DRP cost (AER 2010 Victorian DNSP decision) | F53: 0.01
A54: =ROW() -> 54 | C54: Benchmark DRP take-up | F54: 0.25
A55: =ROW() -> 55
A56: =ROW() -> 56 | B56: Dividend assessment
A57: =ROW() -> 57 | C57: Tax payable | AD57: =-AD45 -> 20.84429158 | AE57: 12.59540059 | AF57: 11.84215058 | AG57: 11.83378148 | AH57: 11.92143281
A58: =ROW() -> 58 | C58: Dividends | AD58: =(AD57/WACC!T$28*(1-WACC!T$28)*$F$51) -> 34.04567625 | AE58: =(AE57/WACC!U$28*(1-WACC!U$28)*$F$51) -> 20.57248764 | AF58: =(AF57/WACC!V$28*(1-WACC!V$28)*$F$51) -> 19.34217928 | AG58: =(AG57/WACC!W$28*(1-WACC!W$28)*$F$51) -> 19.32850975 | AH58: =(AH57/WACC!X$28*(1-WACC!X$28)*$F$51) -> 19.47167359
A59: =ROW() -> 59 | C59: Dividend re-investment (DRP) | AD59: =AD58*$F$54 -> 8.511419061 | AE59: =AE58*$F$54 -> 5.143121909 | AF59: 4.835544821 | AG59: 4.832127437 | AH59: 4.867918398
A60: =ROW() -> 60
A61: =ROW() -> 61 | B61: Benchmark Cash Flows
A62: =ROW() -> 62 | C62: Revenue | AD62: =AD34 -> 326.1619989 | AE62: 305.96226 | AF62: 308.3608925 | AG62: 306.5641074 | AH62: 306.0268852
A63: =ROW() -> 63 | C63: Opex | AD63: =AD40-AD64 -> -195.6210789 | AE63: -203.7283109 | AF63: -209.3619044 | AG63: -208.5462156 | AH63: -208.664664
A64: =ROW() -> 64 | C64: Interest | AD64: =AD38 -> -61.05994806 | AE64: -60.24928045 | AF64: -59.52515283 | AG64: -58.57195355 | AH64: -57.62411181
A65: =ROW() -> 65 | C65: Tax | AD65: =AD45 -> -20.84429158 | AE65: -12.59540059 | AF65: -11.84215058 | AG65: -11.83378148 | AH65: -11.92143281
A66: =ROW() -> 66 | C66: Internal cash flow | AD66: =SUM(AD62:AD65) -> 48.63668035 | AE66: 29.38926805 | AF66: 27.63168469 | AG66: 27.61215678 | AH66: 27.81667656
A67: =ROW() -> 67 | C67: Dividend | AD67: =-AD58 -> -34.04567625 | AE67: -20.57248764 | AF67: -19.34217928 | AG67: -19.32850975 | AH67: -19.47167359
A68: =ROW() -> 68 | C68: Dividend reinvestment | AD68: =AD59 -> 8.511419061 | AE68: 5.143121909 | AF68: 4.835544821 | AG68: 4.832127437 | AH68: 4.867918398
A69: =ROW() -> 69 | C69: Retained cash flow | AD69: =SUM(AD66:AD68) -> 23.10242317 | AE69: 13.95990232 | AF69: 13.12505023 | AG69: 13.11577447 | AH69: 13.21292136
A70: =ROW() -> 70
A71: =ROW() -> 71 | B71: Benchmark capex funding
A72: =ROW() -> 72 | C72: Capex | AD72: =Inputs!AD660 -> 38.93687863 | AE72: =Inputs!AE660 -> 29.54132518 | AF72: =Inputs!AF660 -> 19.5587159 | AG72: =Inputs!AG660 -> 21.86893212 | AH72: =Inputs!AH660 -> 28.57943425
A73: =ROW() -> 73 | C73: less Debt Component | AD73: =(AE19-AD19)*WACC!T$25 -> -24.61043128 | AE73: =(AF19-AE19)*WACC!U$25 -> -21.98323082 | AF73: =(AG19-AF19)*WACC!V$25 -> -28.93744026 | AG73: =(AH19-AG19)*WACC!W$25 -> -28.77479464 | AH73: =(AI19-AH19)*WACC!X$25 -> -26.72628998
A74: =ROW() -> 74 | C74: Equity Component | AD74: =AD72-AD73 -> 63.54730991 | AE74: 51.52455601 | AF74: 48.49615616 | AG74: 50.64372676 | AH74: 55.30572422
A75: =ROW() -> 75 | C75: Retained cash flows | AD75: =AD69 -> 23.10242317 | AE75: 13.95990232 | AF75: 13.12505023 | AG75: 13.11577447 | AH75: 13.21292136
A76: =ROW() -> 76 | C76: Equity Required (SEO) | AD76: =AD74-AD75 -> 40.44488674 | AE76: 37.56465368 | AF76: 35.37110593 | AG76: 37.52795229 | AH76: 42.09280286
A77: =ROW() -> 77
A78: =ROW() -> 78 | B78: Equity raising costs
A79: =ROW() -> 79 | C79: External Equity Raising Costs | AD79: =AD76*$F$52 -> 1.213346602 | AE79: =AE76*$F$52 -> 1.12693961 | AF79: 1.061133178 | AG79: 1.125838569 | AH79: 1.262784086
A80: =ROW() -> 80 | C80: DRP cost | AD80: =AD59*$F$53 -> 0.08511419061 | AE80: =AE59*$F$53 -> 0.05143121909 | AF80: 0.04835544821 | AG80: 0.04832127437 | AH80: 0.04867918398
A81: =ROW() -> 81 | C81: Total Equity Raising Costs | AD81: =SUM(AD79:AD80) -> 1.298460793 | AE81: =SUM(AE79:AE80) -> 1.17837083 | AF81: 1.109488626 | AG81: 1.174159843 | AH81: 1.31146327
A82: =ROW() -> 82 | C82: Equity Raising Costs (capitalised and included in RAB) | AD82: =MAX(0,SUM(AD79:AD80)) -> 1.298460793 | AE82: =MAX(0,SUM(AE79:AE80)) -> 1.17837083 | AF82: 1.109488626 | AG82: 1.174159843 | AH82: 1.31146327
A83: =ROW() -> 83 | C83: Equity Raising Costs (manual entry) | AD83: =SolverSheet!I40 -> 1.298460793 | AE83: =SolverSheet!J40 -> 1.178370831 | AF83: =SolverSheet!K40 -> 1.10948863 | AG83: =SolverSheet!L40 -> 1.174159848 | AH83: =SolverSheet!M40 -> 1.311463277
A84: =ROW() -> 84 | C84: ="Total Equity Raising Costs [Real " & Inputs!$E$32 & " $M]" -> Total Equity Raising Costs [Real 31/12/2019 $M] | AD84: =AD83/AD12 -> 1.265597762 | AE84: =AE83/AE12 -> 1.133919621 | AF84: =AF83/AF12 -> 1.054038735 | AG84: =AG83/AG12 -> 1.101271422 | AH84: =AH83/AH12 -> 1.214385876

Sheet Asset
A1: =Main!A1 -> ERA, DBNGP Tariff Model, Draft Decision, August 2020 | M1: Asset base with retrospective asset reclassification
A2: Asset
A3: Ref. | B3: =COLUMN() -> 2 | C3: =COLUMN() -> 3 | D3: =COLUMN() -> 4 | E3: =COLUMN() -> 5 | F3: =COLUMN() -> 6 | G3: =COLUMN() -> 7 | H3: =COLUMN() -> 8 | I3: =COLUMN() -> 9 | J3: =COLUMN() -> 10 | K3: =COLUMN() -> 11 | L3: =COLUMN() -> 12 | M3: =COLUMN() -> 13 | N3: =COLUMN() -> 14 | O3: =COLUMN() -> 15 | P3: =COLUMN() -> 16 | Q3: =COLUMN() -> 17 | R3: =COLUMN() -> 18 | S3: =COLUMN() -> 19 | T3: =COLUMN() -> 20 | U3: =COLUMN() -> 21 | V3: =COLUMN() -> 22 | W3: =COLUMN() -> 23 | X3: =COLUMN() -> 24 | Y3: =COLUMN() -> 25 | Z3: =COLUMN() -> 26 | AA3: =COLUMN() -> 27 | AB3: =COLUMN() -> 28 | AC3: =COLUMN() -> 29 | AD3: =COLUMN() -> 30 | AE3: =COLUMN() -> 31 | AF3: =COLUMN() -> 32 | AG3: =COLUMN() -> 33 | AH3: =COLUMN() -> 34
A5: Regulatory Period | I5: =Inputs!I$5 -> AA1 | J5: =Inputs!J$5 -> AA1 | K5: =Inputs!K$5 -> AA1 | L5: =Inputs!L$5 -> AA1 | M5: =Inputs!M$5 -> AA1 | N5: =Inputs!N$5 -> AA2 | O5: =Inputs!O$5 -> AA2 | P5: =Inputs!P$5 -> AA2 | Q5: =Inputs!Q$5 -> AA2 | R5: =Inputs!R$5 -> AA2 | S5: =Inputs!S$5 -> AA2 | T5: =Inputs!T$5 -> AA3 | U5: =Inputs!U$5 -> AA3 | V5: =Inputs!V$5 -> AA3 | W5: =Inputs!W$5 -> AA3 | X5: =Inputs!X$5 -> AA3 | Y5: =Inputs!Y$5 -> AA4 | Z5: =Inputs!Z$5 -> AA4 | AA5: =Inputs!AA$5 -> AA4 | AB5: =Inputs!AB$5 -> AA4 | AC5: =Inputs!AC$5 -> AA4 | AD5: =Inputs!AD$5 -> AA5 | AE5: =Inputs!AE$5 -> AA5 | AF5: =Inputs!AF$5 -> AA5 | AG5: =Inputs!AG$5 -> AA5 | AH5: =Inputs!AH$5 -> AA5
A6: Year | H6: =Inputs!H$6 -> 1999 | I6: =Inputs!I$6 -> 2000 | J6: =Inputs!J$6 -> 2001 | K6: =Inputs!K$6 -> 2002 | L6: =Inputs!L$6 -> 2003 | M6: =Inputs!M$6 -> 2004 | N6: =Inputs!N$6 -> 2005 | O6: =Inputs!O$6 -> 2006 | P6: =Inputs!P$6 -> 2007 | Q6: =Inputs!Q$6 -> 2008 | R6: =Inputs!R$6 -> 2009 | S6: =Inputs!S$6 -> 2010 | T6: =Inputs!T$6 -> 2011 | U6: =Inputs!U$6 -> 2012 | V6: =Inputs!V$6 -> 2013 | W6: =Inputs!W$6 -> 2014 | X6: =Inputs!X$6 -> 2015 | Y6: =Inputs!Y$6 -> 2016 | Z6: =Inputs!Z$6 -> 2017 | AA6: =Inputs!AA$6 -> 2018 | AB6: =Inputs!AB$6 -> 2019 | AC6: =Inputs!AC$6 -> 2020 | AD6: =Inputs!AD$6 -> 2021 | AE6: =Inputs!AE$6 -> 2022 | AF6: =Inputs!AF$6 -> 2023 | AG6: =Inputs!AG$6 -> 2024 | AH6: =Inputs!AH$6 -> 2025
A7: Days | H7: =Inputs!H$7 -> 365 | I7: =Inputs!I$7 -> 366 | J7: =Inputs!J$7 -> 365 | K7: =Inputs!K$7 -> 365 | L7: =Inputs!L$7 -> 365 | M7: =Inputs!M$7 -> 366 | N7: =Inputs!N$7 -> 365 | O7: =Inputs!O$7 -> 365 | P7: =Inputs!P$7 -> 365 | Q7: =Inputs!Q$7 -> 366 | R7: =Inputs!R$7 -> 365 | S7: =Inputs!S$7 -> 365 | T7: =Inputs!T$7 -> 365 | U7: =Inputs!U$7 -> 366 | V7: =Inputs!V$7 -> 365 | W7: =Inputs!W$7 -> 365 | X7: =Inputs!X$7 -> 365 | Y7: =Inputs!Y$7 -> 366 | Z7: =Inputs!Z$7 -> 365 | AA7: =Inputs!AA$7 -> 365 | AB7: =Inputs!AB$7 -> 365 | AC7: =Inputs!AC$7 -> 366 | AD7: =Inputs!AD$7 -> 365 | AE7: =Inputs!AE$7 -> 365 | AF7: =Inputs!AF$7 -> 365 | AG7: =Inputs!AG$7 -> 366 | AH7: =Inputs!AH$7 -> 365
A8: Project Year | H8: =Inputs!H$8 -> 0 | I8: =Inputs!I$8 -> 1 | J8: =Inputs!J$8 -> 2 | K8: =Inputs!K$8 -> 3 | L8: =Inputs!L$8 -> 4 | M8: =Inputs!M$8 -> 5 | N8: =Inputs!N$8 -> 6 | O8: =Inputs!O$8 -> 7 | P8: =Inputs!P$8 -> 8 | Q8: =Inputs!Q$8 -> 9 | R8: =Inputs!R$8 -> 10 | S8: =Inputs!S$8 -> 11 | T8: =Inputs!T$8 -> 12 | U8: =Inputs!U$8 -> 13 | V8: =Inputs!V$8 -> 14 | W8: =Inputs!W$8 -> 15 | X8: =Inputs!X$8 -> 16 | Y8: =Inputs!Y$8 -> 17 | Z8: =Inputs!Z$8 -> 18 | AA8: =Inputs!AA$8 -> 19 | AB8: =Inputs!AB$8 -> 20 | AC8: =Inputs!AC$8 -> 21 | AD8: =Inputs!AD$8 -> 22 | AE8: =Inputs!AE$8 -> 23 | AF8: =Inputs!AF$8 -> 24 | AG8: =Inputs!AG$8 -> 25 | AH8: =Inputs!AH$8 -> 26
A9: Financial Parameters
A10: =ROW() -> 10 | B10: Modelled Inflation
A11: =ROW() -> 11 | C11: ="Inflation Factor (convert " &Inputs!$E$32& " $ to nominal $)" -> Inflation Factor (convert 31/12/2019 $ to nominal $) | H11: =Inputs!H32 -> 0.5941194304 | I11: =Inputs!I32 -> 0.6285888897 | J11: =Inputs!J32 -> 0.6482173318 | K11: =Inputs!K32 -> 0.6678457739 | L11: =Inputs!L32 -> 0.6836442761 | M11: =Inputs!M32 -> 0.7013577482 | N11: =Inputs!N32 -> 0.7209861903 | O11: =Inputs!O32 -> 0.7444445724 | P11: =Inputs!P32 -> 0.7664667269 | Q11: =Inputs!Q32 -> 0.7947125338 | R11: =Inputs!R32 -> 0.811468521 | S11: =Inputs!S32 -> 0.8330119331 | T11: =Inputs!T32 -> 0.8588640275 | U11: =Inputs!U32 -> 0.8777969019 | V11: =Inputs!V32 -> 0.9018932874 | W11: =Inputs!W32 -> 0.917383821 | X11: =Inputs!X32 -> 0.9328743546 | Y11: =Inputs!Y32 -> 0.9466437177 | Z11: =Inputs!Z32 -> 0.9647160069 | AA11: =Inputs!AA32 -> 0.9819277108 | AB11: =Inputs!AB32 -> 1 | AC11: =Inputs!AC32 -> 1.0129 | AD11: =Inputs!AD32 -> 1.02596641 | AE11: =Inputs!AE32 -> 1.039201377 | AF11: =Inputs!AF32 -> 1.052607074 | AG11: =Inputs!AG32 -> 1.066185706 | AH11: =Inputs!AH32 -> 1.079939501
A12: =ROW() -> 12 | C12: ="Inflation Factor (convert nominal to real "&Inputs!$E$32&" $)" -> Inflation Factor (convert nominal to real 31/12/2019 $) | H12: =Inputs!H33 -> 1.683163264 | I12: =Inputs!I33 -> 1.590864898 | J12: =Inputs!J33 -> 1.542692475 | K12: =Inputs!K33 -> 1.497351693 | L12: =Inputs!L33 -> 1.462749027 | M12: =Inputs!M33 -> 1.425805878 | N12: =Inputs!N33 -> 1.386989118 | O12: =Inputs!O33 -> 1.343283351 | P12: =Inputs!P33 -> 1.304688077 | Q12: =Inputs!Q33 -> 1.258316633 | R12: =Inputs!R33 -> 1.232333694 | S12: =Inputs!S33 -> 1.200462995 | T12: =Inputs!T33 -> 1.164328657 | U12: =Inputs!U33 -> 1.139215686 | V12: =Inputs!V33 -> 1.108778626 | W12: =Inputs!W33 -> 1.090056285 | X12: =Inputs!X33 -> 1.07195572 | Y12: =Inputs!Y33 -> 1.056363636 | Z12: =Inputs!Z33 -> 1.036574487 | AA12: =Inputs!AA33 -> 1.018404908 | AB12: =Inputs!AB33 -> 1 | AC12: =Inputs!AC33 -> 0.9872642907 | AD12: =Inputs!AD33 -> 0.9746907796 | AE12: =Inputs!AE33 -> 0.9622774011 | AF12: =Inputs!AF33 -> 0.9500221158 | AG12: =Inputs!AG33 -> 0.9379229103 | AH12: =Inputs!AH33 -> 0.9259777967
A13: ="DBNGP Asset Account Summary [m$ "&TEXT(Inputs!$E$32,"dd/mm/yyyy")&"]" -> DBNGP Asset Account Summary [m$ 31/12/2019]
A14: All Assets
A15: =ROW() -> 15 | B15: DBNGP Asset Including BEP and Shippers' Financed Capex
A16: =ROW() -> 16 | C16: Opening Value | I16: =I22+I29 -> 2608.90306 | J16: =J22+J29 -> 2553.390658 | K16: 2494.521683 | L16: 2431.956686 | M16: 2368.068156 | N16: 2307.484274 | O16: 2312.066001 | P16: 2781.600761 | Q16: 2730.948485 | R16: 3442.965549 | S16: 3357.927121 | T16: 4049.164369 | U16: 4108.018867 | V16: 4030.973107 | W16: 3941.049302 | X16: 3839.68816 | Y16: 3750.157169 | Z16: 3661.97507 | AA16: 3586.452913 | AB16: 3508.968927 | AC16: 3434.608642 | AD16: 3366.686489 | AE16: 3279.038045 | AF16: 3197.636739 | AG16: 3105.728762 | AH16: 3015.884126
A17: =ROW() -> 17 | C17: Capex | I17: =I23+I30 -> 8.048978154 | J17: 5.040611844 | K17: 1.879554216 | L17: 1.13209695 | M17: 4.814526422 | N17: 75.95464377 | O17: 533.0578005 | P17: 16.9322982 | Q17: 790.7619806 | R17: 1.5795629 | S17: 742.9262251 | T17: 170.3195658 | U17: 35.05240507 | V17: 23.03399318 | W17: 13.42431892 | X17: 24.0774892 | Y17: 18.09983397 | Z17: 33.44768111 | AA17: 32.54413916 | AB17: 29.64292365 | AC17: 26.31180352 | AD17: 37.95141659 | AE17: 28.42694962 | AF17: 18.58121266 | AG17: 20.51137246 | AH17: 26.46392156
A18: =ROW() -> 18 | C18: Redundant & Disposed Asset | I18: 0 | J18: 0 | K18: 0 | L18: 0 | M18: 0 | N18: -8.360463955 | O18: 0 | P18: -0.04204545337 | Q18: -0.03177033202 | R18: -0.1014450127 | S18: -0.01329458569 | T18: -5.147322122 | U18: -0.4229668787 | V18: -0.8425955491 | W18: -2.377115297 | X18: -0.8357667587 | Y18: 0 | Z18: 0 | AA18: 0 | AB18: 0 | AC18: 0 | AD18: 0 | AE18: 0 | AF18: 0 | AG18: 0 | AH18: 0
A19: =ROW() -> 19 | C19: Depreciation | I19: -63.56138005 | J19: -63.90958646 | K19: -64.44455185 | L19: -65.0206265 | M19: -65.39840848 | N19: -63.01245344 | O19: -63.52304042 | P19: -67.54252877 | Q19: -78.71314614 | R19: -86.51654514 | S19: -88.54784623 | T19: -106.3177458 | U19: -111.6751983 | V19: -112.1152032 | W19: -112.4083448 | X19: -112.7727139 | Y19: -106.2819331 | Z19: -108.9698381 | AA19: -110.0281251 | AB19: -104.0032084 | AC19: -94.23395628 | AD19: -125.5998607 | AE19: -109.8282554 | AF19: -110.4891896 | AG19: -110.3560086 | AH19: -111.1116424
A20: =ROW() -> 20 | C20: Closing Value | H20: 2608.90306 | I20: 2553.390658 | J20: 2494.521683 | K20: 2431.956686 | L20: 2368.068156 | M20: 2307.484274 | N20: 2312.066001 | O20: 2781.600761 | P20: 2730.948485 | Q20: 3442.965549 | R20: 3357.927121 | S20: 4049.164369 | T20: 4108.018867 | U20: 4030.973107 | V20: 3941.049302 | W20: 3839.68816 | X20: 3750.157169 | Y20: 3661.97507 | Z20: 3586.452913 | AA20: 3508.968927 | AB20: 3434.608642 | AC20: 3366.686489 | AD20: 3279.038045 | AE20: 3197.636739 | AF20: 3105.728762 | AG20: 3015.884126 | AH20: 2931.236405
A21: =ROW() -> 21 | B21: Shippers' Asset Account | H21: =IF(ABS(H20-Asset_NoReclass!H20)<=0.0001,"OK","Check") -> OK | I21: =IF(ABS(I20-Asset_NoReclass!I20)<=0.0001,"OK","Check") -> OK | J21: =IF(ABS(J20-Asset_NoReclass!J20)<=0.0001,"OK","Check") -> OK | K21: =IF(ABS(K20-Asset_NoReclass!K20)<=0.0001,"OK","Check") -> OK | L21: =IF(ABS(L20-Asset_NoReclass!L20)<=0.0001,"OK","Check") -> OK | M21: =IF(ABS(M20-Asset_NoReclass!M20)<=0.0001,"OK","Check") -> OK | N21: =IF(ABS(N20-Asset_NoReclass!N20)<=0.0001,"OK","Check") -> OK | O21: =IF(ABS(O20-Asset_NoReclass!O20)<=0.0001,"OK","Check") -> OK | P21: =IF(ABS(P20-Asset_NoReclass!P20)<=0.0001,"OK","Check") -> OK | Q21: =IF(ABS(Q20-Asset_NoReclass!Q20)<=0.0001,"OK","Check") -> OK | R21: =IF(ABS(R20-Asset_NoReclass!R20)<=0.0001,"OK","Check") -> OK | S21: =IF(ABS(S20-Asset_NoReclass!S20)<=0.0001,"OK","Check") -> OK | T21: =IF(ABS(T20-Asset_NoReclass!T20)<=0.0001,"OK","Check") -> OK | U21: =IF(ABS(U20-Asset_NoReclass!U20)<=0.0001,"OK","Check") -> OK | V21: =IF(ABS(V20-Asset_NoReclass!V20)<=0.0001,"OK","Check") -> OK | W21: =IF(ABS(W20-Asset_NoReclass!W20)<=0.0001,"OK","Check") -> OK | X21: =IF(ABS(X20-Asset_NoReclass!X20)<=0.0001,"OK","Check") -> OK | Y21: =IF(ABS(Y20-Asset_NoReclass!Y20)<=0.0001,"OK","Check") -> OK | Z21: =IF(ABS(Z20-Asset_NoReclass!Z20)<=0.0001,"OK","Check") -> OK | AA21: =IF(ABS(AA20-Asset_NoReclass!AA20)<=0.0001,"OK","Check") -> OK | AB21: =IF(ABS(AB20-Asset_NoReclass!AB20)<=0.0001,"OK","Check") -> OK | AC21: =IF(ABS(AC20-Asset_NoReclass!AC20)<=0.0001,"OK","Check") -> OK
A22: =ROW() -> 22 | C22: Opening Value (Starting 01/12/2010) | I22: 0 | J22: 0 | K22: 0 | L22: 0 | M22: 0 | N22: 0 | O22: 3.59487554 | P22: 20.39591333 | Q22: 29.96010895 | R22: 30.345259 | S22: 29.41584329 | T22: 28.48642759 | U22: 27.55701188 | V22: 26.62759618 | W22: 25.69818047 | X22: 24.76876477 | Y22: 23.83934906 | Z22: 23.67361392 | AA22: 32.31192817 | AB22: 40.30755037 | AC22: 40.95553929 | AD22: 39.29750052 | AE22: 37.63946174 | AF22: 35.98142297 | AG22: 34.3233842 | AH22: 32.66534543
A23: =ROW() -> 23 | C23: Capex | I23: 0 | J23: 0 | K23: 0 | L23: 0 | M23: 0 | N23: 3.59487554 | O23: 16.90373817 | P23: 10.1140703 | Q23: 1.272160406 | R23: 0 | S23: 0 | T23: 0 | U23: 0 | V23: 0 | W23: 0 | X23: 0 | Y23: 0.7636805658 | Z23: 9.593185978 | AA23: 9.270266782 | AB23: 2.23164204 | AC23: 0 | AD23: 0 | AE23: 0 | AF23: 0 | AG23: 0 | AH23: 0
A24: =ROW() -> 24 | C24: Redundant & Disposed Asset | I24: 0 | J24: 0 | K24: 0 | L24: 0 | M24: 0 | N24: 0 | O24: 0 | P24: 0 | Q24: 0 | R24: 0 | S24: 0 | T24: 0 | U24: 0 | V24: 0 | W24: 0 | X24: 0 | Y24: 0 | Z24: 0 | AA24: 0 | AB24: 0 | AC24: 0 | AD24: 0 | AE24: 0 | AF24: 0 | AG24: 0 | AH24: 0
A25: =ROW() -> 25 | C25: Depreciation | I25: 0 | J25: 0 | K25: 0 | L25: 0 | M25: 0 | N25: 0 | O25: -0.1027003766 | P25: -0.5498746817 | Q25: -0.8870103584 | R25: -0.9294157053 | S25: -0.9294157053 | T25: -0.9294157053 | U25: -0.9294157053 | V25: -0.9294157053 | W25: -0.9294157053 | X25: -0.9294157053 | Y25: -0.9294157053 | Z25: -0.9548717241 | AA25: -1.27464459 | AB25: -1.583653119 | AC25: -1.658038772 | AD25: -1.658038772 | AE25: -1.658038772 | AF25: -1.658038772 | AG25: -1.658038772 | AH25: -1.658038772
A26: =ROW() -> 26 | C26: Closing Value | H26: 0 | I26: 0 | J26: 0 | K26: 0 | L26: 0 | M26: 0 | N26: 3.59487554 | O26: 20.39591333 | P26: 29.96010895 | Q26: 30.345259 | R26: 29.41584329 | S26: 28.48642759 | T26: 27.55701188 | U26: 26.62759618 | V26: 25.69818047 | W26: 24.76876477 | X26: 23.83934906 | Y26: 23.67361392 | Z26: 32.31192817 | AA26: 40.30755037 | AB26: 40.95553929 | AC26: 39.29750052 | AD26: 37.63946174 | AE26: 35.98142297 | AF26: 34.3233842 | AG26: 32.66534543 | AH26: 31.00730666
A27: DBNGP and BEP Assets
A28: =ROW() -> 28 | B28: DBNGP Asset Including BEP
A29: =ROW() -> 29 | C29: Opening Value | I29: =I35+I42 -> 2608.90306 | J29: 2553.390658 | K29: 2494.521683 | L29: 2431.956686 | M29: 2368.068156 | N29: 2307.484274 | O29: 2308.471125 | P29: 2761.204847 | Q29: 2700.988376 | R29: 3412.62029 | S29: 3328.511278 | T29: 4020.677942 | U29: 4080.461855 | V29: 4004.345511 | W29: 3915.351121 | X29: =X35+X42 -> 3814.919396 | Y29: =Y35+Y42 -> 3726.31782 | Z29: 3638.301456 | AA29: 3554.140984 | AB29: 3468.661376 | AC29: 3393.653103 | AD29: 3327.388989 | AE29: 3241.398583 | AF29: 3161.655316 | AG29: 3071.405378 | AH29: 2983.218781
A30: =ROW() -> 30 | C30: Capex | I30: 8.048978154 | J30: 5.040611844 | K30: 1.879554216 | L30: 1.13209695 | M30: 4.814526422 | N30: 72.35976823 | O30: 516.1540624 | P30: 6.818227898 | Q30: 789.4898201 | R30: 1.5795629 | S30: 742.9262251 | T30: 170.3195658 | U30: 35.05240507 | V30: 23.03399318 | W30: 13.42431892 | X30: =X36+X43 -> 24.0774892 | Y30: 17.3361534 | Z30: 23.85449513 | AA30: 23.27387238 | AB30: 27.41128161 | AC30: 26.31180352 | AD30: 37.95141659 | AE30: 28.42694962 | AF30: 18.58121266 | AG30: 20.51137246 | AH30: 26.46392156
A31: =ROW() -> 31 | C31: Redundant & Disposed Asset | I31: 0 | J31: 0 | K31: 0 | L31: 0 | M31: 0 | N31: -8.360463955 | O31: 0 | P31: -0.04204545337 | Q31: -0.03177033202 | R31: -0.1014450127 | S31: -0.01329458569 | T31: -5.147322122 | U31: -0.4229668787 | V31: -0.8425955491 | W31: -2.377115297 | X31: =X37+X44 -> -0.8357667587 | Y31: 0 | Z31: 0 | AA31: 0 | AB31: 0 | AC31: 0 | AD31: 0 | AE31: 0 | AF31: 0 | AG31: 0 | AH31: 0
A32: =ROW() -> 32 | C32: Depreciation | I32: -63.56138005 | J32: -63.90958646 | K32: -64.44455185 | L32: -65.0206265 | M32: -65.39840848 | N32: -63.01245344 | O32: -63.42034004 | P32: -66.99265409 | Q32: -77.82613578 | R32: -85.58712944 | S32: -87.61843053 | T32: -105.3883301 | U32: -110.7457826 | V32: -111.1857875 | W32: -111.4789291 | X32: =X38+X45 -> -111.8432982 | Y32: -105.3525174 | Z32: -108.0149664 | AA32: -108.7534806 | AB32: -102.4195553 | AC32: -92.5759175 | AD32: -123.9418219 | AE32: -108.1702166 | AF32: -108.8311508 | AG32: -108.6979698 | AH32: -109.4536036
A33: =ROW() -> 33 | C33: Closing Value | H33: =H39+H47 -> 2608.90306 | I33: 2553.390658 | J33: 2494.521683 | K33: 2431.956686 | L33: 2368.068156 | M33: 2307.484274 | N33: 2308.471125 | O33: 2761.204847 | P33: 2700.988376 | Q33: 3412.62029 | R33: 3328.511278 | S33: 4020.677942 | T33: 4080.461855 | U33: 4004.345511 | V33: 3915.351121 | W33: 3814.919396 | X33: 3726.31782 | Y33: 3638.301456 | Z33: 3554.140984 | AA33: 3468.661376 | AB33: 3393.653103 | AC33: 3327.388989 | AD33: 3241.398583 | AE33: 3161.655316 | AF33: 3071.405378 | AG33: 2983.218781 | AH33: 2900.229099
A34: =ROW() -> 34 | B34: BEP Asset Account
A35: =ROW() -> 35 | C35: Opening Value (Starting 01/12/2010) | T35: =T127 -> 0 | U35: =U127 -> 22.63836826 | V35: =V127 -> 22.2412039 | W35: 21.84403955 | X35: 21.44687519 | Y35: 21.04971084 | Z35: 20.65254648 | AA35: 20.25538213 | AB35: 19.85821777 | AC35: 19.46105342 | AD35: 19.06388906 | AE35: 18.66672471 | AF35: 18.26956035 | AG35: 17.87239599 | AH35: 17.47523164
A36: =ROW() -> 36 | C36: Capex | T36: =T128 -> 22.63836826 | U36: =U128 -> 0 | V36: 0 | W36: 0 | X36: 0 | Y36: 0 | Z36: 0 | AA36: 0 | AB36: 0 | AC36: 0 | AD36: 0 | AE36: 0 | AF36: 0 | AG36: 0 | AH36: 0
A37: =ROW() -> 37 | C37: Redundant & Disposed Asset | T37: =T129 -> 0 | U37: 0 | V37: 0 | W37: 0 | X37: 0 | Y37: 0 | Z37: 0 | AA37: 0 | AB37: 0 | AC37: 0 | AD37: 0 | AE37: 0 | AF37: 0 | AG37: 0 | AH37: 0
A38: =ROW() -> 38 | C38: Depreciation | T38: 0 | U38: -0.3971643554 | V38: -0.3971643554 | W38: -0.3971643554 | X38: -0.3971643554 | Y38: -0.3971643554 | Z38: -0.3971643554 | AA38: -0.3971643554 | AB38: -0.3971643554 | AC38: -0.3971643554 | AD38: -0.3971643554 | AE38: -0.3971643554 | AF38: -0.3971643554 | AG38: -0.3971643554 | AH38: -0.3971643554
A39: =ROW() -> 39 | C39: Closing Value | T39: =SUM(T35:T38) -> 22.63836826 | U39: =SUM(U35:U38) -> 22.2412039 | V39: =SUM(V35:V38) -> 21.84403955 | W39: =SUM(W35:W38) -> 21.44687519 | X39: =SUM(X35:X38) -> 21.04971084 | Y39: =SUM(Y35:Y38) -> 20.65254648 | Z39: 20.25538213 | AA39: 19.85821777 | AB39: 19.46105342 | AC39: 19.06388906 | AD39: 18.66672471 | AE39: 18.26956035 | AF39: 17.87239599 | AG39: 17.47523164 | AH39: 17.07806728
A40: DBNGP Assets
A41: =ROW() -> 41 | B41: DBNGP Asset
A42: =ROW() -> 42 | C42: Opening Value | I42: =H47 -> 2608.90306 | J42: =I47 -> 2553.390658 | K42: 2494.521683 | L42: 2431.956686 | M42: 2368.068156 | N42: 2307.484274 | O42: 2308.471125 | P42: 2761.204847 | Q42: 2700.988376 | R42: 3412.62029 | S42: 3328.511278 | T42: 4020.677942 | U42: 4057.823487 | V42: 3982.104307 | W42: 3893.507082 | X42: 3793.47252 | Y42: 3705.268109 | Z42: 3617.648909 | AA42: 3533.885602 | AB42: 3448.803159 | AC42: 3374.192049 | AD42: 3308.3251 | AE42: 3222.731859 | AF42: 3143.385756 | AG42: 3053.532982 | AH42: 2965.743549
A43: =ROW() -> 43 | C43: Capex | I43: =I76 -> 8.048978154 | J43: =J76 -> 5.040611844 | K43: 1.879554216 | L43: 1.13209695 | M43: 4.814526422 | N43: 72.35976823 | O43: 516.1540624 | P43: 6.818227898 | Q43: 789.4898201 | R43: 1.5795629 | S43: 742.9262251 | T43: 147.6811976 | U43: 35.05240507 | V43: 23.03399318 | W43: 13.42431892 | X43: 24.0774892 | Y43: 17.3361534 | Z43: 23.85449513 | AA43: 23.27387238 | AB43: 27.41128161 | AC43: 26.31180352 | AD43: 37.95141659 | AE43: 28.42694962 | AF43: 18.58121266 | AG43: 20.51137246 | AH43: 26.46392156
A44: =ROW() -> 44 | C44: Redundant & Disposed Asset | I44: =I87 -> 0 | J44: =J87 -> 0 | K44: 0 | L44: 0 | M44: 0 | N44: -8.360463955 | O44: 0 | P44: -0.04204545337 | Q44: -0.03177033202 | R44: -0.1014450127 | S44: -0.01329458569 | T44: -5.147322122 | U44: -0.4229668787 | V44: -0.8425955491 | W44: -2.377115297 | X44: -0.8357667587 | Y44: 0 | Z44: 0 | AA44: 0 | AB44: 0 | AC44: 0 | AD44: 0 | AE44: 0 | AF44: 0 | AG44: 0 | AH44: 0
A45: =ROW() -> 45 | C45: Depreciation | I45: =I98 -> -63.56138005 | J45: =J98 -> -63.90958646 | K45: -64.44455185 | L45: -65.0206265 | M45: -65.39840848 | N45: -63.01245344 | O45: -63.42034004 | P45: -66.99265409 | Q45: -77.82613578 | R45: -85.58712944 | S45: -87.61843053 | T45: -105.3883301 | U45: -110.3486183 | V45: -110.7886232 | W45: -111.0817648 | X45: -111.4461339 | Y45: -104.9553531 | Z45: -107.617802 | AA45: -108.3563162 | AB45: -102.0223909 | AC45: -92.17875315 | AD45: -123.5446576 | AE45: -107.7730523 | AF45: -108.4339864 | AG45: -108.3008054 | AH45: -109.0564393
A46: =ROW() -> 46
A47: =ROW() -> 47 | C47: Closing Value | H47: =H109 -> 2608.90306 | I47: =SUM(I42:I46) -> 2553.390658 | J47: 2494.521683 | K47: 2431.956686 | L47: 2368.068156 | M47: 2307.484274 | N47: 2308.471125 | O47: 2761.204847 | P47: =SUM(P42:P46) -> 2700.988376 | Q47: =SUM(Q42:Q46) -> 3412.62029 | R47: 3328.511278 | S47: =SUM(S42:S46)-S50 -> 4020.677942 | T47: 4057.823487 | U47: 3982.104307 | V47: 3893.507082 | W47: 3793.47252 | X47: 3705.268109 | Y47: =SUM(Y42:Y46)-Y50 -> 3617.648909 | Z47: 3533.885602 | AA47: 3448.803159 | AB47: 3374.192049 | AC47: 3308.3251 | AD47: =SUM(AD42:AD46)-AD50 -> 3222.731859 | AE47: =SUM(AE42:AE46) -> 3143.385756 | AF47: 3053.532982 | AG47: 2965.743549 | AH47: 2883.151031
A48: =ROW() -> 48 | G48: Check | H48: =IF(ABS(H47-Asset_NoReclass!H47)<=0.0001,"OK","Check") -> OK | I48: =IF(ABS(I47-Asset_NoReclass!I47)<=0.0001,"OK","Check") -> OK | J48: =IF(ABS(J47-Asset_NoReclass!J47)<=0.0001,"OK","Check") -> OK | K48: =IF(ABS(K47-Asset_NoReclass!K47)<=0.0001,"OK","Check") -> OK | L48: =IF(ABS(L47-Asset_NoReclass!L47)<=0.0001,"OK","Check") -> OK | M48: =IF(ABS(M47-Asset_NoReclass!M47)<=0.0001,"OK","Check") -> OK | N48: =IF(ABS(N47-Asset_NoReclass!N47)<=0.0001,"OK","Check") -> OK | O48: =IF(ABS(O47-Asset_NoReclass!O47)<=0.0001,"OK","Check") -> OK | P48: =IF(ABS(P47-Asset_NoReclass!P47)<=0.0001,"OK","Check") -> OK | Q48: =IF(ABS(Q47-Asset_NoReclass!Q47)<=0.0001,"OK","Check") -> OK | R48: =IF(ABS(R47-Asset_NoReclass!R47)<=0.0001,"OK","Check") -> OK | S48: =IF(ABS(S47-Asset_NoReclass!S47)<=0.0001,"OK","Check") -> OK | T48: =IF(ABS(T47-Asset_NoReclass!T47)<=0.0001,"OK","Check") -> OK | U48: =IF(ABS(U47-Asset_NoReclass!U47)<=0.0001,"OK","Check") -> OK | V48: =IF(ABS(V47-Asset_NoReclass!V47)<=0.0001,"OK","Check") -> OK | W48: =IF(ABS(W47-Asset_NoReclass!W47)<=0.0001,"OK","Check") -> OK | X48: =IF(ABS(X47-Asset_NoReclass!X47)<=0.0001,"OK","Check") -> OK | Y48: =IF(ABS(Y47-Asset_NoReclass!Y47)<=0.0001,"OK","Check") -> OK | Z48: =IF(ABS(Z47-Asset_NoReclass!Z47)<=0.0001,"OK","Check") -> OK | AA48: =IF(ABS(AA47-Asset_NoReclass!AA47)<=0.0001,"OK","Check") -> OK | AB48: =IF(ABS(AB47-Asset_NoReclass!AB47)<=0.0001,"OK","Check") -> OK | AC48: =IF(ABS(AC47-Asset_NoReclass!AC47)<=0.0001,"OK","Check") -> OK
A49: =ROW() -> 49 | B49: Over Depreciation
A50: =ROW() -> 50 | C50: Over Depreciation | S50: =S120 -> -36.87216348 | Y50: =Y120 -> 0 | AD50: =AD120 -> 0
A51: =ROW() -> 51 | C51: Rolled Forward Value | T51: =S50*(1+WACC!M34) -> -38.99998684
A52: =ROW() -> 52
A53: ="DBNGP Asset Account [m$ "&TEXT(Inputs!$E$32,"dd/mm/yyyy")&"]" -> DBNGP Asset Account [m$ 31/12/2019]
A54: Asset Accounts
A55: =ROW() -> 55 | B55: Opening Value
A56: =ROW() -> 56 | C56: Pipeline | I56: =H100 -> 2126.082083 | J56: 2089.27927 | K56: 2050.30468 | L56: 2011.372667 | M56: 1972.341146 | N56: 1934.186735 | O56: 1905.440156 | P56: 2175.086304 | Q56: 2137.316441 | R56: 2713.80354 | S56: 2663.786323 | T56: 3199.357781 | U56: 3170.304956 | V56: 3123.094558 | W56: 3066.541104 | X56: 3008.542383 | Y56: =X100 -> 2952.241432 | Z56: 2893.263798 | AA56: 2834.229864 | AB56: 2775.244086 | AC56: 2716.15578 | AD56: 2657.213978 | AE56: 2595.497994 | AF56: 2533.368911 | AG56: 2471.239828 | AH56: 2409.110745
A57: =ROW() -> 57 | C57: Compression | I57: 356.1635421 | J57: 333.9666307 | K57: 316.9383756 | L57: 297.7436692 | M57: 278.006621 | N57: 258.5964098 | O57: 291.7992084 | P57: 478.9222212 | Q57: 458.073615 | R57: 561.28593 | S57: 535.7419548 | T57: 591.0724791 | U57: 583.4719021 | V57: 558.4076478 | W57: 531.8566459 | X57: 502.0551039 | Y57: 472.484159 | Z57: 443.655729 | AA57: 416.3511291 | AB57: 386.6222722 | AC57: 359.497974 | AD57: 342.8889027 | AE57: 328.352869 | AF57: 311.7593394 | AG57: 295.32137 | AH57: 277.504795
A58: =ROW() -> 58 | C58: Metering | I58: 29.20819445 | J58: 29.34914886 | K58: 29.41310633 | L58: 29.17889171 | M58: 28.36052572 | N58: 29.96879019 | O58: 29.11939387 | P58: 28.23782832 | Q58: 27.32116818 | R58: 26.40012111 | S58: 25.47907404 | T58: 30.53768231 | U58: 29.6271689 | V58: 28.65628928 | W58: 28.12829429 | X58: 26.09926575 | Y58: 26.71854516 | Z58: 31.12725582 | AA58: 34.22882675 | AB58: 40.5101609 | AC58: 46.04859953 | AD58: 52.21812264 | AE58: 38.95653303 | AF58: 38.37241961 | AG58: 37.93654633 | AH58: 37.27691868
A59: =ROW() -> 59 | C59: Other Depreciable | I59: 80.21659485 | J59: 83.56296348 | K59: 80.63287668 | L59: 76.42881298 | M59: 72.12721837 | N59: 67.49969376 | O59: 62.50014065 | P59: 58.21987035 | Q59: 53.92201665 | R59: 51.70474497 | S59: 48.30111614 | T59: 115.1759961 | U59: 132.573584 | V59: 129.5462455 | W59: 130.8011953 | X59: 129.6051322 | Y59: 130.1254037 | Z59: 134.3802494 | AA59: 139.2856884 | AB59: 140.3217571 | AC59: 141.5845971 | AD59: 145.2798284 | AE59: 140.4429791 | AF59: 134.4498258 | AG59: 128.2601392 | AH59: 121.8284589
A60: =ROW() -> 60 | C60: Computers and Motor Vehicles | I60: 0 | J60: 0 | K60: 0 | L60: 0 | M60: 0 | N60: 0 | O60: 2.898580362 | P60: 2.983030177 | Q60: 2.92281458 | R60: 6.452587793 | S60: 4.823855252 | T60: 3.088513177 | U60: 9.068643289 | V60: 8.68428465 | W60: 7.691119209 | X60: 6.43269086 | Y60: 7.004941984 | Z60: 6.619491383 | AA60: 7.58414751 | AB60: 10.29045337 | AC60: 12.51477145 | AD60: 13.47462086 | AE60: 13.72752131 | AF60: 12.00585029 | AG60: 10.1603609 | AH60: 10.0832596
A61: =ROW() -> 61 | C61: Cathodic/Corrosion Protection | I61: 0 | J61: 0 | K61: 0 | L61: 0 | M61: 0 | N61: 0 | O61: 0 | P61: 0 | Q61: 0 | R61: 0.1008810187 | S61: 0.09415561747 | T61: 16.72522453 | U61: 32.91856912 | V61: 36.73815311 | W61: 36.52768975 | X61: 34.72004533 | Y61: 33.34960661 | Z61: 31.21583094 | AA61: 29.77131929 | AB61: 31.66407309 | AC61: 36.14778431 | AD61: 37.45435083 | AE61: 35.78632032 | AF61: 33.49136104 | AG61: 31.22069693 | AH61: 28.63085473
A62: =ROW() -> 62 | C62: SCADA , ECI And Comms | I62: 0 | J62: 0 | K62: 0 | L62: 0 | M62: 0 | N62: 0 | O62: 2.385593906 | P62: 3.588527005 | Q62: 4.924184583 | R62: 34.58326193 | S62: 31.18064298 | T62: 44.65554099 | U62: 79.81292796 | V62: 76.97582889 | W62: 71.75058944 | X62: 65.80680424 | Y62: 63.13611003 | Z62: 57.11203366 | AA62: 52.16010646 | AB62: 43.87583541 | AC62: 41.96802214 | AD62: 39.52077561 | AE62: 48.42752303 | AF62: 57.28448548 | AG62: 55.72525851 | AH62: 56.59433564
A63: =ROW() -> 63 | C63: Non-Depreciable | I63: 17.23264518 | J63: 17.23264518 | K63: 17.23264518 | L63: 17.23264518 | M63: 17.23264518 | N63: 17.23264518 | O63: 14.32805182 | P63: 14.16706645 | Q63: 16.50813532 | R63: 18.28922253 | S63: 19.10415644 | T63: 20.06472478 | U63: 20.04573592 | V63: 20.00129952 | W63: 20.21044364 | X63: 20.21109552 | Y63: 20.20791062 | Z63: 20.27452078 | AA63: 20.27452078 | AB63: 20.27452078 | AC63: 20.27452078 | AD63: 20.27452078 | AE63: 20.27452078 | AF63: 20.27452078 | AG63: 20.27452078 | AH63: 20.27452078
A64: =ROW() -> 64 | C64: Cost of Raising Equity | I64: 0 | J64: 0 | K64: 0 | L64: 0 | M64: 0 | N64: 0 | O64: 0 | P64: 0 | Q64: 0 | R64: 0 | S64: 0 | T64: 0 | U64: 0 | V64: 0 | W64: 0 | X64: 0 | Y64: 0 | Z64: 0 | AA64: -4.899938547e-16 | AB64: -9.799877094e-16 | AC64: -1.469981564e-15 | AD64: -1.959975419e-15 | AE64: 1.265597762 | AF64: 2.379042431 | AG64: 3.394261562 | AH64: 4.439661047
A65: =ROW() -> 65 | C65: Total | I65: =SUM(I56:I64) -> 2608.90306 | J65: =SUM(J56:J64) -> 2553.390658 | K65: 2494.521683 | L65: 2431.956686 | M65: 2368.068156 | N65: 2307.484274 | O65: 2308.471125 | P65: 2761.204847 | Q65: 2700.988376 | R65: 3412.62029 | S65: 3328.511278 | T65: 4020.677942 | U65: 4057.823487 | V65: 3982.104307 | W65: 3893.507082 | X65: 3793.47252 | Y65: 3705.268109 | Z65: 3617.648909 | AA65: 3533.885602 | AB65: 3448.803159 | AC65: 3374.192049 | AD65: 3308.3251 | AE65: 3222.731859 | AF65: 3143.385756 | AG65: 3053.532982 | AH65: 2965.743549
A66: =ROW() -> 66 | B66: Capex | H66: Check | I66: =IF(ABS(I65-Asset_NoReclass!I65)<=0.0001,"OK","Check") -> OK | J66: =IF(ABS(J65-Asset_NoReclass!J65)<=0.0001,"OK","Check") -> OK | K66: =IF(ABS(K65-Asset_NoReclass!K65)<=0.0001,"OK","Check") -> OK | L66: =IF(ABS(L65-Asset_NoReclass!L65)<=0.0001,"OK","Check") -> OK | M66: =IF(ABS(M65-Asset_NoReclass!M65)<=0.0001,"OK","Check") -> OK | N66: =IF(ABS(N65-Asset_NoReclass!N65)<=0.0001,"OK","Check") -> OK | O66: =IF(ABS(O65-Asset_NoReclass!O65)<=0.0001,"OK","Check") -> OK | P66: =IF(ABS(P65-Asset_NoReclass!P65)<=0.0001,"OK","Check") -> OK | Q66: =IF(ABS(Q65-Asset_NoReclass!Q65)<=0.0001,"OK","Check") -> OK | R66: =IF(ABS(R65-Asset_NoReclass!R65)<=0.0001,"OK","Check") -> OK | S66: =IF(ABS(S65-Asset_NoReclass!S65)<=0.0001,"OK","Check") -> OK | T66: =IF(ABS(T65-Asset_NoReclass!T65)<=0.0001,"OK","Check") -> OK | U66: =IF(ABS(U65-Asset_NoReclass!U65)<=0.0001,"OK","Check") -> OK | V66: =IF(ABS(V65-Asset_NoReclass!V65)<=0.0001,"OK","Check") -> OK | W66: =IF(ABS(W65-Asset_NoReclass!W65)<=0.0001,"OK","Check") -> OK | X66: =IF(ABS(X65-Asset_NoReclass!X65)<=0.0001,"OK","Check") -> OK | Y66: =IF(ABS(Y65-Asset_NoReclass!Y65)<=0.0001,"OK","Check") -> OK | Z66: =IF(ABS(Z65-Asset_NoReclass!Z65)<=0.0001,"OK","Check") -> OK | AA66: =IF(ABS(AA65-Asset_NoReclass!AA65)<=0.0001,"OK","Check") -> OK | AB66: =IF(ABS(AB65-Asset_NoReclass!AB65)<=0.0001,"OK","Check") -> OK | AC66: =IF(ABS(AC65-Asset_NoReclass!AC65)<=0.0001,"OK","Check") -> OK
A67: =ROW() -> 67 | C67: Pipeline | I67: =I216 -> 2.207866895 | J67: =J216 -> 0.04642964408 | K67: 0.09573961908 | L67: 3.092251444e-05 | M67: 0.8857491082 | N67: 10.31032713 | O67: 308.794706 | P67: 1.495677711 | Q67: 620.9309187 | R67: 0 | S67: 571.5409346 | T67: 31.08364657 | U67: 11.60368692 | V67: 2.695183077 | W67: 0.387775199 | X67: 2.076417473 | Y67: 0 | Z67: 0 | AA67: 0.08629730755 | AB67: 0.008873104931 | AC67: 0.2377221295 | AD67: 0 | AE67: 0 | AF67: 0 | AG67: 0 | AH67: 0
A68: =ROW() -> 68 | C68: Compression | I68: =I217 -> -3.175372793 | J68: 2.047144784 | K68: 0.1247520958 | L68: -0.1679204873 | M68: 0.2615894962 | N68: 56.44219939 | O68: 205.0237028 | P68: 0.1770702827 | Q68: 129.813254 | R68: 0 | S68: 60.28978476 | T68: 23.7395335 | U68: 6.62037346 | V68: 5.114999238 | W68: 1.840400372 | X68: 2.033428811 | Y68: 2.532374452 | Z68: 4.758259873 | AA68: 2.882253761 | AB68: 1.99428288 | AC68: 2.506703987 | AD68: 4.953889505 | AE68: 3.061523133 | AF68: 3.319134201 | AG68: 2.051166337 | AH68: 2.868433089
A69: =ROW() -> 69 | C69: Metering | I69: 0.9094866444 | J69: 0.8324896968 | K69: 0.5360007714 | L69: -0.04646742628 | M69: 2.381846189 | N69: 0 | O69: 0 | P69: 0 | Q69: 0 | R69: 0 | S69: 5.613307654 | T69: 0.04030778103 | U69: -0.03850505939 | V69: 0.2127482667 | W69: 0.5336907689 | X69: 1.329691672 | Y69: 3.477661805 | Z69: 3.64598852 | AA69: 6.883294171 | AB69: 6.158629163 | AC69: 6.813015073 | AD69: 1.577766365 | AE69: 1.078031443 | AF69: 1.262205964 | AG69: 1.080525124 | AH69: 1.24220673
A70: =ROW() -> 70 | C70: Other Depreciable | I70: 8.106997409 | J70: 2.114547718 | K70: 1.12306173 | L70: 1.346453941 | M70: 1.285341628 | N70: 0.3230674435 | O70: 0.3909805791 | P70: 0.4337111558 | Q70: 2.277267456 | R70: 0.5024991475 | S70: 70.97668642 | T70: 27.93424941 | U70: 2.247560222 | V70: 6.52555998 | W70: 4.086684101 | X70: 5.836465418 | Y70: 2.380378646 | Z70: 4.95790549 | AA70: 1.766898332 | AB70: 2.478788581 | AC70: 5.174249755 | AD70: 2.139466452 | AE70: 1.054478044 | AF70: 0.8930939153 | AG70: 0.6808700795 | AH70: 4.780174958
A71: =ROW() -> 71 | C71: Computers and Motor Vehicles | I71: 0 | J71: 0 | K71: 0 | L71: 0 | M71: 0 | N71: 2.898580362 | O71: 0.6641658874 | P71: 0.6523336532 | Q71: 4.372789194 | R71: 0.08884127743 | S71: 0 | T71: 7.135756114 | U71: 2.065585409 | V71: 1.742430427 | W71: 0.9610990896 | X71: 2.945807167 | Y71: 2.577158822 | Z71: 2.506497626 | AA71: 3.836200209 | AB71: 3.005726346 | AC71: 1.549037859 | AD71: 6.423280646 | AE71: 3.15620648 | AF71: 2.410380601 | AG71: 3.382111402 | AH71: 2.788669195
A72: =ROW() -> 72 | C72: Cathodic/Corrosion Protection | I72: 0 | J72: 0 | K72: 0 | L72: 0 | M72: 0 | N72: 0 | O72: 0 | P72: 0 | Q72: 0.1008810187 | R72: 0 | S72: 16.63779431 | T72: 17.30925628 | U72: 6.089446097 | V72: 2.428204016 | W72: 1.032650803 | X72: 1.538769195 | Y72: 0.8780168558 | Z72: 1.567280885 | AA72: 4.904546324 | AB72: 7.495503744 | AC72: 4.318359046 | AD72: 2.754744992 | AE72: 2.31146589 | AF72: 2.489858785 | AG72: 2.329945889 | AH72: 1.925191242
A73: =ROW() -> 73 | C73: SCADA , ECI And Comms | I73: 0 | J73: 0 | K73: 0 | L73: 0 | M73: 0 | N73: 2.385593906 | O73: 1.44149249 | P73: 1.718366217 | Q73: 30.21362261 | R73: 0.1732885705 | S73: 17.06813439 | T73: 40.45743679 | U73: 6.508694422 | V73: 4.105724056 | W73: 4.581366703 | X73: 8.320094364 | Y73: 5.490562821 | Z73: 6.41856274 | AA73: 2.914382275 | AB73: 6.269477788 | AC73: 5.712715668 | AD73: 18.83667087 | AE73: 16.63132501 | AF73: 7.152500462 | AG73: 9.885482206 | AH73: 11.64486047
A74: =ROW() -> 74 | C74: Non-Depreciable | I74: 0 | J74: 0 | K74: 0 | L74: 0 | M74: 0 | N74: 0 | O74: -0.1609853768 | P74: 2.341068877 | Q74: 1.78108721 | R74: 0.8149339043 | S74: 0.7995829634 | T74: -0.01898885366 | U74: -0.0444364075 | V74: 0.2091441216 | W74: 0.0006518819614 | X74: -0.003184898358 | Y74: 0 | Z74: 0 | AA74: 0 | AB74: 0 | AC74: 0 | AD74: 0 | AE74: 0 | AF74: 0 | AG74: 0 | AH74: 0
A75: =ROW() -> 75 | C75: Cost of Raising Equity | I75: 0 | J75: 0 | K75: 0 | L75: 0 | M75: 0 | N75: 0 | O75: 0 | P75: 0 | Q75: 0 | R75: 0 | S75: 0 | T75: 0 | U75: 0 | V75: 0 | W75: 0 | X75: 0 | Y75: 0 | Z75: 0 | AA75: 0 | AB75: 0 | AC75: 0 | AD75: 1.265597762 | AE75: 1.133919621 | AF75: 1.054038735 | AG75: 1.101271422 | AH75: 1.214385876
A76: =ROW() -> 76 | C76: Total | I76: =SUM(I67:I75) -> 8.048978154 | J76: =SUM(J67:J75) -> 5.040611844 | K76: 1.879554216 | L76: 1.13209695 | M76: 4.814526422 | N76: 72.35976823 | O76: 516.1540624 | P76: 6.818227898 | Q76: 789.4898201 | R76: 1.5795629 | S76: 742.9262251 | T76: 147.6811976 | U76: 35.05240507 | V76: 23.03399318 | W76: 13.42431892 | X76: 24.0774892 | Y76: 17.3361534 | Z76: 23.85449513 | AA76: 23.27387238 | AB76: 27.41128161 | AC76: 26.31180352 | AD76: 37.95141659 | AE76: 28.42694962 | AF76: 18.58121266 | AG76: 20.51137246 | AH76: 26.46392156
A77: =ROW() -> 77 | B77: Redundant & Disposed Asset | H77: Check | I77: =IF(ABS(I76-Asset_NoReclass!I76)<=0.0001,"OK","Check") -> OK | J77: =IF(ABS(J76-Asset_NoReclass!J76)<=0.0001,"OK","Check") -> OK | K77: =IF(ABS(K76-Asset_NoReclass!K76)<=0.0001,"OK","Check") -> OK | L77: =IF(ABS(L76-Asset_NoReclass!L76)<=0.0001,"OK","Check") -> OK | M77: =IF(ABS(M76-Asset_NoReclass!M76)<=0.0001,"OK","Check") -> OK | N77: =IF(ABS(N76-Asset_NoReclass!N76)<=0.0001,"OK","Check") -> OK | O77: =IF(ABS(O76-Asset_NoReclass!O76)<=0.0001,"OK","Check") -> OK | P77: =IF(ABS(P76-Asset_NoReclass!P76)<=0.0001,"OK","Check") -> OK | Q77: =IF(ABS(Q76-Asset_NoReclass!Q76)<=0.0001,"OK","Check") -> OK | R77: =IF(ABS(R76-Asset_NoReclass!R76)<=0.0001,"OK","Check") -> OK | S77: =IF(ABS(S76-Asset_NoReclass!S76)<=0.0001,"OK","Check") -> OK | T77: =IF(ABS(T76-Asset_NoReclass!T76)<=0.0001,"OK","Check") -> OK | U77: =IF(ABS(U76-Asset_NoReclass!U76)<=0.0001,"OK","Check") -> OK | V77: =IF(ABS(V76-Asset_NoReclass!V76)<=0.0001,"OK","Check") -> OK | W77: =IF(ABS(W76-Asset_NoReclass!W76)<=0.0001,"OK","Check") -> OK | X77: =IF(ABS(X76-Asset_NoReclass!X76)<=0.0001,"OK","Check") -> OK | Y77: =IF(ABS(Y76-Asset_NoReclass!Y76)<=0.0001,"OK","Check") -> OK | Z77: =IF(ABS(Z76-Asset_NoReclass!Z76)<=0.0001,"OK","Check") -> OK | AA77: =IF(ABS(AA76-Asset_NoReclass!AA76)<=0.0001,"OK","Check") -> OK | AB77: =IF(ABS(AB76-Asset_NoReclass!AB76)<=0.0001,"OK","Check") -> OK | AC77: =IF(ABS(AC76-Asset_NoReclass!AC76)<=0.0001,"OK","Check") -> OK
A78: =ROW() -> 78 | C78: Pipeline | I78: =-(Inputs!I269+Inputs!I3152) -> 0 | J78: =-(Inputs!J269+Inputs!J3152) -> 0 | K78: =-(Inputs!K269+Inputs!K3152) -> 0 | L78: =-(Inputs!L269+Inputs!L3152) -> 0 | M78: =-(Inputs!M269+Inputs!M3152) -> 0 | N78: =N158+N227 -> 0 | O78: =O158+O227 -> 0 | P78: 0 | Q78: 0 | R78: 0 | S78: 0 | T78: 0 | U78: 0 | V78: 0 | W78: 0 | X78: 0 | Y78: =-(Inputs!Y269+Inputs!Y3152) -> 0 | Z78: =-(Inputs!Z269+Inputs!Z3152) -> 0 | AA78: =-(Inputs!AA269+Inputs!AA3152) -> 0 | AB78: =-(Inputs!AB269+Inputs!AB3152) -> 0 | AC78: =-(Inputs!AC269+Inputs!AC3152) -> 0 | AD78: =-(Inputs!AD269+Inputs!AD3152) -> 0 | AE78: =-(Inputs!AE269+Inputs!AE3152) -> 0 | AF78: =-(Inputs!AF269+Inputs!AF3152) -> 0 | AG78: =-(Inputs!AG269+Inputs!AG3152) -> 0 | AH78: =-(Inputs!AH269+Inputs!AH3152) -> 0
A79: =ROW() -> 79 | C79: Compression | I79: =-(Inputs!I270+Inputs!I3153) -> 0 | J79: =-(Inputs!J270+Inputs!J3153) -> 0 | K79: =-(Inputs!K270+Inputs!K3153) -> 0 | L79: =-(Inputs!L270+Inputs!L3153) -> 0 | M79: =-(Inputs!M270+Inputs!M3153) -> 0 | N79: =N159+N228 -> -5.359758893 | O79: 0 | P79: 0 | Q79: 0 | R79: 0 | S79: 0 | T79: -0.08935803079 | U79: 0 | V79: 0 | W79: 0 | X79: 0 | Y79: =-(Inputs!Y270+Inputs!Y3153) -> 0 | Z79: =-(Inputs!Z270+Inputs!Z3153) -> 0 | AA79: =-(Inputs!AA270+Inputs!AA3153) -> 0 | AB79: =-(Inputs!AB270+Inputs!AB3153) -> 0 | AC79: =-(Inputs!AC270+Inputs!AC3153) -> 0 | AD79: =-(Inputs!AD270+Inputs!AD3153) -> 0 | AE79: =-(Inputs!AE270+Inputs!AE3153) -> 0 | AF79: =-(Inputs!AF270+Inputs!AF3153) -> 0 | AG79: =-(Inputs!AG270+Inputs!AG3153) -> 0 | AH79: =-(Inputs!AH270+Inputs!AH3153) -> 0
A80: =ROW() -> 80 | C80: Metering | I80: =-(Inputs!I271+Inputs!I3154) -> 0 | J80: =-(Inputs!J271+Inputs!J3154) -> 0 | K80: =-(Inputs!K271+Inputs!K3154) -> 0 | L80: =-(Inputs!L271+Inputs!L3154) -> 0 | M80: =-(Inputs!M271+Inputs!M3154) -> 0 | N80: =N160+N229 -> 0 | O80: 0 | P80: 0 | Q80: 0 | R80: 0 | S80: 0 | T80: 0 | U80: 0 | V80: 0 | W80: -1.838755962 | X80: 0 | Y80: =-(Inputs!Y271+Inputs!Y3154) -> 0 | Z80: =-(Inputs!Z271+Inputs!Z3154) -> 0 | AA80: =-(Inputs!AA271+Inputs!AA3154) -> 0 | AB80: =-(Inputs!AB271+Inputs!AB3154) -> 0 | AC80: =-(Inputs!AC271+Inputs!AC3154) -> 0 | AD80: =-(Inputs!AD271+Inputs!AD3154) -> 0 | AE80: =-(Inputs!AE271+Inputs!AE3154) -> 0 | AF80: =-(Inputs!AF271+Inputs!AF3154) -> 0 | AG80: =-(Inputs!AG271+Inputs!AG3154) -> 0 | AH80: =-(Inputs!AH271+Inputs!AH3154) -> 0
A81: =ROW() -> 81 | C81: Other Depreciable | I81: =-(Inputs!I272+Inputs!I3155) -> 0 | J81: =-(Inputs!J272+Inputs!J3155) -> 0 | K81: =-(Inputs!K272+Inputs!K3155) -> 0 | L81: =-(Inputs!L272+Inputs!L3155) -> 0 | M81: =-(Inputs!M272+Inputs!M3155) -> 0 | N81: =N161+N230 -> -0.09611170235 | O81: 0 | P81: -0.04204545337 | Q81: -0.03177033202 | R81: -0.1014450127 | S81: -0.01329458569 | T81: -5.057964091 | U81: -0.4229668787 | V81: -0.826194291 | W81: -0.4802293502 | X81: -0.7777672324 | Y81: =-(Inputs!Y272+Inputs!Y3155) -> 0 | Z81: =-(Inputs!Z272+Inputs!Z3155) -> 0 | AA81: =-(Inputs!AA272+Inputs!AA3155) -> 0 | AB81: =-(Inputs!AB272+Inputs!AB3155) -> 0 | AC81: =-(Inputs!AC272+Inputs!AC3155) -> 0 | AD81: =-(Inputs!AD272+Inputs!AD3155) -> 0 | AE81: =-(Inputs!AE272+Inputs!AE3155) -> 0 | AF81: =-(Inputs!AF272+Inputs!AF3155) -> 0 | AG81: =-(Inputs!AG272+Inputs!AG3155) -> 0 | AH81: =-(Inputs!AH272+Inputs!AH3155) -> 0
A82: =ROW() -> 82 | C82: Computers and Motor Vehicles | I82: =-(Inputs!I273+Inputs!I3156) -> 0 | J82: =-(Inputs!J273+Inputs!J3156) -> 0 | K82: =-(Inputs!K273+Inputs!K3156) -> 0 | L82: =-(Inputs!L273+Inputs!L3156) -> 0 | M82: =-(Inputs!M273+Inputs!M3156) -> 0 | N82: =N162+N231 -> 0 | O82: 0 | P82: 0 | Q82: 0 | R82: 0 | S82: 0 | T82: 0 | U82: 0 | V82: -0.003001469229 | W82: -0.01400528316 | X82: 0 | Y82: =-(Inputs!Y273+Inputs!Y3156) -> 0 | Z82: =-(Inputs!Z273+Inputs!Z3156) -> 0 | AA82: =-(Inputs!AA273+Inputs!AA3156) -> 0 | AB82: =-(Inputs!AB273+Inputs!AB3156) -> 0 | AC82: =-(Inputs!AC273+Inputs!AC3156) -> 0 | AD82: =-(Inputs!AD273+Inputs!AD3156) -> 0 | AE82: =-(Inputs!AE273+Inputs!AE3156) -> 0 | AF82: =-(Inputs!AF273+Inputs!AF3156) -> 0 | AG82: =-(Inputs!AG273+Inputs!AG3156) -> 0 | AH82: =-(Inputs!AH273+Inputs!AH3156) -> 0
A83: =ROW() -> 83 | C83: Cathodic/Corrosion Protection | I83: =-(Inputs!I274+Inputs!I3157) -> 0 | J83: =-(Inputs!J274+Inputs!J3157) -> 0 | K83: =-(Inputs!K274+Inputs!K3157) -> 0 | L83: =-(Inputs!L274+Inputs!L3157) -> 0 | M83: =-(Inputs!M274+Inputs!M3157) -> 0 | N83: =N163+N232 -> 0 | O83: 0 | P83: 0 | Q83: 0 | R83: 0 | S83: 0 | T83: 0 | U83: 0 | V83: 0 | W83: 6.434655927e-05 | X83: 0 | Y83: =-(Inputs!Y274+Inputs!Y3157) -> 0 | Z83: =-(Inputs!Z274+Inputs!Z3157) -> 0 | AA83: =-(Inputs!AA274+Inputs!AA3157) -> 0 | AB83: =-(Inputs!AB274+Inputs!AB3157) -> 0 | AC83: =-(Inputs!AC274+Inputs!AC3157) -> 0 | AD83: =-(Inputs!AD274+Inputs!AD3157) -> 0 | AE83: =-(Inputs!AE274+Inputs!AE3157) -> 0 | AF83: =-(Inputs!AF274+Inputs!AF3157) -> 0 | AG83: =-(Inputs!AG274+Inputs!AG3157) -> 0 | AH83: =-(Inputs!AH274+Inputs!AH3157) -> 0
A84: =ROW() -> 84 | C84: SCADA , ECI And Comms | I84: =-(Inputs!I275+Inputs!I3158) -> 0 | J84: =-(Inputs!J275+Inputs!J3158) -> 0 | K84: =-(Inputs!K275+Inputs!K3158) -> 0 | L84: =-(Inputs!L275+Inputs!L3158) -> 0 | M84: =-(Inputs!M275+Inputs!M3158) -> 0 | N84: =N164+N233 -> 0 | O84: 0 | P84: 0 | Q84: 0 | R84: 0 | S84: 0 | T84: 0 | U84: 0 | V84: -0.01339978881 | W84: -0.04418904837 | X84: -0.05799952632 | Y84: =-(Inputs!Y275+Inputs!Y3158) -> 0 | Z84: =-(Inputs!Z275+Inputs!Z3158) -> 0 | AA84: =-(Inputs!AA275+Inputs!AA3158) -> 0 | AB84: =-(Inputs!AB275+Inputs!AB3158) -> 0 | AC84: =-(Inputs!AC275+Inputs!AC3158) -> 0 | AD84: =-(Inputs!AD275+Inputs!AD3158) -> 0 | AE84: =-(Inputs!AE275+Inputs!AE3158) -> 0 | AF84: =-(Inputs!AF275+Inputs!AF3158) -> 0 | AG84: =-(Inputs!AG275+Inputs!AG3158) -> 0 | AH84: =-(Inputs!AH275+Inputs!AH3158) -> 0
A85: =ROW() -> 85 | C85: Non-Depreciable | I85: =-(Inputs!I276+Inputs!I3159) -> 0 | J85: =-(Inputs!J276+Inputs!J3159) -> 0 | K85: =-(Inputs!K276+Inputs!K3159) -> 0 | L85: =-(Inputs!L276+Inputs!L3159) -> 0 | M85: =-(Inputs!M276+Inputs!M3159) -> 0 | N85: =N165+N234 -> -2.90459336 | O85: 0 | P85: 0 | Q85: 0 | R85: 0 | S85: 0 | T85: 0 | U85: 0 | V85: 0 | W85: 0 | X85: 0 | Y85: =-(Inputs!Y276+Inputs!Y3159) -> 0 | Z85: =-(Inputs!Z276+Inputs!Z3159) -> 0 | AA85: =-(Inputs!AA276+Inputs!AA3159) -> 0 | AB85: =-(Inputs!AB276+Inputs!AB3159) -> 0 | AC85: =-(Inputs!AC276+Inputs!AC3159) -> 0 | AD85: =-(Inputs!AD276+Inputs!AD3159) -> 0 | AE85: =-(Inputs!AE276+Inputs!AE3159) -> 0 | AF85: =-(Inputs!AF276+Inputs!AF3159) -> 0 | AG85: =-(Inputs!AG276+Inputs!AG3159) -> 0 | AH85: =-(Inputs!AH276+Inputs!AH3159) -> 0
A86: =ROW() -> 86 | C86: Cost of Raising Equity | I86: =-(Inputs!I277+Inputs!I3160) -> 0 | J86: =-(Inputs!J277+Inputs!J3160) -> 0 | K86: =-(Inputs!K277+Inputs!K3160) -> 0 | L86: =-(Inputs!L277+Inputs!L3160) -> 0 | M86: =-(Inputs!M277+Inputs!M3160) -> 0 | N86: =N166+N235 -> 0 | O86: 0 | P86: 0 | Q86: 0 | R86: 0 | S86: 0 | T86: 0 | U86: 0 | V86: 0 | W86: 0 | X86: 0 | Y86: =-(Inputs!Y277+Inputs!Y3160) -> 0 | Z86: =-(Inputs!Z277+Inputs!Z3160) -> 0 | AA86: =-(Inputs!AA277+Inputs!AA3160) -> 0 | AB86: =-(Inputs!AB277+Inputs!AB3160) -> 0 | AC86: =-(Inputs!AC277+Inputs!AC3160) -> 0 | AD86: =-(Inputs!AD277+Inputs!AD3160) -> 0 | AE86: =-(Inputs!AE277+Inputs!AE3160) -> 0 | AF86: =-(Inputs!AF277+Inputs!AF3160) -> 0 | AG86: =-(Inputs!AG277+Inputs!AG3160) -> 0 | AH86: =-(Inputs!AH277+Inputs!AH3160) -> 0
A87: =ROW() -> 87 | C87: Total | I87: =SUM(I78:I86) -> 0 | J87: =SUM(J78:J86) -> 0 | K87: 0 | L87: 0 | M87: 0 | N87: -8.360463955 | O87: 0 | P87: -0.04204545337 | Q87: -0.03177033202 | R87: -0.1014450127 | S87: -0.01329458569 | T87: -5.147322122 | U87: -0.4229668787 | V87: -0.8425955491 | W87: -2.377115297 | X87: -0.8357667587 | Y87: 0 | Z87: 0 | AA87: 0 | AB87: 0 | AC87: 0 | AD87: 0 | AE87: 0 | AF87: 0 | AG87: 0 | AH87: 0
A88: =ROW() -> 88 | B88: Depreciation | H88: Check | I88: =IF(ABS(I87-Asset_NoReclass!I87)<=0.0001,"OK","Check") -> OK | J88: =IF(ABS(J87-Asset_NoReclass!J87)<=0.0001,"OK","Check") -> OK | K88: =IF(ABS(K87-Asset_NoReclass!K87)<=0.0001,"OK","Check") -> OK | L88: =IF(ABS(L87-Asset_NoReclass!L87)<=0.0001,"OK","Check") -> OK | M88: =IF(ABS(M87-Asset_NoReclass!M87)<=0.0001,"OK","Check") -> OK | N88: =IF(ABS(N87-Asset_NoReclass!N87)<=0.0001,"OK","Check") -> OK | O88: =IF(ABS(O87-Asset_NoReclass!O87)<=0.0001,"OK","Check") -> OK | P88: =IF(ABS(P87-Asset_NoReclass!P87)<=0.0001,"OK","Check") -> OK | Q88: =IF(ABS(Q87-Asset_NoReclass!Q87)<=0.0001,"OK","Check") -> OK | R88: =IF(ABS(R87-Asset_NoReclass!R87)<=0.0001,"OK","Check") -> OK | S88: =IF(ABS(S87-Asset_NoReclass!S87)<=0.0001,"OK","Check") -> OK | T88: =IF(ABS(T87-Asset_NoReclass!T87)<=0.0001,"OK","Check") -> OK | U88: =IF(ABS(U87-Asset_NoReclass!U87)<=0.0001,"OK","Check") -> OK | V88: =IF(ABS(V87-Asset_NoReclass!V87)<=0.0001,"OK","Check") -> OK | W88: =IF(ABS(W87-Asset_NoReclass!W87)<=0.0001,"OK","Check") -> OK | X88: =IF(ABS(X87-Asset_NoReclass!X87)<=0.0001,"OK","Check") -> OK | Y88: =IF(ABS(Y87-Asset_NoReclass!Y87)<=0.0001,"OK","Check") -> OK | Z88: =IF(ABS(Z87-Asset_NoReclass!Z87)<=0.0001,"OK","Check") -> OK | AA88: =IF(ABS(AA87-Asset_NoReclass!AA87)<=0.0001,"OK","Check") -> OK | AB88: =IF(ABS(AB87-Asset_NoReclass!AB87)<=0.0001,"OK","Check") -> OK | AC88: =IF(ABS(AC87-Asset_NoReclass!AC87)<=0.0001,"OK","Check") -> OK
A89: =ROW() -> 89 | C89: Pipeline | I89: =I169+I238 -> -39.01068043 | J89: -39.02101986 | K89: -39.02775251 | L89: -39.03155165 | M89: -39.04015983 | N89: -39.05690637 | O89: -39.14855823 | P89: -39.26554019 | Q89: -44.44381964 | R89: -50.01721743 | S89: -51.71948187 | T89: -60.13647146 | U89: -58.81408442 | V89: -59.24863742 | W89: -58.38649665 | X89: -58.37736824 | Y89: -58.97763351 | Z89: -59.03393419 | AA89: -59.07207571 | AB89: -59.09717884 | AC89: -59.17952428 | AD89: -61.71598354 | AE89: -62.12908313 | AF89: -62.12908313 | AG89: -62.12908313 | AH89: -62.12908313
A90: =ROW() -> 90 | C90: Compression | I90: -19.02153862 | J90: -19.07539984 | K90: -19.31945852 | L90: -19.56912773 | M90: -19.67180069 | N90: -17.87964189 | O90: -17.90068993 | P90: -21.02567647 | Q90: -26.60093902 | R90: -25.54397523 | S90: -25.5634737 | T90: -31.25075253 | U90: -31.68462772 | V90: -31.66600113 | W90: -31.64194241 | X90: -31.60437367 | Y90: -31.36080446 | Z90: -32.06285982 | AA90: -32.6111106 | AB90: -29.11858115 | AC90: -19.11577529 | AD90: -19.48992314 | AE90: -19.65505279 | AF90: -19.75710356 | AG90: -19.86774136 | AH90: -19.93611357
A91: =ROW() -> 91 | C91: Metering | I91: -0.7685322314 | J91: -0.7685322314 | K91: -0.7702153947 | L91: -0.771898558 | M91: -0.7735817212 | N91: -0.8493963198 | O91: -0.8815655482 | P91: -0.9166601366 | Q91: -0.9210470707 | R91: -0.9210470707 | S91: -0.9116591822 | T91: -0.9508211925 | U91: -0.9323745617 | V91: -0.7407432561 | W91: -0.7239633477 | X91: -0.7104122596 | Y91: 0.931048858 | Z91: -0.5444175985 | AA91: -0.6019600174 | AB91: -0.6201905328 | AC91: -0.6434919624 | AD91: -14.83935597 | AE91: -1.662144862 | AF91: -1.698079244 | AG91: -1.740152776 | AH91: -1.77617028
A92: =ROW() -> 92 | C92: Other Depreciable | I92: -4.760628774 | J92: -5.044634523 | K92: -5.327125424 | L92: -5.648048553 | M92: -5.91286624 | N92: -5.226508855 | O92: -4.671250878 | P92: -4.6895194 | Q92: -4.462768803 | R92: -3.804682965 | S92: -4.088511923 | T92: -5.478697369 | U92: -4.851931897 | V92: -4.444415868 | W92: -4.802517784 | X92: -4.538426715 | Y92: 1.874467013 | Z92: -0.05246646203 | AA92: -0.7308296705 | AB92: -1.21594857 | AC92: -1.479018439 | AD92: -6.976315759 | AE92: -7.047631308 | AF92: -7.082780576 | AG92: -7.112550373 | AH92: -7.135246042
A93: =ROW() -> 93 | C93: Computers and Motor Vehicles | I93: 0 | J93: 0 | K93: 0 | L93: 0 | M93: 0 | N93: 0 | O93: -0.5797160724 | P93: -0.7125492499 | Q93: -0.8430159805 | R93: -1.717573819 | S93: -1.735342075 | T93: -1.155626002 | U93: -2.449944048 | V93: -2.732594399 | W93: -2.205522156 | X93: -2.373556043 | Y93: -2.962609423 | Z93: -1.541841499 | AA93: -1.12989435 | AB93: -0.7814082647 | AC93: -0.5891884468 | AD93: -6.170380196 | AE93: -4.877877504 | AF93: -4.255869987 | AG93: -3.459212704 | AH93: -3.384203398
A94: =ROW() -> 94 | C94: Cathodic/Corrosion Protection | I94: 0 | J94: 0 | K94: 0 | L94: 0 | M94: 0 | N94: 0 | O94: 0 | P94: 0 | Q94: 0 | R94: -0.006725401248 | S94: -0.006725401248 | T94: -1.115911689 | U94: -2.269862107 | V94: -2.638667369 | W94: -2.840359577 | X94: -2.909207914 | Y94: -3.011792527 | Z94: -3.011792527 | AA94: -3.011792527 | AB94: -3.011792527 | AC94: -3.011792527 | AD94: -4.422775503 | AE94: -4.60642517 | AF94: -4.760522896 | AG94: -4.91978808 | AH94: -5.075117806
A95: =ROW() -> 95 | C95: SCADA , ECI And Comms | I95: 0 | J95: 0 | K95: 0 | L95: 0 | M95: 0 | N95: 0 | O95: -0.2385593906 | P95: -0.3827086396 | Q95: -0.5545452613 | R95: -3.575907522 | S95: -3.593236379 | T95: -5.300049818 | U95: -9.345793497 | V95: -9.317563712 | W95: -10.48096286 | X95: -10.93278905 | Y95: -11.51463919 | Z95: -11.37048994 | AA95: -11.19865332 | AB95: -8.177291058 | AC95: -8.159962201 | AD95: -9.929923445 | AE95: -7.774362569 | AF95: -8.711727432 | AG95: -9.016405073 | AH95: -9.546816623
A96: =ROW() -> 96 | C96: Non-Depreciable | I96: 0 | J96: 0 | K96: 0 | L96: 0 | M96: 0 | N96: 0 | O96: 0 | P96: 0 | Q96: 0 | R96: 0 | S96: 0 | T96: 0 | U96: 0 | V96: 0 | W96: 0 | X96: 0 | Y96: 0.06661015952 | Z96: 0 | AA96: 0 | AB96: 0 | AC96: 0 | AD96: 0 | AE96: 0 | AF96: 0 | AG96: 0 | AH96: 0
A97: =ROW() -> 97 | C97: Cost of Raising Equity | I97: 0 | J97: 0 | K97: 0 | L97: 0 | M97: 0 | N97: 0 | O97: 0 | P97: 0 | Q97: 0 | R97: 0 | S97: 0 | T97: 0 | U97: 0 | V97: 0 | W97: 0 | X97: 0 | Y97: 0 | Z97: -4.899938547e-16 | AA97: -4.899938547e-16 | AB97: -4.899938547e-16 | AC97: -4.899938547e-16 | AD97: 1.959975419e-15 | AE97: -0.0204749527 | AF97: -0.03881960476 | AG97: -0.05587193678 | AH97: -0.07368840339
A98: =ROW() -> 98 | C98: Total | I98: =SUM(I89:I97) -> -63.56138005 | J98: =SUM(J89:J97) -> -63.90958646 | K98: -64.44455185 | L98: -65.0206265 | M98: -65.39840848 | N98: -63.01245344 | O98: -63.42034004 | P98: -66.99265409 | Q98: -77.82613578 | R98: -85.58712944 | S98: -87.61843053 | T98: -105.3883301 | U98: -110.3486183 | V98: -110.7886232 | W98: -111.0817648 | X98: -111.4461339 | Y98: -104.9553531 | Z98: -107.617802 | AA98: -108.3563162 | AB98: -102.0223909 | AC98: -92.17875315 | AD98: -123.5446576 | AE98: -107.7730523 | AF98: -108.4339864 | AG98: -108.3008054 | AH98: -109.0564393
A99: =ROW() -> 99 | B99: Closing Value | H99: Check | I99: =IF(ABS(I98-Asset_NoReclass!I98)<=0.0001,"OK","Check") -> OK | J99: =IF(ABS(J98-Asset_NoReclass!J98)<=0.0001,"OK","Check") -> OK | K99: =IF(ABS(K98-Asset_NoReclass!K98)<=0.0001,"OK","Check") -> OK | L99: =IF(ABS(L98-Asset_NoReclass!L98)<=0.0001,"OK","Check") -> OK | M99: =IF(ABS(M98-Asset_NoReclass!M98)<=0.0001,"OK","Check") -> OK | N99: =IF(ABS(N98-Asset_NoReclass!N98)<=0.0001,"OK","Check") -> OK | O99: =IF(ABS(O98-Asset_NoReclass!O98)<=0.0001,"OK","Check") -> OK | P99: =IF(ABS(P98-Asset_NoReclass!P98)<=0.0001,"OK","Check") -> OK | Q99: =IF(ABS(Q98-Asset_NoReclass!Q98)<=0.0001,"OK","Check") -> OK | R99: =IF(ABS(R98-Asset_NoReclass!R98)<=0.0001,"OK","Check") -> OK | S99: =IF(ABS(S98-Asset_NoReclass!S98)<=0.0001,"OK","Check") -> OK | T99: =IF(ABS(T98-Asset_NoReclass!T98)<=0.0001,"OK","Check") -> OK | U99: =IF(ABS(U98-Asset_NoReclass!U98)<=0.0001,"OK","Check") -> OK | V99: =IF(ABS(V98-Asset_NoReclass!V98)<=0.0001,"OK","Check") -> OK | W99: =IF(ABS(W98-Asset_NoReclass!W98)<=0.0001,"OK","Check") -> OK | X99: =IF(ABS(X98-Asset_NoReclass!X98)<=0.0001,"OK","Check") -> OK | Y99: =IF(ABS(Y98-Asset_NoReclass!Y98)<=0.0001,"OK","Check") -> OK | Z99: =IF(ABS(Z98-Asset_NoReclass!Z98)<=0.0001,"OK","Check") -> OK | AA99: =IF(ABS(AA98-Asset_NoReclass!AA98)<=0.0001,"OK","Check") -> OK | AB99: =IF(ABS(AB98-Asset_NoReclass!AB98)<=0.0001,"OK","Check") -> OK | AC99: =IF(ABS(AC98-Asset_NoReclass!AC98)<=0.0001,"OK","Check") -> OK
A100: =ROW() -> 100 | C100: Pipeline | H100: =H180 -> 2126.082083 | I100: =I56+I67+I78+I89 -> 2089.27927 | J100: =J56+J67+J78+J89 -> 2050.30468 | K100: 2011.372667 | L100: 1972.341146 | M100: 1934.186735 | N100: 1905.440156 | O100: 2175.086304 | P100: 2137.316441 | Q100: 2713.80354 | R100: 2663.786323 | S100: =S56+S67+S78+S89-S111 -> 3199.357781 | T100: =T56+T67+T78+T89 -> 3170.304956 | U100: =U56+U67+U78+U89 -> 3123.094558 | V100: 3066.541104 | W100: 3008.542383 | X100: 2952.241432 | Y100: 2893.263798 | Z100: 2834.229864 | AA100: 2775.244086 | AB100: 2716.15578 | AC100: 2657.213978 | AD100: 2595.497994 | AE100: 2533.368911 | AF100: 2471.239828 | AG100: 2409.110745 | AH100: 2346.981662
A101: =ROW() -> 101 | C101: Compression | H101: =H181 -> 356.1635421 | I101: =I57+I68+I79+I90 -> 333.9666307 | J101: 316.9383756 | K101: 297.7436692 | L101: 278.006621 | M101: 258.5964098 | N101: 291.7992084 | O101: 478.9222212 | P101: 458.073615 | Q101: 561.28593 | R101: 535.7419548 | S101: =S57+S68+S79+S90-S112 -> 591.0724791 | T101: =T57+T68+T79+T90 -> 583.4719021 | U101: 558.4076478 | V101: 531.8566459 | W101: 502.0551039 | X101: 472.484159 | Y101: 443.655729 | Z101: 416.3511291 | AA101: 386.6222722 | AB101: 359.497974 | AC101: 342.8889027 | AD101: 328.352869 | AE101: 311.7593394 | AF101: 295.32137 | AG101: 277.504795 | AH101: 260.4371145
A102: =ROW() -> 102 | C102: Metering | H102: =H182 -> 29.20819445 | I102: =I58+I69+I80+I91 -> 29.34914886 | J102: 29.41310633 | K102: 29.17889171 | L102: 28.36052572 | M102: 29.96879019 | N102: 29.11939387 | O102: 28.23782832 | P102: 27.32116818 | Q102: 26.40012111 | R102: 25.47907404 | S102: 30.53768231 | T102: 29.6271689 | U102: 28.65628928 | V102: 28.12829429 | W102: 26.09926575 | X102: 26.71854516 | Y102: 31.12725582 | Z102: 34.22882675 | AA102: 40.5101609 | AB102: 46.04859953 | AC102: 52.21812264 | AD102: 38.95653303 | AE102: 38.37241961 | AF102: 37.93654633 | AG102: 37.27691868 | AH102: 36.74295513
A103: =ROW() -> 103 | C103: Other Depreciable | H103: =H183 -> 80.21659485 | I103: =I59+I70+I81+I92 -> 83.56296348 | J103: 80.63287668 | K103: 76.42881298 | L103: 72.12721837 | M103: 67.49969376 | N103: 62.50014065 | O103: 58.21987035 | P103: 53.92201665 | Q103: 51.70474497 | R103: 48.30111614 | S103: 115.1759961 | T103: 132.573584 | U103: 129.5462455 | V103: 130.8011953 | W103: 129.6051322 | X103: 130.1254037 | Y103: 134.3802494 | Z103: 139.2856884 | AA103: 140.3217571 | AB103: 141.5845971 | AC103: 145.2798284 | AD103: 140.4429791 | AE103: 134.4498258 | AF103: 128.2601392 | AG103: 121.8284589 | AH103: 119.4733878
A104: =ROW() -> 104 | C104: Computers and Motor Vehicles | I104: =I60+I71+I82+I93 -> 0 | J104: 0 | K104: 0 | L104: 0 | M104: 0 | N104: 2.898580362 | O104: 2.983030177 | P104: 2.92281458 | Q104: 6.452587793 | R104: 4.823855252 | S104: 3.088513177 | T104: 9.068643289 | U104: 8.68428465 | V104: 7.691119209 | W104: 6.43269086 | X104: 7.004941984 | Y104: 6.619491383 | Z104: 7.58414751 | AA104: 10.29045337 | AB104: 12.51477145 | AC104: 13.47462086 | AD104: 13.72752131 | AE104: 12.00585029 | AF104: 10.1603609 | AG104: 10.0832596 | AH104: 9.487725399
A105: =ROW() -> 105 | C105: Cathodic/Corrosion Protection | I105: 0 | J105: 0 | K105: 0 | L105: 0 | M105: 0 | N105: 0 | O105: 0 | P105: 0 | Q105: 0.1008810187 | R105: 0.09415561747 | S105: 16.72522453 | T105: 32.91856912 | U105: 36.73815311 | V105: 36.52768975 | W105: 34.72004533 | X105: 33.34960661 | Y105: 31.21583094 | Z105: 29.77131929 | AA105: 31.66407309 | AB105: 36.14778431 | AC105: 37.45435083 | AD105: 35.78632032 | AE105: 33.49136104 | AF105: 31.22069693 | AG105: 28.63085473 | AH105: 25.48092817
A106: =ROW() -> 106 | C106: SCADA , ECI And Comms | I106: 0 | J106: 0 | K106: 0 | L106: 0 | M106: 0 | N106: 2.385593906 | O106: 3.588527005 | P106: 4.924184583 | Q106: 34.58326193 | R106: 31.18064298 | S106: 44.65554099 | T106: 79.81292796 | U106: 76.97582889 | V106: 71.75058944 | W106: 65.80680424 | X106: 63.13611003 | Y106: 57.11203366 | Z106: 52.16010646 | AA106: 43.87583541 | AB106: 41.96802214 | AC106: 39.52077561 | AD106: 48.42752303 | AE106: 57.28448548 | AF106: 55.72525851 | AG106: 56.59433564 | AH106: 58.69237948
A107: =ROW() -> 107 | C107: Non-Depreciable | H107: =H187 -> 17.23264518 | I107: =I63+I74+I85+I96 -> 17.23264518 | J107: 17.23264518 | K107: 17.23264518 | L107: 17.23264518 | M107: 17.23264518 | N107: 14.32805182 | O107: 14.16706645 | P107: 16.50813532 | Q107: 18.28922253 | R107: 19.10415644 | S107: 20.06472478 | T107: 20.04573592 | U107: 20.00129952 | V107: 20.21044364 | W107: 20.21109552 | X107: 20.20791062 | Y107: 20.27452078 | Z107: 20.27452078 | AA107: 20.27452078 | AB107: 20.27452078 | AC107: 20.27452078 | AD107: 20.27452078 | AE107: 20.27452078 | AF107: 20.27452078 | AG107: 20.27452078 | AH107: 20.27452078
A108: =ROW() -> 108 | C108: Cost of Raising Equity | H108: 0 | I108: =I64+I75+I86+I97 -> 0 | J108: 0 | K108: 0 | L108: 0 | M108: 0 | N108: 0 | O108: 0 | P108: 0 | Q108: 0 | R108: 0 | S108: 0 | T108: 0 | U108: 0 | V108: 0 | W108: 0 | X108: 0 | Y108: 0 | Z108: -4.899938547e-16 | AA108: -9.799877094e-16 | AB108: -1.469981564e-15 | AC108: -1.959975419e-15 | AD108: 1.265597762 | AE108: 2.379042431 | AF108: 3.394261562 | AG108: 4.439661047 | AH108: 5.580358519
A109: =ROW() -> 109 | C109: Total | H109: =SUM(H100:H108) -> 2608.90306 | I109: =SUM(I100:I108) -> 2553.390658 | J109: 2494.521683 | K109: 2431.956686 | L109: 2368.068156 | M109: 2307.484274 | N109: 2308.471125 | O109: 2761.204847 | P109: 2700.988376 | Q109: 3412.62029 | R109: 3328.511278 | S109: 4020.677942 | T109: 4057.823487 | U109: 3982.104307 | V109: 3893.507082 | W109: 3793.47252 | X109: 3705.268109 | Y109: 3617.648909 | Z109: 3533.885602 | AA109: 3448.803159 | AB109: 3374.192049 | AC109: 3308.3251 | AD109: 3222.731859 | AE109: 3143.385756 | AF109: 3053.532982 | AG109: 2965.743549 | AH109: 2883.151031
A110: =ROW() -> 110 | B110: Over Depreciation | G110: Check | H110: =IF(ROUND(H109-Inputs!H119,6)=0,"OK","Wrong") -> OK | I110: =IF(ABS(I109-Asset_NoReclass!I109)<=0.0001,"OK","Check") -> OK | J110: =IF(ABS(J109-Asset_NoReclass!J109)<=0.0001,"OK","Check") -> OK | K110: =IF(ABS(K109-Asset_NoReclass!K109)<=0.0001,"OK","Check") -> OK | L110: =IF(ABS(L109-Asset_NoReclass!L109)<=0.0001,"OK","Check") -> OK | M110: =IF(ABS(M109-Asset_NoReclass!M109)<=0.0001,"OK","Check") -> OK | N110: =IF(ABS(N109-Asset_NoReclass!N109)<=0.0001,"OK","Check") -> OK | O110: =IF(ABS(O109-Asset_NoReclass!O109)<=0.0001,"OK","Check") -> OK | P110: =IF(ABS(P109-Asset_NoReclass!P109)<=0.0001,"OK","Check") -> OK | Q110: =IF(ABS(Q109-Asset_NoReclass!Q109)<=0.0001,"OK","Check") -> OK | R110: =IF(ABS(R109-Asset_NoReclass!R109)<=0.0001,"OK","Check") -> OK | S110: =IF(ABS(S109-Asset_NoReclass!S109)<=0.0001,"OK","Check") -> OK | T110: =IF(ABS(T109-Asset_NoReclass!T109)<=0.0001,"OK","Check") -> OK | U110: =IF(ABS(U109-Asset_NoReclass!U109)<=0.0001,"OK","Check") -> OK | V110: =IF(ABS(V109-Asset_NoReclass!V109)<=0.0001,"OK","Check") -> OK | W110: =IF(ABS(W109-Asset_NoReclass!W109)<=0.0001,"OK","Check") -> OK | X110: =IF(ABS(X109-Asset_NoReclass!X109)<=0.0001,"OK","Check") -> OK | Y110: =IF(ABS(Y109-Asset_NoReclass!Y109)<=0.0001,"OK","Check") -> OK | Z110: =IF(ABS(Z109-Asset_NoReclass!Z109)<=0.0001,"OK","Check") -> OK | AA110: =IF(ABS(AA109-Asset_NoReclass!AA109)<=0.0001,"OK","Check") -> OK | AB110: =IF(ABS(AB109-Asset_NoReclass!AB109)<=0.0001,"OK","Check") -> OK | AC110: =IF(ABS(AC109-Asset_NoReclass!AC109)<=0.0001,"OK","Check") -> OK
A111: =ROW() -> 111 | C111: Pipeline | S111: =S191+S260 -> -15.75000498
A112: =ROW() -> 112 | C112: Compression | S112: =S192+S261 -> -20.60421332
A113: =ROW() -> 113 | C113: Metering | S113: =S193+S262 -> -0.3569597962
A114: =ROW() -> 114 | C114: Other Depreciable | S114: =S194+S263 -> 0
A115: =ROW() -> 115 | C115: Computers and Motor Vehicles | S115: =S195+S264 -> 0
A116: =ROW() -> 116 | C116: Cathodic/Corrosion Protection | S116: 0
A117: =ROW() -> 117 | C117: SCADA , ECI And Comms | S117: 0
A118: =ROW() -> 118 | C118: Non-Depreciable | S118: =S198+S267 -> -0.1609853768
A119: =ROW() -> 119 | C119: Cost of Raising Equity | S119: =S199+S268 -> 0
A120: =ROW() -> 120 | C120: Total | S120: =SUM(S111:S119) -> -36.87216348
A121: =ROW() -> 121
A122: =ROW() -> 122 | B122: Economic end date | AE122: =AD122 ->  | AF122: =AE122 -> 
A123: ="BEP Asset Account [m$ "&TEXT(Inputs!$E$32,"dd/mm/yyyy")&"]" -> BEP Asset Account [m$ 31/12/2019]
A124: BEP Lease (Capex)
A125: =ROW() -> 125 | B125: BEP Asset Account | AD125: =IF(Asset!AD$122="","",Asset!AD$122-AD$6) ->  | AE125: =IF(AE122="","",AD125-1) ->  | AF125: =IF(AF122="","",AE125-1) -> 
A126: =ROW() -> 126 | C126: Life | U126: 57 | V126: =U126-1 -> 56 | W126: 55 | X126: 54 | Y126: 53 | Z126: 52 | AA126: 51 | AB126: 50 | AC126: 49 | AD126: =IF(AD$125="",AC126-1,MIN(AC126-1,AD$125)) -> 48 | AE126: =AD126-1 -> 47 | AF126: 46 | AG126: 45 | AH126: 44
A127: =ROW() -> 127 | C127: Opening Value (Starting 01/12/2010) | T127: =S131 -> 0 | U127: =T131 -> 22.63836826 | V127: =U131 -> 22.2412039 | W127: =V131 -> 21.84403955 | X127: =W131 -> 21.44687519 | Y127: =X131 -> 21.04971084 | Z127: 20.65254648 | AA127: 20.25538213 | AB127: 19.85821777 | AC127: 19.46105342 | AD127: 19.06388906 | AE127: 18.66672471 | AF127: 18.26956035 | AG127: 17.87239599 | AH127: 17.47523164
A128: =ROW() -> 128 | C128: Capex | T128: =Inputs!$T$435 -> 22.63836826
A129: =ROW() -> 129 | C129: Redundant & Disposed Asset | U129: =Inputs!U443 -> 0 | V129: =Inputs!V443 -> 0 | W129: =Inputs!W443 -> 0 | X129: =Inputs!X443 -> 0 | Y129: =Inputs!Y443 -> 0 | Z129: =Inputs!Z443 -> 0 | AA129: =Inputs!AA443 -> 0 | AB129: =Inputs!AB443 -> 0 | AC129: =Inputs!AC443 -> 0 | AD129: =Inputs!AD443 -> 0 | AE129: =Inputs!AE443 -> 0 | AF129: =Inputs!AF443 -> 0 | AG129: =Inputs!AG443 -> 0 | AH129: =Inputs!AH443 -> 0
A130: =ROW() -> 130 | C130: Depreciation | T130: =Inputs!T439 -> 0 | U130: =Inputs!U439 -> -0.3971643554 | V130: =Inputs!V439 -> -0.3971643554 | W130: =Inputs!W439 -> -0.3971643554 | X130: =Inputs!X439 -> -0.3971643554 | Y130: =-Y127/Y126 -> -0.3971643554 | Z130: -0.3971643554 | AA130: -0.3971643554 | AB130: -0.3971643554 | AC130: -0.3971643554 | AD130: -0.3971643554 | AE130: -0.3971643554 | AF130: -0.3971643554 | AG130: -0.3971643554 | AH130: -0.3971643554
A131: =ROW() -> 131 | C131: Closing Value | T131: =SUM(T127:T130) -> 22.63836826 | U131: =SUM(U127:U130) -> 22.2412039 | V131: =SUM(V127:V130) -> 21.84403955 | W131: =SUM(W127:W130) -> 21.44687519 | X131: =SUM(X127:X130) -> 21.04971084 | Y131: =SUM(Y127:Y130) -> 20.65254648 | Z131: 20.25538213 | AA131: 19.85821777 | AB131: 19.46105342 | AC131: 19.06388906 | AD131: 18.66672471 | AE131: 18.26956035 | AF131: 17.87239599 | AG131: 17.47523164 | AH131: 17.07806728
A132: =ROW() -> 132
A133: ="Opening Capital Base (OCB) [$m "&TEXT(Inputs!$E$32,"dd/mm/yyyy")&"]" -> Opening Capital Base (OCB) [$m 31/12/2019]
A134: Opening Capital Base Accounts
A135: =ROW() -> 135 | B135: Life | I135: Life | AD135: =IF(Asset!AD$122="","",Asset!AD$122-AD$6) -> 
A136: =ROW() -> 136 | C136: Pipeline | I136: =Inputs!D46 -> 54.5 | J136: =MAX(I136-1,0) -> 53.5 | K136: =MAX(J136-1,0) -> 52.5 | L136: 51.5 | M136: 50.5 | N136: 49.5 | O136: 48.5 | P136: 47.5 | Q136: 46.5 | R136: 45.5 | S136: 44.5 | T136: 43.5 | U136: 42.5 | V136: 41.5 | W136: 40.5 | X136: 39.5 | Y136: 38.5 | Z136: 37.5 | AA136: =MAX(Z136-1,0) -> 36.5 | AB136: 35.5 | AC136: 34.5 | AD136: =IF(AD$125="",AC136-1,MIN(AC136-1,AD$125)) -> 33.5 | AE136: =MAX(AD136-1,0) -> 32.5 | AF136: 31.5 | AG136: 30.5 | AH136: 29.5
A137: =ROW() -> 137 | C137: Compression | I137: =Inputs!D47 -> 19.60073141 | J137: =MAX(I137-1,0) -> 18.60073141 | K137: 17.60073141 | L137: 16.60073141 | M137: 15.60073141 | N137: 14.60073141 | O137: 13.60073141 | P137: 12.60073141 | Q137: 11.60073141 | R137: 10.60073141 | S137: 9.600731411 | T137: 8.600731411 | U137: 7.600731411 | V137: 6.600731411 | W137: 5.600731411 | X137: 4.600731411 | Y137: 3.600731411 | Z137: 2.600731411 | AA137: 1.600731411 | AB137: 0.6007314111 | AC137: 0 | AD137: 0 | AE137: 0 | AF137: 0 | AG137: 0 | AH137: 0
A138: =ROW() -> 138 | C138: Metering | I138: =Inputs!D48 -> 38.50225195 | J138: 37.50225195 | K138: 36.50225195 | L138: 35.50225195 | M138: 34.50225195 | N138: 33.50225195 | O138: 32.50225195 | P138: 31.50225195 | Q138: 30.50225195 | R138: 29.50225195 | S138: 28.50225195 | T138: 27.50225195 | U138: 26.50225195 | V138: 25.50225195 | W138: 24.50225195 | X138: 23.50225195 | Y138: 22.50225195 | Z138: 21.50225195 | AA138: 20.50225195 | AB138: 19.50225195 | AC138: 18.50225195 | AD138: =IF(AD135="",MAX(0,1),Inputs!$D$48-(AC$6-$I$6+1)) -> 1 | AE138: 0 | AF138: 0 | AG138: 0 | AH138: 0
A139: =ROW() -> 139 | C139: Other Depreciable | I139: =Inputs!D49 -> 16.85 | J139: 15.85 | K139: 14.85 | L139: 13.85 | M139: 12.85 | N139: 11.85 | O139: 10.85 | P139: 9.85 | Q139: 8.85 | R139: 7.85 | S139: 6.85 | T139: 5.85 | U139: 4.85 | V139: 3.85 | W139: 2.85 | X139: 1.85 | Y139: 0.85 | Z139: 0 | AA139: 0 | AB139: 0 | AC139: 0 | AD139: 0 | AE139: 0 | AF139: 0 | AG139: 0 | AH139: 0
A140: =ROW() -> 140 | C140: Computers and Motor Vehicles | I140: =Inputs!D50 -> 0 | J140: 0 | K140: 0 | L140: 0 | M140: 0 | N140: 0 | O140: 0 | P140: 0 | Q140: 0 | R140: 0 | S140: 0 | T140: 0 | U140: 0 | V140: 0 | W140: 0 | X140: 0 | Y140: 0 | Z140: 0 | AA140: 0 | AB140: 0 | AC140: 0 | AD140: 0 | AE140: 0 | AF140: 0 | AG140: 0 | AH140: 0
A141: =ROW() -> 141 | C141: Cathodic/Corrosion Protection | I141: =Inputs!D51 -> 0 | J141: 0 | K141: 0 | L141: 0 | M141: 0 | N141: 0 | O141: 0 | P141: 0 | Q141: 0 | R141: 0 | S141: 0 | T141: 0 | U141: 0 | V141: 0 | W141: 0 | X141: 0 | Y141: 0 | Z141: 0 | AA141: 0 | AB141: 0 | AC141: 0 | AD141: 0 | AE141: 0 | AF141: 0 | AG141: 0 | AH141: 0
A142: =ROW() -> 142 | C142: SCADA , ECI And Comms | I142: =Inputs!D52 -> 0 | J142: 0 | K142: 0 | L142: 0 | M142: 0 | N142: 0 | O142: 0 | P142: 0 | Q142: 0 | R142: 0 | S142: 0 | T142: 0 | U142: 0 | V142: 0 | W142: 0 | X142: 0 | Y142: 0 | Z142: 0 | AA142: 0 | AB142: 0 | AC142: 0 | AD142: 0 | AE142: 0 | AF142: 0 | AG142: 0 | AH142: 0
A143: =ROW() -> 143 | C143: Non-Depreciable
A144: =ROW() -> 144 | C144: Cost of Raising Equity
A145: =ROW() -> 145
A146: =ROW() -> 146 | B146: Opening Value
A147: =ROW() -> 147 | C147: Pipeline | I147: =H180 -> 2126.082083 | J147: 2087.071403 | K147: 2048.060722 | L147: 2009.050042 | M147: 1970.039362 | N147: 1931.028681 | O147: 1892.018001 | P147: 1853.00732 | Q147: 1813.99664 | R147: 1774.985959 | S147: 1735.975279 | T147: 1696.964599 | U147: 1657.953918 | V147: 1618.943238 | W147: 1579.932557 | X147: 1540.921877 | Y147: =X180 -> 1501.911196 | Z147: 1462.900516 | AA147: 1423.889836 | AB147: 1384.879155 | AC147: 1345.868475 | AD147: 1306.857794 | AE147: 1267.847114 | AF147: 1228.836433 | AG147: 1189.825753 | AH147: 1150.815073
A148: =ROW() -> 148 | C148: Compression | I148: 356.1635421 | J148: 337.1420035 | K148: 318.1204649 | L148: 299.0989263 | M148: 280.0773876 | N148: 261.055849 | O148: 237.8164482 | P148: 219.9368063 | Q148: 202.0571644 | R148: 184.1775226 | S148: 166.2978807 | T148: 148.4182388 | U148: 131.1606439 | V148: 113.9041768 | W148: 96.64770966 | X148: 79.39124254 | Y148: 62.13477542 | Z148: 44.87862151 | AA148: 27.6224676 | AB148: 10.36631369 | AC148: 0 | AD148: 0 | AE148: 0 | AF148: 0 | AG148: 0 | AH148: 0
A149: =ROW() -> 149 | C149: Metering | I149: 29.20819445 | J149: 28.43966222 | K149: 27.67112999 | L149: 26.90259776 | M149: 26.13406552 | N149: 25.36553329 | O149: 24.60840409 | P149: 23.85127489 | Q149: 23.09414569 | R149: 22.33701648 | S149: 21.57988728 | T149: 20.82275808 | U149: 20.06562888 | V149: 19.30849967 | W149: 18.55137047 | X149: 17.76638998 | Y149: 17.00926078 | Z149: 16.25336929 | AA149: 15.4974778 | AB149: 14.74158631 | AC149: 13.98569482 | AD149: 13.22980332 | AE149: 0 | AF149: 0 | AG149: 0 | AH149: 0
A150: =ROW() -> 150 | C150: Other Depreciable | I150: 80.21659485 | J150: 75.45596607 | K150: 70.6953373 | L150: 65.93470852 | M150: 61.17407975 | N150: 56.41345098 | O150: 51.5567105 | P150: 46.79608173 | Q150: 41.9934075 | R150: 37.20100839 | S150: 32.3389346 | T150: 27.56501124 | U150: 20.8330494 | V150: 16.09248345 | W150: 11.34186396 | X150: 6.629896222 | Y150: 1.917928488 | Z150: 0 | AA150: 0 | AB150: 0 | AC150: 0 | AD150: 0 | AE150: 0 | AF150: 0 | AG150: 0 | AH150: 0
A151: =ROW() -> 151 | C151: Computers and Motor Vehicles | I151: 0 | J151: 0 | K151: 0 | L151: 0 | M151: 0 | N151: 0 | O151: 0 | P151: 0 | Q151: 0 | R151: 0 | S151: 0 | T151: 0 | U151: 0 | V151: 0 | W151: 0 | X151: 0 | Y151: 0 | Z151: 0 | AA151: 0 | AB151: 0 | AC151: 0 | AD151: 0 | AE151: 0 | AF151: 0 | AG151: 0 | AH151: 0
A152: =ROW() -> 152 | C152: Cathodic/Corrosion Protection | I152: 0 | J152: 0 | K152: 0 | L152: 0 | M152: 0 | N152: 0 | O152: 0 | P152: 0 | Q152: 0 | R152: 0 | S152: 0 | T152: 0 | U152: 0 | V152: 0 | W152: 0 | X152: 0 | Y152: 0 | Z152: 0 | AA152: 0 | AB152: 0 | AC152: 0 | AD152: 0 | AE152: 0 | AF152: 0 | AG152: 0 | AH152: 0
A153: =ROW() -> 153 | C153: SCADA , ECI And Comms | I153: 0 | J153: 0 | K153: 0 | L153: 0 | M153: 0 | N153: 0 | O153: 0 | P153: 0 | Q153: 0 | R153: 0 | S153: 0 | T153: 0 | U153: 0 | V153: 0 | W153: 0 | X153: 0 | Y153: 0 | Z153: 0 | AA153: 0 | AB153: 0 | AC153: 0 | AD153: 0 | AE153: 0 | AF153: 0 | AG153: 0 | AH153: 0
A154: =ROW() -> 154 | C154: Non-Depreciable | I154: 17.23264518 | J154: 17.23264518 | K154: 17.23264518 | L154: 17.23264518 | M154: 17.23264518 | N154: 17.23264518 | O154: 14.32805182 | P154: 14.32805182 | Q154: 14.32805182 | R154: 14.32805182 | S154: 14.32805182 | T154: 14.32805182 | U154: 14.32805182 | V154: 14.32805182 | W154: 14.32805182 | X154: 14.32805182 | Y154: 14.32805182 | Z154: 14.32805182 | AA154: 14.32805182 | AB154: 14.32805182 | AC154: 14.32805182 | AD154: 14.32805182 | AE154: 14.32805182 | AF154: 14.32805182 | AG154: 14.32805182 | AH154: 14.32805182
A155: =ROW() -> 155 | C155: Cost of Raising Equity | I155: 0 | J155: 0 | K155: 0 | L155: 0 | M155: 0 | N155: 0 | O155: 0 | P155: 0 | Q155: 0 | R155: 0 | S155: 0 | T155: 0 | U155: 0 | V155: 0 | W155: 0 | X155: 0 | Y155: 0 | Z155: 0 | AA155: 0 | AB155: 0 | AC155: 0 | AD155: 0 | AE155: 0 | AF155: 0 | AG155: 0 | AH155: 0
A156: =ROW() -> 156 | C156: Total | I156: =SUM(I147:I155) -> 2608.90306 | J156: =SUM(J147:J155) -> 2545.34168 | K156: 2481.7803 | L156: 2418.21892 | M156: 2354.65754 | N156: 2291.09616 | O156: 2220.327615 | P156: 2157.919535 | Q156: 2095.469409 | R156: 2033.029559 | S156: 1970.520033 | T156: 1908.098659 | U156: 1844.341292 | V156: 1782.576449 | W156: 1720.801553 | X156: 1659.037457 | Y156: 1597.301213 | Z156: 1538.360559 | AA156: 1481.337833 | AB156: 1424.315107 | AC156: 1374.182221 | AD156: 1334.41565 | AE156: 1282.175166 | AF156: 1243.164485 | AG156: 1204.153805 | AH156: 1165.143124
A157: =ROW() -> 157 | B157: Redundant & Disposed Asset
A158: =ROW() -> 158 | C158: Pipeline | I158: =-Inputs!I269 -> 0 | J158: =-Inputs!J269 -> 0 | K158: =-Inputs!K269 -> 0 | L158: =-Inputs!L269 -> 0 | M158: =-Inputs!M269 -> 0 | N158: =-Inputs!N269 -> 0 | O158: =-Inputs!O269 -> 0 | P158: =-Inputs!P269 -> 0 | Q158: =-Inputs!Q269 -> 0 | R158: =-Inputs!R269 -> 0 | S158: =-Inputs!S269 -> 0 | T158: =-Inputs!T269 -> 0 | U158: =-Inputs!U269 -> 0 | V158: =-Inputs!V269 -> 0 | W158: =-Inputs!W269 -> 0 | X158: =-Inputs!X269 -> 0 | Y158: =-Inputs!Y269 -> 0 | Z158: =-Inputs!Z269 -> 0 | AA158: =-Inputs!AA269 -> 0 | AB158: =-Inputs!AB269 -> 0 | AC158: =-Inputs!AC269 -> 0 | AD158: =-Inputs!AD269 -> 0 | AE158: =-Inputs!AE269 -> 0 | AF158: =-Inputs!AF269 -> 0 | AG158: =-Inputs!AG269 -> 0 | AH158: =-Inputs!AH269 -> 0
A159: =ROW() -> 159 | C159: Compression | I159: =-Inputs!I270 -> 0 | J159: =-Inputs!J270 -> 0 | K159: =-Inputs!K270 -> 0 | L159: =-Inputs!L270 -> 0 | M159: =-Inputs!M270 -> 0 | N159: =-Inputs!N270 -> -5.359758893 | O159: =-Inputs!O270 -> 0 | P159: =-Inputs!P270 -> 0 | Q159: =-Inputs!Q270 -> 0 | R159: =-Inputs!R270 -> 0 | S159: =-Inputs!S270 -> 0 | T159: =-Inputs!T270 -> -0.001127763862 | U159: =-Inputs!U270 -> 0 | V159: =-Inputs!V270 -> 0 | W159: =-Inputs!W270 -> 0 | X159: =-Inputs!X270 -> 0 | Y159: =-Inputs!Y270 -> 0 | Z159: =-Inputs!Z270 -> 0 | AA159: =-Inputs!AA270 -> 0 | AB159: =-Inputs!AB270 -> 0 | AC159: =-Inputs!AC270 -> 0 | AD159: =-Inputs!AD270 -> 0 | AE159: =-Inputs!AE270 -> 0 | AF159: =-Inputs!AF270 -> 0 | AG159: =-Inputs!AG270 -> 0 | AH159: =-Inputs!AH270 -> 0
A160: =ROW() -> 160 | C160: Metering | I160: =-Inputs!I271 -> 0 | J160: =-Inputs!J271 -> 0 | K160: =-Inputs!K271 -> 0 | L160: =-Inputs!L271 -> 0 | M160: =-Inputs!M271 -> 0 | N160: =-Inputs!N271 -> 0 | O160: =-Inputs!O271 -> 0 | P160: =-Inputs!P271 -> 0 | Q160: =-Inputs!Q271 -> 0 | R160: =-Inputs!R271 -> 0 | S160: =-Inputs!S271 -> 0 | T160: =-Inputs!T271 -> 0 | U160: =-Inputs!U271 -> 0 | V160: =-Inputs!V271 -> 0 | W160: =-Inputs!W271 -> -0.02785128631 | X160: =-Inputs!X271 -> 0 | Y160: =-Inputs!Y271 -> 0 | Z160: =-Inputs!Z271 -> 0 | AA160: =-Inputs!AA271 -> 0 | AB160: =-Inputs!AB271 -> 0 | AC160: =-Inputs!AC271 -> 0 | AD160: =-Inputs!AD271 -> 0 | AE160: =-Inputs!AE271 -> 0 | AF160: =-Inputs!AF271 -> 0 | AG160: =-Inputs!AG271 -> 0 | AH160: =-Inputs!AH271 -> 0
A161: =ROW() -> 161 | C161: Other Depreciable | I161: =-Inputs!I272 -> 0 | J161: =-Inputs!J272 -> 0 | K161: =-Inputs!K272 -> 0 | L161: =-Inputs!L272 -> 0 | M161: =-Inputs!M272 -> 0 | N161: =-Inputs!N272 -> -0.09611170235 | O161: =-Inputs!O272 -> 0 | P161: =-Inputs!P272 -> -0.04204545337 | Q161: =-Inputs!Q272 -> -0.03177033202 | R161: =-Inputs!R272 -> -0.1014450127 | S161: =-Inputs!S272 -> -0.01329458569 | T161: =-Inputs!T272 -> -2.019994105 | U161: =-Inputs!U272 -> -0.02859822127 | V161: =-Inputs!V272 -> -0.03865175955 | W161: =-Inputs!W272 -> 0 | X161: =-Inputs!X272 -> 0 | Y161: =-Inputs!Y272 -> 0 | Z161: =-Inputs!Z272 -> 0 | AA161: =-Inputs!AA272 -> 0 | AB161: =-Inputs!AB272 -> 0 | AC161: =-Inputs!AC272 -> 0 | AD161: =-Inputs!AD272 -> 0 | AE161: =-Inputs!AE272 -> 0 | AF161: =-Inputs!AF272 -> 0 | AG161: =-Inputs!AG272 -> 0 | AH161: =-Inputs!AH272 -> 0
A162: =ROW() -> 162 | C162: Computers and Motor Vehicles | I162: =-Inputs!I273 -> 0 | J162: =-Inputs!J273 -> 0 | K162: =-Inputs!K273 -> 0 | L162: =-Inputs!L273 -> 0 | M162: =-Inputs!M273 -> 0 | N162: =-Inputs!N273 -> 0 | O162: =-Inputs!O273 -> 0 | P162: =-Inputs!P273 -> 0 | Q162: =-Inputs!Q273 -> 0 | R162: =-Inputs!R273 -> 0 | S162: =-Inputs!S273 -> 0 | T162: =-Inputs!T273 -> 0 | U162: =-Inputs!U273 -> 0 | V162: =-Inputs!V273 -> 0 | W162: =-Inputs!W273 -> 0 | X162: =-Inputs!X273 -> 0 | Y162: =-Inputs!Y273 -> 0 | Z162: =-Inputs!Z273 -> 0 | AA162: =-Inputs!AA273 -> 0 | AB162: =-Inputs!AB273 -> 0 | AC162: =-Inputs!AC273 -> 0 | AD162: =-Inputs!AD273 -> 0 | AE162: =-Inputs!AE273 -> 0 | AF162: =-Inputs!AF273 -> 0 | AG162: =-Inputs!AG273 -> 0 | AH162: =-Inputs!AH273 -> 0
A163: =ROW() -> 163 | C163: Cathodic/Corrosion Protection | I163: =-Inputs!I274 -> 0 | J163: =-Inputs!J274 -> 0 | K163: =-Inputs!K274 -> 0 | L163: =-Inputs!L274 -> 0 | M163: =-Inputs!M274 -> 0 | N163: =-Inputs!N274 -> 0 | O163: =-Inputs!O274 -> 0 | P163: =-Inputs!P274 -> 0 | Q163: =-Inputs!Q274 -> 0 | R163: =-Inputs!R274 -> 0 | S163: =-Inputs!S274 -> 0 | T163: =-Inputs!T274 -> 0 | U163: =-Inputs!U274 -> 0 | V163: =-Inputs!V274 -> 0 | W163: =-Inputs!W274 -> 0 | X163: =-Inputs!X274 -> 0 | Y163: =-Inputs!Y274 -> 0 | Z163: =-Inputs!Z274 -> 0 | AA163: =-Inputs!AA274 -> 0 | AB163: =-Inputs!AB274 -> 0 | AC163: =-Inputs!AC274 -> 0 | AD163: =-Inputs!AD274 -> 0 | AE163: =-Inputs!AE274 -> 0 | AF163: =-Inputs!AF274 -> 0 | AG163: =-Inputs!AG274 -> 0 | AH163: =-Inputs!AH274 -> 0
A164: =ROW() -> 164 | C164: SCADA , ECI And Comms | I164: =-Inputs!I275 -> 0 | J164: =-Inputs!J275 -> 0 | K164: =-Inputs!K275 -> 0 | L164: =-Inputs!L275 -> 0 | M164: =-Inputs!M275 -> 0 | N164: =-Inputs!N275 -> 0 | O164: =-Inputs!O275 -> 0 | P164: =-Inputs!P275 -> 0 | Q164: =-Inputs!Q275 -> 0 | R164: =-Inputs!R275 -> 0 | S164: =-Inputs!S275 -> 0 | T164: =-Inputs!T275 -> 0 | U164: =-Inputs!U275 -> 0 | V164: =-Inputs!V275 -> 0 | W164: =-Inputs!W275 -> 0 | X164: =-Inputs!X275 -> 0 | Y164: =-Inputs!Y275 -> 0 | Z164: =-Inputs!Z275 -> 0 | AA164: =-Inputs!AA275 -> 0 | AB164: =-Inputs!AB275 -> 0 | AC164: =-Inputs!AC275 -> 0 | AD164: =-Inputs!AD275 -> 0 | AE164: =-Inputs!AE275 -> 0 | AF164: =-Inputs!AF275 -> 0 | AG164: =-Inputs!AG275 -> 0 | AH164: =-Inputs!AH275 -> 0
A165: =ROW() -> 165 | C165: Non-Depreciable | I165: =-Inputs!I276 -> 0 | J165: =-Inputs!J276 -> 0 | K165: =-Inputs!K276 -> 0 | L165: =-Inputs!L276 -> 0 | M165: =-Inputs!M276 -> 0 | N165: =-Inputs!N276 -> -2.90459336 | O165: =-Inputs!O276 -> 0 | P165: =-Inputs!P276 -> 0 | Q165: =-Inputs!Q276 -> 0 | R165: =-Inputs!R276 -> 0 | S165: =-Inputs!S276 -> 0 | T165: =-Inputs!T276 -> 0 | U165: =-Inputs!U276 -> 0 | V165: =-Inputs!V276 -> 0 | W165: =-Inputs!W276 -> 0 | X165: =-Inputs!X276 -> 0 | Y165: =-Inputs!Y276 -> 0 | Z165: =-Inputs!Z276 -> 0 | AA165: =-Inputs!AA276 -> 0 | AB165: =-Inputs!AB276 -> 0 | AC165: =-Inputs!AC276 -> 0 | AD165: =-Inputs!AD276 -> 0 | AE165: =-Inputs!AE276 -> 0 | AF165: =-Inputs!AF276 -> 0 | AG165: =-Inputs!AG276 -> 0 | AH165: =-Inputs!AH276 -> 0
A166: =ROW() -> 166 | C166: Cost of Raising Equity | I166: =-Inputs!I277 -> 0 | J166: =-Inputs!J277 -> 0 | K166: =-Inputs!K277 -> 0 | L166: =-Inputs!L277 -> 0 | M166: =-Inputs!M277 -> 0 | N166: =-Inputs!N277 -> 0 | O166: =-Inputs!O277 -> 0 | P166: =-Inputs!P277 -> 0 | Q166: =-Inputs!Q277 -> 0 | R166: =-Inputs!R277 -> 0 | S166: =-Inputs!S277 -> 0 | T166: =-Inputs!T277 -> 0 | U166: =-Inputs!U277 -> 0 | V166: =-Inputs!V277 -> 0 | W166: =-Inputs!W277 -> 0 | X166: =-Inputs!X277 -> 0 | Y166: =-Inputs!Y277 -> 0 | Z166: =-Inputs!Z277 -> 0 | AA166: =-Inputs!AA277 -> 0 | AB166: =-Inputs!AB277 -> 0 | AC166: =-Inputs!AC277 -> 0 | AD166: =-Inputs!AD277 -> 0 | AE166: =-Inputs!AE277 -> 0 | AF166: =-Inputs!AF277 -> 0 | AG166: =-Inputs!AG277 -> 0 | AH166: =-Inputs!AH277 -> 0
A167: =ROW() -> 167 | C167: Total | I167: =SUM(I158:I166) -> 0 | J167: 0 | K167: 0 | L167: 0 | M167: 0 | N167: -8.360463955 | O167: 0 | P167: -0.04204545337 | Q167: -0.03177033202 | R167: -0.1014450127 | S167: -0.01329458569 | T167: -2.021121869 | U167: -0.02859822127 | V167: -0.03865175955 | W167: -0.02785128631 | X167: 0 | Y167: 0 | Z167: 0 | AA167: 0 | AB167: 0 | AC167: 0 | AD167: 0 | AE167: 0 | AF167: 0 | AG167: 0 | AH167: 0
A168: =ROW() -> 168 | B168: Depreciation | Z168: =Z150/($H172-(Z$8-1)) -> 0 | AE168: =AE150/($H172-(AE$8-1)) -> 0
A169: =ROW() -> 169 | C169: Pipeline | I169: =-Inputs!I212 -> -39.01068043 | J169: =-Inputs!J212 -> -39.01068043 | K169: =-Inputs!K212 -> -39.01068043 | L169: =-Inputs!L212 -> -39.01068043 | M169: =-Inputs!M212 -> -39.01068043 | N169: =-Inputs!N212 -> -39.01068043 | O169: =-Inputs!O212 -> -39.01068043 | P169: =-Inputs!P212 -> -39.01068043 | Q169: =-Inputs!Q212 -> -39.01068043 | R169: =-Inputs!R212 -> -39.01068043 | S169: =-Inputs!S212 -> -39.01068043 | T169: =-Inputs!T212 -> -39.01068043 | U169: =-Inputs!U212 -> -39.01068043 | V169: =-Inputs!V212 -> -39.01068043 | W169: =-Inputs!W212 -> -39.01068043 | X169: =-Inputs!X212 -> -39.01068043 | Y169: =-Inputs!Y212 -> -39.01068043 | Z169: =-Inputs!Z212 -> -39.01068043 | AA169: =-Inputs!AA212 -> -39.01068043 | AB169: =-Inputs!AB212 -> -39.01068043 | AC169: =-Inputs!AC212 -> -39.01068043 | AD169: =IF(AD136<=0,0,-MIN(IF(AD147/AD136>AD147,AD147,AD147/AD136),AD147)) -> -39.01068043 | AE169: -39.01068043 | AF169: -39.01068043 | AG169: -39.01068043 | AH169: -39.01068043
A170: =ROW() -> 170 | C170: Compression | I170: =-Inputs!I213 -> -19.02153862 | J170: =-Inputs!J213 -> -19.02153862 | K170: =-Inputs!K213 -> -19.02153862 | L170: =-Inputs!L213 -> -19.02153862 | M170: =-Inputs!M213 -> -19.02153862 | N170: =-Inputs!N213 -> -17.87964189 | O170: =-Inputs!O213 -> -17.87964189 | P170: =-Inputs!P213 -> -17.87964189 | Q170: =-Inputs!Q213 -> -17.87964189 | R170: =-Inputs!R213 -> -17.87964189 | S170: =-Inputs!S213 -> -17.87964189 | T170: =-Inputs!T213 -> -17.25646712 | U170: =-Inputs!U213 -> -17.25646712 | V170: =-Inputs!V213 -> -17.25646712 | W170: =-Inputs!W213 -> -17.25646712 | X170: =-Inputs!X213 -> -17.25646712 | Y170: =-Inputs!Y213 -> -17.25615391 | Z170: =-Inputs!Z213 -> -17.25615391 | AA170: =-Inputs!AA213 -> -17.25615391 | AB170: =-Inputs!AB213 -> -10.36631369 | AC170: =-Inputs!AC213 -> 0 | AD170: 0 | AE170: 0 | AF170: 0 | AG170: 0 | AH170: 0
A171: =ROW() -> 171 | C171: Metering | I171: =-Inputs!I214 -> -0.7685322314 | J171: =-Inputs!J214 -> -0.7685322314 | K171: =-Inputs!K214 -> -0.7685322314 | L171: =-Inputs!L214 -> -0.7685322314 | M171: =-Inputs!M214 -> -0.7685322314 | N171: =-Inputs!N214 -> -0.7571292023 | O171: =-Inputs!O214 -> -0.7571292023 | P171: =-Inputs!P214 -> -0.7571292023 | Q171: =-Inputs!Q214 -> -0.7571292023 | R171: =-Inputs!R214 -> -0.7571292023 | S171: =-Inputs!S214 -> -0.7571292023 | T171: =-Inputs!T214 -> -0.7571292023 | U171: =-Inputs!U214 -> -0.7571292023 | V171: =-Inputs!V214 -> -0.7571292023 | W171: =-Inputs!W214 -> -0.7571292023 | X171: =-Inputs!X214 -> -0.7571292023 | Y171: =-Inputs!Y214 -> -0.7558914913 | Z171: =-Inputs!Z214 -> -0.7558914913 | AA171: =-Inputs!AA214 -> -0.7558914913 | AB171: =-Inputs!AB214 -> -0.7558914913 | AC171: =-Inputs!AC214 -> -0.7558914913 | AD171: -13.22980332 | AE171: 0 | AF171: 0 | AG171: 0 | AH171: 0
A172: =ROW() -> 172 | C172: Other Depreciable | I172: =-Inputs!I215 -> -4.760628774 | J172: =-Inputs!J215 -> -4.760628774 | K172: =-Inputs!K215 -> -4.760628774 | L172: =-Inputs!L215 -> -4.760628774 | M172: =-Inputs!M215 -> -4.760628774 | N172: =-Inputs!N215 -> -4.760628774 | O172: =-Inputs!O215 -> -4.760628774 | P172: =-Inputs!P215 -> -4.760628774 | Q172: =-Inputs!Q215 -> -4.760628774 | R172: =-Inputs!R215 -> -4.760628774 | S172: =-Inputs!S215 -> -4.760628774 | T172: =-Inputs!T215 -> -4.711967734 | U172: =-Inputs!U215 -> -4.711967734 | V172: =-Inputs!V215 -> -4.711967734 | W172: =-Inputs!W215 -> -4.711967734 | X172: =-Inputs!X215 -> -4.711967734 | Y172: =-Inputs!Y215 -> -1.917928488 | Z172: =-Inputs!Z215 -> 0 | AA172: =-Inputs!AA215 -> 0 | AB172: =-Inputs!AB215 -> 0 | AC172: =-Inputs!AC215 -> 0 | AD172: 0 | AE172: 0 | AF172: 0 | AG172: 0 | AH172: 0
A173: =ROW() -> 173 | C173: Computers and Motor Vehicles | I173: =-Inputs!I216 -> 0 | J173: =-Inputs!J216 -> 0 | K173: =-Inputs!K216 -> 0 | L173: =-Inputs!L216 -> 0 | M173: =-Inputs!M216 -> 0 | N173: =-Inputs!N216 -> 0 | O173: =-Inputs!O216 -> 0 | P173: =-Inputs!P216 -> 0 | Q173: =-Inputs!Q216 -> 0 | R173: =-Inputs!R216 -> 0 | S173: =-Inputs!S216 -> 0 | T173: =-Inputs!T216 -> 0 | U173: =-Inputs!U216 -> 0 | V173: =-Inputs!V216 -> 0 | W173: =-Inputs!W216 -> 0 | X173: =-Inputs!X216 -> 0 | Y173: =-Inputs!Y216 -> 0 | Z173: =-Inputs!Z216 -> 0 | AA173: =-Inputs!AA216 -> 0 | AB173: =-Inputs!AB216 -> 0 | AC173: =-Inputs!AC216 -> 0 | AD173: 0 | AE173: 0 | AF173: 0 | AG173: 0 | AH173: 0
A174: =ROW() -> 174 | C174: Cathodic/Corrosion Protection | I174: =-Inputs!I217 -> 0 | J174: =-Inputs!J217 -> 0 | K174: =-Inputs!K217 -> 0 | L174: =-Inputs!L217 -> 0 | M174: =-Inputs!M217 -> 0 | N174: =-Inputs!N217 -> 0 | O174: =-Inputs!O217 -> 0 | P174: =-Inputs!P217 -> 0 | Q174: =-Inputs!Q217 -> 0 | R174: =-Inputs!R217 -> 0 | S174: =-Inputs!S217 -> 0 | T174: =-Inputs!T217 -> 0 | U174: =-Inputs!U217 -> 0 | V174: =-Inputs!V217 -> 0 | W174: =-Inputs!W217 -> 0 | X174: =-Inputs!X217 -> 0 | Y174: =-Inputs!Y217 -> 0 | Z174: =-Inputs!Z217 -> 0 | AA174: =-Inputs!AA217 -> 0 | AB174: =-Inputs!AB217 -> 0 | AC174: =-Inputs!AC217 -> 0 | AD174: 0 | AE174: 0 | AF174: 0 | AG174: 0 | AH174: 0
A175: =ROW() -> 175 | C175: SCADA , ECI And Comms | I175: =-Inputs!I218 -> 0 | J175: =-Inputs!J218 -> 0 | K175: =-Inputs!K218 -> 0 | L175: =-Inputs!L218 -> 0 | M175: =-Inputs!M218 -> 0 | N175: =-Inputs!N218 -> 0 | O175: =-Inputs!O218 -> 0 | P175: =-Inputs!P218 -> 0 | Q175: =-Inputs!Q218 -> 0 | R175: =-Inputs!R218 -> 0 | S175: =-Inputs!S218 -> 0 | T175: =-Inputs!T218 -> 0 | U175: =-Inputs!U218 -> 0 | V175: =-Inputs!V218 -> 0 | W175: =-Inputs!W218 -> 0 | X175: =-Inputs!X218 -> 0 | Y175: =-Inputs!Y218 -> 0 | Z175: =-Inputs!Z218 -> 0 | AA175: =-Inputs!AA218 -> 0 | AB175: =-Inputs!AB218 -> 0 | AC175: =-Inputs!AC218 -> 0 | AD175: 0 | AE175: 0 | AF175: 0 | AG175: 0 | AH175: 0
A176: =ROW() -> 176 | C176: Non-Depreciable | I176: =-Inputs!I219 -> 0 | J176: =-Inputs!J219 -> 0 | K176: =-Inputs!K219 -> 0 | L176: =-Inputs!L219 -> 0 | M176: =-Inputs!M219 -> 0 | N176: =-Inputs!N219 -> 0 | O176: =-Inputs!O219 -> 0 | P176: =-Inputs!P219 -> 0 | Q176: =-Inputs!Q219 -> 0 | R176: =-Inputs!R219 -> 0 | S176: =-Inputs!S219 -> 0 | T176: =-Inputs!T219 -> 0 | U176: =-Inputs!U219 -> 0 | V176: =-Inputs!V219 -> 0 | W176: =-Inputs!W219 -> 0 | X176: =-Inputs!X219 -> 0 | Y176: =-Inputs!Y219 -> 0 | Z176: =-Inputs!Z219 -> 0 | AA176: =-Inputs!AA219 -> 0 | AB176: =-Inputs!AB219 -> 0 | AC176: =-Inputs!AC219 -> 0
A177: =ROW() -> 177 | C177: Cost of Raising Equity | I177: =-Inputs!I220 -> 0 | J177: =-Inputs!J220 -> 0 | K177: =-Inputs!K220 -> 0 | L177: =-Inputs!L220 -> 0 | M177: =-Inputs!M220 -> 0 | N177: =-Inputs!N220 -> 0 | O177: =-Inputs!O220 -> 0 | P177: =-Inputs!P220 -> 0 | Q177: =-Inputs!Q220 -> 0 | R177: =-Inputs!R220 -> 0 | S177: =-Inputs!S220 -> 0 | T177: =-Inputs!T220 -> 0 | U177: =-Inputs!U220 -> 0 | V177: =-Inputs!V220 -> 0 | W177: =-Inputs!W220 -> 0 | X177: =-Inputs!X220 -> 0 | Y177: =-Inputs!Y220 -> 0 | Z177: =-Inputs!Z220 -> 0 | AA177: =-Inputs!AA220 -> 0 | AB177: =-Inputs!AB220 -> 0 | AC177: =-Inputs!AC220 -> 0 | AD177: =IF(AD144<=0,0,-MIN(IF(AD155/AD144>AD155,AD155,AD155/AD144),AD155)) -> 0 | AE177: 0 | AF177: 0 | AG177: 0 | AH177: 0
A178: =ROW() -> 178 | C178: Total | I178: =SUM(I169:I177) -> -63.56138005 | J178: -63.56138005 | K178: -63.56138005 | L178: -63.56138005 | M178: -63.56138005 | N178: -62.4080803 | O178: -62.4080803 | P178: -62.4080803 | Q178: -62.4080803 | R178: -62.4080803 | S178: -62.4080803 | T178: -61.73624448 | U178: -61.73624448 | V178: -61.73624448 | W178: -61.73624448 | X178: -61.73624448 | Y178: -58.94065432 | Z178: -57.02272583 | AA178: -57.02272583 | AB178: -50.13288561 | AC178: -39.76657192 | AD178: -52.24048375 | AE178: -39.01068043 | AF178: -39.01068043 | AG178: -39.01068043 | AH178: -39.01068043
A179: =ROW() -> 179 | B179: Closing Value | H179: Check | I179: =IF(ROUND(I178+Inputs!I221,6)=0,"OK","Wrong") -> OK | J179: =IF(ROUND(J178+Inputs!J221,6)=0,"OK","Wrong") -> OK | K179: =IF(ROUND(K178+Inputs!K221,6)=0,"OK","Wrong") -> OK | L179: =IF(ROUND(L178+Inputs!L221,6)=0,"OK","Wrong") -> OK | M179: =IF(ROUND(M178+Inputs!M221,6)=0,"OK","Wrong") -> OK | N179: =IF(ROUND(N178+Inputs!N221,6)=0,"OK","Wrong") -> OK | O179: =IF(ROUND(O178+Inputs!O221,6)=0,"OK","Wrong") -> OK | P179: =IF(ROUND(P178+Inputs!P221,6)=0,"OK","Wrong") -> OK | Q179: =IF(ROUND(Q178+Inputs!Q221,6)=0,"OK","Wrong") -> OK | R179: =IF(ROUND(R178+Inputs!R221,6)=0,"OK","Wrong") -> OK | S179: =IF(ROUND(S178+Inputs!S221,6)=0,"OK","Wrong") -> OK | T179: =IF(ROUND(T178+Inputs!T221,6)=0,"OK","Wrong") -> OK | U179: =IF(ROUND(U178+Inputs!U221,6)=0,"OK","Wrong") -> OK | V179: =IF(ROUND(V178+Inputs!V221,6)=0,"OK","Wrong") -> OK | W179: =IF(ROUND(W178+Inputs!W221,6)=0,"OK","Wrong") -> OK | X179: =IF(ROUND(X178+Inputs!X221,6)=0,"OK","Wrong") -> OK | Y179: =IF(ROUND(Y178+Inputs!Y221,6)=0,"OK","Wrong") -> OK | Z179: =IF(ROUND(Z178+Inputs!Z221,6)=0,"OK","Wrong") -> OK | AA179: =IF(ROUND(AA178+Inputs!AA221,6)=0,"OK","Wrong") -> OK | AB179: =IF(ROUND(AB178+Inputs!AB221,6)=0,"OK","Wrong") -> OK | AC179: =IF(ROUND(AC178+Inputs!AC221,6)=0,"OK","Wrong") -> OK
A180: =ROW() -> 180 | C180: Pipeline | H180: =Inputs!H146 -> 2126.082083 | I180: =I147+I158+I169 -> 2087.071403 | J180: =J147+J158+J169 -> 2048.060722 | K180: 2009.050042 | L180: 1970.039362 | M180: 1931.028681 | N180: 1892.018001 | O180: 1853.00732 | P180: 1813.99664 | Q180: 1774.985959 | R180: 1735.975279 | S180: =(S147+S158+S169-S191)*(S147+S158+S169-S191>0) -> 1696.964599 | T180: =T147+T158+T169 -> 1657.953918 | U180: 1618.943238 | V180: 1579.932557 | W180: 1540.921877 | X180: 1501.911196 | Y180: =Y147+Y158+Y169 -> 1462.900516 | Z180: 1423.889836 | AA180: 1384.879155 | AB180: 1345.868475 | AC180: 1306.857794 | AD180: =AD147+AD158+AD169 -> 1267.847114 | AE180: =AE147+AE158+AE169 -> 1228.836433 | AF180: 1189.825753 | AG180: 1150.815073 | AH180: 1111.804392
A181: =ROW() -> 181 | C181: Compression | H181: =Inputs!H147 -> 356.1635421 | I181: =I148+I159+I170 -> 337.1420035 | J181: 318.1204649 | K181: 299.0989263 | L181: 280.0773876 | M181: 261.055849 | N181: 237.8164482 | O181: 219.9368063 | P181: 202.0571644 | Q181: 184.1775226 | R181: 166.2978807 | S181: =(S148+S159+S170-S192)*(S148+S159+S170-S192>0) -> 148.4182388 | T181: 131.1606439 | U181: 113.9041768 | V181: 96.64770966 | W181: 79.39124254 | X181: 62.13477542 | Y181: 44.87862151 | Z181: 27.6224676 | AA181: 10.36631369 | AB181: 0 | AC181: 0 | AD181: 0 | AE181: 0 | AF181: 0 | AG181: 0 | AH181: 0
A182: =ROW() -> 182 | C182: Metering | H182: =Inputs!H148 -> 29.20819445 | I182: =I149+I160+I171 -> 28.43966222 | J182: 27.67112999 | K182: 26.90259776 | L182: 26.13406552 | M182: 25.36553329 | N182: 24.60840409 | O182: 23.85127489 | P182: 23.09414569 | Q182: 22.33701648 | R182: 21.57988728 | S182: =(S149+S160+S171-S193)*(S149+S160+S171-S193>0) -> 20.82275808 | T182: 20.06562888 | U182: 19.30849967 | V182: 18.55137047 | W182: 17.76638998 | X182: 17.00926078 | Y182: 16.25336929 | Z182: 15.4974778 | AA182: 14.74158631 | AB182: 13.98569482 | AC182: 13.22980332 | AD182: 0 | AE182: 0 | AF182: 0 | AG182: 0 | AH182: 0
A183: =ROW() -> 183 | C183: Other Depreciable | H183: =Inputs!H149 -> 80.21659485 | I183: =I150+I161+I172 -> 75.45596607 | J183: 70.6953373 | K183: 65.93470852 | L183: 61.17407975 | M183: 56.41345098 | N183: 51.5567105 | O183: 46.79608173 | P183: 41.9934075 | Q183: 37.20100839 | R183: 32.3389346 | S183: =(S150+S161+S172-S194)*(S150+S161+S172-S194>0) -> 27.56501124 | T183: 20.8330494 | U183: 16.09248345 | V183: 11.34186396 | W183: 6.629896222 | X183: 1.917928488 | Y183: 0 | Z183: 0 | AA183: 0 | AB183: 0 | AC183: 0 | AD183: 0 | AE183: 0 | AF183: 0 | AG183: 0 | AH183: 0
A184: =ROW() -> 184 | C184: Computers and Motor Vehicles | H184: =Inputs!H150 -> 0 | I184: =I151+I162+I173 -> 0 | J184: 0 | K184: 0 | L184: 0 | M184: 0 | N184: 0 | O184: 0 | P184: 0 | Q184: 0 | R184: 0 | S184: =(S151+S162+S173-S195)*(S151+S162+S173-S195>0) -> 0 | T184: 0 | U184: 0 | V184: 0 | W184: 0 | X184: 0 | Y184: 0 | Z184: 0 | AA184: 0 | AB184: 0 | AC184: 0 | AD184: 0 | AE184: 0 | AF184: 0 | AG184: 0 | AH184: 0
A185: =ROW() -> 185 | C185: Cathodic/Corrosion Protection | H185: =Inputs!H151 -> 0 | I185: 0 | J185: 0 | K185: 0 | L185: 0 | M185: 0 | N185: 0 | O185: 0 | P185: 0 | Q185: 0 | R185: 0 | S185: 0 | T185: 0 | U185: 0 | V185: 0 | W185: 0 | X185: 0 | Y185: 0 | Z185: 0 | AA185: 0 | AB185: 0 | AC185: 0 | AD185: 0 | AE185: 0 | AF185: 0 | AG185: 0 | AH185: 0
A186: =ROW() -> 186 | C186: SCADA , ECI And Comms | H186: =Inputs!H152 -> 0 | I186: 0 | J186: 0 | K186: 0 | L186: 0 | M186: 0 | N186: 0 | O186: 0 | P186: 0 | Q186: 0 | R186: 0 | S186: 0 | T186: 0 | U186: 0 | V186: 0 | W186: 0 | X186: 0 | Y186: 0 | Z186: 0 | AA186: 0 | AB186: 0 | AC186: 0 | AD186: 0 | AE186: 0 | AF186: 0 | AG186: 0 | AH186: 0
A187: =ROW() -> 187 | C187: Non-Depreciable | H187: =Inputs!H153 -> 17.23264518 | I187: =I154+I165+I176 -> 17.23264518 | J187: 17.23264518 | K187: 17.23264518 | L187: 17.23264518 | M187: 17.23264518 | N187: 14.32805182 | O187: 14.32805182 | P187: 14.32805182 | Q187: 14.32805182 | R187: 14.32805182 | S187: =(S154+S165+S176-S198)*(S154+S165+S176-S198>0) -> 14.32805182 | T187: 14.32805182 | U187: 14.32805182 | V187: 14.32805182 | W187: 14.32805182 | X187: 14.32805182 | Y187: 14.32805182 | Z187: 14.32805182 | AA187: 14.32805182 | AB187: 14.32805182 | AC187: 14.32805182 | AD187: 14.32805182 | AE187: 14.32805182 | AF187: 14.32805182 | AG187: 14.32805182 | AH187: 14.32805182
A188: =ROW() -> 188 | C188: Cost of Raising Equity | H188: =Inputs!H154 -> 0 | I188: =I155+I166+I177 -> 0 | J188: 0 | K188: 0 | L188: 0 | M188: 0 | N188: 0 | O188: 0 | P188: 0 | Q188: 0 | R188: 0 | S188: =(S155+S166+S177-S199)*(S155+S166+S177-S199>0) -> 0 | T188: 0 | U188: 0 | V188: 0 | W188: 0 | X188: 0 | Y188: 0 | Z188: 0 | AA188: 0 | AB188: 0 | AC188: 0 | AD188: 0 | AE188: 0 | AF188: 0 | AG188: 0 | AH188: 0
A189: =ROW() -> 189 | C189: Total | H189: =SUM(H180:H188) -> 2608.90306 | I189: 2545.34168 | J189: =SUM(J180:J188) -> 2481.7803 | K189: 2418.21892 | L189: 2354.65754 | M189: 2291.09616 | N189: 2220.327615 | O189: 2157.919535 | P189: 2095.469409 | Q189: 2033.029559 | R189: 1970.520033 | S189: 1908.098659 | T189: 1844.341292 | U189: 1782.576449 | V189: 1720.801553 | W189: 1659.037457 | X189: 1597.301213 | Y189: 1538.360559 | Z189: 1481.337833 | AA189: 1424.315107 | AB189: 1374.182221 | AC189: 1334.41565 | AD189: 1282.175166 | AE189: 1243.164485 | AF189: 1204.153805 | AG189: 1165.143124 | AH189: 1126.132444
A190: =ROW() -> 190 | B190: Over Depreciation | G190: Check | H190: =IF(ROUND(H189-Inputs!H177,6)=0,"OK","Wrong") -> OK | I190: =IF(ROUND(I189-Inputs!I177,6)=0,"OK","Wrong") -> OK | J190: =IF(ROUND(J189-Inputs!J177,6)=0,"OK","Wrong") -> OK | K190: =IF(ROUND(K189-Inputs!K177,6)=0,"OK","Wrong") -> OK | L190: =IF(ROUND(L189-Inputs!L177,6)=0,"OK","Wrong") -> OK | M190: =IF(ROUND(M189-Inputs!M177,6)=0,"OK","Wrong") -> OK
A191: =ROW() -> 191 | C191: Pipeline | H191: =H189-Inputs!H177 -> 0 | I191: =I189-Inputs!I177 -> 0 | J191: =J189-Inputs!J177 -> 0 | K191: =K189-Inputs!K177 -> 0 | L191: =L189-Inputs!L177 -> 0 | M191: =M189-Inputs!M177 -> 0 | S191: =(S147+S158+S169)*(S147+S158+S169<0) -> 0
A192: =ROW() -> 192 | C192: Compression | S192: =(S148+S159+S170)*(S148+S159+S170<0) -> 0
A193: =ROW() -> 193 | C193: Metering | S193: =(S149+S160+S171)*(S149+S160+S171<0) -> 0
A194: =ROW() -> 194 | C194: Other Depreciable | S194: =(S150+S161+S172)*(S150+S161+S172<0) -> 0
A195: =ROW() -> 195 | C195: Computers and Motor Vehicles | S195: =(S151+S162+S173)*(S151+S162+S173<0) -> 0
A196: =ROW() -> 196 | C196: Cathodic/Corrosion Protection | S196: 0
A197: =ROW() -> 197 | C197: SCADA , ECI And Comms | S197: 0
A198: =ROW() -> 198 | C198: Non-Depreciable | S198: =(S154+S165+S176)*(S154+S165+S176<0) -> 0
A199: =ROW() -> 199 | C199: Cost of Raising Equity | S199: =(S155+S166+S177)*(S155+S166+S177<0) -> 0
A200: =ROW() -> 200 | C200: Total | S200: =SUM(S191:S198) -> 0
A201: =ROW() -> 201
... 2124 more rows

Sheet Asset_NoReclass
A1: =Main!A1 -> ERA, DBNGP Tariff Model, Draft Decision, August 2020 | N1: Asset base before asset reclassification
A2: Asset
A3: Ref. | B3: =COLUMN() -> 2 | C3: =COLUMN() -> 3 | D3: =COLUMN() -> 4 | E3: =COLUMN() -> 5 | F3: =COLUMN() -> 6 | G3: =COLUMN() -> 7 | H3: =COLUMN() -> 8 | I3: =COLUMN() -> 9 | J3: =COLUMN() -> 10 | K3: =COLUMN() -> 11 | L3: =COLUMN() -> 12 | M3: =COLUMN() -> 13 | N3: =COLUMN() -> 14 | O3: =COLUMN() -> 15 | P3: =COLUMN() -> 16 | Q3: =COLUMN() -> 17 | R3: =COLUMN() -> 18 | S3: =COLUMN() -> 19 | T3: =COLUMN() -> 20 | U3: =COLUMN() -> 21 | V3: =COLUMN() -> 22 | W3: =COLUMN() -> 23 | X3: =COLUMN() -> 24 | Y3: =COLUMN() -> 25 | Z3: =COLUMN() -> 26 | AA3: =COLUMN() -> 27 | AB3: =COLUMN() -> 28 | AC3: =COLUMN() -> 29
A5: Regulatory Period | I5: =Inputs!I$5 -> AA1 | J5: =Inputs!J$5 -> AA1 | K5: =Inputs!K$5 -> AA1 | L5: =Inputs!L$5 -> AA1 | M5: =Inputs!M$5 -> AA1 | N5: =Inputs!N$5 -> AA2 | O5: =Inputs!O$5 -> AA2 | P5: =Inputs!P$5 -> AA2 | Q5: =Inputs!Q$5 -> AA2 | R5: =Inputs!R$5 -> AA2 | S5: =Inputs!S$5 -> AA2 | T5: =Inputs!T$5 -> AA3 | U5: =Inputs!U$5 -> AA3 | V5: =Inputs!V$5 -> AA3 | W5: =Inputs!W$5 -> AA3 | X5: =Inputs!X$5 -> AA3 | Y5: =Inputs!Y$5 -> AA4 | Z5: =Inputs!Z$5 -> AA4 | AA5: =Inputs!AA$5 -> AA4 | AB5: =Inputs!AB$5 -> AA4 | AC5: =Inputs!AC$5 -> AA4
A6: Year | H6: =Inputs!H$6 -> 1999 | I6: =Inputs!I$6 -> 2000 | J6: =Inputs!J$6 -> 2001 | K6: =Inputs!K$6 -> 2002 | L6: =Inputs!L$6 -> 2003 | M6: =Inputs!M$6 -> 2004 | N6: =Inputs!N$6 -> 2005 | O6: =Inputs!O$6 -> 2006 | P6: =Inputs!P$6 -> 2007 | Q6: =Inputs!Q$6 -> 2008 | R6: =Inputs!R$6 -> 2009 | S6: =Inputs!S$6 -> 2010 | T6: =Inputs!T$6 -> 2011 | U6: =Inputs!U$6 -> 2012 | V6: =Inputs!V$6 -> 2013 | W6: =Inputs!W$6 -> 2014 | X6: =Inputs!X$6 -> 2015 | Y6: =Inputs!Y$6 -> 2016 | Z6: =Inputs!Z$6 -> 2017 | AA6: =Inputs!AA$6 -> 2018 | AB6: =Inputs!AB$6 -> 2019 | AC6: =Inputs!AC$6 -> 2020
A7: Days | H7: =Inputs!H$7 -> 365 | I7: =Inputs!I$7 -> 366 | J7: =Inputs!J$7 -> 365 | K7: =Inputs!K$7 -> 365 | L7: =Inputs!L$7 -> 365 | M7: =Inputs!M$7 -> 366 | N7: =Inputs!N$7 -> 365 | O7: =Inputs!O$7 -> 365 | P7: =Inputs!P$7 -> 365 | Q7: =Inputs!Q$7 -> 366 | R7: =Inputs!R$7 -> 365 | S7: =Inputs!S$7 -> 365 | T7: =Inputs!T$7 -> 365 | U7: =Inputs!U$7 -> 366 | V7: =Inputs!V$7 -> 365 | W7: =Inputs!W$7 -> 365 | X7: =Inputs!X$7 -> 365 | Y7: =Inputs!Y$7 -> 366 | Z7: =Inputs!Z$7 -> 365 | AA7: =Inputs!AA$7 -> 365 | AB7: =Inputs!AB$7 -> 365 | AC7: =Inputs!AC$7 -> 366
A8: Project Year | H8: =Inputs!H$8 -> 0 | I8: =Inputs!I$8 -> 1 | J8: =Inputs!J$8 -> 2 | K8: =Inputs!K$8 -> 3 | L8: =Inputs!L$8 -> 4 | M8: =Inputs!M$8 -> 5 | N8: =Inputs!N$8 -> 6 | O8: =Inputs!O$8 -> 7 | P8: =Inputs!P$8 -> 8 | Q8: =Inputs!Q$8 -> 9 | R8: =Inputs!R$8 -> 10 | S8: =Inputs!S$8 -> 11 | T8: =Inputs!T$8 -> 12 | U8: =Inputs!U$8 -> 13 | V8: =Inputs!V$8 -> 14 | W8: =Inputs!W$8 -> 15 | X8: =Inputs!X$8 -> 16 | Y8: =Inputs!Y$8 -> 17 | Z8: =Inputs!Z$8 -> 18 | AA8: =Inputs!AA$8 -> 19 | AB8: =Inputs!AB$8 -> 20 | AC8: =Inputs!AC$8 -> 21
A9: Financial Parameters
A10: =ROW() -> 10 | B10: Modelled Inflation
A11: =ROW() -> 11 | C11: ="Inflation Factor (convert " &Inputs!$E$32& " $ to nominal $)" -> Inflation Factor (convert 31/12/2019 $ to nominal $) | H11: =Inputs!H32 -> 0.5941194304 | I11: =Inputs!I32 -> 0.6285888897 | J11: =Inputs!J32 -> 0.6482173318 | K11: =Inputs!K32 -> 0.6678457739 | L11: =Inputs!L32 -> 0.6836442761 | M11: =Inputs!M32 -> 0.7013577482 | N11: =Inputs!N32 -> 0.7209861903 | O11: =Inputs!O32 -> 0.7444445724 | P11: =Inputs!P32 -> 0.7664667269 | Q11: =Inputs!Q32 -> 0.7947125338 | R11: =Inputs!R32 -> 0.811468521 | S11: =Inputs!S32 -> 0.8330119331 | T11: =Inputs!T32 -> 0.8588640275 | U11: =Inputs!U32 -> 0.8777969019 | V11: =Inputs!V32 -> 0.9018932874 | W11: =Inputs!W32 -> 0.917383821 | X11: =Inputs!X32 -> 0.9328743546 | Y11: =Inputs!Y32 -> 0.9466437177 | Z11: =Inputs!Z32 -> 0.9647160069 | AA11: =Inputs!AA32 -> 0.9819277108 | AB11: =Inputs!AB32 -> 1 | AC11: =Inputs!AC32 -> 1.0129
A12: =ROW() -> 12 | C12: ="Inflation Factor (convert nominal to real "&Inputs!$E$32&" $)" -> Inflation Factor (convert nominal to real 31/12/2019 $) | H12: =Inputs!H33 -> 1.683163264 | I12: =Inputs!I33 -> 1.590864898 | J12: =Inputs!J33 -> 1.542692475 | K12: =Inputs!K33 -> 1.497351693 | L12: =Inputs!L33 -> 1.462749027 | M12: =Inputs!M33 -> 1.425805878 | N12: =Inputs!N33 -> 1.386989118 | O12: =Inputs!O33 -> 1.343283351 | P12: =Inputs!P33 -> 1.304688077 | Q12: =Inputs!Q33 -> 1.258316633 | R12: =Inputs!R33 -> 1.232333694 | S12: =Inputs!S33 -> 1.200462995 | T12: =Inputs!T33 -> 1.164328657 | U12: =Inputs!U33 -> 1.139215686 | V12: =Inputs!V33 -> 1.108778626 | W12: =Inputs!W33 -> 1.090056285 | X12: =Inputs!X33 -> 1.07195572 | Y12: =Inputs!Y33 -> 1.056363636 | Z12: =Inputs!Z33 -> 1.036574487 | AA12: =Inputs!AA33 -> 1.018404908 | AB12: =Inputs!AB33 -> 1 | AC12: =Inputs!AC33 -> 0.9872642907
A13: ="DBNGP Asset Account Summary [m$ "&TEXT(Inputs!$E$32,"dd/mm/yyyy")&"]" -> DBNGP Asset Account Summary [m$ 31/12/2019]
A14: All Assets
A15: =ROW() -> 15 | B15: DBNGP Asset Including BEP and Shippers' Financed Capex
A16: =ROW() -> 16 | C16: Opening Value | I16: =I22+I29 -> 2608.90306 | J16: =J22+J29 -> 2553.390658 | K16: 2494.521683 | L16: 2431.956686 | M16: 2368.068156 | N16: 2307.484274 | O16: 2312.066001 | P16: 2781.600761 | Q16: 2730.948485 | R16: 3442.965549 | S16: 3357.927121 | T16: 4049.164369 | U16: 4108.018867 | V16: 4030.973107 | W16: 3941.049302 | X16: 3839.68816 | Y16: 3750.157169 | Z16: 3661.97507 | AA16: 3586.452913 | AB16: 3508.968927 | AC16: 3434.608642
A17: =ROW() -> 17 | C17: Capex | I17: =I23+I30 -> 8.048978154 | J17: 5.040611844 | K17: 1.879554216 | L17: 1.13209695 | M17: 4.814526422 | N17: 75.95464377 | O17: 533.0578005 | P17: 16.9322982 | Q17: 790.7619806 | R17: 1.5795629 | S17: 742.9262251 | T17: 170.3195658 | U17: 35.05240507 | V17: 23.03399318 | W17: 13.42431892 | X17: 24.0774892 | Y17: 18.09983397 | Z17: 33.44768111 | AA17: 32.54413916 | AB17: 29.64292365 | AC17: 26.31180352
A18: =ROW() -> 18 | C18: Redundant & Disposed Asset | I18: 0 | J18: 0 | K18: 0 | L18: 0 | M18: 0 | N18: -8.360463955 | O18: 0 | P18: -0.04204545337 | Q18: -0.03177033202 | R18: -0.1014450127 | S18: -0.01329458569 | T18: -5.147322122 | U18: -0.4229668787 | V18: -0.8425955491 | W18: -2.377115297 | X18: -0.8357667587 | Y18: 0 | Z18: 0 | AA18: 0 | AB18: 0 | AC18: 0
A19: =ROW() -> 19 | C19: Depreciation | I19: -63.56138005 | J19: -63.90958646 | K19: -64.44455185 | L19: -65.0206265 | M19: -65.39840848 | N19: -63.01245344 | O19: -63.52304042 | P19: -67.54252877 | Q19: -78.71314614 | R19: -86.51654514 | S19: -88.54784623 | T19: -106.3177458 | U19: -111.6751983 | V19: -112.1152032 | W19: -112.4083448 | X19: -112.7727139 | Y19: -106.2819331 | Z19: -108.9698381 | AA19: -110.0281251 | AB19: -104.0032084 | AC19: -94.23395628
A20: =ROW() -> 20 | C20: Closing Value | H20: 2608.90306 | I20: 2553.390658 | J20: 2494.521683 | K20: 2431.956686 | L20: 2368.068156 | M20: 2307.484274 | N20: 2312.066001 | O20: 2781.600761 | P20: 2730.948485 | Q20: 3442.965549 | R20: 3357.927121 | S20: 4049.164369 | T20: 4108.018867 | U20: 4030.973107 | V20: 3941.049302 | W20: 3839.68816 | X20: 3750.157169 | Y20: 3661.97507 | Z20: 3586.452913 | AA20: 3508.968927 | AB20: 3434.608642 | AC20: 3366.686489
A21: =ROW() -> 21 | B21: Shippers' Asset Account
A22: =ROW() -> 22 | C22: Opening Value (Starting 01/12/2010) | I22: 0 | J22: 0 | K22: 0 | L22: 0 | M22: 0 | N22: 0 | O22: 3.59487554 | P22: 20.39591333 | Q22: 29.96010895 | R22: 30.345259 | S22: 29.41584329 | T22: 28.48642759 | U22: 27.55701188 | V22: 26.62759618 | W22: 25.69818047 | X22: 24.76876477 | Y22: 23.83934906 | Z22: 23.67361392 | AA22: 32.31192817 | AB22: 40.30755037 | AC22: 40.95553929
A23: =ROW() -> 23 | C23: Capex | I23: 0 | J23: 0 | K23: 0 | L23: 0 | M23: 0 | N23: 3.59487554 | O23: 16.90373817 | P23: 10.1140703 | Q23: 1.272160406 | R23: 0 | S23: 0 | T23: 0 | U23: 0 | V23: 0 | W23: 0 | X23: 0 | Y23: 0.7636805658 | Z23: 9.593185978 | AA23: 9.270266782 | AB23: 2.23164204 | AC23: 0
A24: =ROW() -> 24 | C24: Redundant & Disposed Asset | I24: 0 | J24: 0 | K24: 0 | L24: 0 | M24: 0 | N24: 0 | O24: 0 | P24: 0 | Q24: 0 | R24: 0 | S24: 0 | T24: 0 | U24: 0 | V24: 0 | W24: 0 | X24: 0 | Y24: 0 | Z24: 0 | AA24: 0 | AB24: 0 | AC24: 0
A25: =ROW() -> 25 | C25: Depreciation | I25: 0 | J25: 0 | K25: 0 | L25: 0 | M25: 0 | N25: 0 | O25: -0.1027003766 | P25: -0.5498746817 | Q25: -0.8870103584 | R25: -0.9294157053 | S25: -0.9294157053 | T25: -0.9294157053 | U25: -0.9294157053 | V25: -0.9294157053 | W25: -0.9294157053 | X25: -0.9294157053 | Y25: -0.9294157053 | Z25: -0.9548717241 | AA25: -1.27464459 | AB25: -1.583653119 | AC25: -1.658038772
A26: =ROW() -> 26 | C26: Closing Value | H26: 0 | I26: 0 | J26: 0 | K26: 0 | L26: 0 | M26: 0 | N26: 3.59487554 | O26: 20.39591333 | P26: 29.96010895 | Q26: 30.345259 | R26: 29.41584329 | S26: 28.48642759 | T26: 27.55701188 | U26: 26.62759618 | V26: 25.69818047 | W26: 24.76876477 | X26: 23.83934906 | Y26: 23.67361392 | Z26: 32.31192817 | AA26: 40.30755037 | AB26: 40.95553929 | AC26: 39.29750052
A27: DBNGP and BEP Assets
A28: =ROW() -> 28 | B28: DBNGP Asset Including BEP
A29: =ROW() -> 29 | C29: Opening Value | I29: =I35+I42 -> 2608.90306 | J29: 2553.390658 | K29: 2494.521683 | L29: 2431.956686 | M29: 2368.068156 | N29: 2307.484274 | O29: 2308.471125 | P29: 2761.204847 | Q29: 2700.988376 | R29: 3412.62029 | S29: 3328.511278 | T29: 4020.677942 | U29: 4080.461855 | V29: 4004.345511 | W29: 3915.351121 | X29: =X35+X42 -> 3814.919396 | Y29: =Y35+Y42 -> 3726.31782 | Z29: 3638.301456 | AA29: 3554.140984 | AB29: 3468.661376 | AC29: 3393.653103
A30: =ROW() -> 30 | C30: Capex | I30: 8.048978154 | J30: 5.040611844 | K30: 1.879554216 | L30: 1.13209695 | M30: 4.814526422 | N30: 72.35976823 | O30: 516.1540624 | P30: 6.818227898 | Q30: 789.4898201 | R30: 1.5795629 | S30: 742.9262251 | T30: 170.3195658 | U30: 35.05240507 | V30: 23.03399318 | W30: 13.42431892 | X30: =X36+X43 -> 24.0774892 | Y30: 17.3361534 | Z30: 23.85449513 | AA30: 23.27387238 | AB30: 27.41128161 | AC30: 26.31180352
A31: =ROW() -> 31 | C31: Redundant & Disposed Asset | I31: 0 | J31: 0 | K31: 0 | L31: 0 | M31: 0 | N31: -8.360463955 | O31: 0 | P31: -0.04204545337 | Q31: -0.03177033202 | R31: -0.1014450127 | S31: -0.01329458569 | T31: -5.147322122 | U31: -0.4229668787 | V31: -0.8425955491 | W31: -2.377115297 | X31: =X37+X44 -> -0.8357667587 | Y31: 0 | Z31: 0 | AA31: 0 | AB31: 0 | AC31: 0
A32: =ROW() -> 32 | C32: Depreciation | I32: -63.56138005 | J32: -63.90958646 | K32: -64.44455185 | L32: -65.0206265 | M32: -65.39840848 | N32: -63.01245344 | O32: -63.42034004 | P32: -66.99265409 | Q32: -77.82613578 | R32: -85.58712944 | S32: -87.61843053 | T32: -105.3883301 | U32: -110.7457826 | V32: -111.1857875 | W32: -111.4789291 | X32: =X38+X45 -> -111.8432982 | Y32: -105.3525174 | Z32: -108.0149664 | AA32: -108.7534806 | AB32: -102.4195553 | AC32: -92.5759175
A33: =ROW() -> 33 | C33: Closing Value | H33: =H39+H47 -> 2608.90306 | I33: 2553.390658 | J33: 2494.521683 | K33: 2431.956686 | L33: 2368.068156 | M33: 2307.484274 | N33: 2308.471125 | O33: 2761.204847 | P33: 2700.988376 | Q33: 3412.62029 | R33: 3328.511278 | S33: 4020.677942 | T33: 4080.461855 | U33: 4004.345511 | V33: 3915.351121 | W33: 3814.919396 | X33: 3726.31782 | Y33: 3638.301456 | Z33: 3554.140984 | AA33: 3468.661376 | AB33: 3393.653103 | AC33: 3327.388989
A34: =ROW() -> 34 | B34: BEP Asset Account
A35: =ROW() -> 35 | C35: Opening Value (Starting 01/12/2010) | T35: =T127 -> 0 | U35: =U127 -> 22.63836826 | V35: =V127 -> 22.2412039 | W35: 21.84403955 | X35: 21.44687519 | Y35: 21.04971084 | Z35: 20.65254648 | AA35: 20.25538213 | AB35: 19.85821777 | AC35: 19.46105342
A36: =ROW() -> 36 | C36: Capex | T36: =T128 -> 22.63836826 | U36: =U128 -> 0 | V36: 0 | W36: 0 | X36: 0 | Y36: 0 | Z36: 0 | AA36: 0 | AB36: 0 | AC36: 0
A37: =ROW() -> 37 | C37: Redundant & Disposed Asset | T37: =T129 -> 0 | U37: 0 | V37: 0 | W37: 0 | X37: 0 | Y37: 0 | Z37: 0 | AA37: 0 | AB37: 0 | AC37: 0
A38: =ROW() -> 38 | C38: Depreciation | T38: 0 | U38: -0.3971643554 | V38: -0.3971643554 | W38: -0.3971643554 | X38: -0.3971643554 | Y38: -0.3971643554 | Z38: -0.3971643554 | AA38: -0.3971643554 | AB38: -0.3971643554 | AC38: -0.3971643554
A39: =ROW() -> 39 | C39: Closing Value | T39: =SUM(T35:T38) -> 22.63836826 | U39: =SUM(U35:U38) -> 22.2412039 | V39: =SUM(V35:V38) -> 21.84403955 | W39: =SUM(W35:W38) -> 21.44687519 | X39: =SUM(X35:X38) -> 21.04971084 | Y39: =SUM(Y35:Y38) -> 20.65254648 | Z39: 20.25538213 | AA39: 19.85821777 | AB39: 19.46105342 | AC39: 19.06388906
A40: DBNGP Assets
A41: =ROW() -> 41 | B41: DBNGP Asset
A42: =ROW() -> 42 | C42: Opening Value | I42: =H47 -> 2608.90306 | J42: =I47 -> 2553.390658 | K42: 2494.521683 | L42: 2431.956686 | M42: 2368.068156 | N42: 2307.484274 | O42: 2308.471125 | P42: 2761.204847 | Q42: 2700.988376 | R42: 3412.62029 | S42: 3328.511278 | T42: 4020.677942 | U42: 4057.823487 | V42: 3982.104307 | W42: 3893.507082 | X42: 3793.47252 | Y42: 3705.268109 | Z42: 3617.648909 | AA42: 3533.885602 | AB42: 3448.803159 | AC42: 3374.192049
A43: =ROW() -> 43 | C43: Capex | I43: =I76 -> 8.048978154 | J43: =J76 -> 5.040611844 | K43: 1.879554216 | L43: 1.13209695 | M43: 4.814526422 | N43: 72.35976823 | O43: 516.1540624 | P43: 6.818227898 | Q43: 789.4898201 | R43: 1.5795629 | S43: 742.9262251 | T43: 147.6811976 | U43: 35.05240507 | V43: 23.03399318 | W43: 13.42431892 | X43: 24.0774892 | Y43: 17.3361534 | Z43: 23.85449513 | AA43: 23.27387238 | AB43: 27.41128161 | AC43: 26.31180352
A44: =ROW() -> 44 | C44: Redundant & Disposed Asset | I44: =I87 -> 0 | J44: =J87 -> 0 | K44: 0 | L44: 0 | M44: 0 | N44: -8.360463955 | O44: 0 | P44: -0.04204545337 | Q44: -0.03177033202 | R44: -0.1014450127 | S44: -0.01329458569 | T44: -5.147322122 | U44: -0.4229668787 | V44: -0.8425955491 | W44: -2.377115297 | X44: -0.8357667587 | Y44: 0 | Z44: 0 | AA44: 0 | AB44: 0 | AC44: 0
A45: =ROW() -> 45 | C45: Depreciation | I45: =I98 -> -63.56138005 | J45: =J98 -> -63.90958646 | K45: -64.44455185 | L45: -65.0206265 | M45: -65.39840848 | N45: -63.01245344 | O45: -63.42034004 | P45: -66.99265409 | Q45: -77.82613578 | R45: -85.58712944 | S45: -87.61843053 | T45: -105.3883301 | U45: -110.3486183 | V45: -110.7886232 | W45: -111.0817648 | X45: -111.4461339 | Y45: -104.9553531 | Z45: -107.617802 | AA45: -108.3563162 | AB45: -102.0223909 | AC45: -92.17875315
A46: =ROW() -> 46
A47: =ROW() -> 47 | C47: Closing Value | H47: =H109 -> 2608.90306 | I47: =SUM(I42:I46) -> 2553.390658 | J47: 2494.521683 | K47: 2431.956686 | L47: 2368.068156 | M47: 2307.484274 | N47: 2308.471125 | O47: 2761.204847 | P47: =SUM(P42:P46) -> 2700.988376 | Q47: =SUM(Q42:Q46) -> 3412.62029 | R47: 3328.511278 | S47: =SUM(S42:S46)-S50 -> 4020.677942 | T47: 4057.823487 | U47: 3982.104307 | V47: 3893.507082 | W47: 3793.47252 | X47: 3705.268109 | Y47: =SUM(Y42:Y46)-Y50 -> 3617.648909 | Z47: 3533.885602 | AA47: 3448.803159 | AB47: 3374.192049 | AC47: 3308.3251
A48: =ROW() -> 48 | G48: Check | H48: =IF(ROUND(H47-Inputs!H119,6)=0,"OK","Wrong") -> OK | I48: =IF(ROUND(I47-Inputs!I119,6)=0,"OK","Wrong") -> OK | J48: =IF(ROUND(J47-Inputs!J119,6)=0,"OK","Wrong") -> OK | K48: =IF(ROUND(K47-Inputs!K119,6)=0,"OK","Wrong") -> OK | L48: =IF(ROUND(L47-Inputs!L119,6)=0,"OK","Wrong") -> OK | M48: =IF(ROUND(M47-Inputs!M119,6)=0,"OK","Wrong") -> OK | N48: =IF(ROUND(N47-N189-N258,6)=0,"OK","Wrong") -> OK | O48: =IF(ROUND(O47-O189-O258,6)=0,"OK","Wrong") -> OK | P48: OK | Q48: OK | R48: OK | S48: OK | T48: OK | U48: OK | V48: OK | W48: OK | X48: OK | Y48: OK | Z48: OK | AA48: OK | AB48: OK | AC48: OK
A49: =ROW() -> 49 | B49: Over Depreciation
A50: =ROW() -> 50 | C50: Over Depreciation | S50: =S120 -> -36.87216348 | Y50: =Y120 -> 0
A51: =ROW() -> 51 | C51: Rolled Forward Value | T51: =S50*(1+WACC!M34) -> -38.99998684
A52: =ROW() -> 52
A53: ="DBNGP Asset Account [m$ "&TEXT(Inputs!$E$32,"dd/mm/yyyy")&"]" -> DBNGP Asset Account [m$ 31/12/2019]
A54: Asset Accounts
A55: =ROW() -> 55 | B55: Opening Value
A56: =ROW() -> 56 | C56: Pipeline | I56: =H100 -> 2126.082083 | J56: 2089.27927 | K56: 2050.30468 | L56: 2011.372667 | M56: 1972.341146 | N56: 1934.186735 | O56: 1905.440156 | P56: 2175.086304 | Q56: 2137.316441 | R56: 2713.904421 | S56: 2663.880479 | T56: 3216.083005 | U56: 3208.523307 | V56: 3163.543819 | W56: 3107.060584 | X56: 3045.939702 | Y56: 2986.953945 | Z56: 2924.541674 | AA56: 2862.073102 | AB56: 2799.652686 | AC56: 2737.129743
A57: =ROW() -> 57 | C57: Compression | I57: 356.1635421 | J57: 333.9666307 | K57: 316.9383756 | L57: 297.7436692 | M57: 278.006621 | N57: 258.5964098 | O57: 292.5236002 | P57: 481.0156663 | Q57: 459.9504717 | R57: 592.721561 | S57: 563.983461 | T57: 618.5673731 | U57: 617.5156181 | V57: 590.8444278 | W57: 560.6168072 | X57: 527.4831176 | Y57: 495.7020573 | Z57: 461.6666141 | AA57: 429.2991501 | AB57: 394.5074292 | AC57: 365.2978032
A58: =ROW() -> 58 | C58: Metering | I58: 29.20819445 | J58: 29.34914886 | K58: 29.41310633 | L58: 29.17889171 | M58: 28.36052572 | N58: 29.96879019 | O58: 29.11939387 | P58: 28.23782832 | Q58: 27.32116818 | R58: 26.40012111 | S58: 25.57295293 | T58: 30.71771149 | U58: 30.15500872 | V58: 31.2793291 | W58: 31.34290917 | X58: 29.75244968 | Y58: 32.55511147 | Z58: 36.29869648 | AA58: 38.73500669 | AB58: 44.35108013 | AC58: 49.22425805
A59: =ROW() -> 59 | C59: Other Depreciable | I59: 80.21659485 | J59: 83.56296348 | K59: 80.63287668 | L59: 76.42881298 | M59: 72.12721837 | N59: 67.49969376 | O59: 67.05992313 | P59: 62.69798244 | Q59: 59.89215915 | R59: 61.30496372 | S59: 55.97022921 | T59: 135.2451271 | U59: 181.5838172 | V59: 176.4354314 | W59: 174.2763377 | X59: 170.0861559 | Y59: 169.8490848 | Z59: 165.9216656 | AA59: 164.0657428 | AB59: 158.9242334 | AC59: 154.4018074
A60: =ROW() -> 60 | C60: Computers and Motor Vehicles | I60: 0 | J60: 0 | K60: 0 | L60: 0 | M60: 0 | N60: 0 | O60: 0 | P60: 0 | Q60: 0 | R60: 0 | S60: 0 | T60: 0 | U60: 0 | V60: 0 | W60: 0 | X60: 0 | Y60: 0 | Z60: 2.577158822 | AA60: 5.083656448 | AB60: 8.919856657 | AC60: 11.925583
A61: =ROW() -> 61 | C61: Cathodic/Corrosion Protection | I61: 0 | J61: 0 | K61: 0 | L61: 0 | M61: 0 | N61: 0 | O61: 0 | P61: 0 | Q61: 0 | R61: 0 | S61: 0 | T61: 0 | U61: 0 | V61: 0 | W61: 0 | X61: 0 | Y61: 0 | Z61: 0.8780168558 | AA61: 2.445297741 | AB61: 7.349844065 | AC61: 14.84534781
A62: =ROW() -> 62 | C62: SCADA , ECI And Comms | I62: 0 | J62: 0 | K62: 0 | L62: 0 | M62: 0 | N62: 0 | O62: 0 | P62: 0 | Q62: 0 | R62: 0 | S62: 0 | T62: 0 | U62: 0 | V62: 0 | W62: 0 | X62: 0 | Y62: 0 | Z62: 5.490562821 | AA62: 11.90912556 | AB62: 14.82350784 | AC62: 21.09298562
A63: =ROW() -> 63 | C63: Non-Depreciable | I63: 17.23264518 | J63: 17.23264518 | K63: 17.23264518 | L63: 17.23264518 | M63: 17.23264518 | N63: 17.23264518 | O63: 14.32805182 | P63: 14.16706645 | Q63: 16.50813532 | R63: 18.28922253 | S63: 19.10415644 | T63: 20.06472478 | U63: 20.04573592 | V63: 20.00129952 | W63: 20.21044364 | X63: 20.21109552 | Y63: 20.20791062 | Z63: 20.27452078 | AA63: 20.27452078 | AB63: 20.27452078 | AC63: 20.27452078
A64: =ROW() -> 64 | C64: Cost of Raising Equity | I64: 0 | J64: 0 | K64: 0 | L64: 0 | M64: 0 | N64: 0 | O64: 0 | P64: 0 | Q64: 0 | R64: 0 | S64: 0 | T64: 0 | U64: 0 | V64: 0 | W64: 0 | X64: 0 | Y64: 0 | Z64: 0 | AA64: -4.899938547e-16 | AB64: -9.799877094e-16 | AC64: -1.469981564e-15
A65: =ROW() -> 65 | C65: Total | I65: =SUM(I56:I64) -> 2608.90306 | J65: =SUM(J56:J64) -> 2553.390658 | K65: 2494.521683 | L65: 2431.956686 | M65: 2368.068156 | N65: 2307.484274 | O65: 2308.471125 | P65: 2761.204847 | Q65: 2700.988376 | R65: 3412.62029 | S65: 3328.511278 | T65: 4020.677942 | U65: 4057.823487 | V65: 3982.104307 | W65: 3893.507082 | X65: 3793.47252 | Y65: 3705.268109 | Z65: 3617.648909 | AA65: 3533.885602 | AB65: 3448.803159 | AC65: 3374.192049
A66: =ROW() -> 66 | B66: Capex | H66: Check | I66: =IF(ROUND(I65-I156-I214,6)=0,"OK","Wrong") -> OK | J66: =IF(ROUND(J65-J156-J214,6)=0,"OK","Wrong") -> OK | K66: OK | L66: OK | M66: OK | N66: OK | O66: OK | P66: OK | Q66: OK | R66: OK | S66: OK | T66: OK | U66: OK | V66: OK | W66: OK | X66: OK | Y66: OK | Z66: OK | AA66: OK | AB66: OK | AC66: OK
A67: =ROW() -> 67 | C67: Pipeline | I67: =I216 -> 2.207866895 | J67: =J216 -> 0.04642964408 | K67: 0.09573961908 | L67: 3.092251444e-05 | M67: 0.8857491082 | N67: 10.31032713 | O67: 308.794706 | P67: 1.495677711 | Q67: 621.0317997 | R67: 0 | S67: 588.1787289 | T67: 53.69268508 | U67: 16.63953968 | V67: 5.201817839 | W67: 0.6354269696 | X67: 2.77938422 | Y67: 0 | Z67: 0 | AA67: 0.08629730755 | AB67: 0.008873104931 | AC67: 0.2377221295
A68: =ROW() -> 68 | C68: Compression | I68: =I217 -> -3.175372793 | J68: 2.047144784 | K68: 0.1247520958 | L68: -0.1679204873 | M68: 0.2615894962 | N68: 57.16659117 | O68: 206.4651952 | P68: 0.1770702827 | Q68: 159.5886167 | R68: 0 | S68: 62.73729711 | T68: 33.72723155 | U68: 9.451016998 | V68: 6.157275926 | W68: 3.333318723 | X68: 4.797671046 | Y68: 2.532374452 | Z68: 4.758259873 | AA68: 2.882253761 | AB68: 1.99428288 | AC68: 2.506703987
A69: =ROW() -> 69 | C69: Metering | I69: 0.9094866444 | J69: 0.8324896968 | K69: 0.5360007714 | L69: -0.04646742628 | M69: 2.381846189 | N69: 0 | O69: 0 | P69: 0 | Q69: 0 | R69: 0.09387888504 | S69: 5.708845842 | T69: 0.4070601295 | U69: 2.107275128 | V69: 1.058186517 | W69: 1.306647501 | X69: 3.924757404 | Y69: 3.477661805 | Z69: 3.64598852 | AA69: 6.883294171 | AB69: 6.158629163 | AC69: 6.813015073
A70: =ROW() -> 70 | C70: Other Depreciable | I70: 8.106997409 | J70: 2.114547718 | K70: 1.12306173 | L70: 1.346453941 | M70: 1.285341628 | N70: 4.882849931 | O70: 1.055146466 | P70: 2.804411026 | Q70: 7.088316517 | R70: 0.6707501103 | S70: 85.50177028 | T70: 59.87320968 | U70: 6.899009664 | V70: 10.40756878 | W70: 8.148273843 | X70: 12.57886143 | Y70: 2.380378646 | Z70: 4.95790549 | AA70: 1.766898332 | AB70: 2.478788581 | AC70: 5.174249755
A71: =ROW() -> 71 | C71: Computers and Motor Vehicles | I71: 0 | J71: 0 | K71: 0 | L71: 0 | M71: 0 | N71: 0 | O71: 0 | P71: 0 | Q71: 0 | R71: 0 | S71: 0 | T71: 0 | U71: 0 | V71: 0 | W71: 0 | X71: 0 | Y71: 2.577158822 | Z71: 2.506497626 | AA71: 3.836200209 | AB71: 3.005726346 | AC71: 1.549037859
A72: =ROW() -> 72 | C72: Cathodic/Corrosion Protection | I72: 0 | J72: 0 | K72: 0 | L72: 0 | M72: 0 | N72: 0 | O72: 0 | P72: 0 | Q72: 0 | R72: 0 | S72: 0 | T72: 0 | U72: 0 | V72: 0 | W72: 0 | X72: 0 | Y72: 0.8780168558 | Z72: 1.567280885 | AA72: 4.904546324 | AB72: 7.495503744 | AC72: 4.318359046
A73: =ROW() -> 73 | C73: SCADA , ECI And Comms | I73: 0 | J73: 0 | K73: 0 | L73: 0 | M73: 0 | N73: 0 | O73: 0 | P73: 0 | Q73: 0 | R73: 0 | S73: 0 | T73: 0 | U73: 0 | V73: 0 | W73: 0 | X73: 0 | Y73: 5.490562821 | Z73: 6.41856274 | AA73: 2.914382275 | AB73: 6.269477788 | AC73: 5.712715668
A74: =ROW() -> 74 | C74: Non-Depreciable | I74: 0 | J74: 0 | K74: 0 | L74: 0 | M74: 0 | N74: 0 | O74: -0.1609853768 | P74: 2.341068877 | Q74: 1.78108721 | R74: 0.8149339043 | S74: 0.7995829634 | T74: -0.01898885366 | U74: -0.0444364075 | V74: 0.2091441216 | W74: 0.0006518819614 | X74: -0.003184898358 | Y74: 0 | Z74: 0 | AA74: 0 | AB74: 0 | AC74: 0
A75: =ROW() -> 75 | C75: Cost of Raising Equity | I75: 0 | J75: 0 | K75: 0 | L75: 0 | M75: 0 | N75: 0 | O75: 0 | P75: 0 | Q75: 0 | R75: 0 | S75: 0 | T75: 0 | U75: 0 | V75: 0 | W75: 0 | X75: 0 | Y75: 0 | Z75: 0 | AA75: 0 | AB75: 0 | AC75: 0
A76: =ROW() -> 76 | C76: Total | I76: =SUM(I67:I75) -> 8.048978154 | J76: =SUM(J67:J75) -> 5.040611844 | K76: 1.879554216 | L76: 1.13209695 | M76: 4.814526422 | N76: 72.35976823 | O76: 516.1540624 | P76: 6.818227898 | Q76: 789.4898201 | R76: 1.5795629 | S76: 742.9262251 | T76: 147.6811976 | U76: 35.05240507 | V76: 23.03399318 | W76: 13.42431892 | X76: 24.0774892 | Y76: 17.3361534 | Z76: 23.85449513 | AA76: 23.27387238 | AB76: 27.41128161 | AC76: 26.31180352
A77: =ROW() -> 77 | B77: Redundant & Disposed Asset | H77: Check | I77: =IF(ROUND(I76-Inputs!I671,6)=0,"OK","Wrong") -> OK | J77: =IF(ROUND(J76-Inputs!J671,6)=0,"OK","Wrong") -> OK | K77: =IF(ROUND(K76-Inputs!K671,6)=0,"OK","Wrong") -> OK | L77: =IF(ROUND(L76-Inputs!L671,6)=0,"OK","Wrong") -> OK | M77: =IF(ROUND(M76-Inputs!M671,6)=0,"OK","Wrong") -> OK | N77: =IF(ROUND(N76-Inputs!N671,6)=0,"OK","Wrong") -> OK | O77: =IF(ROUND(O76-Inputs!O671,6)=0,"OK","Wrong") -> OK | P77: =IF(ROUND(P76-Inputs!P671,6)=0,"OK","Wrong") -> OK | Q77: =IF(ROUND(Q76-Inputs!Q671,6)=0,"OK","Wrong") -> OK | R77: =IF(ROUND(R76-Inputs!R671,6)=0,"OK","Wrong") -> OK | S77: =IF(ROUND(S76-Inputs!S671,6)=0,"OK","Wrong") -> OK | T77: =IF(ROUND(T76-Inputs!T671,6)=0,"OK","Wrong") -> OK | U77: =IF(ROUND(U76-Inputs!U671,6)=0,"OK","Wrong") -> OK | V77: =IF(ROUND(V76-Inputs!V671,6)=0,"OK","Wrong") -> OK | W77: =IF(ROUND(W76-Inputs!W671,6)=0,"OK","Wrong") -> OK | X77: =IF(ROUND(X76-Inputs!X671,6)=0,"OK","Wrong") -> OK | Y77: =IF(ROUND(Y76-Inputs!Y671,6)=0,"OK","Wrong") -> OK | Z77: =IF(ROUND(Z76-Inputs!Z671,6)=0,"OK","Wrong") -> OK | AA77: =IF(ROUND(AA76-Inputs!AA671,6)=0,"OK","Wrong") -> OK | AB77: =IF(ROUND(AB76-Inputs!AB671,6)=0,"OK","Wrong") -> OK | AC77: =IF(ROUND(AC76-Inputs!AC671,6)=0,"OK","Wrong") -> OK
A78: =ROW() -> 78 | C78: Pipeline | I78: =-(Inputs!I269+Inputs!I2908) -> 0 | J78: =-(Inputs!J269+Inputs!J2908) -> 0 | K78: =-(Inputs!K269+Inputs!K2908) -> 0 | L78: =-(Inputs!L269+Inputs!L2908) -> 0 | M78: =-(Inputs!M269+Inputs!M2908) -> 0 | N78: =-(Inputs!N269+Inputs!N2908) -> 0 | O78: =-(Inputs!O269+Inputs!O2908) -> 0 | P78: =-(Inputs!P269+Inputs!P2908) -> 0 | Q78: =-(Inputs!Q269+Inputs!Q2908) -> 0 | R78: =-(Inputs!R269+Inputs!R2908) -> 0 | S78: =-(Inputs!S269+Inputs!S2908) -> 0 | T78: =-(Inputs!T269+Inputs!T2908) -> 0 | U78: =-(Inputs!U269+Inputs!U2908) -> 0 | V78: =-(Inputs!V269+Inputs!V2908) -> 0 | W78: =-(Inputs!W269+Inputs!W2908) -> 0 | X78: =-(Inputs!X269+Inputs!X2908) -> 0 | Y78: =-(Inputs!Y269+Inputs!Y3152) -> 0 | Z78: =-(Inputs!Z269+Inputs!Z3152) -> 0 | AA78: =-(Inputs!AA269+Inputs!AA3152) -> 0 | AB78: =-(Inputs!AB269+Inputs!AB3152) -> 0 | AC78: =-(Inputs!AC269+Inputs!AC3152) -> 0 | AI78: =-(Inputs!AI269+Inputs!AI3152) -> 0
A79: =ROW() -> 79 | C79: Compression | I79: =-(Inputs!I270+Inputs!I2909) -> 0 | J79: =-(Inputs!J270+Inputs!J2909) -> 0 | K79: =-(Inputs!K270+Inputs!K2909) -> 0 | L79: =-(Inputs!L270+Inputs!L2909) -> 0 | M79: =-(Inputs!M270+Inputs!M2909) -> 0 | N79: =-(Inputs!N270+Inputs!N2909) -> -5.359758893 | O79: =-(Inputs!O270+Inputs!O2909) -> 0 | P79: =-(Inputs!P270+Inputs!P2909) -> 0 | Q79: =-(Inputs!Q270+Inputs!Q2909) -> 0 | R79: =-(Inputs!R270+Inputs!R2909) -> 0 | S79: =-(Inputs!S270+Inputs!S2909) -> 0 | T79: =-(Inputs!T270+Inputs!T2909) -> -0.08935803079 | U79: =-(Inputs!U270+Inputs!U2909) -> 0 | V79: =-(Inputs!V270+Inputs!V2909) -> 0 | W79: =-(Inputs!W270+Inputs!W2909) -> 0 | X79: =-(Inputs!X270+Inputs!X2909) -> 0 | Y79: =-(Inputs!Y270+Inputs!Y3153) -> 0 | Z79: =-(Inputs!Z270+Inputs!Z3153) -> 0 | AA79: =-(Inputs!AA270+Inputs!AA3153) -> 0 | AB79: =-(Inputs!AB270+Inputs!AB3153) -> 0 | AC79: =-(Inputs!AC270+Inputs!AC3153) -> 0 | AI79: =-(Inputs!AI270+Inputs!AI3153) -> 0
A80: =ROW() -> 80 | C80: Metering | I80: =-(Inputs!I271+Inputs!I2910) -> 0 | J80: =-(Inputs!J271+Inputs!J2910) -> 0 | K80: =-(Inputs!K271+Inputs!K2910) -> 0 | L80: =-(Inputs!L271+Inputs!L2910) -> 0 | M80: =-(Inputs!M271+Inputs!M2910) -> 0 | N80: =-(Inputs!N271+Inputs!N2910) -> 0 | O80: =-(Inputs!O271+Inputs!O2910) -> 0 | P80: =-(Inputs!P271+Inputs!P2910) -> 0 | Q80: =-(Inputs!Q271+Inputs!Q2910) -> 0 | R80: =-(Inputs!R271+Inputs!R2910) -> 0 | S80: =-(Inputs!S271+Inputs!S2910) -> 0 | T80: =-(Inputs!T271+Inputs!T2910) -> 0 | U80: =-(Inputs!U271+Inputs!U2910) -> 0 | V80: =-(Inputs!V271+Inputs!V2910) -> 0 | W80: =-(Inputs!W271+Inputs!W2910) -> -1.838755962 | X80: =-(Inputs!X271+Inputs!X2910) -> 0 | Y80: =-(Inputs!Y271+Inputs!Y3154) -> 0 | Z80: =-(Inputs!Z271+Inputs!Z3154) -> 0 | AA80: =-(Inputs!AA271+Inputs!AA3154) -> 0 | AB80: =-(Inputs!AB271+Inputs!AB3154) -> 0 | AC80: =-(Inputs!AC271+Inputs!AC3154) -> 0 | AI80: =-(Inputs!AI271+Inputs!AI3154) -> 0
A81: =ROW() -> 81 | C81: Other Depreciable | I81: =-(Inputs!I272+Inputs!I2911) -> 0 | J81: =-(Inputs!J272+Inputs!J2911) -> 0 | K81: =-(Inputs!K272+Inputs!K2911) -> 0 | L81: =-(Inputs!L272+Inputs!L2911) -> 0 | M81: =-(Inputs!M272+Inputs!M2911) -> 0 | N81: =-(Inputs!N272+Inputs!N2911) -> -0.09611170235 | O81: =-(Inputs!O272+Inputs!O2911) -> 0 | P81: =-(Inputs!P272+Inputs!P2911) -> -0.04204545337 | Q81: =-(Inputs!Q272+Inputs!Q2911) -> -0.03177033202 | R81: =-(Inputs!R272+Inputs!R2911) -> -0.1014450127 | S81: =-(Inputs!S272+Inputs!S2911) -> -0.01329458569 | T81: =-(Inputs!T272+Inputs!T2911) -> -5.057964091 | U81: =-(Inputs!U272+Inputs!U2911) -> -0.4229668787 | V81: =-(Inputs!V272+Inputs!V2911) -> -0.8425955491 | W81: =-(Inputs!W272+Inputs!W2911) -> -0.5383593352 | X81: =-(Inputs!X272+Inputs!X2911) -> -0.8357667587 | Y81: =-(Inputs!Y272+Inputs!Y3155) -> 0 | Z81: =-(Inputs!Z272+Inputs!Z3155) -> 0 | AA81: =-(Inputs!AA272+Inputs!AA3155) -> 0 | AB81: =-(Inputs!AB272+Inputs!AB3155) -> 0 | AC81: =-(Inputs!AC272+Inputs!AC3155) -> 0 | AI81: =-(Inputs!AI272+Inputs!AI3155) -> 0
A82: =ROW() -> 82 | C82: Computers and Motor Vehicles | I82: =-(Inputs!I273+Inputs!I2912) -> 0 | J82: =-(Inputs!J273+Inputs!J2912) -> 0 | K82: =-(Inputs!K273+Inputs!K2912) -> 0 | L82: =-(Inputs!L273+Inputs!L2912) -> 0 | M82: =-(Inputs!M273+Inputs!M2912) -> 0 | N82: =-(Inputs!N273+Inputs!N2912) -> 0 | O82: =-(Inputs!O273+Inputs!O2912) -> 0 | P82: =-(Inputs!P273+Inputs!P2912) -> 0 | Q82: =-(Inputs!Q273+Inputs!Q2912) -> 0 | R82: =-(Inputs!R273+Inputs!R2912) -> 0 | S82: =-(Inputs!S273+Inputs!S2912) -> 0 | T82: =-(Inputs!T273+Inputs!T2912) -> 0 | U82: =-(Inputs!U273+Inputs!U2912) -> 0 | V82: =-(Inputs!V273+Inputs!V2912) -> 0 | W82: =-(Inputs!W273+Inputs!W2912) -> 0 | X82: =-(Inputs!X273+Inputs!X2912) -> 0 | Y82: =-(Inputs!Y273+Inputs!Y3156) -> 0 | Z82: =-(Inputs!Z273+Inputs!Z3156) -> 0 | AA82: =-(Inputs!AA273+Inputs!AA3156) -> 0 | AB82: =-(Inputs!AB273+Inputs!AB3156) -> 0 | AC82: =-(Inputs!AC273+Inputs!AC3156) -> 0 | AI82: =-(Inputs!AI273+Inputs!AI3156) -> 0
A83: =ROW() -> 83 | C83: Cathodic/Corrosion Protection | I83: =-(Inputs!I274+Inputs!I2913) -> 0 | J83: =-(Inputs!J274+Inputs!J2913) -> 0 | K83: =-(Inputs!K274+Inputs!K2913) -> 0 | L83: =-(Inputs!L274+Inputs!L2913) -> 0 | M83: =-(Inputs!M274+Inputs!M2913) -> 0 | N83: =-(Inputs!N274+Inputs!N2913) -> 0 | O83: =-(Inputs!O274+Inputs!O2913) -> 0 | P83: =-(Inputs!P274+Inputs!P2913) -> 0 | Q83: =-(Inputs!Q274+Inputs!Q2913) -> 0 | R83: =-(Inputs!R274+Inputs!R2913) -> 0 | S83: =-(Inputs!S274+Inputs!S2913) -> 0 | T83: =-(Inputs!T274+Inputs!T2913) -> 0 | U83: =-(Inputs!U274+Inputs!U2913) -> 0 | V83: =-(Inputs!V274+Inputs!V2913) -> 0 | W83: =-(Inputs!W274+Inputs!W2913) -> 0 | X83: =-(Inputs!X274+Inputs!X2913) -> 0 | Y83: =-(Inputs!Y274+Inputs!Y3157) -> 0 | Z83: =-(Inputs!Z274+Inputs!Z3157) -> 0 | AA83: =-(Inputs!AA274+Inputs!AA3157) -> 0 | AB83: =-(Inputs!AB274+Inputs!AB3157) -> 0 | AC83: =-(Inputs!AC274+Inputs!AC3157) -> 0 | AI83: =-(Inputs!AI274+Inputs!AI3157) -> 0
A84: =ROW() -> 84 | C84: SCADA , ECI And Comms | I84: =-(Inputs!I275+Inputs!I2914) -> 0 | J84: =-(Inputs!J275+Inputs!J2914) -> 0 | K84: =-(Inputs!K275+Inputs!K2914) -> 0 | L84: =-(Inputs!L275+Inputs!L2914) -> 0 | M84: =-(Inputs!M275+Inputs!M2914) -> 0 | N84: =-(Inputs!N275+Inputs!N2914) -> 0 | O84: =-(Inputs!O275+Inputs!O2914) -> 0 | P84: =-(Inputs!P275+Inputs!P2914) -> 0 | Q84: =-(Inputs!Q275+Inputs!Q2914) -> 0 | R84: =-(Inputs!R275+Inputs!R2914) -> 0 | S84: =-(Inputs!S275+Inputs!S2914) -> 0 | T84: =-(Inputs!T275+Inputs!T2914) -> 0 | U84: =-(Inputs!U275+Inputs!U2914) -> 0 | V84: =-(Inputs!V275+Inputs!V2914) -> 0 | W84: =-(Inputs!W275+Inputs!W2914) -> 0 | X84: =-(Inputs!X275+Inputs!X2914) -> 0 | Y84: =-(Inputs!Y275+Inputs!Y3158) -> 0 | Z84: =-(Inputs!Z275+Inputs!Z3158) -> 0 | AA84: =-(Inputs!AA275+Inputs!AA3158) -> 0 | AB84: =-(Inputs!AB275+Inputs!AB3158) -> 0 | AC84: =-(Inputs!AC275+Inputs!AC3158) -> 0 | AI84: =-(Inputs!AI275+Inputs!AI3158) -> 0
A85: =ROW() -> 85 | C85: Non-Depreciable | I85: =-(Inputs!I276+Inputs!I2915) -> 0 | J85: =-(Inputs!J276+Inputs!J2915) -> 0 | K85: =-(Inputs!K276+Inputs!K2915) -> 0 | L85: =-(Inputs!L276+Inputs!L2915) -> 0 | M85: =-(Inputs!M276+Inputs!M2915) -> 0 | N85: =-(Inputs!N276+Inputs!N2915) -> -2.90459336 | O85: =-(Inputs!O276+Inputs!O2915) -> 0 | P85: =-(Inputs!P276+Inputs!P2915) -> 0 | Q85: =-(Inputs!Q276+Inputs!Q2915) -> 0 | R85: =-(Inputs!R276+Inputs!R2915) -> 0 | S85: =-(Inputs!S276+Inputs!S2915) -> 0 | T85: =-(Inputs!T276+Inputs!T2915) -> 0 | U85: =-(Inputs!U276+Inputs!U2915) -> 0 | V85: =-(Inputs!V276+Inputs!V2915) -> 0 | W85: =-(Inputs!W276+Inputs!W2915) -> 0 | X85: =-(Inputs!X276+Inputs!X2915) -> 0 | Y85: =-(Inputs!Y276+Inputs!Y3159) -> 0 | Z85: =-(Inputs!Z276+Inputs!Z3159) -> 0 | AA85: =-(Inputs!AA276+Inputs!AA3159) -> 0 | AB85: =-(Inputs!AB276+Inputs!AB3159) -> 0 | AC85: =-(Inputs!AC276+Inputs!AC3159) -> 0 | AI85: =-(Inputs!AI276+Inputs!AI3159) -> 0
A86: =ROW() -> 86 | C86: Cost of Raising Equity | I86: =-(Inputs!I277+Inputs!I2916) -> 0 | J86: =-(Inputs!J277+Inputs!J2916) -> 0 | K86: =-(Inputs!K277+Inputs!K2916) -> 0 | L86: =-(Inputs!L277+Inputs!L2916) -> 0 | M86: =-(Inputs!M277+Inputs!M2916) -> 0 | N86: =-(Inputs!N277+Inputs!N2916) -> 0 | O86: =-(Inputs!O277+Inputs!O2916) -> 0 | P86: =-(Inputs!P277+Inputs!P2916) -> 0 | Q86: =-(Inputs!Q277+Inputs!Q2916) -> 0 | R86: =-(Inputs!R277+Inputs!R2916) -> 0 | S86: =-(Inputs!S277+Inputs!S2916) -> 0 | T86: =-(Inputs!T277+Inputs!T2916) -> 0 | U86: =-(Inputs!U277+Inputs!U2916) -> 0 | V86: =-(Inputs!V277+Inputs!V2916) -> 0 | W86: =-(Inputs!W277+Inputs!W2916) -> 0 | X86: =-(Inputs!X277+Inputs!X2916) -> 0 | Y86: =-(Inputs!Y277+Inputs!Y3160) -> 0 | Z86: =-(Inputs!Z277+Inputs!Z3160) -> 0 | AA86: =-(Inputs!AA277+Inputs!AA3160) -> 0 | AB86: =-(Inputs!AB277+Inputs!AB3160) -> 0 | AC86: =-(Inputs!AC277+Inputs!AC3160) -> 0 | AI86: =-(Inputs!AI277+Inputs!AI3160) -> 0
A87: =ROW() -> 87 | C87: Total | I87: =SUM(I78:I86) -> 0 | J87: =SUM(J78:J86) -> 0 | K87: 0 | L87: 0 | M87: 0 | N87: -8.360463955 | O87: 0 | P87: -0.04204545337 | Q87: -0.03177033202 | R87: -0.1014450127 | S87: -0.01329458569 | T87: -5.147322122 | U87: -0.4229668787 | V87: -0.8425955491 | W87: -2.377115297 | X87: -0.8357667587 | Y87: 0 | Z87: 0 | AA87: 0 | AB87: 0 | AC87: 0
A88: =ROW() -> 88 | B88: Depreciation | H88: Check | I88: =IF(ROUND(I87-I167-I236,6)=0,"OK","Wrong") -> OK | J88: =IF(ROUND(J87-J167-J236,6)=0,"OK","Wrong") -> OK | K88: OK | L88: OK | M88: OK | N88: OK | O88: OK | P88: OK | Q88: OK | R88: OK | S88: OK | T88: OK | U88: OK | V88: OK | W88: OK | X88: OK | Y88: OK | Z88: OK | AA88: OK | AB88: OK | AC88: OK
A89: =ROW() -> 89 | C89: Pipeline | I89: =I169+I238 -> -39.01068043 | J89: -39.02101986 | K89: -39.02775251 | L89: -39.03155165 | M89: -39.04015983 | N89: -39.05690637 | O89: -39.14855823 | P89: -39.26554019 | Q89: -44.44381964 | R89: -50.02394283 | S89: -51.72620727 | T89: -61.25238315 | U89: -61.61902769 | V89: -61.68505315 | W89: -61.7563092 | X89: -61.76514118 | Y89: -62.41227091 | Z89: -62.46857158 | AA89: -62.5067131 | AB89: -62.53181623 | AC89: -62.61416168
A90: =ROW() -> 90 | C90: Compression | I90: -19.02153862 | J90: -19.07539984 | K90: -19.31945852 | L90: -19.56912773 | M90: -19.67180069 | N90: -17.87964189 | O90: -17.97312911 | P90: -21.2422649 | Q90: -26.81752745 | R90: -28.73809993 | S90: -28.7575984 | T90: -34.68962846 | U90: -36.12220728 | V90: -36.38489659 | W90: -36.46700826 | X90: -36.57873135 | Y90: -36.56781772 | Z90: -37.12572383 | AA90: -37.67397462 | AB90: -31.20390889 | AC90: -21.20110303
A91: =ROW() -> 91 | C91: Metering | I91: -0.7685322314 | J91: -0.7685322314 | K91: -0.7702153947 | L91: -0.771898558 | M91: -0.7735817212 | N91: -0.8493963198 | O91: -0.8815655482 | P91: -0.9166601366 | Q91: -0.9210470707 | R91: -0.9210470707 | S91: -0.9210470707 | T91: -0.9697628997 | U91: -0.9829547523 | V91: -0.9946064461 | W91: -1.058351031 | X91: -1.122095616 | Y91: 0.2659232114 | Z91: -1.209678312 | AA91: -1.26722073 | AB91: -1.285451246 | AC91: -1.299364787
A92: =ROW() -> 92 | C92: Other Depreciable | I92: -4.760628774 | J92: -5.044634523 | K92: -5.327125424 | L92: -5.648048553 | M92: -5.91286624 | N92: -5.226508855 | O92: -5.417087163 | P92: -5.568188863 | Q92: -5.643741617 | R92: -5.904039605 | S92: -6.213577788 | T92: -8.476555546 | U92: -11.62442854 | V92: -11.72406696 | W92: -11.80009629 | X92: -11.98016574 | Y92: -6.30779783 | Z92: -6.813828314 | AA92: -6.908407752 | AB92: -7.001214579 | AC92: -7.064123661
A93: =ROW() -> 93 | C93: Computers and Motor Vehicles | I93: 0 | J93: 0 | K93: 0 | L93: 0 | M93: 0 | N93: 0 | O93: 0 | P93: 0 | Q93: 0 | R93: 0 | S93: 0 | T93: 0 | U93: 0 | V93: 0 | W93: 0 | X93: 0 | Y93: 0 | Z93: 0 | AA93: 0 | AB93: 0 | AC93: 0
A94: =ROW() -> 94 | C94: Cathodic/Corrosion Protection | I94: 0 | J94: 0 | K94: 0 | L94: 0 | M94: 0 | N94: 0 | O94: 0 | P94: 0 | Q94: 0 | R94: 0 | S94: 0 | T94: 0 | U94: 0 | V94: 0 | W94: 0 | X94: 0 | Y94: 0 | Z94: 0 | AA94: 0 | AB94: 0 | AC94: 0
A95: =ROW() -> 95 | C95: SCADA , ECI And Comms | I95: 0 | J95: 0 | K95: 0 | L95: 0 | M95: 0 | N95: 0 | O95: 0 | P95: 0 | Q95: 0 | R95: 0 | S95: 0 | T95: 0 | U95: 0 | V95: 0 | W95: 0 | X95: 0 | Y95: 0 | Z95: 0 | AA95: 0 | AB95: 0 | AC95: 0
A96: =ROW() -> 96 | C96: Non-Depreciable | I96: 0 | J96: 0 | K96: 0 | L96: 0 | M96: 0 | N96: 0 | O96: 0 | P96: 0 | Q96: 0 | R96: 0 | S96: 0 | T96: 0 | U96: 0 | V96: 0 | W96: 0 | X96: 0 | Y96: 0.06661015952 | Z96: 0 | AA96: 0 | AB96: 0 | AC96: 0
A97: =ROW() -> 97 | C97: Cost of Raising Equity | I97: 0 | J97: 0 | K97: 0 | L97: 0 | M97: 0 | N97: 0 | O97: 0 | P97: 0 | Q97: 0 | R97: 0 | S97: 0 | T97: 0 | U97: 0 | V97: 0 | W97: 0 | X97: 0 | Y97: 0 | Z97: -4.899938547e-16 | AA97: -4.899938547e-16 | AB97: -4.899938547e-16 | AC97: -4.899938547e-16
A98: =ROW() -> 98 | C98: Total | I98: =SUM(I89:I97) -> -63.56138005 | J98: =SUM(J89:J97) -> -63.90958646 | K98: -64.44455185 | L98: -65.0206265 | M98: -65.39840848 | N98: -63.01245344 | O98: -63.42034004 | P98: -66.99265409 | Q98: -77.82613578 | R98: -85.58712944 | S98: -87.61843053 | T98: -105.3883301 | U98: -110.3486183 | V98: -110.7886232 | W98: -111.0817648 | X98: -111.4461339 | Y98: -104.9553531 | Z98: -107.617802 | AA98: -108.3563162 | AB98: -102.0223909 | AC98: -92.17875315
A99: =ROW() -> 99 | B99: Closing Value | H99: Check | I99: =IF(ROUND(I98+Inputs!I141,6)=0,"OK","Wrong") -> OK | J99: =IF(ROUND(J98+Inputs!J141,6)=0,"OK","Wrong") -> OK | K99: =IF(ROUND(K98+Inputs!K141,6)=0,"OK","Wrong") -> OK | L99: =IF(ROUND(L98+Inputs!L141,6)=0,"OK","Wrong") -> OK | M99: =IF(ROUND(M98+Inputs!M141,6)=0,"OK","Wrong") -> OK | N99: =IF(ROUND(N98+Inputs!N141,6)=0,"OK","Wrong") -> OK | O99: =IF(ROUND(O98+Inputs!O141,6)=0,"OK","Wrong") -> OK | P99: =IF(ROUND(P98+Inputs!P141,6)=0,"OK","Wrong") -> OK | Q99: =IF(ROUND(Q98+Inputs!Q141,6)=0,"OK","Wrong") -> OK | R99: =IF(ROUND(R98+Inputs!R141,6)=0,"OK","Wrong") -> OK | S99: =IF(ROUND(S98+Inputs!S141,6)=0,"OK","Wrong") -> OK | T99: =IF(ROUND(T98+Inputs!T141,6)=0,"OK","Wrong") -> OK | U99: =IF(ROUND(U98+Inputs!U141,6)=0,"OK","Wrong") -> OK | V99: =IF(ROUND(V98+Inputs!V141,6)=0,"OK","Wrong") -> OK | W99: =IF(ROUND(W98+Inputs!W141,6)=0,"OK","Wrong") -> OK | X99: =IF(ROUND(X98+Inputs!X141,6)=0,"OK","Wrong") -> OK | Y99: =IF(ROUND(Y98-Y178-Y247,6)=0,"OK","Wrong") -> OK | Z99: OK | AA99: OK | AB99: OK | AC99: OK
A100: =ROW() -> 100 | C100: Pipeline | H100: =H180 -> 2126.082083 | I100: =I56+I67+I78+I89 -> 2089.27927 | J100: =J56+J67+J78+J89 -> 2050.30468 | K100: 2011.372667 | L100: 1972.341146 | M100: 1934.186735 | N100: 1905.440156 | O100: 2175.086304 | P100: 2137.316441 | Q100: 2713.904421 | R100: 2663.880479 | S100: =S56+S67+S78+S89-S111 -> 3216.083005 | T100: =T56+T67+T78+T89 -> 3208.523307 | U100: =U56+U67+U78+U89 -> 3163.543819 | V100: 3107.060584 | W100: 3045.939702 | X100: 2986.953945 | Y100: =MAX(Y56+Y67+Y78+Y89,0) -> 2924.541674 | Z100: 2862.073102 | AA100: 2799.652686 | AB100: 2737.129743 | AC100: 2674.753304
A101: =ROW() -> 101 | C101: Compression | H101: =H181 -> 356.1635421 | I101: =I57+I68+I79+I90 -> 333.9666307 | J101: 316.9383756 | K101: 297.7436692 | L101: 278.006621 | M101: 258.5964098 | N101: 292.5236002 | O101: 481.0156663 | P101: 459.9504717 | Q101: 592.721561 | R101: 563.983461 | S101: =S57+S68+S79+S90-S112 -> 618.5673731 | T101: =T57+T68+T79+T90 -> 617.5156181 | U101: 590.8444278 | V101: 560.6168072 | W101: 527.4831176 | X101: 495.7020573 | Y101: =MAX(Y57+Y68+Y79+Y90,0) -> 461.6666141 | Z101: 429.2991501 | AA101: 394.5074292 | AB101: 365.2978032 | AC101: 346.6034042
A102: =ROW() -> 102 | C102: Metering | H102: =H182 -> 29.20819445 | I102: =I58+I69+I80+I91 -> 29.34914886 | J102: 29.41310633 | K102: 29.17889171 | L102: 28.36052572 | M102: 29.96879019 | N102: 29.11939387 | O102: 28.23782832 | P102: 27.32116818 | Q102: 26.40012111 | R102: 25.57295293 | S102: 30.71771149 | T102: 30.15500872 | U102: 31.2793291 | V102: 31.34290917 | W102: 29.75244968 | X102: 32.55511147 | Y102: =MAX(Y58+Y69+Y80+Y91,0) -> 36.29869648 | Z102: 38.73500669 | AA102: 44.35108013 | AB102: 49.22425805 | AC102: 54.73790834
A103: =ROW() -> 103 | C103: Other Depreciable | H103: =H183 -> 80.21659485 | I103: =I59+I70+I81+I92 -> 83.56296348 | J103: 80.63287668 | K103: 76.42881298 | L103: 72.12721837 | M103: 67.49969376 | N103: 67.05992313 | O103: 62.69798244 | P103: 59.89215915 | Q103: 61.30496372 | R103: 55.97022921 | S103: 135.2451271 | T103: 181.5838172 | U103: 176.4354314 | V103: 174.2763377 | W103: 170.0861559 | X103: 169.8490848 | Y103: =MAX(Y59+Y70+Y81+Y92,0) -> 165.9216656 | Z103: 164.0657428 | AA103: 158.9242334 | AB103: 154.4018074 | AC103: 152.5119335
A104: =ROW() -> 104 | C104: Computers and Motor Vehicles | I104: =I60+I71+I82+I93 -> 0 | J104: 0 | K104: 0 | L104: 0 | M104: 0 | N104: 0 | O104: 0 | P104: 0 | Q104: 0 | R104: 0 | S104: 0 | T104: 0 | U104: 0 | V104: 0 | W104: 0 | X104: 0 | Y104: =MAX(Y60+Y71+Y82+Y93,0) -> 2.577158822 | Z104: 5.083656448 | AA104: 8.919856657 | AB104: 11.925583 | AC104: 13.47462086
A105: =ROW() -> 105 | C105: Cathodic/Corrosion Protection | I105: 0 | J105: 0 | K105: 0 | L105: 0 | M105: 0 | N105: 0 | O105: 0 | P105: 0 | Q105: 0 | R105: 0 | S105: 0 | T105: 0 | U105: 0 | V105: 0 | W105: 0 | X105: 0 | Y105: 0.8780168558 | Z105: 2.445297741 | AA105: 7.349844065 | AB105: 14.84534781 | AC105: 19.16370686
A106: =ROW() -> 106 | C106: SCADA , ECI And Comms | I106: 0 | J106: 0 | K106: 0 | L106: 0 | M106: 0 | N106: 0 | O106: 0 | P106: 0 | Q106: 0 | R106: 0 | S106: 0 | T106: 0 | U106: 0 | V106: 0 | W106: 0 | X106: 0 | Y106: 5.490562821 | Z106: 11.90912556 | AA106: 14.82350784 | AB106: 21.09298562 | AC106: 26.80570129
A107: =ROW() -> 107 | C107: Non-Depreciable | H107: =H187 -> 17.23264518 | I107: =I63+I74+I85+I96 -> 17.23264518 | J107: 17.23264518 | K107: 17.23264518 | L107: 17.23264518 | M107: 17.23264518 | N107: 14.32805182 | O107: 14.16706645 | P107: 16.50813532 | Q107: 18.28922253 | R107: 19.10415644 | S107: 20.06472478 | T107: 20.04573592 | U107: 20.00129952 | V107: 20.21044364 | W107: 20.21109552 | X107: 20.20791062 | Y107: =MAX(Y63+Y74+Y85+Y96,0) -> 20.27452078 | Z107: 20.27452078 | AA107: 20.27452078 | AB107: 20.27452078 | AC107: 20.27452078
A108: =ROW() -> 108 | C108: Cost of Raising Equity | H108: 0 | I108: =I64+I75+I86+I97 -> 0 | J108: 0 | K108: 0 | L108: 0 | M108: 0 | N108: 0 | O108: 0 | P108: 0 | Q108: 0 | R108: 0 | S108: 0 | T108: 0 | U108: 0 | V108: 0 | W108: 0 | X108: 0 | Y108: =MAX(Y64+Y75+Y86+Y97,0) -> 0 | Z108: -4.899938547e-16 | AA108: -9.799877094e-16 | AB108: -1.469981564e-15 | AC108: -1.959975419e-15
A109: =ROW() -> 109 | C109: Total | H109: =SUM(H100:H108) -> 2608.90306 | I109: =SUM(I100:I108) -> 2553.390658 | J109: 2494.521683 | K109: 2431.956686 | L109: 2368.068156 | M109: 2307.484274 | N109: 2308.471125 | O109: 2761.204847 | P109: 2700.988376 | Q109: 3412.62029 | R109: 3328.511278 | S109: 4020.677942 | T109: 4057.823487 | U109: 3982.104307 | V109: 3893.507082 | W109: 3793.47252 | X109: 3705.268109 | Y109: 3617.648909 | Z109: 3533.885602 | AA109: 3448.803159 | AB109: 3374.192049 | AC109: 3308.3251
A110: =ROW() -> 110 | B110: Over Depreciation | G110: Check | H110: =IF(ROUND(H109-Inputs!H119,6)=0,"OK","Wrong") -> OK | I110: =IF(ROUND(I109-Inputs!I119,6)=0,"OK","Wrong") -> OK | J110: =IF(ROUND(J109-Inputs!J119,6)=0,"OK","Wrong") -> OK | K110: =IF(ROUND(K109-Inputs!K119,6)=0,"OK","Wrong") -> OK | L110: =IF(ROUND(L109-Inputs!L119,6)=0,"OK","Wrong") -> OK | M110: =IF(ROUND(M109-Inputs!M119,6)=0,"OK","Wrong") -> OK | N110: =IF(ROUND(N109-N189-N258,6)=0,"OK","Wrong") -> OK | O110: OK | P110: OK | Q110: OK | R110: OK | S110: OK | T110: OK | U110: OK | V110: OK | W110: OK | X110: OK | Y110: OK | Z110: OK | AA110: OK | AB110: OK | AC110: OK
A111: =ROW() -> 111 | C111: Pipeline | S111: =S191+S260 -> -15.75000498 | Y111: =Y191+Y260 -> 0
A112: =ROW() -> 112 | C112: Compression | S112: =S192+S261 -> -20.60421332 | Y112: =Y192+Y261 -> 0
A113: =ROW() -> 113 | C113: Metering | S113: =S193+S262 -> -0.3569597962 | Y113: =Y193+Y262 -> 0
A114: =ROW() -> 114 | C114: Other Depreciable | S114: =S194+S263 -> 0 | Y114: =Y194+Y263 -> 0
A115: =ROW() -> 115 | C115: Computers and Motor Vehicles | S115: =S195+S264 -> 0 | Y115: =Y195+Y264 -> 0
A116: =ROW() -> 116 | C116: Cathodic/Corrosion Protection | S116: 0 | Y116: 0
A117: =ROW() -> 117 | C117: SCADA , ECI And Comms | S117: 0 | Y117: 0
A118: =ROW() -> 118 | C118: Non-Depreciable | S118: =S198+S267 -> -0.1609853768 | Y118: =Y198+Y267 -> 0
A119: =ROW() -> 119 | C119: Cost of Raising Equity | S119: =S199+S268 -> 0 | Y119: =Y199+Y268 -> 0
A120: =ROW() -> 120 | C120: Total | S120: =SUM(S111:S119) -> -36.87216348 | Y120: =SUM(Y111:Y119) -> 0
A121: =ROW() -> 121
A122: =ROW() -> 122 | B122: Economic end date
A123: ="BEP Asset Account [m$ "&TEXT(Inputs!$E$32,"dd/mm/yyyy")&"]" -> BEP Asset Account [m$ 31/12/2019]
A124: BEP Lease (Capex)
A125: =ROW() -> 125 | B125: BEP Asset Account
A126: =ROW() -> 126 | C126: Life | U126: 57 | V126: =U126-1 -> 56 | W126: 55 | X126: 54 | Y126: 53 | Z126: 52 | AA126: 51 | AB126: 50 | AC126: 49
A127: =ROW() -> 127 | C127: Opening Value (Starting 01/12/2010) | T127: =S131 -> 0 | U127: =T131 -> 22.63836826 | V127: =U131 -> 22.2412039 | W127: =V131 -> 21.84403955 | X127: =W131 -> 21.44687519 | Y127: =X131 -> 21.04971084 | Z127: 20.65254648 | AA127: 20.25538213 | AB127: 19.85821777 | AC127: 19.46105342
A128: =ROW() -> 128 | C128: Capex | T128: =Inputs!$T$435 -> 22.63836826
A129: =ROW() -> 129 | C129: Redundant & Disposed Asset | U129: =Inputs!U443 -> 0 | V129: =Inputs!V443 -> 0 | W129: =Inputs!W443 -> 0 | X129: =Inputs!X443 -> 0 | Y129: =Inputs!Y443 -> 0 | Z129: =Inputs!Z443 -> 0 | AA129: =Inputs!AA443 -> 0 | AB129: =Inputs!AB443 -> 0 | AC129: =Inputs!AC443 -> 0
A130: =ROW() -> 130 | C130: Depreciation | T130: =Inputs!T439 -> 0 | U130: =Inputs!U439 -> -0.3971643554 | V130: =Inputs!V439 -> -0.3971643554 | W130: =Inputs!W439 -> -0.3971643554 | X130: =Inputs!X439 -> -0.3971643554 | Y130: =-Y127/Y126 -> -0.3971643554 | Z130: -0.3971643554 | AA130: -0.3971643554 | AB130: -0.3971643554 | AC130: -0.3971643554
A131: =ROW() -> 131 | C131: Closing Value | T131: =SUM(T127:T130) -> 22.63836826 | U131: =SUM(U127:U130) -> 22.2412039 | V131: =SUM(V127:V130) -> 21.84403955 | W131: =SUM(W127:W130) -> 21.44687519 | X131: =SUM(X127:X130) -> 21.04971084 | Y131: =SUM(Y127:Y130) -> 20.65254648 | Z131: 20.25538213 | AA131: 19.85821777 | AB131: 19.46105342 | AC131: 19.06388906
A132: =ROW() -> 132
A133: ="Opening Capital Base (OCB) [$m "&TEXT(Inputs!$E$32,"dd/mm/yyyy")&"]" -> Opening Capital Base (OCB) [$m 31/12/2019]
A134: Opening Capital Base Accounts
A135: =ROW() -> 135 | B135: Life | I135: Life
A136: =ROW() -> 136 | C136: Pipeline | I136: =Inputs!D46 -> 54.5 | J136: =MAX(I136-1,0) -> 53.5 | K136: =MAX(J136-1,0) -> 52.5 | L136: 51.5 | M136: 50.5 | N136: 49.5 | O136: 48.5 | P136: 47.5 | Q136: 46.5 | R136: 45.5 | S136: 44.5 | T136: 43.5 | U136: 42.5 | V136: 41.5 | W136: 40.5 | X136: 39.5 | Y136: 38.5 | Z136: 37.5 | AA136: 36.5 | AB136: 35.5 | AC136: 34.5
A137: =ROW() -> 137 | C137: Compression | I137: =Inputs!D47 -> 19.60073141 | J137: =MAX(I137-1,0) -> 18.60073141 | K137: 17.60073141 | L137: 16.60073141 | M137: 15.60073141 | N137: 14.60073141 | O137: 13.60073141 | P137: 12.60073141 | Q137: 11.60073141 | R137: 10.60073141 | S137: 9.600731411 | T137: 8.600731411 | U137: 7.600731411 | V137: 6.600731411 | W137: 5.600731411 | X137: 4.600731411 | Y137: 3.600731411 | Z137: 2.600731411 | AA137: 1.600731411 | AB137: 0.6007314111 | AC137: 0
A138: =ROW() -> 138 | C138: Metering | I138: =Inputs!D48 -> 38.50225195 | J138: 37.50225195 | K138: 36.50225195 | L138: 35.50225195 | M138: 34.50225195 | N138: 33.50225195 | O138: 32.50225195 | P138: 31.50225195 | Q138: 30.50225195 | R138: 29.50225195 | S138: 28.50225195 | T138: 27.50225195 | U138: 26.50225195 | V138: 25.50225195 | W138: 24.50225195 | X138: 23.50225195 | Y138: 22.50225195 | Z138: 21.50225195 | AA138: 20.50225195 | AB138: 19.50225195 | AC138: 18.50225195
A139: =ROW() -> 139 | C139: Other Depreciable | I139: =Inputs!D49 -> 16.85 | J139: 15.85 | K139: 14.85 | L139: 13.85 | M139: 12.85 | N139: 11.85 | O139: 10.85 | P139: 9.85 | Q139: 8.85 | R139: 7.85 | S139: 6.85 | T139: 5.85 | U139: 4.85 | V139: 3.85 | W139: 2.85 | X139: 1.85 | Y139: 0.85 | Z139: 0 | AA139: 0 | AB139: 0 | AC139: 0
A140: =ROW() -> 140 | C140: Computers and Motor Vehicles | I140: =Inputs!D50 -> 0 | J140: 0 | K140: 0 | L140: 0 | M140: 0 | N140: 0 | O140: 0 | P140: 0 | Q140: 0 | R140: 0 | S140: 0 | T140: 0 | U140: 0 | V140: 0 | W140: 0 | X140: 0 | Y140: 0 | Z140: 0 | AA140: 0 | AB140: 0 | AC140: 0
A141: =ROW() -> 141 | C141: Cathodic/Corrosion Protection | I141: =Inputs!D51 -> 0 | J141: 0 | K141: 0 | L141: 0 | M141: 0 | N141: 0 | O141: 0 | P141: 0 | Q141: 0 | R141: 0 | S141: 0 | T141: 0 | U141: 0 | V141: 0 | W141: 0 | X141: 0 | Y141: 0 | Z141: 0 | AA141: 0 | AB141: 0 | AC141: 0
A142: =ROW() -> 142 | C142: SCADA , ECI And Comms | I142: =Inputs!D52 -> 0 | J142: 0 | K142: 0 | L142: 0 | M142: 0 | N142: 0 | O142: 0 | P142: 0 | Q142: 0 | R142: 0 | S142: 0 | T142: 0 | U142: 0 | V142: 0 | W142: 0 | X142: 0 | Y142: 0 | Z142: 0 | AA142: 0 | AB142: 0 | AC142: 0
A143: =ROW() -> 143 | C143: Non-Depreciable
A144: =ROW() -> 144 | C144: Cost of Raising Equity
A145: =ROW() -> 145
A146: =ROW() -> 146 | B146: Opening Value
A147: =ROW() -> 147 | C147: Pipeline | I147: =H180 -> 2126.082083 | J147: 2087.071403 | K147: 2048.060722 | L147: 2009.050042 | M147: 1970.039362 | N147: 1931.028681 | O147: 1892.018001 | P147: 1853.00732 | Q147: 1813.99664 | R147: 1774.985959 | S147: 1735.975279 | T147: 1696.964599 | U147: 1657.953918 | V147: 1618.943238 | W147: 1579.932557 | X147: 1540.921877 | Y147: 1501.911196 | Z147: 1462.900516 | AA147: 1423.889836 | AB147: 1384.879155 | AC147: 1345.868475
A148: =ROW() -> 148 | C148: Compression | I148: 356.1635421 | J148: 337.1420035 | K148: 318.1204649 | L148: 299.0989263 | M148: 280.0773876 | N148: 261.055849 | O148: 237.8164482 | P148: 219.9368063 | Q148: 202.0571644 | R148: 184.1775226 | S148: 166.2978807 | T148: 148.4182388 | U148: 131.1606439 | V148: 113.9041768 | W148: 96.64770966 | X148: 79.39124254 | Y148: 62.13477542 | Z148: 44.87862151 | AA148: 27.6224676 | AB148: 10.36631369 | AC148: 0
A149: =ROW() -> 149 | C149: Metering | I149: 29.20819445 | J149: 28.43966222 | K149: 27.67112999 | L149: 26.90259776 | M149: 26.13406552 | N149: 25.36553329 | O149: 24.60840409 | P149: 23.85127489 | Q149: 23.09414569 | R149: 22.33701648 | S149: 21.57988728 | T149: 20.82275808 | U149: 20.06562888 | V149: 19.30849967 | W149: 18.55137047 | X149: 17.76638998 | Y149: 17.00926078 | Z149: 16.25336929 | AA149: 15.4974778 | AB149: 14.74158631 | AC149: 13.98569482
A150: =ROW() -> 150 | C150: Other Depreciable | I150: 80.21659485 | J150: 75.45596607 | K150: 70.6953373 | L150: 65.93470852 | M150: 61.17407975 | N150: 56.41345098 | O150: 51.5567105 | P150: 46.79608173 | Q150: 41.9934075 | R150: 37.20100839 | S150: 32.3389346 | T150: 27.56501124 | U150: 20.8330494 | V150: 16.09248345 | W150: 11.34186396 | X150: 6.629896222 | Y150: 1.917928488 | Z150: 0 | AA150: 0 | AB150: 0 | AC150: 0
A151: =ROW() -> 151 | C151: Computers and Motor Vehicles | I151: 0 | J151: 0 | K151: 0 | L151: 0 | M151: 0 | N151: 0 | O151: 0 | P151: 0 | Q151: 0 | R151: 0 | S151: 0 | T151: 0 | U151: 0 | V151: 0 | W151: 0 | X151: 0 | Y151: 0 | Z151: 0 | AA151: 0 | AB151: 0 | AC151: 0
A152: =ROW() -> 152 | C152: Cathodic/Corrosion Protection | I152: 0 | J152: 0 | K152: 0 | L152: 0 | M152: 0 | N152: 0 | O152: 0 | P152: 0 | Q152: 0 | R152: 0 | S152: 0 | T152: 0 | U152: 0 | V152: 0 | W152: 0 | X152: 0 | Y152: 0 | Z152: 0 | AA152: 0 | AB152: 0 | AC152: 0
A153: =ROW() -> 153 | C153: SCADA , ECI And Comms | I153: 0 | J153: 0 | K153: 0 | L153: 0 | M153: 0 | N153: 0 | O153: 0 | P153: 0 | Q153: 0 | R153: 0 | S153: 0 | T153: 0 | U153: 0 | V153: 0 | W153: 0 | X153: 0 | Y153: 0 | Z153: 0 | AA153: 0 | AB153: 0 | AC153: 0
A154: =ROW() -> 154 | C154: Non-Depreciable | I154: 17.23264518 | J154: 17.23264518 | K154: 17.23264518 | L154: 17.23264518 | M154: 17.23264518 | N154: 17.23264518 | O154: 14.32805182 | P154: 14.32805182 | Q154: 14.32805182 | R154: 14.32805182 | S154: 14.32805182 | T154: 14.32805182 | U154: 14.32805182 | V154: 14.32805182 | W154: 14.32805182 | X154: 14.32805182 | Y154: 14.32805182 | Z154: 14.32805182 | AA154: 14.32805182 | AB154: 14.32805182 | AC154: 14.32805182
A155: =ROW() -> 155 | C155: Cost of Raising Equity | I155: 0 | J155: 0 | K155: 0 | L155: 0 | M155: 0 | N155: 0 | O155: 0 | P155: 0 | Q155: 0 | R155: 0 | S155: 0 | T155: 0 | U155: 0 | V155: 0 | W155: 0 | X155: 0 | Y155: 0 | Z155: 0 | AA155: 0 | AB155: 0 | AC155: 0
A156: =ROW() -> 156 | C156: Total | I156: =SUM(I147:I155) -> 2608.90306 | J156: =SUM(J147:J155) -> 2545.34168 | K156: 2481.7803 | L156: 2418.21892 | M156: 2354.65754 | N156: 2291.09616 | O156: 2220.327615 | P156: 2157.919535 | Q156: 2095.469409 | R156: 2033.029559 | S156: 1970.520033 | T156: 1908.098659 | U156: 1844.341292 | V156: 1782.576449 | W156: 1720.801553 | X156: 1659.037457 | Y156: 1597.301213 | Z156: 1538.360559 | AA156: 1481.337833 | AB156: 1424.315107 | AC156: 1374.182221
A157: =ROW() -> 157 | B157: Redundant & Disposed Asset
A158: =ROW() -> 158 | C158: Pipeline | I158: =-Inputs!I269 -> 0 | J158: =-Inputs!J269 -> 0 | K158: =-Inputs!K269 -> 0 | L158: =-Inputs!L269 -> 0 | M158: =-Inputs!M269 -> 0 | N158: =-Inputs!N269 -> 0 | O158: =-Inputs!O269 -> 0 | P158: =-Inputs!P269 -> 0 | Q158: =-Inputs!Q269 -> 0 | R158: =-Inputs!R269 -> 0 | S158: =-Inputs!S269 -> 0 | T158: =-Inputs!T269 -> 0 | U158: =-Inputs!U269 -> 0 | V158: =-Inputs!V269 -> 0 | W158: =-Inputs!W269 -> 0 | X158: =-Inputs!X269 -> 0 | Y158: =-Inputs!Y269 -> 0 | Z158: =-Inputs!Z269 -> 0 | AA158: =-Inputs!AA269 -> 0 | AB158: =-Inputs!AB269 -> 0 | AC158: =-Inputs!AC269 -> 0
A159: =ROW() -> 159 | C159: Compression | I159: =-Inputs!I270 -> 0 | J159: =-Inputs!J270 -> 0 | K159: =-Inputs!K270 -> 0 | L159: =-Inputs!L270 -> 0 | M159: =-Inputs!M270 -> 0 | N159: =-Inputs!N270 -> -5.359758893 | O159: =-Inputs!O270 -> 0 | P159: =-Inputs!P270 -> 0 | Q159: =-Inputs!Q270 -> 0 | R159: =-Inputs!R270 -> 0 | S159: =-Inputs!S270 -> 0 | T159: =-Inputs!T270 -> -0.001127763862 | U159: =-Inputs!U270 -> 0 | V159: =-Inputs!V270 -> 0 | W159: =-Inputs!W270 -> 0 | X159: =-Inputs!X270 -> 0 | Y159: =-Inputs!Y270 -> 0 | Z159: =-Inputs!Z270 -> 0 | AA159: =-Inputs!AA270 -> 0 | AB159: =-Inputs!AB270 -> 0 | AC159: =-Inputs!AC270 -> 0
A160: =ROW() -> 160 | C160: Metering | I160: =-Inputs!I271 -> 0 | J160: =-Inputs!J271 -> 0 | K160: =-Inputs!K271 -> 0 | L160: =-Inputs!L271 -> 0 | M160: =-Inputs!M271 -> 0 | N160: =-Inputs!N271 -> 0 | O160: =-Inputs!O271 -> 0 | P160: =-Inputs!P271 -> 0 | Q160: =-Inputs!Q271 -> 0 | R160: =-Inputs!R271 -> 0 | S160: =-Inputs!S271 -> 0 | T160: =-Inputs!T271 -> 0 | U160: =-Inputs!U271 -> 0 | V160: =-Inputs!V271 -> 0 | W160: =-Inputs!W271 -> -0.02785128631 | X160: =-Inputs!X271 -> 0 | Y160: =-Inputs!Y271 -> 0 | Z160: =-Inputs!Z271 -> 0 | AA160: =-Inputs!AA271 -> 0 | AB160: =-Inputs!AB271 -> 0 | AC160: =-Inputs!AC271 -> 0
A161: =ROW() -> 161 | C161: Other Depreciable | I161: =-Inputs!I272 -> 0 | J161: =-Inputs!J272 -> 0 | K161: =-Inputs!K272 -> 0 | L161: =-Inputs!L272 -> 0 | M161: =-Inputs!M272 -> 0 | N161: =-Inputs!N272 -> -0.09611170235 | O161: =-Inputs!O272 -> 0 | P161: =-Inputs!P272 -> -0.04204545337 | Q161: =-Inputs!Q272 -> -0.03177033202 | R161: =-Inputs!R272 -> -0.1014450127 | S161: =-Inputs!S272 -> -0.01329458569 | T161: =-Inputs!T272 -> -2.019994105 | U161: =-Inputs!U272 -> -0.02859822127 | V161: =-Inputs!V272 -> -0.03865175955 | W161: =-Inputs!W272 -> 0 | X161: =-Inputs!X272 -> 0 | Y161: =-Inputs!Y272 -> 0 | Z161: =-Inputs!Z272 -> 0 | AA161: =-Inputs!AA272 -> 0 | AB161: =-Inputs!AB272 -> 0 | AC161: =-Inputs!AC272 -> 0
A162: =ROW() -> 162 | C162: Computers and Motor Vehicles | I162: =-Inputs!I273 -> 0 | J162: =-Inputs!J273 -> 0 | K162: =-Inputs!K273 -> 0 | L162: =-Inputs!L273 -> 0 | M162: =-Inputs!M273 -> 0 | N162: =-Inputs!N273 -> 0 | O162: =-Inputs!O273 -> 0 | P162: =-Inputs!P273 -> 0 | Q162: =-Inputs!Q273 -> 0 | R162: =-Inputs!R273 -> 0 | S162: =-Inputs!S273 -> 0 | T162: =-Inputs!T273 -> 0 | U162: =-Inputs!U273 -> 0 | V162: =-Inputs!V273 -> 0 | W162: =-Inputs!W273 -> 0 | X162: =-Inputs!X273 -> 0 | Y162: =-Inputs!Y273 -> 0 | Z162: =-Inputs!Z273 -> 0 | AA162: =-Inputs!AA273 -> 0 | AB162: =-Inputs!AB273 -> 0 | AC162: =-Inputs!AC273 -> 0
A163: =ROW() -> 163 | C163: Cathodic/Corrosion Protection | I163: =-Inputs!I274 -> 0 | J163: =-Inputs!J274 -> 0 | K163: =-Inputs!K274 -> 0 | L163: =-Inputs!L274 -> 0 | M163: =-Inputs!M274 -> 0 | N163: =-Inputs!N274 -> 0 | O163: =-Inputs!O274 -> 0 | P163: =-Inputs!P274 -> 0 | Q163: =-Inputs!Q274 -> 0 | R163: =-Inputs!R274 -> 0 | S163: =-Inputs!S274 -> 0 | T163: =-Inputs!T274 -> 0 | U163: =-Inputs!U274 -> 0 | V163: =-Inputs!V274 -> 0 | W163: =-Inputs!W274 -> 0 | X163: =-Inputs!X274 -> 0 | Y163: =-Inputs!Y274 -> 0 | Z163: =-Inputs!Z274 -> 0 | AA163: =-Inputs!AA274 -> 0 | AB163: =-Inputs!AB274 -> 0 | AC163: =-Inputs!AC274 -> 0
A164: =ROW() -> 164 | C164: SCADA , ECI And Comms | I164: =-Inputs!I275 -> 0 | J164: =-Inputs!J275 -> 0 | K164: =-Inputs!K275 -> 0 | L164: =-Inputs!L275 -> 0 | M164: =-Inputs!M275 -> 0 | N164: =-Inputs!N275 -> 0 | O164: =-Inputs!O275 -> 0 | P164: =-Inputs!P275 -> 0 | Q164: =-Inputs!Q275 -> 0 | R164: =-Inputs!R275 -> 0 | S164: =-Inputs!S275 -> 0 | T164: =-Inputs!T275 -> 0 | U164: =-Inputs!U275 -> 0 | V164: =-Inputs!V275 -> 0 | W164: =-Inputs!W275 -> 0 | X164: =-Inputs!X275 -> 0 | Y164: =-Inputs!Y275 -> 0 | Z164: =-Inputs!Z275 -> 0 | AA164: =-Inputs!AA275 -> 0 | AB164: =-Inputs!AB275 -> 0 | AC164: =-Inputs!AC275 -> 0
A165: =ROW() -> 165 | C165: Non-Depreciable | I165: =-Inputs!I276 -> 0 | J165: =-Inputs!J276 -> 0 | K165: =-Inputs!K276 -> 0 | L165: =-Inputs!L276 -> 0 | M165: =-Inputs!M276 -> 0 | N165: =-Inputs!N276 -> -2.90459336 | O165: =-Inputs!O276 -> 0 | P165: =-Inputs!P276 -> 0 | Q165: =-Inputs!Q276 -> 0 | R165: =-Inputs!R276 -> 0 | S165: =-Inputs!S276 -> 0 | T165: =-Inputs!T276 -> 0 | U165: =-Inputs!U276 -> 0 | V165: =-Inputs!V276 -> 0 | W165: =-Inputs!W276 -> 0 | X165: =-Inputs!X276 -> 0 | Y165: =-Inputs!Y276 -> 0 | Z165: =-Inputs!Z276 -> 0 | AA165: =-Inputs!AA276 -> 0 | AB165: =-Inputs!AB276 -> 0 | AC165: =-Inputs!AC276 -> 0
A166: =ROW() -> 166 | C166: Cost of Raising Equity | I166: =-Inputs!I277 -> 0 | J166: =-Inputs!J277 -> 0 | K166: =-Inputs!K277 -> 0 | L166: =-Inputs!L277 -> 0 | M166: =-Inputs!M277 -> 0 | N166: =-Inputs!N277 -> 0 | O166: =-Inputs!O277 -> 0 | P166: =-Inputs!P277 -> 0 | Q166: =-Inputs!Q277 -> 0 | R166: =-Inputs!R277 -> 0 | S166: =-Inputs!S277 -> 0 | T166: =-Inputs!T277 -> 0 | U166: =-Inputs!U277 -> 0 | V166: =-Inputs!V277 -> 0 | W166: =-Inputs!W277 -> 0 | X166: =-Inputs!X277 -> 0 | Y166: =-Inputs!Y277 -> 0 | Z166: =-Inputs!Z277 -> 0 | AA166: =-Inputs!AA277 -> 0 | AB166: =-Inputs!AB277 -> 0 | AC166: =-Inputs!AC277 -> 0
A167: =ROW() -> 167 | C167: Total | I167: =SUM(I158:I166) -> 0 | J167: 0 | K167: 0 | L167: 0 | M167: 0 | N167: -8.360463955 | O167: 0 | P167: -0.04204545337 | Q167: -0.03177033202 | R167: -0.1014450127 | S167: -0.01329458569 | T167: -2.021121869 | U167: -0.02859822127 | V167: -0.03865175955 | W167: -0.02785128631 | X167: 0 | Y167: 0 | Z167: 0 | AA167: 0 | AB167: 0 | AC167: 0
A168: =ROW() -> 168 | B168: Depreciation | Z168: =Z150/($H172-(Z$8-1)) -> 0
A169: =ROW() -> 169 | C169: Pipeline | I169: =-Inputs!I212 -> -39.01068043 | J169: =-Inputs!J212 -> -39.01068043 | K169: =-Inputs!K212 -> -39.01068043 | L169: =-Inputs!L212 -> -39.01068043 | M169: =-Inputs!M212 -> -39.01068043 | N169: =-Inputs!N212 -> -39.01068043 | O169: =-Inputs!O212 -> -39.01068043 | P169: =-Inputs!P212 -> -39.01068043 | Q169: =-Inputs!Q212 -> -39.01068043 | R169: =-Inputs!R212 -> -39.01068043 | S169: =-Inputs!S212 -> -39.01068043 | T169: =-Inputs!T212 -> -39.01068043 | U169: =-Inputs!U212 -> -39.01068043 | V169: =-Inputs!V212 -> -39.01068043 | W169: =-Inputs!W212 -> -39.01068043 | X169: =-Inputs!X212 -> -39.01068043 | Y169: =-Inputs!Y212 -> -39.01068043 | Z169: =-Inputs!Z212 -> -39.01068043 | AA169: =-Inputs!AA212 -> -39.01068043 | AB169: =-Inputs!AB212 -> -39.01068043 | AC169: =-Inputs!AC212 -> -39.01068043
A170: =ROW() -> 170 | C170: Compression | I170: =-Inputs!I213 -> -19.02153862 | J170: =-Inputs!J213 -> -19.02153862 | K170: =-Inputs!K213 -> -19.02153862 | L170: =-Inputs!L213 -> -19.02153862 | M170: =-Inputs!M213 -> -19.02153862 | N170: =-Inputs!N213 -> -17.87964189 | O170: =-Inputs!O213 -> -17.87964189 | P170: =-Inputs!P213 -> -17.87964189 | Q170: =-Inputs!Q213 -> -17.87964189 | R170: =-Inputs!R213 -> -17.87964189 | S170: =-Inputs!S213 -> -17.87964189 | T170: =-Inputs!T213 -> -17.25646712 | U170: =-Inputs!U213 -> -17.25646712 | V170: =-Inputs!V213 -> -17.25646712 | W170: =-Inputs!W213 -> -17.25646712 | X170: =-Inputs!X213 -> -17.25646712 | Y170: =-Inputs!Y213 -> -17.25615391 | Z170: =-Inputs!Z213 -> -17.25615391 | AA170: =-Inputs!AA213 -> -17.25615391 | AB170: =-Inputs!AB213 -> -10.36631369 | AC170: =-Inputs!AC213 -> 0
A171: =ROW() -> 171 | C171: Metering | I171: =-Inputs!I214 -> -0.7685322314 | J171: =-Inputs!J214 -> -0.7685322314 | K171: =-Inputs!K214 -> -0.7685322314 | L171: =-Inputs!L214 -> -0.7685322314 | M171: =-Inputs!M214 -> -0.7685322314 | N171: =-Inputs!N214 -> -0.7571292023 | O171: =-Inputs!O214 -> -0.7571292023 | P171: =-Inputs!P214 -> -0.7571292023 | Q171: =-Inputs!Q214 -> -0.7571292023 | R171: =-Inputs!R214 -> -0.7571292023 | S171: =-Inputs!S214 -> -0.7571292023 | T171: =-Inputs!T214 -> -0.7571292023 | U171: =-Inputs!U214 -> -0.7571292023 | V171: =-Inputs!V214 -> -0.7571292023 | W171: =-Inputs!W214 -> -0.7571292023 | X171: =-Inputs!X214 -> -0.7571292023 | Y171: =-Inputs!Y214 -> -0.7558914913 | Z171: =-Inputs!Z214 -> -0.7558914913 | AA171: =-Inputs!AA214 -> -0.7558914913 | AB171: =-Inputs!AB214 -> -0.7558914913 | AC171: =-Inputs!AC214 -> -0.7558914913
A172: =ROW() -> 172 | C172: Other Depreciable | I172: =-Inputs!I215 -> -4.760628774 | J172: =-Inputs!J215 -> -4.760628774 | K172: =-Inputs!K215 -> -4.760628774 | L172: =-Inputs!L215 -> -4.760628774 | M172: =-Inputs!M215 -> -4.760628774 | N172: =-Inputs!N215 -> -4.760628774 | O172: =-Inputs!O215 -> -4.760628774 | P172: =-Inputs!P215 -> -4.760628774 | Q172: =-Inputs!Q215 -> -4.760628774 | R172: =-Inputs!R215 -> -4.760628774 | S172: =-Inputs!S215 -> -4.760628774 | T172: =-Inputs!T215 -> -4.711967734 | U172: =-Inputs!U215 -> -4.711967734 | V172: =-Inputs!V215 -> -4.711967734 | W172: =-Inputs!W215 -> -4.711967734 | X172: =-Inputs!X215 -> -4.711967734 | Y172: =-Inputs!Y215 -> -1.917928488 | Z172: =-Inputs!Z215 -> 0 | AA172: =-Inputs!AA215 -> 0 | AB172: =-Inputs!AB215 -> 0 | AC172: =-Inputs!AC215 -> 0
A173: =ROW() -> 173 | C173: Computers and Motor Vehicles | I173: =-Inputs!I216 -> 0 | J173: =-Inputs!J216 -> 0 | K173: =-Inputs!K216 -> 0 | L173: =-Inputs!L216 -> 0 | M173: =-Inputs!M216 -> 0 | N173: =-Inputs!N216 -> 0 | O173: =-Inputs!O216 -> 0 | P173: =-Inputs!P216 -> 0 | Q173: =-Inputs!Q216 -> 0 | R173: =-Inputs!R216 -> 0 | S173: =-Inputs!S216 -> 0 | T173: =-Inputs!T216 -> 0 | U173: =-Inputs!U216 -> 0 | V173: =-Inputs!V216 -> 0 | W173: =-Inputs!W216 -> 0 | X173: =-Inputs!X216 -> 0 | Y173: =-Inputs!Y216 -> 0 | Z173: =-Inputs!Z216 -> 0 | AA173: =-Inputs!AA216 -> 0 | AB173: =-Inputs!AB216 -> 0 | AC173: =-Inputs!AC216 -> 0
A174: =ROW() -> 174 | C174: Cathodic/Corrosion Protection | I174: =-Inputs!I217 -> 0 | J174: =-Inputs!J217 -> 0 | K174: =-Inputs!K217 -> 0 | L174: =-Inputs!L217 -> 0 | M174: =-Inputs!M217 -> 0 | N174: =-Inputs!N217 -> 0 | O174: =-Inputs!O217 -> 0 | P174: =-Inputs!P217 -> 0 | Q174: =-Inputs!Q217 -> 0 | R174: =-Inputs!R217 -> 0 | S174: =-Inputs!S217 -> 0 | T174: =-Inputs!T217 -> 0 | U174: =-Inputs!U217 -> 0 | V174: =-Inputs!V217 -> 0 | W174: =-Inputs!W217 -> 0 | X174: =-Inputs!X217 -> 0 | Y174: =-Inputs!Y217 -> 0 | Z174: =-Inputs!Z217 -> 0 | AA174: =-Inputs!AA217 -> 0 | AB174: =-Inputs!AB217 -> 0 | AC174: =-Inputs!AC217 -> 0
A175: =ROW() -> 175 | C175: SCADA , ECI And Comms | I175: =-Inputs!I218 -> 0 | J175: =-Inputs!J218 -> 0 | K175: =-Inputs!K218 -> 0 | L175: =-Inputs!L218 -> 0 | M175: =-Inputs!M218 -> 0 | N175: =-Inputs!N218 -> 0 | O175: =-Inputs!O218 -> 0 | P175: =-Inputs!P218 -> 0 | Q175: =-Inputs!Q218 -> 0 | R175: =-Inputs!R218 -> 0 | S175: =-Inputs!S218 -> 0 | T175: =-Inputs!T218 -> 0 | U175: =-Inputs!U218 -> 0 | V175: =-Inputs!V218 -> 0 | W175: =-Inputs!W218 -> 0 | X175: =-Inputs!X218 -> 0 | Y175: =-Inputs!Y218 -> 0 | Z175: =-Inputs!Z218 -> 0 | AA175: =-Inputs!AA218 -> 0 | AB175: =-Inputs!AB218 -> 0 | AC175: =-Inputs!AC218 -> 0
A176: =ROW() -> 176 | C176: Non-Depreciable | I176: =-Inputs!I219 -> 0 | J176: =-Inputs!J219 -> 0 | K176: =-Inputs!K219 -> 0 | L176: =-Inputs!L219 -> 0 | M176: =-Inputs!M219 -> 0 | N176: =-Inputs!N219 -> 0 | O176: =-Inputs!O219 -> 0 | P176: =-Inputs!P219 -> 0 | Q176: =-Inputs!Q219 -> 0 | R176: =-Inputs!R219 -> 0 | S176: =-Inputs!S219 -> 0 | T176: =-Inputs!T219 -> 0 | U176: =-Inputs!U219 -> 0 | V176: =-Inputs!V219 -> 0 | W176: =-Inputs!W219 -> 0 | X176: =-Inputs!X219 -> 0 | Y176: =-Inputs!Y219 -> 0 | Z176: =-Inputs!Z219 -> 0 | AA176: =-Inputs!AA219 -> 0 | AB176: =-Inputs!AB219 -> 0 | AC176: =-Inputs!AC219 -> 0
